Workbook

Sheet instruction
B2: National paths based on a given national budget (Extended Smooth Pathway Model)
R4: The following figures show the respective characteristics of the RM Scenario Types 1 - 6.
C27: Cells shaded in yellow in the following sheets are input fields, where you can enter data.
B29: Suggestions and feedback are welcome: | F29: save-the-climate@online.ms
B31: More information on our website: | F31: http://www.save-the-climate.info/
B33: version: | D33: 2018 - 2021 | E33: 49.1 | G33: You can download the current version of the tool and the instruction to the tool from
B34: DOI | D34: 10.5281/zenodo.4580310 | G34: Zenodo
C36: data status | G36: Detailed instruction to the tool:
C37: emissions | E37: 2020-09-01
C38: population | E38: 2019

Sheet base data
Q1: Conversion factor C > CO2: | T1: =5760/1570 -> 3.668789809
B2: base data
P3: Global Warming of 1.5 °C - an IPCC special report on the impacts of global warming of 1.5 °C above pre-industrial levels (…)
B4: input fields | D4: values from the sheet „EDGAR“ | AA4: source:
AA5: http://www.ipcc.ch/report/sr15/
B6: I. Input of base data for the determination of a global budget 2020 - 2100 | AA6: > Chapter 2
AA7: SPM >
B8: I. a) Global CO2 budget 2018 - 2100
B10: global CO2 budget from 2018 to 2100 in Gt
B11: 570 | D11: see Table 2.2
B13: I. b) Global CO2 Emissions 2018 - 2019
B15: annual change rates | G15: =G17/F17-1 -> 0.01198581791 | H15: =H17/G17-1 -> 0.008653201183 | I15: -0.001386478191 | J15: 0.000306616598 | K15: 0.01270994333 | L15: 0.02353321993 | M15: 0.008515950459
E16: year: | F16: =2012 -> 2012 | G16: =F16+1 -> 2013 | H16: 2014 | I16: 2015 | J16: 2016 | K16: 2017 | L16: 2018 | M16: 2019 | N16: sum 2018 - 2019
B17: CO2 emissions without LUC and ISA in Gt | F17: ='data countries'!F226/1000 -> 34.39235976 | G17: ='data countries'!G226/1000 -> 34.80458032 | H17: ='data countries'!H226/1000 -> 35.10575136 | I17: ='data countries'!I226/1000 -> 35.057078 | J17: ='data countries'!J226/1000 -> 35.06782708 | K17: ='data countries'!K226/1000 -> 35.51353718 | L17: ='data countries'!L226/1000 -> 36.34928506 | M17: ='data countries'!M226/1000 -> 36.65883377 | N17: =SUM(L17:M17) -> 73.00811882
B18: ≈ CO2 emissions total (incl. LUC and ISA) in Gt | M18: =M17+D23+D24 -> 44.61657255 | N18: info
B20: I. c) Global CO2 budget 2020 - 2100 without LUC and ISA
B22: global CO2 budget 2018 - 2100 | D22: actual p.a. | E22: share | L22: share | M22: =B11 -> 570 | N22: Gt
A23: * | B23: LUC budget 2018 - 2100 | D23: 6.6 | E23: =D23/M18 -> 0.1479270957 | F23: enter the LUC budget 2018 - 2100 in Gt: | K23: 0 | L23: =K23/M22 -> 0 | M23: =-K23 -> 0 | N23: Gt
B24: ISA budget 2018 - 2100 | D24: =('data countries'!M227+'data countries'!M228)/1000 -> 1.357738785 | E24: =D24/M18 -> 0.03043126595 | F24: how much should be reserved from the global budget? | K24: 0.03 | M24: =M22*K24*-1 -> -17.1 | N24: Gt
B25: sub sum | M25: =SUM(M22:M24) -> 552.9 | N25: Gt
B26: global CO2 emissions 2018 - 2019 | M26: =-N17 -> -73.00811882 | N26: Gt
B27: global CO2 budget 2020 - 2100 (without LUC and ISA) | M27: =SUM(M25:M26) -> 479.8918812 | N27: Gt | O27: A
B29: II.) National CO2 budget 2020 - 2100
B31: weighting population key in the weighted key | D31: 0.5 | F31: selected country: | H31: ='reference values'!B2 -> EU27 | L31: sheet: 'reference values' | P31: * For the determination of the LUC budget and the potential for net negative emissions, see our separate paper:
B33: share selected country in global population 2019 | D33: ='UN-P'!H333/'UN-P'!H18 -> 0.05768957922 | E33: weigh-ting: | F33: =D31 -> 0.5 | H33: population in 2019 | K33: ='UN-P'!H333 -> 444986.729 | L33: thousand | M33: info
B34: share selected country in global emissions 2019 | D34: ='data countries'!M5/'data countries'!M226 -> 0.08017353919 | F34: =1-D31 -> 0.5 | H34: emissions in 2019 | K34: ='data countries'!M5 -> 2939.068446 | L34: Mill. t
B35: weighted key | D35: =D31*D33+(1-D31)*D34 -> 0.0689315592 | E35: B | H35: scope of the budget | K35: =L37/K34 -> 11.25516341 | L35: years
B37: national CO2 budget 2020 - 2100; weighted key applied on the global budget 2020 - 2100 | L37: =M27*D35*1000 -> 33079.69562 | M37: Mill. t | N37: = A * B
B39: national CO2 budget 2020 - 2100 (fossil + cement production); free input | M39: Mill. t
B41: national CO2 budget 2020 - 2100 (basis for this tool) | F41: here calculated value | L41: =IF(F41=B93,L37,L39) -> 33079.69562 | M41: Mill. t
B43: III) National minimum emissions until 2100 (potential for net negative emissions)
B45: emissions in 2019 of the selected country | L45: ='data countries'!M5 -> 2939.068446 | M45: Mill. t
A46: * | B46: What percentage of emissions in 2019 should represent the minimum of emissions by 2100? A negative value stands for net negative emissions. | L46: 0
B48: minimum annual CO2 emissions (a negative value stands for net negative emissions); Emin: | L48: =L46*K34 -> 0 | M48: =M41 -> Mill. t
B91: Lists for the drop-down menus:
B93: here calculated value
B94: value of free input

Sheet reference values
BF1: I | BG1: R | BH1: AA | BI1: AJ | BL1: AS
B2: EU27 | E2: → select a country | J2: =IF(AND('goal seek'!C15='goal seek'!C16,'goal seek'!D15='goal seek'!D16,'goal seek'!E15='goal seek'!E16,'goal seek'!F15='goal seek'!F16,'goal seek'!G15='goal seek'!G16),"'goal seek' is ok",IF(AND('goal seek'!C15='goal seek'!C16,'goal seek'!E15='goal seek'!E16,'goal seek'!F15='goal seek'!F16,'goal seek'!G15='goal seek'!G16),"only 'goal seek' RM-2 is not ok","'goal seek' is not ok")) -> 'goal seek' is ok | O2: no | P2: =IF('base data'!F41<>'base data'!B94,'base data'!D31,"budget free input") -> 0.5 | Q2: share population key RM 1 - 6 and SPM_FP | S2: =IF(ISERROR((1+SQRT(1+SPM!L12*SPM!L11))/SPM!L11),"remark: r_i is set 0","") ->  | T2: =CONCATENATE("global per capita emissions 2019: ",TEXT(AH114,"#.##0,0")," t") -> global per capita emissions 2019: 4.7526 t | AH2: E_i_t | AI2: =RM!E2 -> RM-1 const | AJ2: =RM!K2 -> RM-2 exp | AK2: =RM!Q2 -> RM-3 lin | AL2: =RM!W2 -> RM-4 quadr | AM2: =RM!AC2 -> RM-5 rad | AN2: =RM!AI2 -> RM-6 abs | AO2: =SPM!E9 -> SPM_FP50% | AP2: =B129 -> SPM_P50% | AQ2: =SPM!M9 -> SPM_P0% | AR2: =SPM!Q9 -> SPM_P100% | AS2: per capita | AT2: =AI2 -> RM-1 const | AU2: RM-2 exp | AV2: RM-3 lin | AW2: RM-4 quadr | AX2: RM-5 rad | AY2: RM-6 abs | AZ2: SPM_FP50% | BA2: SPM_P50% | BB2: SPM_P0% | BC2: SPM_P100% | BE2: RR_i_t | BF2: =AI2 -> RM-1 const | BG2: RM-2 exp | BH2: RM-3 lin | BI2: RM-4 quadr | BJ2: RM-5 rad | BK2: RM-6 abs | BL2: SPM_FP50% | BM2: SPM_P50% | BN2: SPM_P0% | BO2: SPM_P100%
J3: sheet 'goal seek' | P3: ='base data'!B11 -> 570 | Q3: Gt global budget | AG3: =AH3 -> 2019 | AH3: 2019 | AI3: =RM!E14 -> 2939.068446 | AJ3: =RM!K14 -> 2939.068446 | AK3: =RM!Q14 -> 2939.068446 | AL3: =RM!W14 -> 2939.068446 | AM3: =RM!AC14 -> 2939.068446 | AN3: =RM!AI14 -> 2939.068446 | AO3: =SPM!E20 -> 2939.068446 | AP3: =IF(ISERROR(SPM!I21),#N/A,SPM!I20) -> 2939.068446 | AQ3: =SPM!M20 -> 2939.068446 | AR3: =SPM!Q20 -> 2939.068446 | AT3: =AI3/SPM!$C20 -> 6.604845165 | AU3: =AJ3/SPM!$C20 -> 6.604845165 | AV3: =AK3/SPM!$C20 -> 6.604845165 | AW3: =AL3/SPM!$C20 -> 6.604845165 | AX3: =AM3/SPM!$C20 -> 6.604845165 | AY3: =AN3/SPM!$C20 -> 6.604845165 | AZ3: =SPM!F20 -> 6.604845165 | BA3: =IF(ISERROR(SPM!J21),#N/A,SPM!J20) -> 6.604845165 | BB3: =SPM!N20 -> 6.604845165 | BC3: =SPM!R20 -> 6.604845165
AH4: =AH3+1 -> 2020 | AI4: =RM!E15 -> 2704.309719 | AJ4: =RM!K15 -> 2850.896392 | AK4: =RM!Q15 -> 2850.896392 | AL4: =RM!W15 -> 2850.896392 | AM4: =RM!AC15 -> 2850.896392 | AN4: =RM!AI15 -> 2813.99976 | AO4: =SPM!E21 -> 2875.309903 | AP4: =IF(ISERROR(SPM!I21),#N/A,SPM!I21) -> 2875.309903 | AQ4: =SPM!M21 -> 2877.613282 | AR4: =SPM!Q21 -> 2871.288818 | AT4: =AI4/SPM!$C21 -> 6.073681296 | AU4: =AJ4/SPM!$C21 -> 6.402904214 | AV4: =AK4/SPM!$C21 -> 6.402904214 | AW4: =AL4/SPM!$C21 -> 6.402904214 | AX4: =AM4/SPM!$C21 -> 6.402904214 | AY4: =AN4/SPM!$C21 -> 6.320037083 | AZ4: =SPM!F21 -> 6.457735168 | BA4: =IF(ISERROR(SPM!J21),#N/A,SPM!J21) -> 6.457735168 | BB4: =SPM!N21 -> 6.462908388 | BC4: =SPM!R21 -> 6.448704105 | BE4: =AH4 -> 2020 | BF4: =IF(AI3>'goal seek'!$E$24,AI4/AI3-1,#N/A) -> -0.07987521589 | BG4: =IF(AND(AJ3>'goal seek'!$E$23,AJ4>0),AJ4/AJ3-1,#N/A) -> -0.03 | BH4: =IF(AND(AK3>'goal seek'!$E$23,AK4>0),AK4/AK3-1,#N/A) -> -0.03 | BI4: =IF(AND(AL3>'goal seek'!$E$23,AL4>0),AL4/AL3-1,#N/A) -> -0.03 | BJ4: =IF(AND(AM3>'goal seek'!$E$23,AM4>0),AM4/AM3-1,#N/A) -> -0.03 | BK4: =IF(AN4>0,AN4/AN3-1,#N/A) -> -0.0425538528 | BL4: =IF(AO4>0,SPM!H21,#N/A) -> -0.02169345285 | BM4: =IF(ISERROR(SPM!L21/100),#N/A,SPM!L21) -> -0.02169345285 | BN4: =SPM!P21 -> -0.02090974233 | BO4: =SPM!T21 -> -0.02306160246
AH5: =AH4+1 -> 2021 | AI5: =RM!E16 -> 2488.302396 | AJ5: =RM!K16 -> 2755.552078 | AK5: =RM!Q16 -> 2746.843924 | AL5: =RM!W16 -> 2763.541589 | AM5: =RM!AC16 -> 2724.267559 | AN5: =RM!AI16 -> 2688.931074 | AO5: =SPM!E22 -> 2730.99541 | AP5: =IF(ISERROR(SPM!I22),#N/A,SPM!I22) -> 2730.99541 | AQ5: =SPM!M22 -> 2745.270801 | AR5: =SPM!Q22 -> 2706.715419 | AT5: =AI5/SPM!$C22 -> 5.58782738 | AU5: =AJ5/SPM!$C22 -> 6.187973525 | AV5: =AK5/SPM!$C22 -> 6.168418159 | AW5: =AL5/SPM!$C22 -> 6.205915076 | AX5: =AM5/SPM!$C22 -> 6.117719807 | AY5: =AN5/SPM!$C22 -> 6.038366839 | AZ5: =SPM!F22 -> 6.132828127 | BA5: =IF(ISERROR(SPM!J22),#N/A,SPM!J22) -> 6.132828127 | BB5: =SPM!N22 -> 6.164885493 | BC5: =SPM!R22 -> 6.078304048 | BE5: 2021 | BF5: =IF(AI4>'goal seek'!$E$24,AI5/AI4-1,#N/A) -> -0.07987521589 | BG5: =IF(AND(AJ4>'goal seek'!$E$23,AJ5>0),AJ5/AJ4-1,#N/A) -> -0.03344362641 | BH5: =IF(AND(AK4>'goal seek'!$E$23,AK5>0),AK5/AK4-1,#N/A) -> -0.03649815841 | BI5: =IF(AND(AL4>'goal seek'!$E$23,AL5>0),AL5/AL4-1,#N/A) -> -0.03064117076 | BJ5: =IF(AND(AM4>'goal seek'!$E$23,AM5>0),AM5/AM4-1,#N/A) -> -0.04441719934 | BK5: =IF(AN5>0,AN5/AN4-1,#N/A) -> -0.04444516584 | BL5: =IF(AO5>0,SPM!H22,#N/A) -> -0.05019093525 | BM5: =IF(ISERROR(SPM!L22/100),#N/A,SPM!L22) -> -0.05019093525 | BN5: =SPM!P22 -> -0.04599036349 | BO5: =SPM!T22 -> -0.05731690839
AH6: 2022 | AI6: =RM!E17 -> 2289.548705 | AJ6: =RM!K17 -> 2652.818103 | AK6: =RM!Q17 -> 2628.739753 | AL6: =RM!W17 -> 2673.547733 | AM6: =RM!AC17 -> 2574.51097 | AN6: =RM!AI17 -> 2563.862388 | AO6: =SPM!E23 -> 2568.931072 | AP6: =IF(ISERROR(SPM!I23),#N/A,SPM!I23) -> 2568.931072 | AQ6: =SPM!M23 -> 2602.735161 | AR6: =SPM!Q23 -> 2513.095023 | AT6: =AI6/SPM!$C23 -> 5.14295833 | AU6: =AJ6/SPM!$C23 -> 5.958961662 | AV6: =AK6/SPM!$C23 -> 5.904875042 | AW6: =AL6/SPM!$C23 -> 6.005526134 | AX6: =AM6/SPM!$C23 -> 5.783062229 | AY6: =AN6/SPM!$C23 -> 5.759142573 | AZ6: =SPM!F23 -> 5.770528236 | BA6: =IF(ISERROR(SPM!J23),#N/A,SPM!J23) -> 5.770528236 | BB6: =SPM!N23 -> 5.846461552 | BC6: =SPM!R23 -> 5.64510506 | BE6: 2022 | BF6: =IF(AI5>'goal seek'!$E$24,AI6/AI5-1,#N/A) -> -0.07987521589 | BG6: =IF(AND(AJ5>'goal seek'!$E$23,AJ6>0),AJ6/AJ5-1,#N/A) -> -0.03728253824 | BH6: =IF(AND(AK5>'goal seek'!$E$23,AK6>0),AK6/AK5-1,#N/A) -> -0.04299631681 | BI6: =IF(AND(AL5>'goal seek'!$E$23,AL6>0),AL6/AL5-1,#N/A) -> -0.03256468302 | BJ6: =IF(AND(AM5>'goal seek'!$E$23,AM6>0),AM6/AM5-1,#N/A) -> -0.05497132175 | BK6: -0.04651241797 | BL6: =IF(AO6>0,SPM!H23,#N/A) -> -0.05934258902 | BM6: =IF(ISERROR(SPM!L23/100),#N/A,SPM!L23) -> -0.05934258902 | BN6: =SPM!P23 -> -0.05192042974 | BO6: =SPM!T23 -> -0.07153334072
AH7: 2023 | AI7: =RM!E18 -> 2106.670508 | AJ7: =RM!K18 -> 2542.561387 | AK7: =RM!Q18 -> 2498.631658 | AL7: =RM!W18 -> 2577.913496 | AM7: =RM!AC18 -> 2414.278974 | AN7: =RM!AI18 -> 2438.793702 | AO7: =SPM!E24 -> 2397.176976 | AP7: =IF(ISERROR(SPM!I24),#N/A,SPM!I24) -> 2397.176976 | AQ7: =SPM!M24 -> 2454.421518 | AR7: =SPM!Q24 -> 2305.412858 | AT7: =AI7/SPM!$C24 -> 4.735010792 | AU7: =AJ7/SPM!$C24 -> 5.714731164 | AV7: =AK7/SPM!$C24 -> 5.615993493 | AW7: =AL7/SPM!$C24 -> 5.79418954 | AX7: =AM7/SPM!$C24 -> 5.426400073 | AY7: =AN7/SPM!$C24 -> 5.481500051 | AZ7: =SPM!F24 -> 5.387961149 | BA7: =IF(ISERROR(SPM!J24),#N/A,SPM!J24) -> 5.387961149 | BB7: =SPM!N24 -> 5.516625562 | BC7: =SPM!R24 -> 5.181709585 | BE7: 2023 | BF7: =IF(AI6>'goal seek'!$E$24,AI7/AI6-1,#N/A) -> -0.07987521589 | BG7: =IF(AND(AJ6>'goal seek'!$E$23,AJ7>0),AJ7/AJ6-1,#N/A) -> -0.04156210935 | BH7: =IF(AND(AK6>'goal seek'!$E$23,AK7>0),AK7/AK6-1,#N/A) -> -0.04949447522 | BI7: =IF(AND(AL6>'goal seek'!$E$23,AL7>0),AL7/AL6-1,#N/A) -> -0.03577053681 | BJ7: =IF(AND(AM6>'goal seek'!$E$23,AM7>0),AM7/AM6-1,#N/A) -> -0.06223783776 | BK7: -0.04878135683 | BL7: =IF(AO7>0,SPM!H24,#N/A) -> -0.0668581955 | BM7: =IF(ISERROR(SPM!L24/100),#N/A,SPM!L24) -> -0.0668581955 | BN7: =SPM!P24 -> -0.05698376286 | BO7: =SPM!T24 -> -0.08263999692
AH8: 2024 | AI8: =RM!E19 -> 1938.399747 | AJ8: =RM!K19 -> 2424.757088 | AK8: =RM!Q19 -> 2358.726691 | AL8: =RM!W19 -> 2474.129967 | AM8: =RM!AC19 -> 2249.759566 | AN8: =RM!AI19 -> 2313.725016 | AO8: =SPM!E25 -> 2221.846317 | AP8: =IF(ISERROR(SPM!I25),#N/A,SPM!I25) -> 2221.846317 | AQ8: =SPM!M25 -> 2303.824489 | AR8: =SPM!Q25 -> 2094.336976 | AT8: =AI8/SPM!$C25 -> 4.360188828 | AU8: =AJ8/SPM!$C25 -> 5.454189099 | AV8: =AK8/SPM!$C25 -> 5.305661943 | AW8: =AL8/SPM!$C25 -> 5.56524724 | AX8: =AM8/SPM!$C25 -> 5.060553965 | AY8: =AN8/SPM!$C25 -> 5.204436279 | AZ8: =SPM!F25 -> 4.997766588 | BA8: =IF(ISERROR(SPM!J25),#N/A,SPM!J25) -> 4.997766588 | BB8: =SPM!N25 -> 5.182166277 | BC8: =SPM!R25 -> 4.710950206 | BE8: 2024 | BF8: =IF(AI7>'goal seek'!$E$24,AI8/AI7-1,#N/A) -> -0.07987521589 | BG8: =IF(AND(AJ7>'goal seek'!$E$23,AJ8>0),AJ8/AJ7-1,#N/A) -> -0.04633292192 | BH8: =IF(AND(AK7>'goal seek'!$E$23,AK8>0),AK8/AK7-1,#N/A) -> -0.05599263363 | BI8: =IF(AND(AL7>'goal seek'!$E$23,AL8>0),AL8/AL7-1,#N/A) -> -0.0402587321 | BJ8: =IF(AND(AM7>'goal seek'!$E$23,AM8>0),AM8/AM7-1,#N/A) -> -0.06814432405 | BK8: -0.05128301172 | BL8: =IF(AO8>0,SPM!H25,#N/A) -> -0.07314047345 | BM8: =IF(ISERROR(SPM!L25/100),#N/A,SPM!L25) -> -0.07314047345 | BN8: =SPM!P25 -> -0.06135744329 | BO8: =SPM!T25 -> -0.09155665168
AH9: 2025 | AI9: =RM!E20 -> 1783.569648 | AJ9: =RM!K20 -> 2299.515077 | AK9: =RM!Q20 -> 2211.327992 | AL9: =RM!W20 -> 2360.247573 | AM9: =RM!AC20 -> 2084.961082 | AN9: =RM!AI20 -> 2188.65633 | AO9: =SPM!E26 -> 2047.498058 | AP9: =IF(ISERROR(SPM!I26),#N/A,SPM!I26) -> 2047.498058 | AQ9: =SPM!M26 -> 2153.67644 | AR9: =SPM!Q26 -> 1887.263784 | AT9: =AI9/SPM!$C26 -> 4.015317152 | AU9: =AJ9/SPM!$C26 -> 5.176855491 | AV9: =AK9/SPM!$C26 -> 4.978321549 | AW9: =AL9/SPM!$C26 -> 5.313581431 | AX9: =AM9/SPM!$C26 -> 4.693834077 | AY9: =AN9/SPM!$C26 -> 4.927281258 | AZ9: =SPM!F26 -> 4.609494269 | BA9: =IF(ISERROR(SPM!J26),#N/A,SPM!J26) -> 4.609494269 | BB9: =SPM!N26 -> 4.848531684 | BC9: =SPM!R26 -> 4.248761831 | BE9: 2025 | BF9: =IF(AI8>'goal seek'!$E$24,AI9/AI8-1,#N/A) -> -0.07987521589 | BG9: =IF(AND(AJ8>'goal seek'!$E$23,AJ9>0),AJ9/AJ8-1,#N/A) -> -0.05165136437 | BH9: =IF(AND(AK8>'goal seek'!$E$23,AK9>0),AK9/AK8-1,#N/A) -> -0.06249079204 | BI9: =IF(AND(AL8>'goal seek'!$E$23,AL9>0),AL9/AL8-1,#N/A) -> -0.0460292689 | BJ9: =IF(AND(AM8>'goal seek'!$E$23,AM9>0),AM9/AM8-1,#N/A) -> -0.07325159801 | BK9: -0.05405512113 | BL9: =IF(AO9>0,SPM!H26,#N/A) -> -0.07846999012 | BM9: =IF(ISERROR(SPM!L26/100),#N/A,SPM!L26) -> -0.07846999012 | BN9: =SPM!P26 -> -0.0651733886 | BO9: =SPM!T26 -> -0.09887291013
AH10: 2026 | AI10: =RM!E21 -> 1641.106638 | AJ10: =RM!K21 -> 2167.108314 | AK10: =RM!Q21 -> 2058.770795 | AL10: =RM!W21 -> 2234.960564 | AM10: =RM!AC21 -> 1922.716832 | AN10: =RM!AI21 -> 2063.587644 | AO10: =SPM!E27 -> 1877.457009 | AP10: =IF(ISERROR(SPM!I27),#N/A,SPM!I27) -> 1877.457009 | AQ10: =SPM!M27 -> 2006.080927 | AR10: =SPM!Q27 -> 1689.130986 | AT10: =AI10/SPM!$C27 -> 3.69787505 | AU10: =AJ10/SPM!$C27 -> 4.88310484 | AV10: =AK10/SPM!$C27 -> 4.638989924 | AW10: =AL10/SPM!$C27 -> 5.035995053 | AX10: =AM10/SPM!$C27 -> 4.332422061 | AY10: =AN10/SPM!$C27 -> 4.64984364 | AZ10: =SPM!F27 -> 4.230438944 | BA10: =IF(ISERROR(SPM!J27),#N/A,SPM!J27) -> 4.230438944 | BB10: =SPM!N27 -> 4.520264824 | BC10: =SPM!R27 -> 3.80608742 | BE10: 2026 | BF10: =IF(AI9>'goal seek'!$E$24,AI10/AI9-1,#N/A) -> -0.07987521589 | BG10: =IF(AND(AJ9>'goal seek'!$E$23,AJ10>0),AJ10/AJ9-1,#N/A) -> -0.05758029778 | BH10: =IF(AND(AK9>'goal seek'!$E$23,AK10>0),AK10/AK9-1,#N/A) -> -0.06898895044 | BI10: =IF(AND(AL9>'goal seek'!$E$23,AL10>0),AL10/AL9-1,#N/A) -> -0.05308214722 | BJ10: =IF(AND(AM9>'goal seek'!$E$23,AM10>0),AM10/AM9-1,#N/A) -> -0.07781644073 | BK10: -0.05714404966 | BL10: =IF(AO10>0,SPM!H27,#N/A) -> -0.08304821021 | BM10: =IF(ISERROR(SPM!L27/100),#N/A,SPM!L27) -> -0.08304821021 | BN10: =SPM!P27 -> -0.0685318885 | BO10: =SPM!T27 -> -0.1049841577
AH11: 2027 | AI11: =RM!E22 -> 1510.022891 | AJ11: =RM!K22 -> 2028.002067 | AK11: =RM!Q22 -> 1903.36014 | AL11: =RM!W22 -> 2097.695171 | AM11: =RM!AC22 -> 1765.088754 | AN11: =RM!AI22 -> 1938.518958 | AO11: =SPM!E28 -> 1714.074058 | AP11: =IF(ISERROR(SPM!I28),#N/A,SPM!I28) -> 1714.074058 | AQ11: =SPM!M28 -> 1862.624981 | AR11: =SPM!Q28 -> 1503.047115 | AT11: =AI11/SPM!$C28 -> 3.405744561 | AU11: =AJ11/SPM!$C28 -> 4.574008151 | AV11: =AK11/SPM!$C28 -> 4.292887534 | AW11: =AL11/SPM!$C28 -> 4.731195775 | AX11: =AM11/SPM!$C28 -> 3.981026686 | AY11: =AN11/SPM!$C28 -> 4.372185639 | AZ11: =SPM!F28 -> 3.865966826 | BA11: =IF(ISERROR(SPM!J28),#N/A,SPM!J28) -> 3.865966826 | BB11: =SPM!N28 -> 4.201012408 | BC11: =SPM!R28 -> 3.390011218 | BE11: 2027 | BF11: =IF(AI10>'goal seek'!$E$24,AI11/AI10-1,#N/A) -> -0.07987521589 | BG11: =IF(AND(AJ10>'goal seek'!$E$23,AJ11>0),AJ11/AJ10-1,#N/A) -> -0.06418979891 | BH11: =IF(AND(AK10>'goal seek'!$E$23,AK11>0),AK11/AK10-1,#N/A) -> -0.07548710885 | BI11: =IF(AND(AL10>'goal seek'!$E$23,AL11>0),AL11/AL10-1,#N/A) -> -0.06141736705 | BJ11: =IF(AND(AM10>'goal seek'!$E$23,AM11>0),AM11/AM10-1,#N/A) -> -0.08198195146 | BK11: -0.06060740205 | BL11: =IF(AO11>0,SPM!H28,#N/A) -> -0.08702353782 | BM11: =IF(ISERROR(SPM!L28/100),#N/A,SPM!L28) -> -0.08702353782 | BN11: =SPM!P28 -> -0.07151054749 | BO11: =SPM!T28 -> -0.1101654471
AH12: 2028 | AI12: =RM!E23 -> 1389.409486 | AJ12: =RM!K23 -> 1882.882318 | AK12: =RM!Q23 -> 1747.31265 | AL12: =RM!W23 -> 1948.685545 | AM12: =RM!AC23 -> 1613.577819 | AN12: =RM!AI23 -> 1813.450272 | AO12: =SPM!E29 -> 1558.937148 | AP12: =IF(ISERROR(SPM!I29),#N/A,SPM!I29) -> 1558.937148 | AQ12: =SPM!M29 -> 1724.473424 | AR12: =SPM!Q29 -> 1330.776814 | AT12: =AI12/SPM!$C29 -> 3.1369063 | AU12: =AJ12/SPM!$C29 -> 4.251032878 | AV12: =AK12/SPM!$C29 -> 3.944953675 | AW12: =AL12/SPM!$C29 -> 4.39959855 | AX12: =AM12/SPM!$C29 -> 3.643017035 | AY12: =AN12/SPM!$C29 -> 4.094274322 | AZ12: =SPM!F29 -> 3.519653355 | BA12: =IF(ISERROR(SPM!J29),#N/A,SPM!J29) -> 3.519653355 | BB12: =SPM!N29 -> 3.893388955 | BC12: =SPM!R29 -> 3.004529776 | BE12: 2028 | BF12: =IF(AI11>'goal seek'!$E$24,AI12/AI11-1,#N/A) -> -0.07987521589 | BG12: =IF(AND(AJ11>'goal seek'!$E$23,AJ12>0),AJ12/AJ11-1,#N/A) -> -0.07155798846 | BH12: =IF(AND(AK11>'goal seek'!$E$23,AK12>0),AK12/AK11-1,#N/A) -> -0.08198526726 | BI12: =IF(AND(AL11>'goal seek'!$E$23,AL12>0),AL12/AL11-1,#N/A) -> -0.07103492839 | BJ12: =IF(AND(AM11>'goal seek'!$E$23,AM12>0),AM12/AM11-1,#N/A) -> -0.08583757293 | BK12: -0.06451764915 | BL12: =IF(AO12>0,SPM!H29,#N/A) -> -0.09050770578 | BM12: =IF(ISERROR(SPM!L29/100),#N/A,SPM!L29) -> -0.09050770578 | BN12: =SPM!P29 -> -0.07417035573 | BO12: =SPM!T29 -> -0.1146140394
AH13: 2029 | AI13: =RM!E24 -> 1278.430104 | AJ13: =RM!K24 -> 1732.681116 | AK13: =RM!Q24 -> 1592.704441 | AL13: =RM!W24 -> 1789.020323 | AM13: =RM!AC24 -> 1469.253553 | AN13: =RM!AI24 -> 1688.381586 | AO13: =SPM!E30 -> 1413.041764 | AP13: =IF(ISERROR(SPM!I30),#N/A,SPM!I30) -> 1413.041764 | AQ13: =SPM!M30 -> 1592.447895 | AR13: =SPM!Q30 -> 1173.112912 | AT13: =AI13/SPM!$C30 -> 2.889541069 | AU13: =AJ13/SPM!$C30 -> 3.916251056 | AV13: =AK13/SPM!$C30 -> 3.599872124 | AW13: =AL13/SPM!$C30 -> 4.043590402 | AX13: =AM13/SPM!$C30 -> 3.320845206 | AY13: =AN13/SPM!$C30 -> 3.816124102 | AZ13: =SPM!F30 -> 3.193793855 | BA13: =IF(ISERROR(SPM!J30),#N/A,SPM!J30) -> 3.193793855 | BB13: =SPM!N30 -> 3.599292272 | BC13: =SPM!R30 -> 2.651500405 | BE13: 2029 | BF13: =IF(AI12>'goal seek'!$E$24,AI13/AI12-1,#N/A) -> -0.07987521589 | BG13: =IF(AND(AJ12>'goal seek'!$E$23,AJ13>0),AJ13/AJ12-1,#N/A) -> -0.07977195442 | BH13: =IF(AND(AK12>'goal seek'!$E$23,AK13>0),AK13/AK12-1,#N/A) -> -0.08848342566 | BI13: =IF(AND(AL12>'goal seek'!$E$23,AL13>0),AL13/AL12-1,#N/A) -> -0.08193483125 | BJ13: =IF(AND(AM12>'goal seek'!$E$23,AM13>0),AM13/AM12-1,#N/A) -> -0.08944363569 | BK13: -0.06896725427 | BL13: =IF(AO13>0,SPM!H30,#N/A) -> -0.0935864437 | BM13: =IF(ISERROR(SPM!L30/100),#N/A,SPM!L30) -> -0.0935864437 | BN13: =SPM!P30 -> -0.07655990931 | BO13: =SPM!T30 -> -0.1184750895
AG14: =AH14 -> 2030 | AH14: 2030 | AI14: =RM!E25 -> 1176.315223 | AJ14: =RM!K25 -> 1578.595896 | AK14: =RM!Q25 -> 1441.42685 | AL14: =RM!W25 -> 1620.642962 | AM14: =RM!AC25 -> 1332.843476 | AN14: =RM!AI25 -> 1563.3129 | AO14: =SPM!E31 -> 1276.928218 | AP14: =IF(ISERROR(SPM!I31),#N/A,SPM!I31) -> 1276.928218 | AQ14: =SPM!M31 -> 1467.092934 | AR14: =SPM!Q31 -> 1030.159971 | AT14: =AI14/SPM!$C31 -> 2.661950325 | AU14: =AJ14/SPM!$C31 -> 3.572294038 | AV14: =AK14/SPM!$C31 -> 3.261886437 | AW14: =AL14/SPM!$C31 -> 3.667444725 | AX14: =AM14/SPM!$C31 -> 3.016166972 | AY14: =AN14/SPM!$C31 -> 3.537709281 | AZ14: =SPM!F31 -> 2.889633167 | BA14: =IF(ISERROR(SPM!J31),#N/A,SPM!J31) -> 2.889633167 | BB14: =SPM!N31 -> 3.319967672 | BC14: =SPM!R31 -> 2.331207328 | BE14: 2030 | BF14: =IF(AI13>'goal seek'!$E$24,AI14/AI13-1,#N/A) -> -0.07987521589 | BG14: =IF(AND(AJ13>'goal seek'!$E$23,AJ14>0),AJ14/AJ13-1,#N/A) -> -0.08892878137 | BH14: =IF(AND(AK13>'goal seek'!$E$23,AK14>0),AK14/AK13-1,#N/A) -> -0.09498158407 | BI14: =IF(AND(AL13>'goal seek'!$E$23,AL14>0),AL14/AL13-1,#N/A) -> -0.09411707561 | BJ14: =IF(AND(AM13>'goal seek'!$E$23,AM14>0),AM14/AM13-1,#N/A) -> -0.09284311496 | BK14: -0.07407607797 | BL14: =IF(AO14>0,SPM!H31,#N/A) -> -0.09632662658 | BM14: =IF(ISERROR(SPM!L31/100),#N/A,SPM!L31) -> -0.09632662658 | BN14: =SPM!P31 -> -0.07871840643 | BO14: =SPM!T31 -> -0.1218577854
AH15: 2031 | AI15: =RM!E26 -> 1082.356791 | AJ15: =RM!K26 -> 1422.099111 | AK15: =RM!Q26 -> 1295.151225 | AL15: =RM!W26 -> 1446.2915 | AM15: =RM!AC26 -> 1204.799993 | AN15: =RM!AI26 -> 1438.244214 | AO15: =SPM!E32 -> 1150.791731 | AP15: =IF(ISERROR(SPM!I32),#N/A,SPM!I32) -> 1150.791731 | AQ15: =SPM!M32 -> 1348.731083 | AR15: =SPM!Q32 -> 901.5487857 | AT15: =AI15/SPM!$C32 -> 2.452517356 | AU15: =AJ15/SPM!$C32 -> 3.222341082 | AV15: =AK15/SPM!$C32 -> 2.934689268 | AW15: =AL15/SPM!$C32 -> 3.27715873 | AX15: =AM15/SPM!$C32 -> 2.729961985 | AY15: =AN15/SPM!$C32 -> 3.258924347 | AZ15: =SPM!F32 -> 2.607584411 | BA15: =IF(ISERROR(SPM!J32),#N/A,SPM!J32) -> 2.607584411 | BB15: =SPM!N32 -> 3.056096121 | BC15: =SPM!R32 -> 2.042823645 | BE15: 2031 | BF15: =IF(AI14>'goal seek'!$E$24,AI15/AI14-1,#N/A) -> -0.07987521589 | BG15: =IF(AND(AJ14>'goal seek'!$E$23,AJ15>0),AJ15/AJ14-1,#N/A) -> -0.09913669804 | BH15: =IF(AND(AK14>'goal seek'!$E$23,AK15>0),AK15/AK14-1,#N/A) -> -0.1014797425 | BI15: =IF(AND(AL14>'goal seek'!$E$23,AL15>0),AL15/AL14-1,#N/A) -> -0.1075816615 | BJ15: =IF(AND(AM14>'goal seek'!$E$23,AM15>0),AM15/AM14-1,#N/A) -> -0.09606790727 | BK15: -0.08000233735 | BL15: =IF(AO15>0,SPM!H32,#N/A) -> -0.09878118804 | BM15: =IF(ISERROR(SPM!L32/100),#N/A,SPM!L32) -> -0.09878118804 | BN15: =SPM!P32 -> -0.08067781434 | BO15: =SPM!T32 -> -0.124845838
AH16: 2032 | AI16: =RM!E27 -> 995.9033083 | AJ16: =RM!K27 -> 1264.933899 | AK16: =RM!Q27 -> 1155.303514 | AL16: =RM!W27 -> 1269.368701 | AM16: =RM!AC27 -> 1085.353159 | AN16: =RM!AI27 -> 1313.175528 | AO16: =SPM!E33 -> 1034.570313 | AP16: =IF(ISERROR(SPM!I33),#N/A,SPM!I33) -> 1034.570313 | AQ16: =SPM!M33 -> 1237.508698 | AR16: =SPM!Q33 -> 786.5972561 | AT16: =AI16/SPM!$C33 -> 2.259746843 | AU16: =AJ16/SPM!$C33 -> 2.870188662 | AV16: =AK16/SPM!$C33 -> 2.621432669 | AW16: =AL16/SPM!$C33 -> 2.880251417 | AX16: =AM16/SPM!$C33 -> 2.462712347 | AY16: =AN16/SPM!$C33 -> 2.979650964 | AZ16: =SPM!F33 -> 2.347483916 | BA16: =IF(ISERROR(SPM!J33),#N/A,SPM!J33) -> 2.347483916 | BB16: =SPM!N33 -> 2.807959718 | BC16: =SPM!R33 -> 1.784822534 | BE16: 2032 | BF16: =IF(AI15>'goal seek'!$E$24,AI16/AI15-1,#N/A) -> -0.07987521589 | BG16: =IF(AND(AJ15>'goal seek'!$E$23,AJ16>0),AJ16/AJ15-1,#N/A) -> -0.1105163564 | BH16: =IF(AND(AK15>'goal seek'!$E$23,AK16>0),AK16/AK15-1,#N/A) -> -0.1079779009 | BI16: =IF(AND(AL15>'goal seek'!$E$23,AL16>0),AL16/AL15-1,#N/A) -> -0.1223285889 | BJ16: =IF(AND(AM15>'goal seek'!$E$23,AM16>0),AM16/AM15-1,#N/A) -> -0.09914245906 | BK16: -0.08695928327 | BL16: =IF(AO16>0,SPM!H33,#N/A) -> -0.1009925733 | BM16: =IF(ISERROR(SPM!L33/100),#N/A,SPM!L33) -> -0.1009925733 | BN16: =SPM!P33 -> -0.08246446329 | BO16: =SPM!T33 -> -0.1275045027
AH17: 2033 | AI17: =RM!E28 -> 916.3553166 | AJ17: =RM!K28 -> 1109.091186 | AK17: =RM!Q28 -> 1023.04892 | AL17: =RM!W28 -> 1093.741567 | AM17: =RM!AC28 -> 974.5537997 | AN17: =RM!AI28 -> 1188.106842 | AO17: =SPM!E34 -> 928.0145216 | AP17: =IF(ISERROR(SPM!I34),#N/A,SPM!I34) -> 928.0145216 | AQ17: =SPM!M34 -> 1133.433924 | AR17: =SPM!Q34 -> 684.4297574 | AT17: =AI17/SPM!$C34 -> 2.082302106 | AU17: =AJ17/SPM!$C34 -> 2.520270109 | AV17: =AK17/SPM!$C34 -> 2.32474989 | AW17: =AL17/SPM!$C34 -> 2.485390031 | AX17: =AM17/SPM!$C34 -> 2.214550833 | AY17: =AN17/SPM!$C34 -> 2.699823239 | AZ17: =SPM!F34 -> 2.108796182 | BA17: =IF(ISERROR(SPM!J34),#N/A,SPM!J34) -> 2.108796182 | BB17: =SPM!N34 -> 2.575585915 | BC17: =SPM!R34 -> 1.555280468 | BE17: 2033 | BF17: =IF(AI16>'goal seek'!$E$24,AI17/AI16-1,#N/A) -> -0.07987521589 | BG17: =IF(AND(AJ16>'goal seek'!$E$23,AJ17>0),AJ17/AJ16-1,#N/A) -> -0.1232022579 | BH17: =IF(AND(AK16>'goal seek'!$E$23,AK17>0),AK17/AK16-1,#N/A) -> -0.1144760593 | BI17: =IF(AND(AL16>'goal seek'!$E$23,AL17>0),AL17/AL16-1,#N/A) -> -0.1383578578 | BJ17: =IF(AND(AM16>'goal seek'!$E$23,AM17>0),AM17/AM16-1,#N/A) -> -0.1020859967 | BK17: -0.09524140783 | BL17: =IF(AO17>0,SPM!H34,#N/A) -> -0.1029952145 | BM17: =IF(ISERROR(SPM!L34/100),#N/A,SPM!L34) -> -0.1029952145 | BN17: =SPM!P34 -> -0.08410023652 | BO17: =SPM!T34 -> -0.1298853994
AH18: 2034 | AI18: =RM!E29 -> 843.1612378 | AJ18: =RM!K29 -> 956.7637864 | AK18: =RM!Q29 -> 899.2863776 | AL18: =RM!W29 -> 923.479399 | AM18: =RM!AC29 -> 872.3094962 | AN18: =RM!AI29 -> 1063.038156 | AO18: =SPM!E35 -> 830.7425117 | AP18: =IF(ISERROR(SPM!I35),#N/A,SPM!I35) -> 830.7425117 | AQ18: =SPM!M35 -> 1036.408046 | AR18: =SPM!Q35 -> 594.0645668 | AT18: =AI18/SPM!$C35 -> 1.918958157 | AU18: =AJ18/SPM!$C35 -> 2.177507207 | AV18: =AK18/SPM!$C35 -> 2.046693861 | AW18: =AL18/SPM!$C35 -> 2.101754974 | AX18: =AM18/SPM!$C35 -> 1.985296937 | AY18: =AN18/SPM!$C35 -> 2.419377989 | AZ18: =SPM!F35 -> 1.890694268 | BA18: =IF(ISERROR(SPM!J35),#N/A,SPM!J35) -> 1.890694268 | BB18: =SPM!N35 -> 2.358770285 | BC18: =SPM!R35 -> 1.352036829 | BE18: 2034 | BF18: =IF(AI17>'goal seek'!$E$24,AI18/AI17-1,#N/A) -> -0.07987521589 | BG18: =IF(AND(AJ17>'goal seek'!$E$23,AJ18>0),AJ18/AJ17-1,#N/A) -> -0.1373443428 | BH18: =IF(AND(AK17>'goal seek'!$E$23,AK18>0),AK18/AK17-1,#N/A) -> -0.1209742177 | BI18: =IF(AND(AL17>'goal seek'!$E$23,AL18>0),AL18/AL17-1,#N/A) -> -0.1556694682 | BJ18: =IF(AND(AM17>'goal seek'!$E$23,AM18>0),AM18/AM17-1,#N/A) -> -0.1049139653 | BK18: -0.1052672046 | BL18: =IF(AO18>0,SPM!H35,#N/A) -> -0.104817336 | BM18: =IF(ISERROR(SPM!L35/100),#N/A,SPM!L35) -> -0.104817336 | BN18: =SPM!P35 -> -0.08560347112 | BO18: =SPM!T35 -> -0.1320298973
AH19: 2035 | AI19: =RM!E30 -> 775.8135519 | AJ19: =RM!K30 -> 810.2739098 | AK19: =RM!Q30 -> 784.6522063 | AL19: =RM!W30 -> 762.5507205 | AM19: =RM!AC30 -> 778.4149792 | AN19: =RM!AI30 -> 937.9694698 | AO19: =SPM!E36 -> 742.2831437 | AP19: =IF(ISERROR(SPM!I36),#N/A,SPM!I36) -> 742.2831437 | AQ19: =SPM!M36 -> 946.2512742 | AR19: =SPM!Q36 -> 514.4768223 | AT19: =AI19/SPM!$C36 -> 1.768587266 | AU19: =AJ19/SPM!$C36 -> 1.847144994 | AV19: =AK19/SPM!$C36 -> 1.788736349 | AW19: =AL19/SPM!$C36 -> 1.738352586 | AX19: =AM19/SPM!$C36 -> 1.774517623 | AY19: =AN19/SPM!$C36 -> 2.13824682 | AZ19: =SPM!F36 -> 1.692149503 | BA19: =IF(ISERROR(SPM!J36),#N/A,SPM!J36) -> 1.692149503 | BB19: =SPM!N36 -> 2.157126477 | BC19: =SPM!R36 -> 1.172829676 | BE19: 2035 | BF19: =IF(AI18>'goal seek'!$E$24,AI19/AI18-1,#N/A) -> -0.07987521589 | BG19: =IF(AND(AJ18>'goal seek'!$E$23,AJ19>0),AJ19/AJ18-1,#N/A) -> -0.153109763 | BH19: =IF(AND(AK18>'goal seek'!$E$23,AK19>0),AK19/AK18-1,#N/A) -> -0.1274723761 | BI19: =IF(AND(AL18>'goal seek'!$E$23,AL19>0),AL19/AL18-1,#N/A) -> -0.1742634201 | BJ19: =IF(AND(AM18>'goal seek'!$E$23,AM19>0),AM19/AM18-1,#N/A) -> -0.1076389945 | BK19: -0.1176521137 | BL19: =IF(AO19>0,SPM!H36,#N/A) -> -0.1064822935 | BM19: =IF(ISERROR(SPM!L36/100),#N/A,SPM!L36) -> -0.1064822935 | BN19: =SPM!P36 -> -0.08698964833 | BO19: =SPM!T36 -> -0.1339715393
AH20: 2036 | AI20: =RM!E31 -> 713.845277 | AJ20: =RM!K31 -> 671.9724233 | AK20: =RM!Q31 -> 679.5319308 | AL20: =RM!W31 -> 614.5093421 | AM20: =RM!AC31 -> 692.5779383 | AN20: =RM!AI31 -> 812.9007838 | AO20: =SPM!E37 -> 662.1094529 | AP20: =IF(ISERROR(SPM!I37),#N/A,SPM!I37) -> 662.1094529 | AQ20: =SPM!M37 -> 862.7238492 | AR20: =SPM!Q37 -> 444.6428658 | AT20: =AI20/SPM!$C37 -> 1.630147052 | AU20: =AJ20/SPM!$C37 -> 1.534525618 | AV20: =AK20/SPM!$C37 -> 1.551788615 | AW20: =AL20/SPM!$C37 -> 1.403302122 | AX20: =AM20/SPM!$C37 -> 1.58158066 | AY20: =AN20/SPM!$C37 -> 1.856351592 | AZ20: =SPM!F37 -> 1.512002401 | BA20: =IF(ISERROR(SPM!J37),#N/A,SPM!J37) -> 1.512002401 | BB20: =SPM!N37 -> 1.97012824 | BC20: =SPM!R37 -> 1.015392663 | BE20: 2036 | BF20: =IF(AI19>'goal seek'!$E$24,AI20/AI19-1,#N/A) -> -0.07987521589 | BG20: =IF(AND(AJ19>'goal seek'!$E$23,AJ20>0),AJ20/AJ19-1,#N/A) -> -0.1706848571 | BH20: =IF(AND(AK19>'goal seek'!$E$23,AK20>0),AK20/AK19-1,#N/A) -> -0.1339705345 | BI20: =IF(AND(AL19>'goal seek'!$E$23,AL20>0),AL20/AL19-1,#N/A) -> -0.1941397136 | BJ20: =IF(AND(AM19>'goal seek'!$E$23,AM20>0),AM20/AM19-1,#N/A) -> -0.1102715687 | BK20: -0.1333398261 | BL20: =IF(AO20>0,SPM!H37,#N/A) -> -0.1080095802 | BM20: =IF(ISERROR(SPM!L37/100),#N/A,SPM!L37) -> -0.1080095802 | BN20: =SPM!P37 -> -0.08827192868 | BO20: =SPM!T37 -> -0.1357378087
AH21: 2037 | AI21: =RM!E32 -> 656.8267314 | AJ21: =RM!K32 -> 544.1112892 | AK21: =RM!Q32 -> 584.0789687 | AL21: =RM!W32 -> 482.2064956 | AM21: =RM!AC32 -> 614.4409457 | AN21: =RM!AI32 -> 687.8320978 | AO21: =SPM!E38 -> 589.6643541 | AP21: =IF(ISERROR(SPM!I38),#N/A,SPM!I38) -> 589.6643541 | AQ21: =SPM!M38 -> 785.5432182 | AR21: =SPM!Q38 -> 383.5705284 | AT21: =AI21/SPM!$C38 -> 1.502680369 | AU21: =AJ21/SPM!$C38 -> 1.244811323 | AV21: =AK21/SPM!$C38 -> 1.336248904 | AW21: =AL21/SPM!$C38 -> 1.103186274 | AX21: =AM21/SPM!$C38 -> 1.405710674 | AY21: =AN21/SPM!$C38 -> 1.573614077 | AZ21: =SPM!F38 -> 1.349027082 | BA21: =IF(ISERROR(SPM!J38),#N/A,SPM!J38) -> 1.349027082 | BB21: =SPM!N38 -> 1.797156413 | BC21: =SPM!R38 -> 0.877528084 | BE21: 2037 | BF21: =IF(AI20>'goal seek'!$E$24,AI21/AI20-1,#N/A) -> -0.07987521589 | BG21: =IF(AND(AJ20>'goal seek'!$E$23,AJ21>0),AJ21/AJ20-1,#N/A) -> -0.1902773531 | BH21: =IF(AND(AK20>'goal seek'!$E$23,AK21>0),AK21/AK20-1,#N/A) -> -0.1404686929 | BI21: =IF(AND(AL20>'goal seek'!$E$23,AL21>0),AL21/AL20-1,#N/A) -> -0.2152983485 | BJ21: =IF(AND(AM20>'goal seek'!$E$23,AM21>0),AM21/AM20-1,#N/A) -> -0.1128205048 | BK21: -0.1538547981 | BL21: =IF(AO21>0,SPM!H38,#N/A) -> -0.1094155936 | BM21: =IF(ISERROR(SPM!L38/100),#N/A,SPM!L38) -> -0.1094155936 | BN21: =SPM!P38 -> -0.08946157117 | BO21: =SPM!T38 -> -0.1373514389
AH22: 2038 | AI22: =RM!E33 -> 604.3625544 | AJ22: =RM!K33 -> 428.6950426 | AK22: =RM!Q33 -> 498.2387217 | AL22: =RM!W33 -> 367.5670488 | AM22: =RM!AC33 -> 543.6000205 | AN22: =RM!AI33 -> 562.7634118 | AO22: =SPM!E39 -> 524.3801212 | AP22: =IF(ISERROR(SPM!I39),#N/A,SPM!I39) -> 524.3801212 | AQ22: =SPM!M39 -> 714.3979321 | AR22: =SPM!Q39 -> 330.3188962 | AT22: =AI22/SPM!$C39 -> 1.385312748 | AU22: =AJ22/SPM!$C39 -> 0.9826497408 | AV22: =AK22/SPM!$C39 -> 1.142056945 | AW22: =AL22/SPM!$C39 -> 0.8425328715 | AX22: =AM22/SPM!$C39 -> 1.246033581 | AY22: =AN22/SPM!$C39 -> 1.289959682 | AZ22: =SPM!F39 -> 1.201977954 | BA22: =IF(ISERROR(SPM!J39),#N/A,SPM!J39) -> 1.201977954 | BB22: =SPM!N39 -> 1.637534548 | BC22: =SPM!R39 -> 0.7571530937 | BE22: 2038 | BF22: =IF(AI21>'goal seek'!$E$24,AI22/AI21-1,#N/A) -> -0.07987521589 | BG22: =IF(AND(AJ21>'goal seek'!$E$23,AJ22>0),AJ22/AJ21-1,#N/A) -> -0.2121188237 | BH22: =IF(AND(AK21>'goal seek'!$E$23,AK22>0),AK22/AK21-1,#N/A) -> -0.1469668513 | BI22: =IF(AND(AL21>'goal seek'!$E$23,AL22>0),AL22/AL21-1,#N/A) -> -0.237739325 | BJ22: =IF(AND(AM21>'goal seek'!$E$23,AM22>0),AM22/AM21-1,#N/A) -> -0.1152933015 | BK22: -0.1818302554 | BL22: =IF(AO22>0,SPM!H39,#N/A) -> -0.1107142266 | BM22: =IF(ISERROR(SPM!L39/100),#N/A,SPM!L39) -> -0.1107142266 | BN22: =SPM!P39 -> -0.09056826468 | BO22: =SPM!T39 -> -0.1388313967
AH23: 2039 | AI23: =RM!E34 -> 556.0889649 | AJ23: =RM!K34 -> 327.3226306 | AK23: =RM!Q34 -> 421.7765114 | AL23: =RM!W34 -> 271.4619968 | AM23: =RM!AC34 -> 479.6202551 | AN23: =RM!AI34 -> 437.6947258 | AO23: =SPM!E40 -> 465.6928991 | AP23: =IF(ISERROR(SPM!I40),#N/A,SPM!I40) -> 465.6928991 | AQ23: =SPM!M40 -> 648.9588011 | AR23: =SPM!Q40 -> 284.0102906 | AT23: =AI23/SPM!$C40 -> 1.277240769 | AU23: =AJ23/SPM!$C40 -> 0.7518038204 | AV23: =AK23/SPM!$C40 -> 0.9687481495 | AW23: =AL23/SPM!$C40 -> 0.6235015462 | AX23: =AM23/SPM!$C40 -> 1.101605286 | AY23: =AN23/SPM!$C40 -> 1.005309552 | AZ23: =SPM!F40 -> 1.069616543 | BA23: =IF(ISERROR(SPM!J40),#N/A,SPM!J40) -> 1.069616543 | BB23: =SPM!N40 -> 1.49054682 | BC23: =SPM!R40 -> 0.6523228202 | BE23: 2039 | BF23: =IF(AI22>'goal seek'!$E$24,AI23/AI22-1,#N/A) -> -0.07987521589 | BG23: =IF(AND(AJ22>'goal seek'!$E$23,AJ23>0),AJ23/AJ22-1,#N/A) -> -0.2364674231 | BH23: =IF(AND(AK22>'goal seek'!$E$23,AK23>0),AK23/AK22-1,#N/A) -> -0.1534650097 | BI23: =IF(AND(AL22>'goal seek'!$E$23,AL23>0),AL23/AL22-1,#N/A) -> -0.261462643 | BJ23: =IF(AND(AM22>'goal seek'!$E$23,AM23>0),AM23/AM22-1,#N/A) -> -0.1176963999 | BK23: -0.2222402583 | BL23: =IF(AO23>0,SPM!H40,#N/A) -> -0.111917328 | BM23: =IF(ISERROR(SPM!L40/100),#N/A,SPM!L40) -> -0.111917328 | BN23: =SPM!P40 -> -0.0916003925 | BO23: =SPM!T40 -> -0.1401936316
AG24: =AH24 -> 2040 | AH24: 2040 | AI24: =RM!E35 -> 511.6712388 | AJ24: =RM!K35 -> 241.0368047 | AK24: =RM!Q35 -> 354.3078044 | AL24: =RM!W35 -> 193.6967394 | AM24: =RM!AC35 -> 422.0488551 | AN24: =RM!AI35 -> 312.6260398 | AO24: =SPM!E41 -> 413.0532718 | AP24: =IF(ISERROR(SPM!I41),#N/A,SPM!I41) -> 413.0532718 | AQ24: =SPM!M41 -> 588.8877706 | AR24: =SPM!Q41 -> 243.8365656 | AT24: =AI24/SPM!$C41 -> 1.177723568 | AU24: =AJ24/SPM!$C41 -> 0.5547990667 | AV24: =AK24/SPM!$C41 -> 0.8155171135 | AW24: =AL24/SPM!$C41 -> 0.4458355244 | AX24: =AM24/SPM!$C41 -> 0.9714379975 | AY24: =AN24/SPM!$C41 -> 0.7195773912 | AZ24: =SPM!F41 -> 0.9507326899 | BA24: =IF(ISERROR(SPM!J41),#N/A,SPM!J41) -> 0.9507326899 | BB24: =SPM!N41 -> 1.35545435 | BC24: =SPM!R41 -> 0.5612433305 | BE24: 2040 | BF24: =IF(AI23>'goal seek'!$E$24,AI24/AI23-1,#N/A) -> -0.07987521589 | BG24: =IF(AND(AJ23>'goal seek'!$E$23,AJ24>0),AJ24/AJ23-1,#N/A) -> -0.2636109386 | BH24: =IF(AND(AK23>'goal seek'!$E$23,AK24>0),AK24/AK23-1,#N/A) -> -0.1599631681 | BI24: =IF(AND(AL23>'goal seek'!$E$23,AL24>0),AL24/AL23-1,#N/A) -> -0.2864683025 | BJ24: =IF(AND(AM23>'goal seek'!$E$23,AM24>0),AM24/AM23-1,#N/A) -> -0.120035381 | BK24: -0.2857441011 | BL24: =IF(AO24>0,SPM!H41,#N/A) -> -0.1130350653 | BM24: =IF(ISERROR(SPM!L41/100),#N/A,SPM!L41) -> -0.1130350653 | BN24: =SPM!P41 -> -0.09256524505 | BO24: =SPM!T41 -> -0.1414516525
AH25: 2041 | AI25: =RM!E36 -> 470.8013881 | AJ25: =RM!K36 -> 170.2032727 | AK25: =RM!Q36 -> 295.3292573 | AL25: =RM!W36 -> 133.1168632 | AM25: =RM!AC36 -> 370.4258993 | AN25: =RM!AI36 -> 187.5573538 | AO25: =SPM!E42 -> 365.933719 | AP25: =IF(ISERROR(SPM!I42),#N/A,SPM!I42) -> 365.933719 | AQ25: =SPM!M42 -> 533.8449063 | AR25: =SPM!Q42 -> 209.0613316 | AT25: =AI25/SPM!$C42 -> 1.086075695 | AU25: =AJ25/SPM!$C42 -> 0.3926361359 | AV25: =AK25/SPM!$C42 -> 0.6812850101 | AW25: =AL25/SPM!$C42 -> 0.3070827601 | AX25: =AM25/SPM!$C42 -> 0.8545228972 | AY25: =AN25/SPM!$C42 -> 0.4326696748 | AZ25: =SPM!F42 -> 0.8441600393 | BA25: =IF(ISERROR(SPM!J42),#N/A,SPM!J42) -> 0.8441600393 | BB25: =SPM!N42 -> 1.231508641 | BC25: =SPM!R42 -> 0.4822764689 | BE25: 2041 | BF25: =IF(AI24>'goal seek'!$E$24,AI25/AI24-1,#N/A) -> -0.07987521589 | BG25: =IF(AND(AJ24>'goal seek'!$E$23,AJ25>0),AJ25/AJ24-1,#N/A) -> -0.2938701915 | BH25: =IF(AND(AK24>'goal seek'!$E$23,AK25>0),AK25/AK24-1,#N/A) -> -0.1664613266 | BI25: =IF(AND(AL24>'goal seek'!$E$23,AL25>0),AL25/AL24-1,#N/A) -> -0.3127563035 | BJ25: =IF(AND(AM24>'goal seek'!$E$23,AM25>0),AM25/AM24-1,#N/A) -> -0.1223151185 | BK25: -0.4000584406 | BL25: =IF(AO25>0,SPM!H42,#N/A) -> -0.1140762125 | BM25: =IF(ISERROR(SPM!L42/100),#N/A,SPM!L42) -> -0.1140762125 | BN25: =SPM!P42 -> -0.09346919234 | BO25: =SPM!T42 -> -0.1426169779
AH26: 2042 | AI26: =RM!E37 -> 433.1960256 | AJ26: =RM!K37 -> 114.4441989 | AK26: =RM!Q37 -> 244.2492611 | AL26: =RM!W37 -> 87.8136476 | AM26: =RM!AC37 -> 324.2930955 | AN26: =RM!AI37 -> 62.48866785 | AO26: =SPM!E43 -> 323.8336371 | AP26: =IF(ISERROR(SPM!I43),#N/A,SPM!I43) -> 323.8336371 | AQ26: =SPM!M43 -> 483.493816 | AR26: =SPM!Q43 -> 179.0193251 | AT26: =AI26/SPM!$C43 -> 1.001666974 | AU26: =AJ26/SPM!$C43 -> 0.2646260991 | AV26: =AK26/SPM!$C43 -> 0.5647706897 | AW26: =AL26/SPM!$C43 -> 0.203049025 | AX26: =AM26/SPM!$C43 -> 0.7498537944 | AY26: =AN26/SPM!$C43 -> 0.1444907873 | AZ26: =SPM!F43 -> 0.7487914016 | BA26: =IF(ISERROR(SPM!J43),#N/A,SPM!J43) -> 0.7487914016 | BB26: =SPM!N43 -> 1.117969138 | BC26: =SPM!R43 -> 0.4139413452 | BE26: 2042 | BF26: =IF(AI25>'goal seek'!$E$24,AI26/AI25-1,#N/A) -> -0.07987521589 | BG26: =IF(AND(AJ25>'goal seek'!$E$23,AJ26>0),AJ26/AJ25-1,#N/A) -> -0.3276028299 | BH26: =IF(AND(AK25>'goal seek'!$E$23,AK26>0),AK26/AK25-1,#N/A) -> -0.172959485 | BI26: =IF(AND(AL25>'goal seek'!$E$23,AL26>0),AL26/AL25-1,#N/A) -> -0.340326646 | BJ26: =IF(AND(AM25>'goal seek'!$E$23,AM26>0),AM26/AM25-1,#N/A) -> -0.1245398983 | BK26: -0.6668290175 | BL26: =IF(AO26>0,SPM!H43,#N/A) -> -0.1150483811 | BM26: =IF(ISERROR(SPM!L43/100),#N/A,SPM!L43) -> -0.1150483811 | BN26: =SPM!P43 -> -0.09431782479 | BO26: =SPM!T43 -> -0.1436994888
B27: =CONCATENATE("Reference values for the country: ",B2) -> Reference values for the country: EU27 | AH27: =AH26+1 -> 2043 | AI27: =RM!E38 -> 398.5943995 | AJ27: =RM!K38 -> 72.64831284 | AK27: =RM!Q38 -> 200.4168643 | AL27: =RM!W38 -> 42.51043204 | AM27: =RM!AC38 -> 283.200778 | AN27: =RM!AI38 -> 0 | AO27: =SPM!E44 -> 286.2824694 | AP27: =IF(ISERROR(SPM!I44),#N/A,SPM!I44) -> 286.2824694 | AQ27: =SPM!M44 -> 437.5057849 | AR27: =SPM!Q44 -> 153.1138485 | AT27: =AI27/SPM!$C44 -> 0.9239207075 | AU27: =AJ27/SPM!$C44 -> 0.1683949415 | AV27: =AK27/SPM!$C44 -> 0.4645556768 | AW27: =AL27/SPM!$C44 -> 0.09853693 | AX27: =AM27/SPM!$C44 -> 0.6564444044 | AY27: =AN27/SPM!$C44 -> 0 | AZ27: =SPM!F44 -> 0.6635876018 | BA27: =IF(ISERROR(SPM!J44),#N/A,SPM!J44) -> 0.6635876018 | BB27: =SPM!N44 -> 1.014115238 | BC27: =SPM!R44 -> 0.3549097914 | BE27: 2043 | BF27: =IF(AI26>'goal seek'!$E$24,AI27/AI26-1,#N/A) -> -0.07987521589 | BG27: =IF(AND(AJ26>'goal seek'!$E$23,AJ27>0),AJ27/AJ26-1,#N/A) -> -0.3652075551 | BH27: =IF(AND(AK26>'goal seek'!$E$23,AK27>0),AK27/AK26-1,#N/A) -> -0.1794576434 | BI27: =IF(AND(AL26>'goal seek'!$E$23,AL27>0),AL27/AL26-1,#N/A) ->  | BJ27: =IF(AND(AM26>'goal seek'!$E$23,AM27>0),AM27/AM26-1,#N/A) -> -0.1267135133 | BL27: =IF(AO27>0,SPM!H44,#N/A) -> -0.1159582062 | BM27: =IF(ISERROR(SPM!L44/100),#N/A,SPM!L44) -> -0.1159582062 | BN27: =SPM!P44 -> -0.09511606895 | BO27: =SPM!T44 -> -0.1447077103
AH28: 2044 | AI28: =RM!E39 -> 366.7565858 | AJ28: =RM!K39 -> 30.85242675 | AK28: =RM!Q39 -> 163.1481856 | AL28: =RM!W39 -> 0 | AM28: =RM!AC39 -> 246.713377 | AN28: =RM!AI39 -> 0 | AO28: =SPM!E45 -> 252.8413851 | AP28: =IF(ISERROR(SPM!I45),#N/A,SPM!I45) -> 252.8413851 | AQ28: =SPM!M45 -> 395.5628564 | AR28: =SPM!Q45 -> 130.812964 | AT28: =AI28/SPM!$C45 -> 0.8523065586 | AU28: =AJ28/SPM!$C45 -> 0.07169803267 | AV28: =AK28/SPM!$C45 -> 0.3791404817 | AW28: =AL28/SPM!$C45 -> 0 | AX28: =AM28/SPM!$C45 -> 0.5733378416 | AY28: =AN28/SPM!$C45 -> 0 | AZ28: =SPM!F45 -> 0.5875787353 | BA28: =IF(ISERROR(SPM!J45),#N/A,SPM!J45) -> 0.5875787353 | BB28: =SPM!N45 -> 0.9192495237 | BC28: =SPM!R45 -> 0.3039965784 | BE28: 2044 | BF28: =IF(AI27>'goal seek'!$E$24,AI28/AI27-1,#N/A) -> -0.07987521589 | BG28: =IF(AND(AJ27>'goal seek'!$E$23,AJ28>0),AJ28/AJ27-1,#N/A) ->  | BH28: =IF(AND(AK27>'goal seek'!$E$23,AK28>0),AK28/AK27-1,#N/A) -> -0.1859558018 | BI28: =IF(AND(AL27>'goal seek'!$E$23,AL28>0),AL28/AL27-1,#N/A) ->  | BJ28: =IF(AND(AM27>'goal seek'!$E$23,AM28>0),AM28/AM27-1,#N/A) -> -0.128839339 | BL28: =IF(AO28>0,SPM!H45,#N/A) -> -0.1168114985 | BM28: =IF(ISERROR(SPM!L45/100),#N/A,SPM!L45) -> -0.1168114985 | BN28: =SPM!P45 -> -0.09586828321 | BO28: =SPM!T45 -> -0.145649036
AH29: 2045 | AI29: =RM!E40 -> 337.4618243 | AJ29: =RM!K40 -> 0 | AK29: =RM!Q40 -> 131.7496712 | AL29: =RM!W40 -> 0 | AM29: =RM!AC40 -> 214.4135641 | AN29: =RM!AI40 -> 0 | AO29: =SPM!E46 -> 223.1038582 | AP29: =IF(ISERROR(SPM!I46),#N/A,SPM!I46) -> 223.1038582 | AQ29: =SPM!M46 -> 357.3600534 | AR29: =SPM!Q46 -> 111.6449522 | AT29: =AI29/SPM!$C46 -> 0.7863354648 | AU29: =AJ29/SPM!$C46 -> 0 | AV29: =AK29/SPM!$C46 -> 0.3069960258 | AW29: =AL29/SPM!$C46 -> 0 | AX29: =AM29/SPM!$C46 -> 0.4996150007 | AY29: =AN29/SPM!$C46 -> 0 | AZ29: =SPM!F46 -> 0.5198646583 | BA29: =IF(ISERROR(SPM!J46),#N/A,SPM!J46) -> 0.5198646583 | BB29: =SPM!N46 -> 0.8327012521 | BC29: =SPM!R46 -> 0.2601490866 | BE29: 2045 | BF29: =IF(AI28>'goal seek'!$E$24,AI29/AI28-1,#N/A) -> -0.07987521589 | BG29: =IF(AND(AJ28>'goal seek'!$E$23,AJ29>0),AJ29/AJ28-1,#N/A) ->  | BH29: =IF(AND(AK28>'goal seek'!$E$23,AK29>0),AK29/AK28-1,#N/A) -> -0.1924539602 | BI29: =IF(AND(AL28>'goal seek'!$E$23,AL29>0),AL29/AL28-1,#N/A) ->  | BJ29: =IF(AND(AM28>'goal seek'!$E$23,AM29>0),AM29/AM28-1,#N/A) -> -0.1309203954 | BL29: =IF(AO29>0,SPM!H46,#N/A) -> -0.1176133683 | BM29: =IF(ISERROR(SPM!L46/100),#N/A,SPM!L46) -> -0.1176133683 | BN29: =SPM!P46 -> -0.09657833739 | BO29: =SPM!T46 -> -0.14652991
AH30: 2046 | AI30: =RM!E41 -> 310.5069883 | AJ30: =RM!K41 -> 0 | AK30: =RM!Q41 -> 105.537795 | AL30: =RM!W41 -> 0 | AM30: =RM!AC41 -> 185.9052659 | AN30: =RM!AI41 -> 0 | AO30: =SPM!E47 -> 196.6954275 | AP30: =IF(ISERROR(SPM!I47),#N/A,SPM!I47) -> 196.6954275 | AQ30: =SPM!M47 -> 322.6069028 | AR30: =SPM!Q47 -> 95.19340146 | AT30: =AI30/SPM!$C47 -> 0.725555956 | AU30: =AJ30/SPM!$C47 -> 0 | AV30: =AK30/SPM!$C47 -> 0.2466082202 | AW30: =AL30/SPM!$C47 -> 0 | AX30: =AM30/SPM!$C47 -> 0.4344014081 | AY30: =AN30/SPM!$C47 -> 0 | AZ30: =SPM!F47 -> 0.4596145799 | BA30: =IF(ISERROR(SPM!J47),#N/A,SPM!J47) -> 0.4596145799 | BB30: =SPM!N47 -> 0.7538296032 | BC30: =SPM!R47 -> 0.2224366665 | BE30: 2046 | BF30: =IF(AI29>'goal seek'!$E$24,AI30/AI29-1,#N/A) -> -0.07987521589 | BG30: =IF(AND(AJ29>'goal seek'!$E$23,AJ30>0),AJ30/AJ29-1,#N/A) ->  | BH30: =IF(AND(AK29>'goal seek'!$E$23,AK30>0),AK30/AK29-1,#N/A) -> -0.1989521186 | BI30: =IF(AND(AL29>'goal seek'!$E$23,AL30>0),AL30/AL29-1,#N/A) ->  | BJ30: =IF(AND(AM29>'goal seek'!$E$23,AM30>0),AM30/AM29-1,#N/A) -> -0.1329593972 | BL30: =IF(AO30>0,SPM!H47,#N/A) -> -0.1183683281 | BM30: =IF(ISERROR(SPM!L47/100),#N/A,SPM!L47) -> -0.1183683281 | BN30: =SPM!P47 -> -0.09724967934 | BO30: =SPM!T47 -> -0.1473559744
AH31: 2047 | AI31: =RM!E42 -> 285.7051755 | AJ31: =RM!K42 -> 0 | AK31: =RM!Q42 -> 83.85502576 | AL31: =RM!W42 -> 0 | AM31: =RM!AC42 -> 160.8157151 | AN31: =RM!AI42 -> 0 | AO31: =SPM!E48 -> 173.2728618 | AP31: =IF(ISERROR(SPM!I48),#N/A,SPM!I48) -> 173.2728618 | AQ31: =SPM!M48 -> 291.0284 | AR31: =SPM!Q48 -> 81.09219438 | AT31: =AI31/SPM!$C48 -> 0.6695518482 | AU31: =AJ31/SPM!$C48 -> 0 | AV31: =AK31/SPM!$C48 -> 0.1965147722 | AW31: =AL31/SPM!$C48 -> 0 | AX31: =AM31/SPM!$C48 -> 0.3768726244 | AY31: =AN31/SPM!$C48 -> 0 | AZ31: =SPM!F48 -> 0.4060660247 | BA31: =IF(ISERROR(SPM!J48),#N/A,SPM!J48) -> 0.4060660247 | BB31: =SPM!N48 -> 0.6820268577 | BC31: =SPM!R48 -> 0.1900400597 | BE31: 2047 | BF31: =IF(AI30>'goal seek'!$E$24,AI31/AI30-1,#N/A) -> -0.07987521589 | BG31: =IF(AND(AJ30>'goal seek'!$E$23,AJ31>0),AJ31/AJ30-1,#N/A) ->  | BH31: =IF(AND(AK30>'goal seek'!$E$23,AK31>0),AK31/AK30-1,#N/A) -> -0.205450277 | BI31: =IF(AND(AL30>'goal seek'!$E$23,AL31>0),AL31/AL30-1,#N/A) ->  | BJ31: =IF(AND(AM30>'goal seek'!$E$23,AM31>0),AM31/AM30-1,#N/A) -> -0.1349587955 | BL31: =IF(AO31>0,SPM!H48,#N/A) -> -0.1190803772 | BM31: =IF(ISERROR(SPM!L48/100),#N/A,SPM!L48) -> -0.1190803772 | BN31: =SPM!P48 -> -0.09788539094 | BO31: =SPM!T48 -> -0.1481321904
AH32: 2048 | AI32: =RM!E43 -> 262.884413 | AJ32: =RM!K43 -> 0 | AK32: =RM!Q43 -> 62.17225655 | AL32: =RM!W43 -> 0 | AM32: =RM!AC43 -> 138.7966969 | AN32: =RM!AI43 -> 0 | AO32: =SPM!E49 -> 152.5229042 | AP32: =IF(ISERROR(SPM!I49),#N/A,SPM!I49) -> 152.5229042 | AQ32: =SPM!M49 -> 262.3655264 | AR32: =SPM!Q49 -> 69.02057208 | AT32: =AI32/SPM!$C49 -> 0.6179406275 | AU32: =AJ32/SPM!$C49 -> 0 | AV32: =AK32/SPM!$C49 -> 0.1461431767 | AW32: =AL32/SPM!$C49 -> 0 | AX32: =AM32/SPM!$C49 -> 0.3262579054 | AY32: =AN32/SPM!$C49 -> 0 | AZ32: =SPM!F49 -> 0.3585229646 | BA32: =IF(ISERROR(SPM!J49),#N/A,SPM!J49) -> 0.3585229646 | BB32: =SPM!N49 -> 0.6167209238 | BC32: =SPM!R49 -> 0.1622409451 | BE32: 2048 | BF32: =IF(AI31>'goal seek'!$E$24,AI32/AI31-1,#N/A) -> -0.07987521589 | BG32: =IF(AND(AJ31>'goal seek'!$E$23,AJ32>0),AJ32/AJ31-1,#N/A) ->  | BH32: =IF(AND(AK31>'goal seek'!$E$23,AK32>0),AK32/AK31-1,#N/A) ->  | BI32: =IF(AND(AL31>'goal seek'!$E$23,AL32>0),AL32/AL31-1,#N/A) ->  | BJ32: =IF(AND(AM31>'goal seek'!$E$23,AM32>0),AM32/AM31-1,#N/A) -> -0.1369208119 | BL32: =IF(AO32>0,SPM!H49,#N/A) -> -0.1197530729 | BM32: =IF(ISERROR(SPM!L49/100),#N/A,SPM!L49) -> -0.1197530729 | BN32: =SPM!P49 -> -0.09848823541 | BO32: =SPM!T49 -> -0.148862938
AH33: 2049 | AI33: =RM!E44 -> 241.8864637 | AJ33: =RM!K44 -> 0 | AK33: =RM!Q44 -> 40.48948734 | AL33: =RM!W44 -> 0 | AM33: =RM!AC44 -> 119.5251269 | AN33: =RM!AI44 -> 0 | AO33: =SPM!E50 -> 134.1607342 | AP33: =IF(ISERROR(SPM!I50),#N/A,SPM!I50) -> 134.1607342 | AQ33: =SPM!M50 -> 236.3754144 | AR33: =SPM!Q50 -> 58.69840068 | AT33: =AI33/SPM!$C50 -> 0.5703702993 | AU33: =AJ33/SPM!$C50 -> 0 | AV33: =AK33/SPM!$C50 -> 0.09547454892 | AW33: =AL33/SPM!$C50 -> 0 | AX33: =AM33/SPM!$C50 -> 0.2818412464 | AY33: =AN33/SPM!$C50 -> 0 | AZ33: =SPM!F50 -> 0.3163521305 | BA33: =IF(ISERROR(SPM!J50),#N/A,SPM!J50) -> 0.3163521305 | BB33: =SPM!N50 -> 0.557375199 | BC33: =SPM!R50 -> 0.1384113185 | BE33: 2049 | BF33: =IF(AI32>'goal seek'!$E$24,AI33/AI32-1,#N/A) -> -0.07987521589 | BG33: =IF(AND(AJ32>'goal seek'!$E$23,AJ33>0),AJ33/AJ32-1,#N/A) ->  | BH33: =IF(AND(AK32>'goal seek'!$E$23,AK33>0),AK33/AK32-1,#N/A) ->  | BI33: =IF(AND(AL32>'goal seek'!$E$23,AL33>0),AL33/AL32-1,#N/A) ->  | BJ33: =IF(AND(AM32>'goal seek'!$E$23,AM33>0),AM33/AM32-1,#N/A) -> -0.138847468 | BL33: =IF(AO33>0,SPM!H50,#N/A) -> -0.1203895901 | BM33: =IF(ISERROR(SPM!L50/100),#N/A,SPM!L50) -> -0.1203895901 | BN33: =SPM!P50 -> -0.09906069742 | BO33: =SPM!T50 -> -0.1495520985
AG34: =AH34 -> 2050 | AH34: 2050 | AI34: =RM!E45 -> 222.5657302 | AJ34: =RM!K45 -> 0 | AK34: =RM!Q45 -> 18.80671813 | AL34: =RM!W45 -> 0 | AM34: =RM!AC45 -> 102.7030877 | AN34: =RM!AI45 -> 0 | AO34: =SPM!E51 -> 117.9282553 | AP34: =IF(ISERROR(SPM!I51),#N/A,SPM!I51) -> 117.9282553 | AQ34: =SPM!M51 -> 212.8312371 | AR34: =SPM!Q51 -> 49.88171753 | AT34: =AI34/SPM!$C51 -> 0.5265177014 | AU34: =AJ34/SPM!$C51 -> 0 | AV34: =AK34/SPM!$C51 -> 0.04449054215 | AW34: =AL34/SPM!$C51 -> 0 | AX34: =AM34/SPM!$C51 -> 0.2429619044 | AY34: =AN34/SPM!$C51 -> 0 | AZ34: =SPM!F51 -> 0.2789796696 | BA34: =IF(ISERROR(SPM!J51),#N/A,SPM!J51) -> 0.2789796696 | BB34: =SPM!N51 -> 0.5034890756 | BC34: =SPM!R51 -> 0.118003824 | BE34: 2050 | BF34: =IF(AI33>'goal seek'!$E$24,AI34/AI33-1,#N/A) -> -0.07987521589 | BG34: =IF(AND(AJ33>'goal seek'!$E$23,AJ34>0),AJ34/AJ33-1,#N/A) ->  | BH34: =IF(AND(AK33>'goal seek'!$E$23,AK34>0),AK34/AK33-1,#N/A) ->  | BI34: =IF(AND(AL33>'goal seek'!$E$23,AL34>0),AL34/AL33-1,#N/A) ->  | BJ34: =IF(AND(AM33>'goal seek'!$E$23,AM34>0),AM34/AM33-1,#N/A) -> -0.1407406094 | BL34: =IF(AO34>0,SPM!H51,#N/A) -> -0.1209927709 | BM34: =IF(ISERROR(SPM!L51/100),#N/A,SPM!L51) -> -0.1209927709 | BN34: =SPM!P51 -> -0.09960501736 | BO34: =SPM!T51 -> -0.1502031239
AH35: 2051 | AI35: =RM!E46 -> 204.7882445 | AJ35: =RM!K46 -> 0 | AK35: =RM!Q46 -> 0 | AL35: =RM!W46 -> 0 | AM35: =RM!AC46 -> 85.88104853 | AN35: =RM!AI46 -> 0 | AO35: =SPM!E52 -> 103.5922872 | AP35: =IF(ISERROR(SPM!I52),#N/A,SPM!I52) -> 103.5922872 | AQ35: =SPM!M52 -> 191.5218882 | AR35: =SPM!Q52 -> 42.35860208 | AT35: =AI35/SPM!$C52 -> 0.4860859037 | AU35: =AJ35/SPM!$C52 -> 0 | AV35: =AK35/SPM!$C52 -> 0 | AW35: =AL35/SPM!$C52 -> 0 | AX35: =AM35/SPM!$C52 -> 0.2038474776 | AY35: =AN35/SPM!$C52 -> 0 | AZ35: =SPM!F52 -> 0.2458869192 | BA35: =IF(ISERROR(SPM!J52),#N/A,SPM!J52) -> 0.2458869192 | BB35: =SPM!N52 -> 0.4545968464 | BC35: =SPM!R52 -> 0.1005424868 | BE35: 2051 | BF35: =IF(AI34>'goal seek'!$E$24,AI35/AI34-1,#N/A) -> -0.07987521589 | BG35: =IF(AND(AJ34>'goal seek'!$E$23,AJ35>0),AJ35/AJ34-1,#N/A) ->  | BH35: =IF(AND(AK34>'goal seek'!$E$23,AK35>0),AK35/AK34-1,#N/A) ->  | BI35: =IF(AND(AL34>'goal seek'!$E$23,AL35>0),AL35/AL34-1,#N/A) ->  | BJ35: =IF(AND(AM34>'goal seek'!$E$23,AM35>0),AM35/AM34-1,#N/A) ->  | BL35: =IF(AO35>0,SPM!H52,#N/A) -> -0.1215651674 | BM35: =IF(ISERROR(SPM!L52/100),#N/A,SPM!L52) -> -0.1215651674 | BN35: =SPM!P52 -> -0.1001232206 | BO35: =SPM!T52 -> -0.1508190942
AH36: 2052 | AI36: =RM!E47 -> 188.4307392 | AJ36: =RM!K47 -> 0 | AK36: =RM!Q47 -> 0 | AL36: =RM!W47 -> 0 | AM36: =RM!AC47 -> 69.05900933 | AN36: =RM!AI47 -> 0 | AO36: =SPM!E53 -> 90.94272853 | AP36: =IF(ISERROR(SPM!I53),#N/A,SPM!I53) -> 90.94272853 | AQ36: =SPM!M53 -> 172.251503 | AR36: =SPM!Q53 -> 35.94539253 | AT36: =AI36/SPM!$C53 -> 0.4488025059 | AU36: =AJ36/SPM!$C53 -> 0 | AV36: =AK36/SPM!$C53 -> 0 | AW36: =AL36/SPM!$C53 -> 0 | AX36: =AM36/SPM!$C53 -> 0.1644840782 | AY36: =AN36/SPM!$C53 -> 0 | AZ36: =SPM!F53 -> 0.2166065082 | BA36: =IF(ISERROR(SPM!J53),#N/A,SPM!J53) -> 0.2166065082 | BB36: =SPM!N53 -> 0.4102669582 | BC36: =SPM!R53 -> 0.08561438707 | BE36: =AH36 -> 2052 | BF36: =IF(AI35>'goal seek'!$E$24,AI36/AI35-1,#N/A) -> -0.07987521589 | BG36: =IF(AND(AJ35>'goal seek'!$E$23,AJ36>0),AJ36/AJ35-1,#N/A) ->  | BH36: =IF(AND(AK35>'goal seek'!$E$23,AK36>0),AK36/AK35-1,#N/A) ->  | BI36: =IF(AND(AL35>'goal seek'!$E$23,AL36>0),AL36/AL35-1,#N/A) ->  | BJ36: =IF(AND(AM35>'goal seek'!$E$23,AM36>0),AM36/AM35-1,#N/A) ->  | BL36: =IF(AO36>0,SPM!H53,#N/A) -> -0.1221090776 | BM36: =IF(ISERROR(SPM!L53/100),#N/A,SPM!L53) -> -0.1221090776 | BN36: =SPM!P53 -> -0.1006171428 | BO36: =SPM!T53 -> -0.1514027667
AH37: 2053 | AI37: =RM!E48 -> 173.3797932 | AJ37: =RM!K48 -> 0 | AK37: =RM!Q48 -> 0 | AL37: =RM!W48 -> 0 | AM37: =RM!AC48 -> 52.23697013 | AN37: =RM!AI48 -> 0 | AO37: =SPM!E54 -> 79.79073309 | AP37: =IF(ISERROR(SPM!I54),#N/A,SPM!I54) -> 79.79073309 | AQ37: =SPM!M54 -> 154.8388653 | AR37: =SPM!Q54 -> 30.4832523 | AT37: =AI37/SPM!$C54 -> 0.4144173379 | AU37: =AJ37/SPM!$C54 -> 0 | AV37: =AK37/SPM!$C54 -> 0 | AW37: =AL37/SPM!$C54 -> 0 | AX37: =AM37/SPM!$C54 -> 0.1248582992 | AY37: =AN37/SPM!$C54 -> 0 | AZ37: =SPM!F54 -> 0.190718091 | BA37: =IF(ISERROR(SPM!J54),#N/A,SPM!J54) -> 0.190718091 | BB37: =SPM!N54 -> 0.370100282 | BC37: =SPM!R54 -> 0.072861941 | BE37: 2053 | BF37: =IF(AI36>'goal seek'!$E$24,AI37/AI36-1,#N/A) -> -0.07987521589 | BG37: =IF(AND(AJ36>'goal seek'!$E$23,AJ37>0),AJ37/AJ36-1,#N/A) ->  | BH37: =IF(AND(AK36>'goal seek'!$E$23,AK37>0),AK37/AK36-1,#N/A) ->  | BI37: =IF(AND(AL36>'goal seek'!$E$23,AL37>0),AL37/AL36-1,#N/A) ->  | BJ37: =IF(AND(AM36>'goal seek'!$E$23,AM37>0),AM37/AM36-1,#N/A) ->  | BL37: =IF(AO37>0,SPM!H54,#N/A) -> -0.1226265764 | BM37: =IF(ISERROR(SPM!L54/100),#N/A,SPM!L54) -> -0.1226265764 | BN37: =SPM!P54 -> -0.1010884515 | BO37: =SPM!T54 -> -0.1519566166
AH38: 2054 | AI38: =RM!E49 -> 159.5310448 | AJ38: =RM!K49 -> 0 | AK38: =RM!Q49 -> 0 | AL38: =RM!W49 -> 0 | AM38: =RM!AC49 -> 35.41493093 | AN38: =RM!AI49 -> 0 | AO38: =SPM!E55 -> 69.96693458 | AP38: =IF(ISERROR(SPM!I55),#N/A,SPM!I55) -> 69.96693458 | AQ38: =SPM!M55 -> 139.1167337 | AR38: =SPM!Q55 -> 25.83507842 | AT38: =AI38/SPM!$C55 -> 0.3827003477 | AU38: =AJ38/SPM!$C55 -> 0 | AV38: =AK38/SPM!$C55 -> 0 | AW38: =AL38/SPM!$C55 -> 0 | AX38: =AM38/SPM!$C55 -> 0.08495717178 | AY38: =AN38/SPM!$C55 -> 0 | AZ38: =SPM!F55 -> 0.1678442602 | BA38: =IF(ISERROR(SPM!J55),#N/A,SPM!J55) -> 0.1678442602 | BB38: =SPM!N55 -> 0.3337282873 | BC38: =SPM!R55 -> 0.06197598407 | BE38: 2054 | BF38: =IF(AI37>'goal seek'!$E$24,AI38/AI37-1,#N/A) -> -0.07987521589 | BG38: =IF(AND(AJ37>'goal seek'!$E$23,AJ38>0),AJ38/AJ37-1,#N/A) ->  | BH38: =IF(AND(AK37>'goal seek'!$E$23,AK38>0),AK38/AK37-1,#N/A) ->  | BI38: =IF(AND(AL37>'goal seek'!$E$23,AL38>0),AL38/AL37-1,#N/A) ->  | BJ38: =IF(AND(AM37>'goal seek'!$E$23,AM38>0),AM38/AM37-1,#N/A) ->  | BL38: =IF(AO38>0,SPM!H55,#N/A) -> -0.1231195419 | BM38: =IF(ISERROR(SPM!L55/100),#N/A,SPM!L55) -> -0.1231195419 | BN38: =SPM!P55 -> -0.1015386648 | BO38: =SPM!T55 -> -0.1524828727
AH39: 2055 | AI39: =RM!E50 -> 146.7884682 | AJ39: =RM!K50 -> 0 | AK39: =RM!Q50 -> 0 | AL39: =RM!W50 -> 0 | AM39: =RM!AC50 -> 18.59289173 | AN39: =RM!AI50 -> 0 | AO39: =SPM!E56 -> 61.31974365 | AP39: =IF(ISERROR(SPM!I56),#N/A,SPM!I56) -> 61.31974365 | AQ39: =SPM!M56 -> 124.9311161 | AR39: =SPM!Q56 -> 21.88273648 | AT39: =AI39/SPM!$C56 -> 0.3534399176 | AU39: =AJ39/SPM!$C56 -> 0 | AV39: =AK39/SPM!$C56 -> 0 | AW39: =AL39/SPM!$C56 -> 0 | AX39: =AM39/SPM!$C56 -> 0.04476829959 | AY39: =AN39/SPM!$C56 -> 0 | AZ39: =SPM!F56 -> 0.1476467832 | BA39: =IF(ISERROR(SPM!J56),#N/A,SPM!J56) -> 0.1476467832 | BB39: =SPM!N56 -> 0.3008113915 | BC39: =SPM!R56 -> 0.05268964705 | BE39: 2055 | BF39: =IF(AI38>'goal seek'!$E$24,AI39/AI38-1,#N/A) -> -0.07987521589 | BG39: =IF(AND(AJ38>'goal seek'!$E$23,AJ39>0),AJ39/AJ38-1,#N/A) ->  | BH39: =IF(AND(AK38>'goal seek'!$E$23,AK39>0),AK39/AK38-1,#N/A) ->  | BI39: =IF(AND(AL38>'goal seek'!$E$23,AL39>0),AL39/AL38-1,#N/A) ->  | BJ39: =IF(AND(AM38>'goal seek'!$E$23,AM39>0),AM39/AM38-1,#N/A) ->  | BL39: =IF(AO39>0,SPM!H56,#N/A) -> -0.1235896783 | BM39: =IF(ISERROR(SPM!L56/100),#N/A,SPM!L56) -> -0.1235896783 | BN39: =SPM!P56 -> -0.1019691681 | BO39: =SPM!T56 -> -0.1529835471
AH40: 2056 | AI40: =RM!E51 -> 135.0637076 | AJ40: =RM!K51 -> 0 | AK40: =RM!Q51 -> 0 | AL40: =RM!W51 -> 0 | AM40: =RM!AC51 -> 1.770852528 | AN40: =RM!AI51 -> 0 | AO40: =SPM!E57 -> 53.71373244 | AP40: =IF(ISERROR(SPM!I57),#N/A,SPM!I57) -> 53.71373244 | AQ40: =SPM!M57 -> 112.140515 | AR40: =SPM!Q57 -> 18.52460166 | AT40: =AI40/SPM!$C57 -> 0.3264414686 | AU40: =AJ40/SPM!$C57 -> 0 | AV40: =AK40/SPM!$C57 -> 0 | AW40: =AL40/SPM!$C57 -> 0 | AX40: =AM40/SPM!$C57 -> 0.004280052061 | AY40: =AN40/SPM!$C57 -> 0 | AZ40: =SPM!F57 -> 0.1298231036 | BA40: =IF(ISERROR(SPM!J57),#N/A,SPM!J57) -> 0.1298231036 | BB40: =SPM!N57 -> 0.2710373872 | BC40: =SPM!R57 -> 0.04477293182 | BE40: 2056 | BF40: =IF(AI39>'goal seek'!$E$24,AI40/AI39-1,#N/A) -> -0.07987521589 | BG40: =IF(AND(AJ39>'goal seek'!$E$23,AJ40>0),AJ40/AJ39-1,#N/A) ->  | BH40: =IF(AND(AK39>'goal seek'!$E$23,AK40>0),AK40/AK39-1,#N/A) ->  | BI40: =IF(AND(AL39>'goal seek'!$E$23,AL40>0),AL40/AL39-1,#N/A) ->  | BJ40: =IF(AND(AM39>'goal seek'!$E$23,AM40>0),AM40/AM39-1,#N/A) ->  | BL40: =IF(AO40>0,SPM!H57,#N/A) -> -0.1240385356 | BM40: =IF(ISERROR(SPM!L57/100),#N/A,SPM!L57) -> -0.1240385356 | BN40: =SPM!P57 -> -0.102381228 | BO40: =SPM!T57 -> -0.1534604607
AH41: 2057 | AI41: =RM!E52 -> 124.2754648 | AJ41: =RM!K52 -> 0 | AK41: =RM!Q52 -> 0 | AL41: =RM!W52 -> 0 | AM41: =RM!AC52 -> 0 | AN41: =RM!AI52 -> 0 | AO41: =SPM!E58 -> 47.02811703 | AP41: =IF(ISERROR(SPM!I58),#N/A,SPM!I58) -> 47.02811703 | AQ41: =SPM!M58 -> 100.6151609 | AR41: =SPM!Q58 -> 15.67338267 | AT41: =AI41/SPM!$C58 -> 0.3015255515 | AU41: =AJ41/SPM!$C58 -> 0 | AV41: =AK41/SPM!$C58 -> 0 | AW41: =AL41/SPM!$C58 -> 0 | AX41: =AM41/SPM!$C58 -> 0 | AY41: =AN41/SPM!$C58 -> 0 | AZ41: =SPM!F58 -> 0.1141028034 | BA41: =IF(ISERROR(SPM!J58),#N/A,SPM!J58) -> 0.1141028034 | BB41: =SPM!N58 -> 0.2441193194 | BC41: =SPM!R58 -> 0.0380278228 | BE41: 2057 | BF41: =IF(AI40>'goal seek'!$E$24,AI41/AI40-1,#N/A) -> -0.07987521589 | BG41: =IF(AND(AJ40>'goal seek'!$E$23,AJ41>0),AJ41/AJ40-1,#N/A) ->  | BH41: =IF(AND(AK40>'goal seek'!$E$23,AK41>0),AK41/AK40-1,#N/A) ->  | BI41: =IF(AND(AL40>'goal seek'!$E$23,AL41>0),AL41/AL40-1,#N/A) ->  | BJ41: =IF(AND(AM40>'goal seek'!$E$23,AM41>0),AM41/AM40-1,#N/A) ->  | BL41: =IF(AO41>0,SPM!H58,#N/A) -> -0.1244675265 | BM41: =IF(ISERROR(SPM!L58/100),#N/A,SPM!L58) -> -0.1244675265 | BN41: =SPM!P58 -> -0.1027760048 | BO41: =SPM!T58 -> -0.1539152659
AH42: 2058 | AI42: =RM!E53 -> 113.487222 | AJ42: =RM!K53 -> 0 | AK42: =RM!Q53 -> 0 | AL42: =RM!W53 -> 0 | AM42: =RM!AC53 -> 0 | AN42: =RM!AI53 -> 0 | AO42: =SPM!E59 -> 41.15534259 | AP42: =IF(ISERROR(SPM!I59),#N/A,SPM!I59) -> 41.15534259 | AQ42: =SPM!M59 -> 90.23624787 | AR42: =SPM!Q59 -> 13.25420444 | AT42: =AI42/SPM!$C59 -> 0.2764273177 | AU42: =AJ42/SPM!$C59 -> 0 | AV42: =AK42/SPM!$C59 -> 0 | AW42: =AL42/SPM!$C59 -> 0 | AX42: =AM42/SPM!$C59 -> 0 | AY42: =AN42/SPM!$C59 -> 0 | AZ42: =SPM!F59 -> 0.1002444219 | BA42: =IF(ISERROR(SPM!J59),#N/A,SPM!J59) -> 0.1002444219 | BB42: =SPM!N59 -> 0.2197935901 | BC42: =SPM!R59 -> 0.03228402384 | BE42: 2058 | BF42: =IF(AI41>'goal seek'!$E$24,AI42/AI41-1,#N/A) ->  | BG42: =IF(AND(AJ41>'goal seek'!$E$23,AJ42>0),AJ42/AJ41-1,#N/A) ->  | BH42: =IF(AND(AK41>'goal seek'!$E$23,AK42>0),AK42/AK41-1,#N/A) ->  | BI42: =IF(AND(AL41>'goal seek'!$E$23,AL42>0),AL42/AL41-1,#N/A) ->  | BJ42: =IF(AND(AM41>'goal seek'!$E$23,AM42>0),AM42/AM41-1,#N/A) ->  | BL42: =IF(AO42>0,SPM!H59,#N/A) -> -0.1248779413 | BM42: =IF(ISERROR(SPM!L59/100),#N/A,SPM!L59) -> -0.1248779413 | BN42: =SPM!P59 -> -0.1031545637 | BO42: =SPM!T59 -> -0.1543494651
AH43: 2059 | AI43: =RM!E54 -> 102.6989792 | AJ43: =RM!K54 -> 0 | AK43: =RM!Q54 -> 0 | AL43: =RM!W54 -> 0 | AM43: =RM!AC54 -> 0 | AN43: =RM!AI54 -> 0 | AO43: =SPM!E60 -> 35.99977327 | AP43: =IF(ISERROR(SPM!I60),#N/A,SPM!I60) -> 35.99977327 | AQ43: =SPM!M60 -> 80.89518245 | AR43: =SPM!Q60 -> 11.20292507 | AT43: =AI43/SPM!$C60 -> 0.251137639 | AU43: =AJ43/SPM!$C60 -> 0 | AV43: =AK43/SPM!$C60 -> 0 | AW43: =AL43/SPM!$C60 -> 0 | AX43: =AM43/SPM!$C60 -> 0 | AY43: =AN43/SPM!$C60 -> 0 | AZ43: =SPM!F60 -> 0.0880329886 | BA43: =IF(ISERROR(SPM!J60),#N/A,SPM!J60) -> 0.0880329886 | BB43: =SPM!N60 -> 0.1978191535 | BC43: =SPM!R60 -> 0.02739536629 | BE43: 2059 | BF43: =IF(AI42>'goal seek'!$E$24,AI43/AI42-1,#N/A) ->  | BG43: =IF(AND(AJ42>'goal seek'!$E$23,AJ43>0),AJ43/AJ42-1,#N/A) ->  | BH43: =IF(AND(AK42>'goal seek'!$E$23,AK43>0),AK43/AK42-1,#N/A) ->  | BI43: =IF(AND(AL42>'goal seek'!$E$23,AL43>0),AL43/AL42-1,#N/A) ->  | BJ43: =IF(AND(AM42>'goal seek'!$E$23,AM43>0),AM43/AM42-1,#N/A) ->  | BL43: =IF(AO43>0,SPM!H60,#N/A) -> -0.125270961 | BM43: =IF(ISERROR(SPM!L60/100),#N/A,SPM!L60) -> -0.125270961 | BN43: =SPM!P60 -> -0.1035178838 | BO43: =SPM!T60 -> -0.1547644277
AG44: =AH44 -> 2060 | AH44: 2060 | AI44: =RM!E55 -> 91.91073639 | AJ44: =RM!K55 -> 0 | AK44: =RM!Q55 -> 0 | AL44: =RM!W55 -> 0 | AM44: =RM!AC55 -> 0 | AN44: =RM!AI55 -> 0 | AO44: =SPM!E61 -> 31.47648569 | AP44: =IF(ISERROR(SPM!I61),#N/A,SPM!I61) -> 31.47648569 | AQ44: =SPM!M61 -> 72.49285329 | AR44: =SPM!Q61 -> 9.464663486 | AT44: =AI44/SPM!$C61 -> 0.2256490691 | AU44: =AJ44/SPM!$C61 -> 0 | AV44: =AK44/SPM!$C61 -> 0 | AW44: =AL44/SPM!$C61 -> 0 | AX44: =AM44/SPM!$C61 -> 0 | AY44: =AN44/SPM!$C61 -> 0 | AZ44: =SPM!F61 -> 0.07727758445 | BA44: =IF(ISERROR(SPM!J61),#N/A,SPM!J61) -> 0.07727758445 | BB44: =SPM!N61 -> 0.1779764313 | BC44: =SPM!R61 -> 0.02323659442 | BE44: 2060 | BF44: =IF(AI43>'goal seek'!$E$24,AI44/AI43-1,#N/A) ->  | BG44: =IF(AND(AJ43>'goal seek'!$E$23,AJ44>0),AJ44/AJ43-1,#N/A) ->  | BH44: =IF(AND(AK43>'goal seek'!$E$23,AK44>0),AK44/AK43-1,#N/A) ->  | BI44: =IF(AND(AL43>'goal seek'!$E$23,AL44>0),AL44/AL43-1,#N/A) ->  | BJ44: =IF(AND(AM43>'goal seek'!$E$23,AM44>0),AM44/AM43-1,#N/A) ->  | BL44: =IF(AO44>0,SPM!H61,#N/A) -> -0.1256476687 | BM44: =IF(ISERROR(SPM!L61/100),#N/A,SPM!L61) -> -0.1256476687 | BN44: =SPM!P61 -> -0.1038668671 | BO44: =SPM!T61 -> -0.1551614044
AH45: 2061 | AI45: =RM!E56 -> 81.12249358 | AJ45: =RM!K56 -> 0 | AK45: =RM!Q56 -> 0 | AL45: =RM!W56 -> 0 | AM45: =RM!AC56 -> 0 | AN45: =RM!AI56 -> 0 | AO45: =SPM!E62 -> 27.51016334 | AP45: =IF(ISERROR(SPM!I62),#N/A,SPM!I62) -> 27.51016334 | AQ45: =SPM!M62 -> 64.93892792 | AR45: =SPM!Q62 -> 7.992515154 | AT45: =AI45/SPM!$C62 -> 0.1999568158 | AU45: =AJ45/SPM!$C62 -> 0 | AV45: =AK45/SPM!$C62 -> 0 | AW45: =AL45/SPM!$C62 -> 0 | AX45: =AM45/SPM!$C62 -> 0 | AY45: =AN45/SPM!$C62 -> 0 | AZ45: =SPM!F62 -> 0.06780911708 | BA45: =IF(ISERROR(SPM!J62),#N/A,SPM!J62) -> 0.06780911708 | BB45: =SPM!N62 -> 0.1600663475 | BC45: =SPM!R62 -> 0.01970055172 | BE45: 2061 | BF45: =IF(AI44>'goal seek'!$E$24,AI45/AI44-1,#N/A) ->  | BG45: =IF(AND(AJ44>'goal seek'!$E$23,AJ45>0),AJ45/AJ44-1,#N/A) ->  | BH45: =IF(AND(AK44>'goal seek'!$E$23,AK45>0),AK45/AK44-1,#N/A) ->  | BI45: =IF(AND(AL44>'goal seek'!$E$23,AL45>0),AL45/AL44-1,#N/A) ->  | BJ45: =IF(AND(AM44>'goal seek'!$E$23,AM45>0),AM45/AM44-1,#N/A) ->  | BL45: =IF(AO45>0,SPM!H62,#N/A) -> -0.1260090591 | BM45: =IF(ISERROR(SPM!L62/100),#N/A,SPM!L62) -> -0.1260090591 | BN45: =SPM!P62 -> -0.1042023459 | BO45: =SPM!T62 -> -0.1555415397
AH46: 2062 | AI46: =RM!E57 -> 70.33425078 | AJ46: =RM!K57 -> 0 | AK46: =RM!Q57 -> 0 | AL46: =RM!W57 -> 0 | AM46: =RM!AC57 -> 0 | AN46: =RM!AI57 -> 0 | AO46: =SPM!E63 -> 24.03408783 | AP46: =IF(ISERROR(SPM!I63),#N/A,SPM!I63) -> 24.03408783 | AQ46: =SPM!M63 -> 58.1511807 | AR46: =SPM!Q63 -> 6.74643502 | AT46: =AI46/SPM!$C63 -> 0.1740568964 | AU46: =AJ46/SPM!$C63 -> 0 | AV46: =AK46/SPM!$C63 -> 0 | AW46: =AL46/SPM!$C63 -> 0 | AX46: =AM46/SPM!$C63 -> 0 | AY46: =AN46/SPM!$C63 -> 0 | AZ46: =SPM!F63 -> 0.05947740524 | BA46: =IF(ISERROR(SPM!J63),#N/A,SPM!J63) -> 0.05947740524 | BB46: =SPM!N63 -> 0.1439073271 | BC46: =SPM!R63 -> 0.01669547239 | BE46: 2062 | BF46: =IF(AI45>'goal seek'!$E$24,AI46/AI45-1,#N/A) ->  | BG46: =IF(AND(AJ45>'goal seek'!$E$23,AJ46>0),AJ46/AJ45-1,#N/A) ->  | BH46: =IF(AND(AK45>'goal seek'!$E$23,AK46>0),AK46/AK45-1,#N/A) ->  | BI46: =IF(AND(AL45>'goal seek'!$E$23,AL46>0),AL46/AL45-1,#N/A) ->  | BJ46: =IF(AND(AM45>'goal seek'!$E$23,AM46>0),AM46/AM45-1,#N/A) ->  | BL46: =IF(AO46>0,SPM!H63,#N/A) -> -0.1263560479 | BM46: =IF(ISERROR(SPM!L63/100),#N/A,SPM!L63) -> -0.1263560479 | BN46: =SPM!P63 -> -0.104525089 | BO46: =SPM!T63 -> -0.1559058832
AH47: 2063 | AI47: =RM!E58 -> 59.54600798 | AJ47: =RM!K58 -> 0 | AK47: =RM!Q58 -> 0 | AL47: =RM!W58 -> 0 | AM47: =RM!AC58 -> 0 | AN47: =RM!AI58 -> 0 | AO47: =SPM!E64 -> 20.98922176 | AP47: =IF(ISERROR(SPM!I64),#N/A,SPM!I64) -> 20.98922176 | AQ47: =SPM!M64 -> 52.05485466 | AR47: =SPM!Q64 -> 5.692268126 | AT47: =AI47/SPM!$C64 -> 0.147945623 | AU47: =AJ47/SPM!$C64 -> 0 | AV47: =AK47/SPM!$C64 -> 0 | AW47: =AL47/SPM!$C64 -> 0 | AX47: =AM47/SPM!$C64 -> 0 | AY47: =AN47/SPM!$C64 -> 0 | AZ47: =SPM!F64 -> 0.05214897847 | BA47: =IF(ISERROR(SPM!J64),#N/A,SPM!J64) -> 0.05214897847 | BB47: =SPM!N64 -> 0.1293334039 | BC47: =SPM!R64 -> 0.01414278106 | BE47: 2063 | BF47: =IF(AI46>'goal seek'!$E$24,AI47/AI46-1,#N/A) ->  | BG47: =IF(AND(AJ46>'goal seek'!$E$23,AJ47>0),AJ47/AJ46-1,#N/A) ->  | BH47: =IF(AND(AK46>'goal seek'!$E$23,AK47>0),AK47/AK46-1,#N/A) ->  | BI47: =IF(AND(AL46>'goal seek'!$E$23,AL47>0),AL47/AL46-1,#N/A) ->  | BJ47: =IF(AND(AM46>'goal seek'!$E$23,AM47>0),AM47/AM46-1,#N/A) ->  | BL47: =IF(AO47>0,SPM!H64,#N/A) -> -0.1266894792 | BM47: =IF(ISERROR(SPM!L64/100),#N/A,SPM!L64) -> -0.1266894792 | BN47: =SPM!P64 -> -0.1048358083 | BO47: =SPM!T64 -> -0.1562553987
AH48: 2064 | AI48: =RM!E59 -> 48.75776517 | AJ48: =RM!K59 -> 0 | AK48: =RM!Q59 -> 0 | AL48: =RM!W59 -> 0 | AM48: =RM!AC59 -> 0 | AN48: =RM!AI59 -> 0 | AO48: =SPM!E65 -> 18.32337792 | AP48: =IF(ISERROR(SPM!I65),#N/A,SPM!I65) -> 18.32337792 | AQ48: =SPM!M65 -> 46.58205901 | AR48: =SPM!Q65 -> 4.800910319 | AT48: =AI48/SPM!$C65 -> 0.1216206118 | AU48: =AJ48/SPM!$C65 -> 0 | AV48: =AK48/SPM!$C65 -> 0 | AW48: =AL48/SPM!$C65 -> 0 | AX48: =AM48/SPM!$C65 -> 0 | AY48: =AN48/SPM!$C65 -> 0 | AZ48: =SPM!F65 -> 0.04570554916 | BA48: =IF(ISERROR(SPM!J65),#N/A,SPM!J65) -> 0.04570554916 | BB48: =SPM!N65 -> 0.1161935642 | BC48: =SPM!R65 -> 0.0119753161 | BE48: 2064 | BF48: =IF(AI47>'goal seek'!$E$24,AI48/AI47-1,#N/A) ->  | BG48: =IF(AND(AJ47>'goal seek'!$E$23,AJ48>0),AJ48/AJ47-1,#N/A) ->  | BH48: =IF(AND(AK47>'goal seek'!$E$23,AK48>0),AK48/AK47-1,#N/A) ->  | BI48: =IF(AND(AL47>'goal seek'!$E$23,AL48>0),AL48/AL47-1,#N/A) ->  | BJ48: =IF(AND(AM47>'goal seek'!$E$23,AM48>0),AM48/AM47-1,#N/A) ->  | BL48: =IF(AO48>0,SPM!H65,#N/A) -> -0.1270101323 | BM48: =IF(ISERROR(SPM!L65/100),#N/A,SPM!L65) -> -0.1270101323 | BN48: =SPM!P65 -> -0.1051351634 | BO48: =SPM!T65 -> -0.1565909735
AH49: 2065 | AI49: =RM!E60 -> 37.96952237 | AJ49: =RM!K60 -> 0 | AK49: =RM!Q60 -> 0 | AL49: =RM!W60 -> 0 | AM49: =RM!AC60 -> 0 | AN49: =RM!AI60 -> 0 | AO49: =SPM!E66 -> 15.99046876 | AP49: =IF(ISERROR(SPM!I66),#N/A,SPM!I66) -> 15.99046876 | AQ49: =SPM!M66 -> 41.6712029 | AR49: =SPM!Q66 -> 4.047583036 | AT49: =AI49/SPM!$C66 -> 0.09508137597 | AU49: =AJ49/SPM!$C66 -> 0 | AV49: =AK49/SPM!$C66 -> 0 | AW49: =AL49/SPM!$C66 -> 0 | AX49: =AM49/SPM!$C66 -> 0 | AY49: =AN49/SPM!$C66 -> 0 | AZ49: =SPM!F66 -> 0.04004253087 | BA49: =IF(ISERROR(SPM!J66),#N/A,SPM!J66) -> 0.04004253087 | BB49: =SPM!N66 -> 0.1043509389 | BC49: =SPM!R66 -> 0.01013575469 | BE49: 2065 | BF49: =IF(AI48>'goal seek'!$E$24,AI49/AI48-1,#N/A) ->  | BG49: =IF(AND(AJ48>'goal seek'!$E$23,AJ49>0),AJ49/AJ48-1,#N/A) ->  | BH49: =IF(AND(AK48>'goal seek'!$E$23,AK49>0),AK49/AK48-1,#N/A) ->  | BI49: =IF(AND(AL48>'goal seek'!$E$23,AL49>0),AL49/AL48-1,#N/A) ->  | BJ49: =IF(AND(AM48>'goal seek'!$E$23,AM49>0),AM49/AM48-1,#N/A) ->  | BL49: =IF(AO49>0,SPM!H66,#N/A) -> -0.1273187279 | BM49: =IF(ISERROR(SPM!L66/100),#N/A,SPM!L66) -> -0.1273187279 | BN49: =SPM!P66 -> -0.1054237665 | BO49: =SPM!T66 -> -0.1569134254
AH50: 2066 | AI50: =RM!E61 -> 27.18127957 | AJ50: =RM!K61 -> 0 | AK50: =RM!Q61 -> 0 | AL50: =RM!W61 -> 0 | AM50: =RM!AC61 -> 0 | AN50: =RM!AI61 -> 0 | AO50: =SPM!E67 -> 13.94983016 | AP50: =IF(ISERROR(SPM!I67),#N/A,SPM!I67) -> 13.94983016 | AQ50: =SPM!M67 -> 37.26646563 | AR50: =SPM!Q67 -> 3.411207827 | AT50: =AI50/SPM!$C67 -> 0.06832910448 | AU50: =AJ50/SPM!$C67 -> 0 | AV50: =AK50/SPM!$C67 -> 0 | AW50: =AL50/SPM!$C67 -> 0 | AX50: =AM50/SPM!$C67 -> 0 | AY50: =AN50/SPM!$C67 -> 0 | AZ50: =SPM!F67 -> 0.03506749562 | BA50: =IF(ISERROR(SPM!J67),#N/A,SPM!J67) -> 0.03506749562 | BB50: =SPM!N67 -> 0.09368154349 | BC50: =SPM!R67 -> 0.008575195124 | BE50: 2066 | BF50: =IF(AI49>'goal seek'!$E$24,AI50/AI49-1,#N/A) ->  | BG50: =IF(AND(AJ49>'goal seek'!$E$23,AJ50>0),AJ50/AJ49-1,#N/A) ->  | BH50: =IF(AND(AK49>'goal seek'!$E$23,AK50>0),AK50/AK49-1,#N/A) ->  | BI50: =IF(AND(AL49>'goal seek'!$E$23,AL50>0),AL50/AL49-1,#N/A) ->  | BJ50: =IF(AND(AM49>'goal seek'!$E$23,AM50>0),AM50/AM49-1,#N/A) ->  | BL50: =IF(AO50>0,SPM!H67,#N/A) -> -0.1276159336 | BM50: =IF(ISERROR(SPM!L67/100),#N/A,SPM!L67) -> -0.1276159336 | BN50: =SPM!P67 -> -0.1057021867 | BO50: =SPM!T67 -> -0.1572235092
AH51: 2067 | AI51: =RM!E62 -> 16.39303676 | AJ51: =RM!K62 -> 0 | AK51: =RM!Q62 -> 0 | AL51: =RM!W62 -> 0 | AM51: =RM!AC62 -> 0 | AN51: =RM!AI62 -> 0 | AO51: =SPM!E68 -> 12.16561384 | AP51: =IF(ISERROR(SPM!I68),#N/A,SPM!I68) -> 12.16561384 | AQ51: =SPM!M68 -> 33.31730273 | AR51: =SPM!Q68 -> 2.873867809 | AT51: =AI51/SPM!$C68 -> 0.0413662733 | AU51: =AJ51/SPM!$C68 -> 0 | AV51: =AK51/SPM!$C68 -> 0 | AW51: =AL51/SPM!$C68 -> 0 | AX51: =AM51/SPM!$C68 -> 0 | AY51: =AN51/SPM!$C68 -> 0 | AZ51: =SPM!F68 -> 0.03069877254 | BA51: =IF(ISERROR(SPM!J68),#N/A,SPM!J68) -> 0.03069877254 | BB51: =SPM!N68 -> 0.08407305311 | BC51: =SPM!R68 -> 0.007251932813 | BE51: 2067 | BF51: =IF(AI50>'goal seek'!$E$24,AI51/AI50-1,#N/A) ->  | BG51: =IF(AND(AJ50>'goal seek'!$E$23,AJ51>0),AJ51/AJ50-1,#N/A) ->  | BH51: =IF(AND(AK50>'goal seek'!$E$23,AK51>0),AK51/AK50-1,#N/A) ->  | BI51: =IF(AND(AL50>'goal seek'!$E$23,AL51>0),AL51/AL50-1,#N/A) ->  | BJ51: =IF(AND(AM50>'goal seek'!$E$23,AM51>0),AM51/AM50-1,#N/A) ->  | BL51: =IF(AO51>0,SPM!H68,#N/A) -> -0.1279023686 | BM51: =IF(ISERROR(SPM!L68/100),#N/A,SPM!L68) -> -0.1279023686 | BN51: =SPM!P68 -> -0.1059709535 | BO51: =SPM!T68 -> -0.1575219233
AH52: 2068 | AI52: =RM!E63 -> 5.60479396 | AJ52: =RM!K63 -> 0 | AK52: =RM!Q63 -> 0 | AL52: =RM!W63 -> 0 | AM52: =RM!AC63 -> 0 | AN52: =RM!AI63 -> 0 | AO52: =SPM!E69 -> 10.60624239 | AP52: =IF(ISERROR(SPM!I69),#N/A,SPM!I69) -> 10.60624239 | AQ52: =SPM!M69 -> 29.77798699 | AR52: =SPM!Q69 -> 2.420344701 | AT52: =AI52/SPM!$C69 -> 0.01419614838 | AU52: =AJ52/SPM!$C69 -> 0 | AV52: =AK52/SPM!$C69 -> 0 | AW52: =AL52/SPM!$C69 -> 0 | AX52: =AM52/SPM!$C69 -> 0 | AY52: =AN52/SPM!$C69 -> 0 | AZ52: =SPM!F69 -> 0.02686410808 | BA52: =IF(ISERROR(SPM!J69),#N/A,SPM!J69) -> 0.02686410808 | BB52: =SPM!N69 -> 0.07542341871 | BC52: =SPM!R69 -> 0.006130389937 | BE52: 2068 | BF52: =IF(AI51>'goal seek'!$E$24,AI52/AI51-1,#N/A) ->  | BG52: =IF(AND(AJ51>'goal seek'!$E$23,AJ52>0),AJ52/AJ51-1,#N/A) ->  | BH52: =IF(AND(AK51>'goal seek'!$E$23,AK52>0),AK52/AK51-1,#N/A) ->  | BI52: =IF(AND(AL51>'goal seek'!$E$23,AL52>0),AL52/AL51-1,#N/A) ->  | BJ52: =IF(AND(AM51>'goal seek'!$E$23,AM52>0),AM52/AM51-1,#N/A) ->  | BL52: =IF(AO52>0,SPM!H69,#N/A) -> -0.1281786079 | BM52: =IF(ISERROR(SPM!L69/100),#N/A,SPM!L69) -> -0.1281786079 | BN52: =SPM!P69 -> -0.1062305605 | BO52: =SPM!T69 -> -0.1578093143
AH53: =AH52+1 -> 2069 | AI53: =RM!E64 -> 0 | AJ53: =RM!K64 -> 0 | AK53: =RM!Q64 -> 0 | AL53: =RM!W64 -> 0 | AM53: =RM!AC64 -> 0 | AN53: =RM!AI64 -> 0 | AO53: =SPM!E70 -> 9.243921612 | AP53: =IF(ISERROR(SPM!I70),#N/A,SPM!I70) -> 9.243921612 | AQ53: =SPM!M70 -> 26.60718322 | AR53: =SPM!Q70 -> 2.037721407 | AT53: =AI53/SPM!$C70 -> 0 | AU53: =AJ53/SPM!$C70 -> 0 | AV53: =AK53/SPM!$C70 -> 0 | AW53: =AL53/SPM!$C70 -> 0 | AX53: =AM53/SPM!$C70 -> 0 | AY53: =AN53/SPM!$C70 -> 0 | AZ53: =SPM!F70 -> 0.023499661 | BA53: =IF(ISERROR(SPM!J70),#N/A,SPM!J70) -> 0.023499661 | BB53: =SPM!N70 -> 0.06764010039 | BC53: =SPM!R70 -> 0.005180243221 | BE53: 2069 | BF53: =IF(AI52>'goal seek'!$E$24,AI53/AI52-1,#N/A) ->  | BG53: =IF(AND(AJ52>'goal seek'!$E$23,AJ53>0),AJ53/AJ52-1,#N/A) ->  | BH53: =IF(AND(AK52>'goal seek'!$E$23,AK53>0),AK53/AK52-1,#N/A) ->  | BI53: =IF(AND(AL52>'goal seek'!$E$23,AL53>0),AL53/AL52-1,#N/A) ->  | BJ53: =IF(AND(AM52>'goal seek'!$E$23,AM53>0),AM53/AM52-1,#N/A) ->  | BL53: =IF(AO53>0,SPM!H70,#N/A) -> -0.1284451863 | BM53: =IF(ISERROR(SPM!L70/100),#N/A,SPM!L70) -> -0.1284451863 | BN53: =SPM!P70 -> -0.106481468 | BO53: =SPM!T70 -> -0.1580862817
AG54: =AH54 -> 2070 | AH54: 2070 | AI54: =RM!E65 -> 0 | AJ54: =RM!K65 -> 0 | AK54: =RM!Q65 -> 0 | AL54: =RM!W65 -> 0 | AM54: =RM!AC65 -> 0 | AN54: =RM!AI65 -> 0 | AO54: =SPM!E71 -> 8.054204848 | AP54: =IF(ISERROR(SPM!I71),#N/A,SPM!I71) -> 8.054204848 | AQ54: =SPM!M71 -> 23.76755537 | AR54: =SPM!Q71 -> 1.715041329 | AT54: =AI54/SPM!$C71 -> 0 | AU54: =AJ54/SPM!$C71 -> 0 | AV54: =AK54/SPM!$C71 -> 0 | AW54: =AL54/SPM!$C71 -> 0 | AX54: =AM54/SPM!$C71 -> 0 | AY54: =AN54/SPM!$C71 -> 0 | AZ54: =SPM!F71 -> 0.02054901827 | BA54: =IF(ISERROR(SPM!J71),#N/A,SPM!J71) -> 0.02054901827 | BB54: =SPM!N71 -> 0.06063912438 | BC54: =SPM!R71 -> 0.004375654241 | BE54: 2070 | BF54: =IF(AI53>'goal seek'!$E$24,AI54/AI53-1,#N/A) ->  | BG54: =IF(AND(AJ53>'goal seek'!$E$23,AJ54>0),AJ54/AJ53-1,#N/A) ->  | BH54: =IF(AND(AK53>'goal seek'!$E$23,AK54>0),AK54/AK53-1,#N/A) ->  | BI54: =IF(AND(AL53>'goal seek'!$E$23,AL54>0),AL54/AL53-1,#N/A) ->  | BJ54: =IF(AND(AM53>'goal seek'!$E$23,AM54>0),AM54/AM53-1,#N/A) ->  | BL54: =IF(AO54>0,SPM!H71,#N/A) -> -0.128702602 | BM54: =IF(ISERROR(SPM!L71/100),#N/A,SPM!L71) -> -0.128702602 | BN54: =SPM!P71 -> -0.1067241062 | BO54: =SPM!T71 -> -0.1583533827
B55: selected country: | C55: =B2 -> EU27 | AH55: 2071 | AI55: =RM!E66 -> 0 | AJ55: =RM!K66 -> 0 | AK55: =RM!Q66 -> 0 | AL55: =RM!W66 -> 0 | AM55: =RM!AC66 -> 0 | AN55: =RM!AI66 -> 0 | AO55: =SPM!E72 -> 7.015604506 | AP55: =IF(ISERROR(SPM!I72),#N/A,SPM!I72) -> 7.015604506 | AQ55: =SPM!M72 -> 21.22540433 | AR55: =SPM!Q72 -> 1.443016677 | AT55: =AI55/SPM!$C72 -> 0 | AU55: =AJ55/SPM!$C72 -> 0 | AV55: =AK55/SPM!$C72 -> 0 | AW55: =AL55/SPM!$C72 -> 0 | AX55: =AM55/SPM!$C72 -> 0 | AY55: =AN55/SPM!$C72 -> 0 | AZ55: =SPM!F72 -> 0.01796233601 | BA55: =IF(ISERROR(SPM!J72),#N/A,SPM!J72) -> 0.01796233601 | BB55: =SPM!N72 -> 0.05434426133 | BC55: =SPM!R72 -> 0.003694613972 | BE55: 2071 | BF55: =IF(AI54>'goal seek'!$E$24,AI55/AI54-1,#N/A) ->  | BG55: =IF(AND(AJ54>'goal seek'!$E$23,AJ55>0),AJ55/AJ54-1,#N/A) ->  | BH55: =IF(AND(AK54>'goal seek'!$E$23,AK55>0),AK55/AK54-1,#N/A) ->  | BI55: =IF(AND(AL54>'goal seek'!$E$23,AL55>0),AL55/AL54-1,#N/A) ->  | BJ55: =IF(AND(AM54>'goal seek'!$E$23,AM55>0),AM55/AM54-1,#N/A) ->  | BL55: =IF(AO55>0,SPM!H72,#N/A) -> -0.1289513194 | BM55: =IF(ISERROR(SPM!L72/100),#N/A,SPM!L72) -> -0.1289513194 | BN55: =SPM!P72 -> -0.1069588773 | BO55: =SPM!T72 -> -0.1586111351
AH56: 2072 | AI56: =RM!E67 -> 0 | AJ56: =RM!K67 -> 0 | AK56: =RM!Q67 -> 0 | AL56: =RM!W67 -> 0 | AM56: =RM!AC67 -> 0 | AN56: =RM!AI67 -> 0 | AO56: =SPM!E73 -> 6.109246128 | AP56: =IF(ISERROR(SPM!I73),#N/A,SPM!I73) -> 6.109246128 | AQ56: =SPM!M73 -> 18.9503348 | AR56: =SPM!Q73 -> 1.213779017 | AT56: =AI56/SPM!$C73 -> 0 | AU56: =AJ56/SPM!$C73 -> 0 | AV56: =AK56/SPM!$C73 -> 0 | AW56: =AL56/SPM!$C73 -> 0 | AX56: =AM56/SPM!$C73 -> 0 | AY56: =AN56/SPM!$C73 -> 0 | AZ56: =SPM!F73 -> 0.01569563462 | BA56: =IF(ISERROR(SPM!J73),#N/A,SPM!J73) -> 0.01569563462 | BB56: =SPM!N73 -> 0.04868645407 | BC56: =SPM!R73 -> 0.003118393262 | BE56: 2072 | BF56: =IF(AI55>'goal seek'!$E$24,AI56/AI55-1,#N/A) ->  | BG56: =IF(AND(AJ55>'goal seek'!$E$23,AJ56>0),AJ56/AJ55-1,#N/A) ->  | BH56: =IF(AND(AK55>'goal seek'!$E$23,AK56>0),AK56/AK55-1,#N/A) ->  | BI56: =IF(AND(AL55>'goal seek'!$E$23,AL56>0),AL56/AL55-1,#N/A) ->  | BJ56: =IF(AND(AM55>'goal seek'!$E$23,AM56>0),AM56/AM55-1,#N/A) ->  | BL56: =IF(AO56>0,SPM!H73,#N/A) -> -0.1291917721 | BM56: =IF(ISERROR(SPM!L73/100),#N/A,SPM!L73) -> -0.1291917721 | BN56: =SPM!P73 -> -0.1071861577 | BO56: =SPM!T73 -> -0.1588600214
AH57: 2073 | AI57: =RM!E68 -> 0 | AJ57: =RM!K68 -> 0 | AK57: =RM!Q68 -> 0 | AL57: =RM!W68 -> 0 | AM57: =RM!AC68 -> 0 | AN57: =RM!AI68 -> 0 | AO57: =SPM!E74 -> 5.318560826 | AP57: =IF(ISERROR(SPM!I74),#N/A,SPM!I74) -> 5.318560826 | AQ57: =SPM!M74 -> 16.91494945 | AR57: =SPM!Q74 -> 1.020666179 | AT57: =AI57/SPM!$C74 -> 0 | AU57: =AJ57/SPM!$C74 -> 0 | AV57: =AK57/SPM!$C74 -> 0 | AW57: =AL57/SPM!$C74 -> 0 | AX57: =AM57/SPM!$C74 -> 0 | AY57: =AN57/SPM!$C74 -> 0 | AZ57: =SPM!F74 -> 0.01371014702 | BA57: =IF(ISERROR(SPM!J74),#N/A,SPM!J74) -> 0.01371014702 | BB57: =SPM!N74 -> 0.04360323241 | BC57: =SPM!R74 -> 0.002631065776 | BE57: 2073 | BF57: =IF(AI56>'goal seek'!$E$24,AI57/AI56-1,#N/A) ->  | BG57: =IF(AND(AJ56>'goal seek'!$E$23,AJ57>0),AJ57/AJ56-1,#N/A) ->  | BH57: =IF(AND(AK56>'goal seek'!$E$23,AK57>0),AK57/AK56-1,#N/A) ->  | BI57: =IF(AND(AL56>'goal seek'!$E$23,AL57>0),AL57/AL56-1,#N/A) ->  | BJ57: =IF(AND(AM56>'goal seek'!$E$23,AM57>0),AM57/AM56-1,#N/A) ->  | BL57: =IF(AO57>0,SPM!H74,#N/A) -> -0.1294243652 | BM57: =IF(ISERROR(SPM!L74/100),#N/A,SPM!L74) -> -0.1294243652 | BN57: =SPM!P74 -> -0.1074063003 | BO57: =SPM!T74 -> -0.1591004913
AH58: 2074 | AI58: =RM!E69 -> 0 | AJ58: =RM!K69 -> 0 | AK58: =RM!Q69 -> 0 | AL58: =RM!W69 -> 0 | AM58: =RM!AC69 -> 0 | AN58: =RM!AI69 -> 0 | AO58: =SPM!E75 -> 4.629012191 | AP58: =IF(ISERROR(SPM!I75),#N/A,SPM!I75) -> 4.629012191 | AQ58: =SPM!M75 -> 15.09456874 | AR58: =SPM!Q75 -> 0.8580404107 | AT58: =AI58/SPM!$C75 -> 0 | AU58: =AJ58/SPM!$C75 -> 0 | AV58: =AK58/SPM!$C75 -> 0 | AW58: =AL58/SPM!$C75 -> 0 | AX58: =AM58/SPM!$C75 -> 0 | AY58: =AN58/SPM!$C75 -> 0 | AZ58: =SPM!F75 -> 0.01197169755 | BA58: =IF(ISERROR(SPM!J75),#N/A,SPM!J75) -> 0.01197169755 | BB58: =SPM!N75 -> 0.0390380505 | BC58: =SPM!R75 -> 0.002219091214 | BE58: 2074 | BF58: =IF(AI57>'goal seek'!$E$24,AI58/AI57-1,#N/A) ->  | BG58: =IF(AND(AJ57>'goal seek'!$E$23,AJ58>0),AJ58/AJ57-1,#N/A) ->  | BH58: =IF(AND(AK57>'goal seek'!$E$23,AK58>0),AK58/AK57-1,#N/A) ->  | BI58: =IF(AND(AL57>'goal seek'!$E$23,AL58>0),AL58/AL57-1,#N/A) ->  | BJ58: =IF(AND(AM57>'goal seek'!$E$23,AM58>0),AM58/AM57-1,#N/A) ->  | BL58: =IF(AO58>0,SPM!H75,#N/A) -> -0.1296494779 | BM58: =IF(ISERROR(SPM!L75/100),#N/A,SPM!L75) -> -0.1296494779 | BN58: =SPM!P75 -> -0.1076196361 | BO58: =SPM!T75 -> -0.1593329646
AH59: 2075 | AI59: =RM!E70 -> 0 | AJ59: =RM!K70 -> 0 | AK59: =RM!Q70 -> 0 | AL59: =RM!W70 -> 0 | AM59: =RM!AC70 -> 0 | AN59: =RM!AI70 -> 0 | AO59: =SPM!E76 -> 4.027854111 | AP59: =IF(ISERROR(SPM!I76),#N/A,SPM!I76) -> 4.027854111 | AQ59: =SPM!M76 -> 13.46697459 | AR59: =SPM!Q76 -> 0.7211333415 | AT59: =AI59/SPM!$C76 -> 0 | AU59: =AJ59/SPM!$C76 -> 0 | AV59: =AK59/SPM!$C76 -> 0 | AW59: =AL59/SPM!$C76 -> 0 | AX59: =AM59/SPM!$C76 -> 0 | AY59: =AN59/SPM!$C76 -> 0 | AZ59: =SPM!F76 -> 0.01045015917 | BA59: =IF(ISERROR(SPM!J76),#N/A,SPM!J76) -> 0.01045015917 | BB59: =SPM!N76 -> 0.0349397034 | BC59: =SPM!R76 -> 0.001870961061 | BE59: 2075 | BF59: =IF(AI58>'goal seek'!$E$24,AI59/AI58-1,#N/A) ->  | BG59: =IF(AND(AJ58>'goal seek'!$E$23,AJ59>0),AJ59/AJ58-1,#N/A) ->  | BH59: =IF(AND(AK58>'goal seek'!$E$23,AK59>0),AK59/AK58-1,#N/A) ->  | BI59: =IF(AND(AL58>'goal seek'!$E$23,AL59>0),AL59/AL58-1,#N/A) ->  | BJ59: =IF(AND(AM58>'goal seek'!$E$23,AM59>0),AM59/AM58-1,#N/A) ->  | BL59: =IF(AO59>0,SPM!H76,#N/A) -> -0.1298674654 | BM59: =IF(ISERROR(SPM!L76/100),#N/A,SPM!L76) -> -0.1298674654 | BN59: =SPM!P76 -> -0.1078264761 | BO59: =SPM!T76 -> -0.1595578337
AH60: 2076 | AI60: =RM!E71 -> 0 | AJ60: =RM!K71 -> 0 | AK60: =RM!Q71 -> 0 | AL60: =RM!W71 -> 0 | AM60: =RM!AC71 -> 0 | AN60: =RM!AI71 -> 0 | AO60: =SPM!E77 -> 3.503916242 | AP60: =IF(ISERROR(SPM!I77),#N/A,SPM!I77) -> 3.503916242 | AQ60: =SPM!M77 -> 12.01217621 | AR60: =SPM!Q77 -> 0.6059139261 | AT60: =AI60/SPM!$C77 -> 0 | AU60: =AJ60/SPM!$C77 -> 0 | AV60: =AK60/SPM!$C77 -> 0 | AW60: =AL60/SPM!$C77 -> 0 | AX60: =AM60/SPM!$C77 -> 0 | AY60: =AN60/SPM!$C77 -> 0 | AZ60: =SPM!F77 -> 0.009118979764 | BA60: =IF(ISERROR(SPM!J77),#N/A,SPM!J77) -> 0.009118979764 | BB60: =SPM!N77 -> 0.03126181798 | BC60: =SPM!R77 -> 0.001576897519 | BE60: 2076 | BF60: =IF(AI59>'goal seek'!$E$24,AI60/AI59-1,#N/A) ->  | BG60: =IF(AND(AJ59>'goal seek'!$E$23,AJ60>0),AJ60/AJ59-1,#N/A) ->  | BH60: =IF(AND(AK59>'goal seek'!$E$23,AK60>0),AK60/AK59-1,#N/A) ->  | BI60: =IF(AND(AL59>'goal seek'!$E$23,AL60>0),AL60/AL59-1,#N/A) ->  | BJ60: =IF(AND(AM59>'goal seek'!$E$23,AM60>0),AM60/AM59-1,#N/A) ->  | BL60: =IF(AO60>0,SPM!H77,#N/A) -> -0.1300786607 | BM60: =IF(ISERROR(SPM!L77/100),#N/A,SPM!L77) -> -0.1300786607 | BN60: =SPM!P77 -> -0.1080271125 | BO60: =SPM!T77 -> -0.1597754656
AH61: 2077 | AI61: =RM!E72 -> 0 | AJ61: =RM!K72 -> 0 | AK61: =RM!Q72 -> 0 | AL61: =RM!W72 -> 0 | AM61: =RM!AC72 -> 0 | AN61: =RM!AI72 -> 0 | AO61: =SPM!E78 -> 3.047414204 | AP61: =IF(ISERROR(SPM!I78),#N/A,SPM!I78) -> 3.047414204 | AQ61: =SPM!M78 -> 10.71219663 | AR61: =SPM!Q78 -> 0.508976057 | AT61: =AI61/SPM!$C78 -> 0 | AU61: =AJ61/SPM!$C78 -> 0 | AV61: =AK61/SPM!$C78 -> 0 | AW61: =AL61/SPM!$C78 -> 0 | AX61: =AM61/SPM!$C78 -> 0 | AY61: =AN61/SPM!$C78 -> 0 | AZ61: =SPM!F78 -> 0.007954787624 | BA61: =IF(ISERROR(SPM!J78),#N/A,SPM!J78) -> 0.007954787624 | BB61: =SPM!N78 -> 0.02796247688 | BC61: =SPM!R78 -> 0.001328600633 | BE61: 2077 | BF61: =IF(AI60>'goal seek'!$E$24,AI61/AI60-1,#N/A) ->  | BG61: =IF(AND(AJ60>'goal seek'!$E$23,AJ61>0),AJ61/AJ60-1,#N/A) ->  | BH61: =IF(AND(AK60>'goal seek'!$E$23,AK61>0),AK61/AK60-1,#N/A) ->  | BI61: =IF(AND(AL60>'goal seek'!$E$23,AL61>0),AL61/AL60-1,#N/A) ->  | BJ61: =IF(AND(AM60>'goal seek'!$E$23,AM61>0),AM61/AM60-1,#N/A) ->  | BL61: =IF(AO61>0,SPM!H78,#N/A) -> -0.1302833764 | BM61: =IF(ISERROR(SPM!L78/100),#N/A,SPM!L78) -> -0.1302833764 | BN61: =SPM!P78 -> -0.1082218203 | BO61: =SPM!T78 -> -0.1599862042
AH62: 2078 | AI62: =RM!E73 -> 0 | AJ62: =RM!K73 -> 0 | AK62: =RM!Q73 -> 0 | AL62: =RM!W73 -> 0 | AM62: =RM!AC73 -> 0 | AN62: =RM!AI73 -> 0 | AO62: =SPM!E79 -> 2.64978179 | AP62: =IF(ISERROR(SPM!I79),#N/A,SPM!I79) -> 2.64978179 | AQ62: =SPM!M79 -> 9.550878203 | AR62: =SPM!Q79 -> 0.4274429931 | AT62: =AI62/SPM!$C79 -> 0 | AU62: =AJ62/SPM!$C79 -> 0 | AV62: =AK62/SPM!$C79 -> 0 | AW62: =AL62/SPM!$C79 -> 0 | AX62: =AM62/SPM!$C79 -> 0 | AY62: =AN62/SPM!$C79 -> 0 | AZ62: =SPM!F79 -> 0.006937026028 | BA62: =IF(ISERROR(SPM!J79),#N/A,SPM!J79) -> 0.006937026028 | BB62: =SPM!N79 -> 0.02500382897 | BC62: =SPM!R79 -> 0.001119029189 | BE62: 2078 | BF62: =IF(AI61>'goal seek'!$E$24,AI62/AI61-1,#N/A) ->  | BG62: =IF(AND(AJ61>'goal seek'!$E$23,AJ62>0),AJ62/AJ61-1,#N/A) ->  | BH62: =IF(AND(AK61>'goal seek'!$E$23,AK62>0),AK62/AK61-1,#N/A) ->  | BI62: =IF(AND(AL61>'goal seek'!$E$23,AL62>0),AL62/AL61-1,#N/A) ->  | BJ62: =IF(AND(AM61>'goal seek'!$E$23,AM62>0),AM62/AM61-1,#N/A) ->  | BL62: =IF(AO62>0,SPM!H79,#N/A) -> -0.1304819061 | BM62: =IF(ISERROR(SPM!L79/100),#N/A,SPM!L79) -> -0.1304819061 | BN62: =SPM!P79 -> -0.1084108583 | BO62: =SPM!T79 -> -0.160190372
AH63: 2079 | AI63: =RM!E74 -> 0 | AJ63: =RM!K74 -> 0 | AK63: =RM!Q74 -> 0 | AL63: =RM!W74 -> 0 | AM63: =RM!AC74 -> 0 | AN63: =RM!AI74 -> 0 | AO63: =SPM!E80 -> 2.30352281 | AP63: =IF(ISERROR(SPM!I80),#N/A,SPM!I80) -> 2.30352281 | AQ63: =SPM!M80 -> 8.513705639 | AR63: =SPM!Q80 -> 0.3588861503 | AT63: =AI63/SPM!$C80 -> 0 | AU63: =AJ63/SPM!$C80 -> 0 | AV63: =AK63/SPM!$C80 -> 0 | AW63: =AL63/SPM!$C80 -> 0 | AX63: =AM63/SPM!$C80 -> 0 | AY63: =AN63/SPM!$C80 -> 0 | AZ63: =SPM!F80 -> 0.006047616356 | BA63: =IF(ISERROR(SPM!J80),#N/A,SPM!J80) -> 0.006047616356 | BB63: =SPM!N80 -> 0.02235168901 | BC63: =SPM!R80 -> 0.0009422115307 | BE63: 2079 | BF63: =IF(AI62>'goal seek'!$E$24,AI63/AI62-1,#N/A) ->  | BG63: =IF(AND(AJ62>'goal seek'!$E$23,AJ63>0),AJ63/AJ62-1,#N/A) ->  | BH63: =IF(AND(AK62>'goal seek'!$E$23,AK63>0),AK63/AK62-1,#N/A) ->  | BI63: =IF(AND(AL62>'goal seek'!$E$23,AL63>0),AL63/AL62-1,#N/A) ->  | BJ63: =IF(AND(AM62>'goal seek'!$E$23,AM63>0),AM63/AM62-1,#N/A) ->  | BL63: =IF(AO63>0,SPM!H80,#N/A) -> -0.1306745262 | BM63: =IF(ISERROR(SPM!L80/100),#N/A,SPM!L80) -> -0.1306745262 | BN63: =SPM!P80 -> -0.1085944708 | BO63: =SPM!T80 -> -0.1603882714
AG64: =AH64 -> 2080 | AH64: 2080 | AI64: =RM!E75 -> 0 | AJ64: =RM!K75 -> 0 | AK64: =RM!Q75 -> 0 | AL64: =RM!W75 -> 0 | AM64: =RM!AC75 -> 0 | AN64: =RM!AI75 -> 0 | AO64: =SPM!E81 -> 2.002080368 | AP64: =IF(ISERROR(SPM!I81),#N/A,SPM!I81) -> 2.002080368 | AQ64: =SPM!M81 -> 7.58764529 | AR64: =SPM!Q81 -> 0.3012561452 | AT64: =AI64/SPM!$C81 -> 0 | AU64: =AJ64/SPM!$C81 -> 0 | AV64: =AK64/SPM!$C81 -> 0 | AW64: =AL64/SPM!$C81 -> 0 | AX64: =AM64/SPM!$C81 -> 0 | AY64: =AN64/SPM!$C81 -> 0 | AZ64: =SPM!F81 -> 0.005270659184 | BA64: =IF(ISERROR(SPM!J81),#N/A,SPM!J81) -> 0.005270659184 | BB64: =SPM!N81 -> 0.01997516832 | BC64: =SPM!R81 -> 0.0007930842809 | BE64: 2080 | BF64: =IF(AI63>'goal seek'!$E$24,AI64/AI63-1,#N/A) ->  | BG64: =IF(AND(AJ63>'goal seek'!$E$23,AJ64>0),AJ64/AJ63-1,#N/A) ->  | BH64: =IF(AND(AK63>'goal seek'!$E$23,AK64>0),AK64/AK63-1,#N/A) ->  | BI64: =IF(AND(AL63>'goal seek'!$E$23,AL64>0),AL64/AL63-1,#N/A) ->  | BJ64: =IF(AND(AM63>'goal seek'!$E$23,AM64>0),AM64/AM63-1,#N/A) ->  | BL64: =IF(AO64>0,SPM!H81,#N/A) -> -0.1308614965 | BM64: =IF(ISERROR(SPM!L81/100),#N/A,SPM!L81) -> -0.1308614965 | BN64: =SPM!P81 -> -0.1087728879 | BO64: =SPM!T81 -> -0.1605801869
AH65: 2081 | AI65: =RM!E76 -> 0 | AJ65: =RM!K76 -> 0 | AK65: =RM!Q76 -> 0 | AL65: =RM!W76 -> 0 | AM65: =RM!AC76 -> 0 | AN65: =RM!AI76 -> 0 | AO65: =SPM!E82 -> 1.739721626 | AP65: =IF(ISERROR(SPM!I82),#N/A,SPM!I82) -> 1.739721626 | AQ65: =SPM!M82 -> 6.760999204 | AR65: =SPM!Q82 -> 0.2528242836 | AT65: =AI65/SPM!$C82 -> 0 | AU65: =AJ65/SPM!$C82 -> 0 | AV65: =AK65/SPM!$C82 -> 0 | AW65: =AL65/SPM!$C82 -> 0 | AX65: =AM65/SPM!$C82 -> 0 | AY65: =AN65/SPM!$C82 -> 0 | AZ65: =SPM!F82 -> 0.004592177987 | BA65: =IF(ISERROR(SPM!J82),#N/A,SPM!J82) -> 0.004592177987 | BB65: =SPM!N82 -> 0.01784636763 | BC65: =SPM!R82 -> 0.0006673562554 | BE65: 2081 | BF65: =IF(AI64>'goal seek'!$E$24,AI65/AI64-1,#N/A) ->  | BG65: =IF(AND(AJ64>'goal seek'!$E$23,AJ65>0),AJ65/AJ64-1,#N/A) ->  | BH65: =IF(AND(AK64>'goal seek'!$E$23,AK65>0),AK65/AK64-1,#N/A) ->  | BI65: =IF(AND(AL64>'goal seek'!$E$23,AL65>0),AL65/AL64-1,#N/A) ->  | BJ65: =IF(AND(AM64>'goal seek'!$E$23,AM65>0),AM65/AM64-1,#N/A) ->  | BL65: =IF(AO65>0,SPM!H82,#N/A) -> -0.1310430621 | BM65: =IF(ISERROR(SPM!L82/100),#N/A,SPM!L82) -> -0.1310430621 | BN65: =SPM!P82 -> -0.1089463271 | BO65: =SPM!T82 -> -0.1607663857
AH66: 2082 | AI66: =RM!E77 -> 0 | AJ66: =RM!K77 -> 0 | AK66: =RM!Q77 -> 0 | AL66: =RM!W77 -> 0 | AM66: =RM!AC77 -> 0 | AN66: =RM!AI77 -> 0 | AO66: =SPM!E83 -> 1.511436304 | AP66: =IF(ISERROR(SPM!I83),#N/A,SPM!I83) -> 1.511436304 | AQ66: =SPM!M83 -> 6.023272817 | AR66: =SPM!Q83 -> 0.2121329434 | AT66: =AI66/SPM!$C83 -> 0 | AU66: =AJ66/SPM!$C83 -> 0 | AV66: =AK66/SPM!$C83 -> 0 | AW66: =AL66/SPM!$C83 -> 0 | AX66: =AM66/SPM!$C83 -> 0 | AY66: =AN66/SPM!$C83 -> 0 | AZ66: =SPM!F83 -> 0.003999896981 | BA66: =IF(ISERROR(SPM!J83),#N/A,SPM!J83) -> 0.003999896981 | BB66: =SPM!N83 -> 0.01594011649 | BC66: =SPM!R83 -> 0.0005613931049 | BE66: 2082 | BF66: =IF(AI65>'goal seek'!$E$24,AI66/AI65-1,#N/A) ->  | BG66: =IF(AND(AJ65>'goal seek'!$E$23,AJ66>0),AJ66/AJ65-1,#N/A) ->  | BH66: =IF(AND(AK65>'goal seek'!$E$23,AK66>0),AK66/AK65-1,#N/A) ->  | BI66: =IF(AND(AL65>'goal seek'!$E$23,AL66>0),AL66/AL65-1,#N/A) ->  | BJ66: =IF(AND(AM65>'goal seek'!$E$23,AM66>0),AM66/AM65-1,#N/A) ->  | BL66: =IF(AO66>0,SPM!H83,#N/A) -> -0.1312194539 | BM66: =IF(ISERROR(SPM!L83/100),#N/A,SPM!L83) -> -0.1312194539 | BN66: =SPM!P83 -> -0.1091149939 | BO66: =SPM!T83 -> -0.1609471196
AH67: 2083 | AI67: =RM!E78 -> 0 | AJ67: =RM!K78 -> 0 | AK67: =RM!Q78 -> 0 | AL67: =RM!W78 -> 0 | AM67: =RM!AC78 -> 0 | AN67: =RM!AI78 -> 0 | AO67: =SPM!E84 -> 1.312847343 | AP67: =IF(ISERROR(SPM!I84),#N/A,SPM!I84) -> 1.312847343 | AQ67: =SPM!M84 -> 5.36505509 | AR67: =SPM!Q84 -> 0.1779535265 | AT67: =AI67/SPM!$C84 -> 0 | AU67: =AJ67/SPM!$C84 -> 0 | AV67: =AK67/SPM!$C84 -> 0 | AW67: =AL67/SPM!$C84 -> 0 | AX67: =AM67/SPM!$C84 -> 0 | AY67: =AN67/SPM!$C84 -> 0 | AZ67: =SPM!F84 -> 0.003483042644 | BA67: =IF(ISERROR(SPM!J84),#N/A,SPM!J84) -> 0.003483042644 | BB67: =SPM!N84 -> 0.0142337308 | BC67: =SPM!R84 -> 0.0004721186549 | BE67: 2083 | BF67: =IF(AI66>'goal seek'!$E$24,AI67/AI66-1,#N/A) ->  | BG67: =IF(AND(AJ66>'goal seek'!$E$23,AJ67>0),AJ67/AJ66-1,#N/A) ->  | BH67: =IF(AND(AK66>'goal seek'!$E$23,AK67>0),AK67/AK66-1,#N/A) ->  | BI67: =IF(AND(AL66>'goal seek'!$E$23,AL67>0),AL67/AL66-1,#N/A) ->  | BJ67: =IF(AND(AM66>'goal seek'!$E$23,AM67>0),AM67/AM66-1,#N/A) ->  | BL67: =IF(AO67>0,SPM!H84,#N/A) -> -0.13139089 | BM67: =IF(ISERROR(SPM!L84/100),#N/A,SPM!L84) -> -0.13139089 | BN67: =SPM!P84 -> -0.1092790826 | BO67: =SPM!T84 -> -0.1611226257
AH68: 2084 | AI68: =RM!E79 -> 0 | AJ68: =RM!K79 -> 0 | AK68: =RM!Q79 -> 0 | AL68: =RM!W79 -> 0 | AM68: =RM!AC79 -> 0 | AN68: =RM!AI79 -> 0 | AO68: =SPM!E85 -> 1.140132328 | AP68: =IF(ISERROR(SPM!I85),#N/A,SPM!I85) -> 1.140132328 | AQ68: =SPM!M85 -> 4.777910022 | AR68: =SPM!Q85 -> 0.1492508457 | AT68: =AI68/SPM!$C85 -> 0 | AU68: =AJ68/SPM!$C85 -> 0 | AV68: =AK68/SPM!$C85 -> 0 | AW68: =AL68/SPM!$C85 -> 0 | AX68: =AM68/SPM!$C85 -> 0 | AY68: =AN68/SPM!$C85 -> 0 | AZ68: =SPM!F85 -> 0.003032160713 | BA68: =IF(ISERROR(SPM!J85),#N/A,SPM!J85) -> 0.003032160713 | BB68: =SPM!N85 -> 0.0127067628 | BC68: =SPM!R85 -> 0.0003969298471 | BE68: =AH68 -> 2084 | BF68: =IF(AI67>'goal seek'!$E$24,AI68/AI67-1,#N/A) ->  | BG68: =IF(AND(AJ67>'goal seek'!$E$23,AJ68>0),AJ68/AJ67-1,#N/A) ->  | BH68: =IF(AND(AK67>'goal seek'!$E$23,AK68>0),AK68/AK67-1,#N/A) ->  | BI68: =IF(AND(AL67>'goal seek'!$E$23,AL68>0),AL68/AL67-1,#N/A) ->  | BJ68: =IF(AND(AM67>'goal seek'!$E$23,AM68>0),AM68/AM67-1,#N/A) ->  | BL68: =IF(AO68>0,SPM!H85,#N/A) -> -0.1315575764 | BM68: =IF(ISERROR(SPM!L85/100),#N/A,SPM!L85) -> -0.1315575764 | BN68: =SPM!P85 -> -0.109438777 | BO68: =SPM!T85 -> -0.1612931275
AH69: =AH68+1 -> 2085 | AI69: =RM!E80 -> 0 | AJ69: =RM!K80 -> 0 | AK69: =RM!Q80 -> 0 | AL69: =RM!W80 -> 0 | AM69: =RM!AC80 -> 0 | AN69: =RM!AI80 -> 0 | AO69: =SPM!E86 -> 0.9899544311 | AP69: =IF(ISERROR(SPM!I86),#N/A,SPM!I86) -> 0.9899544311 | AQ69: =SPM!M86 -> 4.25427855 | AR69: =SPM!Q86 -> 0.1251529779 | AT69: =AI69/SPM!$C86 -> 0 | AU69: =AJ69/SPM!$C86 -> 0 | AV69: =AK69/SPM!$C86 -> 0 | AW69: =AL69/SPM!$C86 -> 0 | AX69: =AM69/SPM!$C86 -> 0 | AY69: =AN69/SPM!$C86 -> 0 | AZ69: =SPM!F86 -> 0.002638960484 | BA69: =IF(ISERROR(SPM!J86),#N/A,SPM!J86) -> 0.002638960484 | BB69: =SPM!N86 -> 0.01134079775 | BC69: =SPM!R86 -> 0.0003336252181 | BE69: 2085 | BF69: =IF(AI68>'goal seek'!$E$24,AI69/AI68-1,#N/A) ->  | BG69: =IF(AND(AJ68>'goal seek'!$E$23,AJ69>0),AJ69/AJ68-1,#N/A) ->  | BH69: =IF(AND(AK68>'goal seek'!$E$23,AK69>0),AK69/AK68-1,#N/A) ->  | BI69: =IF(AND(AL68>'goal seek'!$E$23,AL69>0),AL69/AL68-1,#N/A) ->  | BJ69: =IF(AND(AM68>'goal seek'!$E$23,AM69>0),AM69/AM68-1,#N/A) ->  | BK69: =IF(AN69>0,AN69/AN68-1,#N/A) ->  | BL69: =IF(AO69>0,SPM!H86,#N/A) -> -0.1317197078 | BM69: =IF(ISERROR(SPM!L86/100),#N/A,SPM!L86) -> -0.1317197078 | BN69: =SPM!P86 -> -0.1095942514 | BO69: =SPM!T86 -> -0.1614588362
AH70: 2086 | AI70: =RM!E81 -> 0 | AJ70: =RM!K81 -> 0 | AK70: =RM!Q81 -> 0 | AL70: =RM!W81 -> 0 | AM70: =RM!AC81 -> 0 | AN70: =RM!AI81 -> 0 | AO70: =SPM!E87 -> 0.8594017471 | AP70: =IF(ISERROR(SPM!I87),#N/A,SPM!I87) -> 0.8594017471 | AQ70: =SPM!M87 -> 3.787389897 | AR70: =SPM!Q87 -> 0.1049257597 | AT70: =AI70/SPM!$C87 -> 0 | AU70: =AJ70/SPM!$C87 -> 0 | AV70: =AK70/SPM!$C87 -> 0 | AW70: =AL70/SPM!$C87 -> 0 | AX70: =AM70/SPM!$C87 -> 0 | AY70: =AN70/SPM!$C87 -> 0 | AZ70: =SPM!F87 -> 0.002296170593 | BA70: =IF(ISERROR(SPM!J87),#N/A,SPM!J87) -> 0.002296170593 | BB70: =SPM!N87 -> 0.0101192409 | BC70: =SPM!R87 -> 0.0002803432094 | BE70: 2086 | BF70: =IF(AI69>'goal seek'!$E$24,AI70/AI69-1,#N/A) ->  | BG70: =IF(AND(AJ69>'goal seek'!$E$23,AJ70>0),AJ70/AJ69-1,#N/A) ->  | BH70: =IF(AND(AK69>'goal seek'!$E$23,AK70>0),AK70/AK69-1,#N/A) ->  | BI70: =IF(AND(AL69>'goal seek'!$E$23,AL70>0),AL70/AL69-1,#N/A) ->  | BJ70: =IF(AND(AM69>'goal seek'!$E$23,AM70>0),AM70/AM69-1,#N/A) ->  | BL70: =IF(AO70>0,SPM!H87,#N/A) -> -0.1318774683 | BM70: =IF(ISERROR(SPM!L87/100),#N/A,SPM!L87) -> -0.1318774683 | BN70: =SPM!P87 -> -0.1097456708 | BO70: =SPM!T87 -> -0.1616199509
AH71: 2087 | AI71: =RM!E82 -> 0 | AJ71: =RM!K82 -> 0 | AK71: =RM!Q82 -> 0 | AL71: =RM!W82 -> 0 | AM71: =RM!AC82 -> 0 | AN71: =RM!AI82 -> 0 | AO71: =SPM!E88 -> 0.7459340472 | AP71: =IF(ISERROR(SPM!I88),#N/A,SPM!I88) -> 0.7459340472 | AQ71: =SPM!M88 -> 3.371181532 | AR71: =SPM!Q88 -> 0.08795122074 | AT71: =AI71/SPM!$C88 -> 0 | AU71: =AJ71/SPM!$C88 -> 0 | AV71: =AK71/SPM!$C88 -> 0 | AW71: =AL71/SPM!$C88 -> 0 | AX71: =AM71/SPM!$C88 -> 0 | AY71: =AN71/SPM!$C88 -> 0 | AZ71: =SPM!F88 -> 0.001997421356 | BA71: =IF(ISERROR(SPM!J88),#N/A,SPM!J88) -> 0.001997421356 | BB71: =SPM!N88 -> 0.009027165353 | BC71: =SPM!R88 -> 0.0002355109641 | BE71: 2087 | BF71: =IF(AI70>'goal seek'!$E$24,AI71/AI70-1,#N/A) ->  | BG71: =IF(AND(AJ70>'goal seek'!$E$23,AJ71>0),AJ71/AJ70-1,#N/A) ->  | BH71: =IF(AND(AK70>'goal seek'!$E$23,AK71>0),AK71/AK70-1,#N/A) ->  | BI71: =IF(AND(AL70>'goal seek'!$E$23,AL71>0),AL71/AL70-1,#N/A) ->  | BJ71: =IF(AND(AM70>'goal seek'!$E$23,AM71>0),AM71/AM70-1,#N/A) ->  | BL71: =IF(AO71>0,SPM!H88,#N/A) -> -0.1320310323 | BM71: =IF(ISERROR(SPM!L88/100),#N/A,SPM!L88) -> -0.1320310323 | BN71: =SPM!P88 -> -0.1098931919 | BO71: =SPM!T88 -> -0.1617766602
AH72: 2088 | AI72: =RM!E83 -> 0 | AJ72: =RM!K83 -> 0 | AK72: =RM!Q83 -> 0 | AL72: =RM!W83 -> 0 | AM72: =RM!AC83 -> 0 | AN72: =RM!AI83 -> 0 | AO72: =SPM!E89 -> 0.6473360633 | AP72: =IF(ISERROR(SPM!I89),#N/A,SPM!I89) -> 0.6473360633 | AQ72: =SPM!M89 -> 3.000226954 | AR72: =SPM!Q89 -> 0.07370935501 | AT72: =AI72/SPM!$C89 -> 0 | AU72: =AJ72/SPM!$C89 -> 0 | AV72: =AK72/SPM!$C89 -> 0 | AW72: =AL72/SPM!$C89 -> 0 | AX72: =AM72/SPM!$C89 -> 0 | AY72: =AN72/SPM!$C89 -> 0 | AZ72: =SPM!F89 -> 0.001737135554 | BA72: =IF(ISERROR(SPM!J89),#N/A,SPM!J89) -> 0.001737135554 | BB72: =SPM!N89 -> 0.008051151801 | BC72: =SPM!R89 -> 0.000197800105 | BE72: 2088 | BF72: =IF(AI71>'goal seek'!$E$24,AI72/AI71-1,#N/A) ->  | BG72: =IF(AND(AJ71>'goal seek'!$E$23,AJ72>0),AJ72/AJ71-1,#N/A) ->  | BH72: =IF(AND(AK71>'goal seek'!$E$23,AK72>0),AK72/AK71-1,#N/A) ->  | BI72: =IF(AND(AL71>'goal seek'!$E$23,AL72>0),AL72/AL71-1,#N/A) ->  | BJ72: =IF(AND(AM71>'goal seek'!$E$23,AM72>0),AM72/AM71-1,#N/A) ->  | BL72: =IF(AO72>0,SPM!H89,#N/A) -> -0.1321805652 | BM72: =IF(ISERROR(SPM!L89/100),#N/A,SPM!L89) -> -0.1321805652 | BN72: =SPM!P89 -> -0.1100369633 | BO72: =SPM!T89 -> -0.1619291422
AH73: 2089 | AI73: =RM!E84 -> 0 | AJ73: =RM!K84 -> 0 | AK73: =RM!Q84 -> 0 | AL73: =RM!W84 -> 0 | AM73: =RM!AC84 -> 0 | AN73: =RM!AI84 -> 0 | AO73: =SPM!E90 -> 0.5616765267 | AP73: =IF(ISERROR(SPM!I90),#N/A,SPM!I90) -> 0.5616765267 | AQ73: =SPM!M90 -> 2.66967057 | AR73: =SPM!Q90 -> 0.06176272217 | AT73: =AI73/SPM!$C90 -> 0 | AU73: =AJ73/SPM!$C90 -> 0 | AV73: =AK73/SPM!$C90 -> 0 | AW73: =AL73/SPM!$C90 -> 0 | AX73: =AM73/SPM!$C90 -> 0 | AY73: =AN73/SPM!$C90 -> 0 | AZ73: =SPM!F90 -> 0.0015104307 | BA73: =IF(ISERROR(SPM!J90),#N/A,SPM!J90) -> 0.0015104307 | BB73: =SPM!N90 -> 0.007179136382 | BC73: =SPM!R90 -> 0.0001660890339 | BE73: 2089 | BF73: =IF(AI72>'goal seek'!$E$24,AI73/AI72-1,#N/A) ->  | BG73: =IF(AND(AJ72>'goal seek'!$E$23,AJ73>0),AJ73/AJ72-1,#N/A) ->  | BH73: =IF(AND(AK72>'goal seek'!$E$23,AK73>0),AK73/AK72-1,#N/A) ->  | BI73: =IF(AND(AL72>'goal seek'!$E$23,AL73>0),AL73/AL72-1,#N/A) ->  | BJ73: =IF(AND(AM72>'goal seek'!$E$23,AM73>0),AM73/AM72-1,#N/A) ->  | BL73: =IF(AO73>0,SPM!H90,#N/A) -> -0.1323262235 | BM73: =IF(ISERROR(SPM!L90/100),#N/A,SPM!L90) -> -0.1323262235 | BN73: =SPM!P90 -> -0.1101771261 | BO73: =SPM!T90 -> -0.1620775659
AG74: =AH74 -> 2090 | AH74: 2090 | AI74: =RM!E85 -> 0 | AJ74: =RM!K85 -> 0 | AK74: =RM!Q85 -> 0 | AL74: =RM!W85 -> 0 | AM74: =RM!AC85 -> 0 | AN74: =RM!AI85 -> 0 | AO74: =SPM!E91 -> 0.487272273 | AP74: =IF(ISERROR(SPM!I91),#N/A,SPM!I91) -> 0.487272273 | AQ74: =SPM!M91 -> 2.375169026 | AR74: =SPM!Q91 -> 0.05174344424 | AT74: =AI74/SPM!$C91 -> 0 | AU74: =AJ74/SPM!$C91 -> 0 | AV74: =AK74/SPM!$C91 -> 0 | AW74: =AL74/SPM!$C91 -> 0 | AX74: =AM74/SPM!$C91 -> 0 | AY74: =AN74/SPM!$C91 -> 0 | AZ74: =SPM!F91 -> 0.00131303142 | BA74: =IF(ISERROR(SPM!J91),#N/A,SPM!J91) -> 0.00131303142 | BB74: =SPM!N91 -> 0.006400264764 | BC74: =SPM!R91 -> 0.0001394308107 | BE74: 2090 | BF74: =IF(AI73>'goal seek'!$E$24,AI74/AI73-1,#N/A) ->  | BG74: =IF(AND(AJ73>'goal seek'!$E$23,AJ74>0),AJ74/AJ73-1,#N/A) ->  | BH74: =IF(AND(AK73>'goal seek'!$E$23,AK74>0),AK74/AK73-1,#N/A) ->  | BI74: =IF(AND(AL73>'goal seek'!$E$23,AL74>0),AL74/AL73-1,#N/A) ->  | BJ74: =IF(AND(AM73>'goal seek'!$E$23,AM74>0),AM74/AM73-1,#N/A) ->  | BL74: =IF(AO74>0,SPM!H91,#N/A) -> -0.1324681559 | BM74: =IF(ISERROR(SPM!L91/100),#N/A,SPM!L91) -> -0.1324681559 | BN74: =SPM!P91 -> -0.1103138145 | BO74: =SPM!T91 -> -0.1622220909
AH75: 2091 | AI75: =RM!E86 -> 0 | AJ75: =RM!K86 -> 0 | AK75: =RM!Q86 -> 0 | AL75: =RM!W86 -> 0 | AM75: =RM!AC86 -> 0 | AN75: =RM!AI86 -> 0 | AO75: =SPM!E92 -> 0.4226568006 | AP75: =IF(ISERROR(SPM!I92),#N/A,SPM!I92) -> 0.4226568006 | AQ75: =SPM!M92 -> 2.112838362 | AR75: =SPM!Q92 -> 0.04334223018 | AT75: =AI75/SPM!$C92 -> 0 | AU75: =AJ75/SPM!$C92 -> 0 | AV75: =AK75/SPM!$C92 -> 0 | AW75: =AL75/SPM!$C92 -> 0 | AX75: =AM75/SPM!$C92 -> 0 | AY75: =AN75/SPM!$C92 -> 0 | AZ75: =SPM!F92 -> 0.001141196774 | BA75: =IF(ISERROR(SPM!J92),#N/A,SPM!J92) -> 0.001141196774 | BB75: =SPM!N92 -> 0.005704780614 | BC75: =SPM!R92 -> 0.0001170264223 | BE75: 2091 | BF75: =IF(AI74>'goal seek'!$E$24,AI75/AI74-1,#N/A) ->  | BG75: =IF(AND(AJ74>'goal seek'!$E$23,AJ75>0),AJ75/AJ74-1,#N/A) ->  | BH75: =IF(AND(AK74>'goal seek'!$E$23,AK75>0),AK75/AK74-1,#N/A) ->  | BI75: =IF(AND(AL74>'goal seek'!$E$23,AL75>0),AL75/AL74-1,#N/A) ->  | BJ75: =IF(AND(AM74>'goal seek'!$E$23,AM75>0),AM75/AM74-1,#N/A) ->  | BL75: =IF(AO75>0,SPM!H92,#N/A) -> -0.1326065036 | BM75: =IF(ISERROR(SPM!L92/100),#N/A,SPM!L92) -> -0.1326065036 | BN75: =SPM!P92 -> -0.1104471562 | BO75: =SPM!T92 -> -0.1623628691
AH76: 2092 | AI76: =RM!E87 -> 0 | AJ76: =RM!K87 -> 0 | AK76: =RM!Q87 -> 0 | AL76: =RM!W87 -> 0 | AM76: =RM!AC87 -> 0 | AN76: =RM!AI87 -> 0 | AO76: =SPM!E93 -> 0.3665527449 | AP76: =IF(ISERROR(SPM!I93),#N/A,SPM!I93) -> 0.3665527449 | AQ76: =SPM!M93 -> 1.879206459 | AR76: =SPM!Q93 -> 0.03629911586 | AT76: =AI76/SPM!$C93 -> 0 | AU76: =AJ76/SPM!$C93 -> 0 | AV76: =AK76/SPM!$C93 -> 0 | AW76: =AL76/SPM!$C93 -> 0 | AX76: =AM76/SPM!$C93 -> 0 | AY76: =AN76/SPM!$C93 -> 0 | AZ76: =SPM!F93 -> 0.0009916553319 | BA76: =IF(ISERROR(SPM!J93),#N/A,SPM!J93) -> 0.0009916553319 | BB76: =SPM!N93 -> 0.005083920747 | BC76: =SPM!R93 -> 9.820199764e-05 | BE76: 2092 | BF76: =IF(AI75>'goal seek'!$E$24,AI76/AI75-1,#N/A) ->  | BG76: =IF(AND(AJ75>'goal seek'!$E$23,AJ76>0),AJ76/AJ75-1,#N/A) ->  | BH76: =IF(AND(AK75>'goal seek'!$E$23,AK76>0),AK76/AK75-1,#N/A) ->  | BI76: =IF(AND(AL75>'goal seek'!$E$23,AL76>0),AL76/AL75-1,#N/A) ->  | BJ76: =IF(AND(AM75>'goal seek'!$E$23,AM76>0),AM76/AM75-1,#N/A) ->  | BL76: =IF(AO76>0,SPM!H93,#N/A) -> -0.1327414007 | BM76: =IF(ISERROR(SPM!L93/100),#N/A,SPM!L93) -> -0.1327414007 | BN76: =SPM!P93 -> -0.1105772725 | BO76: =SPM!T93 -> -0.1625000441
AH77: 2093 | AI77: =RM!E88 -> 0 | AJ77: =RM!K88 -> 0 | AK77: =RM!Q88 -> 0 | AL77: =RM!W88 -> 0 | AM77: =RM!AC88 -> 0 | AN77: =RM!AI88 -> 0 | AO77: =SPM!E94 -> 0.3178477913 | AP77: =IF(ISERROR(SPM!I94),#N/A,SPM!I94) -> 0.3178477913 | AQ77: =SPM!M94 -> 1.671170262 | AR77: =SPM!Q94 -> 0.03039565443 | AT77: =AI77/SPM!$C94 -> 0 | AU77: =AJ77/SPM!$C94 -> 0 | AV77: =AK77/SPM!$C94 -> 0 | AW77: =AL77/SPM!$C94 -> 0 | AX77: =AM77/SPM!$C94 -> 0 | AY77: =AN77/SPM!$C94 -> 0 | AZ77: =SPM!F94 -> 0.0008615472585 | BA77: =IF(ISERROR(SPM!J94),#N/A,SPM!J94) -> 0.0008615472585 | BB77: =SPM!N94 -> 0.004529816464 | BC77: =SPM!R94 -> 8.238941237e-05 | BE77: 2093 | BF77: =IF(AI76>'goal seek'!$E$24,AI77/AI76-1,#N/A) ->  | BG77: =IF(AND(AJ76>'goal seek'!$E$23,AJ77>0),AJ77/AJ76-1,#N/A) ->  | BH77: =IF(AND(AK76>'goal seek'!$E$23,AK77>0),AK77/AK76-1,#N/A) ->  | BI77: =IF(AND(AL76>'goal seek'!$E$23,AL77>0),AL77/AL76-1,#N/A) ->  | BJ77: =IF(AND(AM76>'goal seek'!$E$23,AM77>0),AM77/AM76-1,#N/A) ->  | BL77: =IF(AO77>0,SPM!H94,#N/A) -> -0.1328729747 | BM77: =IF(ISERROR(SPM!L94/100),#N/A,SPM!L94) -> -0.1328729747 | BN77: =SPM!P94 -> -0.1107042791 | BO77: =SPM!T94 -> -0.1626337526
AH78: 2094 | AI78: =RM!E89 -> 0 | AJ78: =RM!K89 -> 0 | AK78: =RM!Q89 -> 0 | AL78: =RM!W89 -> 0 | AM78: =RM!AC89 -> 0 | AN78: =RM!AI89 -> 0 | AO78: =SPM!E95 -> 0.2755736069 | AP78: =IF(ISERROR(SPM!I95),#N/A,SPM!I95) -> 0.2755736069 | AQ78: =SPM!M95 -> 1.485957327 | AR78: =SPM!Q95 -> 0.02544833235 | AT78: =AI78/SPM!$C95 -> 0 | AU78: =AJ78/SPM!$C95 -> 0 | AV78: =AK78/SPM!$C95 -> 0 | AW78: =AL78/SPM!$C95 -> 0 | AX78: =AM78/SPM!$C95 -> 0 | AY78: =AN78/SPM!$C95 -> 0 | AZ78: =SPM!F95 -> 0.0007483744026 | BA78: =IF(ISERROR(SPM!J95),#N/A,SPM!J95) -> 0.0007483744026 | BB78: =SPM!N95 -> 0.004035409773 | BC78: =SPM!R95 -> 6.910995844e-05 | BE78: 2094 | BF78: =IF(AI77>'goal seek'!$E$24,AI78/AI77-1,#N/A) ->  | BG78: =IF(AND(AJ77>'goal seek'!$E$23,AJ78>0),AJ78/AJ77-1,#N/A) ->  | BH78: =IF(AND(AK77>'goal seek'!$E$23,AK78>0),AK78/AK77-1,#N/A) ->  | BI78: =IF(AND(AL77>'goal seek'!$E$23,AL78>0),AL78/AL77-1,#N/A) ->  | BJ78: =IF(AND(AM77>'goal seek'!$E$23,AM78>0),AM78/AM77-1,#N/A) ->  | BL78: =IF(AO78>0,SPM!H95,#N/A) -> -0.1330013469 | BM78: =IF(ISERROR(SPM!L95/100),#N/A,SPM!L95) -> -0.1330013469 | BN78: =SPM!P95 -> -0.1108282861 | BO78: =SPM!T95 -> -0.1627641244
AH79: 2095 | AI79: =RM!E90 -> 0 | AJ79: =RM!K90 -> 0 | AK79: =RM!Q90 -> 0 | AL79: =RM!W90 -> 0 | AM79: =RM!AC90 -> 0 | AN79: =RM!AI90 -> 0 | AO79: =SPM!E96 -> 0.2388874206 | AP79: =IF(ISERROR(SPM!I96),#N/A,SPM!I96) -> 0.2388874206 | AQ79: =SPM!M96 -> 1.321091255 | AR79: =SPM!Q96 -> 0.02130302085 | AT79: =AI79/SPM!$C96 -> 0 | AU79: =AJ79/SPM!$C96 -> 0 | AV79: =AK79/SPM!$C96 -> 0 | AW79: =AL79/SPM!$C96 -> 0 | AX79: =AM79/SPM!$C96 -> 0 | AY79: =AN79/SPM!$C96 -> 0 | AZ79: =SPM!F96 -> 0.0006499556683 | BA79: =IF(ISERROR(SPM!J96),#N/A,SPM!J96) -> 0.0006499556683 | BB79: =SPM!N96 -> 0.003594374067 | BC79: =SPM!R96 -> 5.796043643e-05 | BE79: 2095 | BF79: =IF(AI78>'goal seek'!$E$24,AI79/AI78-1,#N/A) ->  | BG79: =IF(AND(AJ78>'goal seek'!$E$23,AJ79>0),AJ79/AJ78-1,#N/A) ->  | BH79: =IF(AND(AK78>'goal seek'!$E$23,AK79>0),AK79/AK78-1,#N/A) ->  | BI79: =IF(AND(AL78>'goal seek'!$E$23,AL79>0),AL79/AL78-1,#N/A) ->  | BJ79: =IF(AND(AM78>'goal seek'!$E$23,AM79>0),AM79/AM78-1,#N/A) ->  | BL79: =IF(AO79>0,SPM!H96,#N/A) -> -0.1331266328 | BM79: =IF(ISERROR(SPM!L96/100),#N/A,SPM!L96) -> -0.1331266328 | BN79: =SPM!P96 -> -0.1109493986 | BO79: =SPM!T96 -> -0.1628912828
AH80: 2096 | AI80: =RM!E91 -> 0 | AJ80: =RM!K91 -> 0 | AK80: =RM!Q91 -> 0 | AL80: =RM!W91 -> 0 | AM80: =RM!AC91 -> 0 | AN80: =RM!AI91 -> 0 | AO80: =SPM!E97 -> 0.2070559244 | AP80: =IF(ISERROR(SPM!I97),#N/A,SPM!I97) -> 0.2070559244 | AQ80: =SPM!M97 -> 1.174360665 | AR80: =SPM!Q97 -> 0.01783030155 | AT80: =AI80/SPM!$C97 -> 0 | AU80: =AJ80/SPM!$C97 -> 0 | AV80: =AK80/SPM!$C97 -> 0 | AW80: =AL80/SPM!$C97 -> 0 | AX80: =AM80/SPM!$C97 -> 0 | AY80: =AN80/SPM!$C97 -> 0 | AZ80: =SPM!F97 -> 0.0005643872262 | BA80: =IF(ISERROR(SPM!J97),#N/A,SPM!J97) -> 0.0005643872262 | BB80: =SPM!N97 -> 0.003201039334 | BC80: =SPM!R97 -> 4.860133542e-05 | BE80: 2096 | BF80: =IF(AI79>'goal seek'!$E$24,AI80/AI79-1,#N/A) ->  | BG80: =IF(AND(AJ79>'goal seek'!$E$23,AJ80>0),AJ80/AJ79-1,#N/A) ->  | BH80: =IF(AND(AK79>'goal seek'!$E$23,AK80>0),AK80/AK79-1,#N/A) ->  | BI80: =IF(AND(AL79>'goal seek'!$E$23,AL80>0),AL80/AL79-1,#N/A) ->  | BJ80: =IF(AND(AM79>'goal seek'!$E$23,AM80>0),AM80/AM79-1,#N/A) ->  | BL80: =IF(AO80>0,SPM!H97,#N/A) -> -0.1332489423 | BM80: =IF(ISERROR(SPM!L97/100),#N/A,SPM!L97) -> -0.1332489423 | BN80: =SPM!P97 -> -0.1110677168 | BO80: =SPM!T97 -> -0.1630153452
AH81: 2097 | AI81: =RM!E92 -> 0 | AJ81: =RM!K92 -> 0 | AK81: =RM!Q92 -> 0 | AL81: =RM!W92 -> 0 | AM81: =RM!AC92 -> 0 | AN81: =RM!AI92 -> 0 | AO81: =SPM!E98 -> 0.1794412112 | AP81: =IF(ISERROR(SPM!I98),#N/A,SPM!I98) -> 0.1794412112 | AQ81: =SPM!M98 -> 1.043791329 | AR81: =SPM!Q98 -> 0.01492152993 | AT81: =AI81/SPM!$C98 -> 0 | AU81: =AJ81/SPM!$C98 -> 0 | AV81: =AK81/SPM!$C98 -> 0 | AW81: =AL81/SPM!$C98 -> 0 | AX81: =AM81/SPM!$C98 -> 0 | AY81: =AN81/SPM!$C98 -> 0 | AZ81: =SPM!F98 -> 0.0004900078242 | BA81: =IF(ISERROR(SPM!J98),#N/A,SPM!J98) -> 0.0004900078242 | BB81: =SPM!N98 -> 0.002850325823 | BC81: =SPM!R98 -> 4.074686281e-05 | BE81: 2097 | BF81: =IF(AI80>'goal seek'!$E$24,AI81/AI80-1,#N/A) ->  | BG81: =IF(AND(AJ80>'goal seek'!$E$23,AJ81>0),AJ81/AJ80-1,#N/A) ->  | BH81: =IF(AND(AK80>'goal seek'!$E$23,AK81>0),AK81/AK80-1,#N/A) ->  | BI81: =IF(AND(AL80>'goal seek'!$E$23,AL81>0),AL81/AL80-1,#N/A) ->  | BJ81: =IF(AND(AM80>'goal seek'!$E$23,AM81>0),AM81/AM80-1,#N/A) ->  | BL81: =IF(AO81>0,SPM!H98,#N/A) -> -0.1333683803 | BM81: =IF(ISERROR(SPM!L98/100),#N/A,SPM!L98) -> -0.1333683803 | BN81: =SPM!P98 -> -0.1111833362 | BO81: =SPM!T98 -> -0.1631364233
AH82: 2098 | AI82: =RM!E93 -> 0 | AJ82: =RM!K93 -> 0 | AK82: =RM!Q93 -> 0 | AL82: =RM!W93 -> 0 | AM82: =RM!AC93 -> 0 | AN82: =RM!AI93 -> 0 | AO82: =SPM!E99 -> 0.1554884927 | AP82: =IF(ISERROR(SPM!I99),#N/A,SPM!I99) -> 0.1554884927 | AQ82: =SPM!M99 -> 0.9276211656 | AR82: =SPM!Q99 -> 0.01248552118 | AT82: =AI82/SPM!$C99 -> 0 | AU82: =AJ82/SPM!$C99 -> 0 | AV82: =AK82/SPM!$C99 -> 0 | AW82: =AL82/SPM!$C99 -> 0 | AX82: =AM82/SPM!$C99 -> 0 | AY82: =AN82/SPM!$C99 -> 0 | AZ82: =SPM!F99 -> 0.000425368516 | BA82: =IF(ISERROR(SPM!J99),#N/A,SPM!J99) -> 0.000425368516 | BB82: =SPM!N99 -> 0.002537685148 | BC82: =SPM!R99 -> 3.41565316e-05 | BE82: 2098 | BF82: =IF(AI81>'goal seek'!$E$24,AI82/AI81-1,#N/A) ->  | BG82: =IF(AND(AJ81>'goal seek'!$E$23,AJ82>0),AJ82/AJ81-1,#N/A) ->  | BH82: =IF(AND(AK81>'goal seek'!$E$23,AK82>0),AK82/AK81-1,#N/A) ->  | BI82: =IF(AND(AL81>'goal seek'!$E$23,AL82>0),AL82/AL81-1,#N/A) ->  | BJ82: =IF(AND(AM81>'goal seek'!$E$23,AM82>0),AM82/AM81-1,#N/A) ->  | BL82: =IF(AO82>0,SPM!H99,#N/A) -> -0.1334850467 | BM82: =IF(ISERROR(SPM!L99/100),#N/A,SPM!L99) -> -0.1334850467 | BN82: =SPM!P99 -> -0.1112963482 | BO82: =SPM!T99 -> -0.1632546235
AH83: =AH82+1 -> 2099 | AI83: =RM!E94 -> 0 | AJ83: =RM!K94 -> 0 | AK83: =RM!Q94 -> 0 | AL83: =RM!W94 -> 0 | AM83: =RM!AC94 -> 0 | AN83: =RM!AI94 -> 0 | AO83: =SPM!E100 -> 0.1347153799 | AP83: =IF(ISERROR(SPM!I100),#N/A,SPM!I100) -> 0.1347153799 | AQ83: =SPM!M100 -> 0.824277823 | AR83: =SPM!Q100 -> 0.010445761 | AT83: =AI83/SPM!$C100 -> 0 | AU83: =AJ83/SPM!$C100 -> 0 | AV83: =AK83/SPM!$C100 -> 0 | AW83: =AL83/SPM!$C100 -> 0 | AX83: =AM83/SPM!$C100 -> 0 | AY83: =AN83/SPM!$C100 -> 0 | AZ83: =SPM!F100 -> 0.0003692055822 | BA83: =IF(ISERROR(SPM!J100),#N/A,SPM!J100) -> 0.0003692055822 | BB83: =SPM!N100 -> 0.002259044022 | BC83: =SPM!R100 -> 2.862801021e-05 | BE83: 2099 | BF83: =IF(AI82>'goal seek'!$E$24,AI83/AI82-1,#N/A) ->  | BG83: =IF(AND(AJ82>'goal seek'!$E$23,AJ83>0),AJ83/AJ82-1,#N/A) ->  | BH83: =IF(AND(AK82>'goal seek'!$E$23,AK83>0),AK83/AK82-1,#N/A) ->  | BI83: =IF(AND(AL82>'goal seek'!$E$23,AL83>0),AL83/AL82-1,#N/A) ->  | BJ83: =IF(AND(AM82>'goal seek'!$E$23,AM83>0),AM83/AM82-1,#N/A) ->  | BL83: =IF(AO83>0,SPM!H100,#N/A) -> -0.1335990368 | BM83: =IF(ISERROR(SPM!L100/100),#N/A,SPM!L100) -> -0.1335990368 | BN83: =SPM!P100 -> -0.1114068399 | BO83: =SPM!T100 -> -0.1633700471
AG84: =AH84 -> 2100 | AH84: 2100 | AI84: =RM!E95 -> 0 | AJ84: =RM!K95 -> 0 | AK84: =RM!Q95 -> 0 | AL84: =RM!W95 -> 0 | AM84: =RM!AC95 -> 0 | AN84: =RM!AI95 -> 0 | AO84: =SPM!E101 -> 0.1167025269 | AP84: =IF(ISERROR(SPM!I101),#N/A,SPM!I101) -> 0.1167025269 | AQ84: =SPM!M101 -> 0.7323585683 | AR84: =SPM!Q101 -> 0.008738058835 | AT84: =AI84/SPM!$C101 -> 0 | AU84: =AJ84/SPM!$C101 -> 0 | AV84: =AK84/SPM!$C101 -> 0 | AW84: =AL84/SPM!$C101 -> 0 | AX84: =AM84/SPM!$C101 -> 0 | AY84: =AN84/SPM!$C101 -> 0 | AZ84: =SPM!F101 -> 0.0003204175158 | BA84: =IF(ISERROR(SPM!J101),#N/A,SPM!J101) -> 0.0003204175158 | BB84: =SPM!N101 -> 0.002010757774 | BC84: =SPM!R101 -> 2.39911438e-05 | BE84: 2100 | BF84: =IF(AI83>'goal seek'!$E$24,AI84/AI83-1,#N/A) ->  | BG84: =IF(AND(AJ83>'goal seek'!$E$23,AJ84>0),AJ84/AJ83-1,#N/A) ->  | BH84: =IF(AND(AK83>'goal seek'!$E$23,AK84>0),AK84/AK83-1,#N/A) ->  | BI84: =IF(AND(AL83>'goal seek'!$E$23,AL84>0),AL84/AL83-1,#N/A) ->  | BJ84: =IF(AND(AM83>'goal seek'!$E$23,AM84>0),AM84/AM83-1,#N/A) ->  | BL84: =IF(AO84>0,SPM!H101,#N/A) -> -0.1337104419 | BM84: =IF(ISERROR(SPM!L101/100),#N/A,SPM!L101) -> -0.1337104419 | BN84: =SPM!P101 -> -0.1115148947 | BO84: =SPM!T101 -> -0.163482791
AI85: RM-1 | AJ85: RM-2 | AK85: RM-3 | AL85: RM-4 | AM85: RM-5 | AN85: RM-6 | AO85: =AO2 -> SPM_FP50% | AP85: =AP2 -> SPM_P50% | AQ85: =AQ2 -> SPM_P0% | AR85: =AR2 -> SPM_P100%
AH86: 1990 | AI86: ='data countries'!C5 -> 3820.658262
AH87: actual 2018 | AI87: ='data countries'!L5/'reference values'!AI86-1 -> -0.1987951435 | AJ87: =AI87 -> -0.1987951435 | AK87: =AJ87 -> -0.1987951435 | AL87: -0.1987951435 | AM87: -0.1987951435 | AN87: =AL87 -> -0.1987951435 | AO87: -0.1987951435 | AP87: -0.1987951435 | AQ87: -0.1987951435 | AR87: -0.1987951435 | AS87: RR_90
AH88: 2020 | AI88: =AI4/$AI$86-1 -> -0.2921874888 | AJ88: -0.2538206255 | AK88: -0.2538206255 | AL88: -0.2538206255 | AM88: -0.2538206255 | AN88: -0.2634777658 | AO88: -0.2474307553 | AP88: -0.2474307553 | AQ88: -0.2468278804 | AR88: -0.2484832141 | AS88: RR_90
AH89: 2030 | AI89: =AI14/$AI$86-1 -> -0.6921171321 | AJ89: -0.5868261992 | AK89: -0.6227281397 | AL89: -0.5758210102 | AM89: -0.6511482094 | AN89: -0.5908262942 | AO89: -0.6657831897 | AP89: -0.6657831897 | AQ89: -0.6160104271 | AR89: -0.7303710775 | AS89: RR_90
AH90: 2035 | AI90: =AI19/$AI$86-1 -> -0.796942438 | AJ90: -0.7879229562 | AK90: -0.7946290528 | AL90: -0.8004137852 | AM90: -0.7962615534 | AN90: -0.7545005584 | AO90: -0.8057185195 | AP90: -0.8057185195 | AQ90: -0.7523329204 | AR90: -0.8653434076 | AS90: RR_90
AH91: 2040 | AI91: =AI24/$AI$86-1 -> -0.866077727 | AJ91: -0.9369122313 | AK91: -0.9072652459 | AL91: -0.9493027834 | AM91: -0.8895350419 | AN91: -0.9181748227 | AO91: -0.8918895008 | AP91: -0.8918895008 | AQ91: -0.8458674579 | AR91: -0.9361794359 | AS91: RR_90
AH92: 2045 | AI92: =AI29/$AI$86-1 -> -0.9116744286 | AJ92: -1 | AK92: -0.9655164995 | AL92: -1 | AM92: -0.9438804652 | AN92: -1 | AO92: -0.9416059111 | AP92: -0.9416059111 | AQ92: -0.9064663655 | AR92: -0.9707786082 | AS92: RR_90
AH93: 2050 | AI93: =AI34/$AI$86-1 -> -0.941746758 | AJ93: -1 | AK93: -0.9950776236 | AL93: -1 | AM93: -0.9731190071 | AN93: -1 | AO93: -0.9691340478 | AP93: -0.9691340478 | AQ93: -0.9442946156 | AR93: -0.9869442085 | AS93: RR_90
AH94: 2010 | AI94: ='data countries'!D5 -> 3418.227455
AH95: actual 2018 | AI95: ='data countries'!L5/'reference values'!AI94-1 -> -0.1044686185 | AJ95: =AI95 -> -0.1044686185 | AK95: -0.1044686185 | AL95: -0.1044686185 | AM95: -0.1044686185 | AN95: -0.1044686185 | AO95: -0.1044686185 | AP95: -0.1044686185 | AQ95: -0.1044686185 | AR95: -0.1044686185 | AS95: RR_10
AH96: 2020 | AI96: =AI4/$AI$94-1 -> -0.2088561236 | AJ96: -0.1659722971 | AK96: -0.1659722971 | AL96: -0.1659722971 | AM96: -0.1659722971 | AN96: -0.1767663806 | AO96: -0.158830142 | AP96: -0.158830142 | AQ96: -0.1581562901 | AR96: -0.1600065076 | AS96: RR_10
AH97: 2030 | AI97: =AI14/$AI$94-1 -> -0.6558698218 | AJ97: -0.5381828984 | AK97: -0.5783116047 | AL97: -0.5258820591 | AM97: -0.6100775932 | AN97: -0.542653928 | AO97: -0.6264355622 | AP97: -0.6264355622 | AQ97: -0.5708030102 | AR97: -0.6986274365 | AS97: RR_10
AH98: 2040 | AI98: =AI24/$AI$94-1 -> -0.8503109446 | AJ98: -0.929484855 | AK98: -0.8963475049 | AL98: -0.9433341573 | AM98: -0.876529909 | AN98: -0.9085414754 | AO98: -0.8791615604 | AP98: -0.8791615604 | AQ98: -0.8277213034 | AR98: -0.9286657869 | AS98: RR_10
AH99: 2050 | AI99: =AI34/$AI$94-1 -> -0.9348885546 | AJ99: -1 | AK99: -0.994498108 | AL99: -1 | AM99: -0.9699542851 | AN99: -1 | AO99: -0.9655001732 | AP99: -0.9655001732 | AQ99: -0.9377363736 | AR99: -0.9854071392 | AS99: RR_10
AH100: 2015 | AI100: ='data countries'!I5 -> 3076.838511
AH101: 2020 | AI101: =AI4/$AI$100-1 -> -0.1210751851 | AJ101: -0.07343320689 | AK101: -0.07343320689 | AL101: -0.07343320689 | AM101: -0.07343320689 | AN101: -0.08542494207 | AO101: -0.06549859786 | AP101: -0.06549859786 | AQ101: -0.06474997915 | AR101: -0.06680548652 | AS101: RR_15
AH102: 2030 | AI102: =AI14/$AI$100-1 -> -0.6176870451 | AJ102: -0.4869422331 | AK102: -0.5315233982 | AL102: -0.4732765609 | AM102: -0.5668139647 | AN102: -0.4919093433 | AO102: -0.5849869231 | AP102: -0.5849869231 | AQ102: -0.5231816916 | AR102: -0.6651888077 | AS102: RR_15
AH103: 2040 | AI103: =AI24/$AI$100-1 -> -0.8337022769 | AJ103: -0.9216608854 | AK103: -0.8848467987 | AL103: -0.9370468295 | AM103: -0.8628303522 | AN103: -0.8983937445 | AO103: -0.8657539971 | AP103: -0.8657539971 | AQ103: -0.8086062143 | AR103: -0.9207509381 | AS103: RR_15
AH104: 2050 | AI104: =AI34/$AI$100-1 -> -0.9276641496 | AJ104: -1 | AK104: -0.9938876486 | AL104: -1 | AM104: -0.9666205791 | AN104: -1 | AO104: -0.9616722636 | AP104: -0.9616722636 | AQ104: -0.9308279468 | AR104: -0.9837879962 | AS104: RR_15
AI105: =AI108 -> RM 1 - 6 | AO105: =AO2 -> SPM_FP50% | AP105: =AP2 -> SPM_P50% | AQ105: =AQ108 -> Population_0% | AR105: =AR108 -> Population_100% | AS105: global
AH106: Scope | AI106: =AI109/AI3 -> 11.25516341 | AO106: =SPM!E102/SPM!E20 -> 11.25490772 | AP106: =SPM!L11 -> 11.25516341 | AQ106: =SPM!P11 -> 13.0907569 | AR106: =SPM!T11 -> 9.41956991 | AS106: ='base data'!M27/'base data'!M17 -> 13.0907569
AH107: NE | AI107: =SUMIF(AI4:AI84,"<0")*-1 -> 0 | AJ107: 0 | AK107: 0 | AL107: 0 | AM107: 0 | AN107: 0
AI108: RM 1 - 6 | AO108: =AZ2 -> SPM_FP50% | AP108: =BA2 -> SPM_P50% | AQ108: Population_0% | AR108: Population_100%
AH109: 2020-2100 | AI109: ='base data'!L41 -> 33079.69562 | AO109: =SPM!E102 -> 33078.94414 | AP109: =SPM!I102 -> 33078.94414 | AQ109: =SPM!M102 -> 38468.84279 | AR109: =SPM!Q102 -> 27684.71618
AH110: 2020-2030 | AI110: =SUM(AI4:AI14) -> 20306.08506 | AJ110: 24915.36984 | AK110: 24038.74128 | AL110: 25391.28132 | AM110: 23002.15498 | AN110: 24075.21963 | AO110: 22682.19593 | AP110: 22682.19593 | AQ110: 23790.26185 | AR110: 21104.34068
AH111: 2020-2050 | AI111: =SUM(AI4:AI34) -> 31292.82903 | AJ111: 33079.81813 | AK111: 33079.87199 | AL111: 33079.59577 | AM111: 32816.66702 | AN111: 33079.61692 | AO111: 32250.0735 | AP111: 32250.0735 | AQ111: 36626.08134 | AR111: 27409.37572
AH112: share i/global | AI112: =AI109/1000/AH113 -> 0.0689315592 | AO112: 0.06892999327 | AP112: 0.06892999327 | AQ112: 0.08016147866 | AR112: 0.05768948646
AG113: 2020-2100 global | AH113: ='base data'!$M$27 -> 479.8918812 | AI113: ='base data'!$M$27 -> 479.8918812 | AJ113: ='base data'!$M$27 -> 479.8918812 | AK113: ='base data'!$M$27 -> 479.8918812 | AL113: ='base data'!$M$27 -> 479.8918812 | AM113: ='base data'!$M$27 -> 479.8918812 | AN113: ='base data'!$M$27 -> 479.8918812 | AO113: ='base data'!$M$27 -> 479.8918812 | AP113: ='base data'!$M$27 -> 479.8918812 | AQ113: ='base data'!$M$27 -> 479.8918812 | AR113: ='base data'!$M$27 -> 479.8918812
AG114: global per capita | AH114: ='base data'!M17/SPM!D20 -> 4.752574755
AQ115: =AQ108 -> Population_0% | AR115: =AR108 -> Population_100%
AH116: 2020-2100 | AI116: =AI109 -> 33079.69562 | AO116: =AO109 -> 33078.94414 | AP116: =AP109 -> 33078.94414 | AQ116: =('base data'!$D$33*0+'base data'!$D$34*1)*'base data'!$M$27*1000 -> 38474.63054 | AR116: =('base data'!$D$33*1+'base data'!$D$34*0)*'base data'!$M$27*1000 -> 27684.7607
AH117: =AH112 -> share i/global | AI117: =AI112 -> 0.0689315592 | AO117: =AO112 -> 0.06892999327 | AP117: =AP112 -> 0.06892999327 | AQ117: =AQ116/1000/AQ113 -> 0.08017353919 | AR117: =AR116/1000/AR113 -> 0.05768957922
AG118: vs. 1990 | AH118: 2025 | AI118: =AI9/$AI$86-1 -> -0.5331773936 | AJ118: -0.3981364156 | AK118: -0.4212180624 | AL118: -0.3822405954 | AM118: -0.4542927059 | AN118: -0.42715203
B121: legend
B122: =$AI$2 -> RM-1 const | F122: not allocated until 2100 | G122: =AQ2 -> SPM_P0% | H122: =SPM!P10/SPM!P14-1 -> 0.0001504529643 | I122: SPM paths are approaching to zero. Therefore, it may be that the budget is not fully distributed until 2100. For countries with very low per capita emissions, SPM may result in a high proportion not being distributed by 2100.
B123: =$AJ$2 -> RM-2 exp | G123: =AR2 -> SPM_P100% | H123: =SPM!T10/SPM!T14-1 -> 1.607920163e-06
B124: =$AK$2 -> RM-3 lin | G124: =B129 -> SPM_P50% | H124: =(SPM!L10-SPM!L14)/SPM!L10 -> 2.271716632e-05
B125: =$AL$2 -> RM-4 quadr | G125: =B128 -> SPM_FP50% | H125: =(SPM!H10-SPM!H14)/SPM!H10 -> 2.271716632e-05
B126: =$AM$2 -> RM-5 rad | F126: share of the country in 2019 | H126: weighted key | I126: share budget | K126: weighted key
B127: =AN2 -> RM-6 abs | F127: emissions | G127: population
B128: =IF('base data'!F41<>'base data'!B94,CONCATENATE("SPM_FP",TEXT('base data'!D31,"0%")),CONCATENATE("SPM_BG_",'base data'!L39/1000)) -> SPM_FP50% | C128: weighted population: free input | F128: =SPM!J12 -> 0.08017353919 | G128: =SPM!J11 -> 0.05768957922 | H128: =SPM!J13 -> 0.0689315592 | I128: =AP112 -> 0.06892999327 | J128: =AO112 -> 0.06892999327 | K128: ='base data'!D35 -> 0.0689315592
B129: =CONCATENATE("SPM_P",TEXT(0.5,"0%")) -> SPM_P50% | C129: weighted population: 50% | F129: =AQ2 -> SPM_P0% | G129: =AR2 -> SPM_P100% | H129: =B129 -> SPM_P50% | J129: =B128 -> SPM_FP50%
B130: SPM_P0% | C130: weighted population: 0% | F130: 2020 - ∞ | I130: 2020 - 2100
B131: SPM_P100% | C131: weighted population: 100%
B132: Mill. t CO2 (without LUC)

Sheet print (hidden)
B2: selected country: | C2: ='reference values'!B2 -> EU27 | E2: global budget: | F2: ='base data'!B11 -> 570 | G2: Gt | I2: weighting population key: | K2: ='base data'!D31 -> 0.5 | M2: national budget: | N2: ='base data'!L41 -> 33079.69562 | O2: Mill. t
J4: minimum annual emissions: | M4: ='base data'!L46 -> 0 | N4: ='base data'!L48 -> 0 | O4: Mill. t

Sheet EU27 (hidden)
N1: 1990 | O1: ='data countries'!C223 -> 3820.658262
N2: 2019
N8: 2025
N13: 2030 | O13: =$O$1*(1-0.4) -> 2292.394957 | P13: =$O$1*(1-0.55) -> 1719.296218 | Q13: =R13-P13 -> 191.0329131 | R13: =$O$1*(1-0.5) -> 1910.329131
N18: 2035
N23: 2040
N28: 2045
B32: =G33 -> RM-2-exp | C32: =H33 -> RM-5-rad | D32: =G33 -> RM-2-exp | E32: =H33 -> RM-5-rad
A33: Bevölkerung | B33: 1 | C33: 1 | D33: 0 | E33: 0 | G33: RM-2-exp | H33: RM-5-rad | I33: ='base data'!D31 -> 0.5 | J33: ='base data'!B31 -> weighting population key in the weighted key | N33: 2050 | O33: =$O$1*(1-0.8) -> 764.1316525 | T33: 0
A34: 2019 | B34: 2939.068446 | C34: 2939.068446 | D34: 2939.068446 | E34: 2939.068446 | G34: ='reference values'!AJ3 -> 2939.068446 | H34: ='reference values'!AM3 -> 2939.068446 | I34: ='base data'!B11 -> 570 | J34: budget | O34: altes EU-2030-Ziel: -40% | P34: EU-Kommission 2030: -50 bis -55% | T34: EU-Kommission 2050: Klimaneutralität
A35: 2020 | B35: 2850.896392 | C35: 2850.896392 | D35: 2850.896392 | E35: 2850.896392 | G35: ='reference values'!AJ4 -> 2850.896392 | H35: ='reference values'!AM4 -> 2850.896392 | O35: altes EU-2050-Ziel: -80%
A36: 2021 | B36: 2754.766307 | C36: 2708.733266 | D36: 2757.476336 | E36: 2723.706942 | G36: ='reference values'!AJ5 -> 2755.552078 | H36: ='reference values'!AM5 -> 2724.267559 | P36: 0.55 | Q36: Block: 50 - 55 | R36: 0.5
A37: 2022 | B37: 2650.361788 | C37: 2534.266139 | D37: 2658.778433 | E37: 2573.053475 | G37: ='reference values'!AJ6 -> 2652.818103 | H37: ='reference values'!AM6 -> 2574.51097
A38: 2023 | B38: 2537.461167 | C38: 2345.661028 | D38: 2554.830535 | E38: 2411.780784 | G38: ='reference values'!AJ7 -> 2542.561387 | H38: ='reference values'!AM7 -> 2414.278974
A39: 2024 | B39: 2415.969298 | C39: 2152.001379 | D39: 2445.728438 | E39: 2246.176821 | G39: ='reference values'!AJ8 -> 2424.757088 | H39: ='reference values'!AM8 -> 2249.759566
A40: 2025 | B40: 2285.95358 | C40: 1959.185618 | D40: 2331.646557 | E40: 2080.315676 | G40: ='reference values'!AJ9 -> 2299.515077 | H40: ='reference values'!AM9 -> 2084.961082
A41: 2026 | B41: 2147.683411 | C41: 1771.322349 | D41: 2212.848704 | E41: 1917.076131 | G41: ='reference values'!AJ10 -> 2167.108314 | H41: ='reference values'!AM10 -> 1922.716832
A42: 2027 | B42: 2001.671599 | C42: 1591.305878 | D42: 2089.698529 | E42: 1758.55125 | G42: ='reference values'!AJ11 -> 2028.002067 | H42: ='reference values'!AM11 -> 1765.088754
A43: 2028 | B43: 1848.715362 | C43: 1421.129826 | D43: 1962.669088 | E43: 1606.262155 | G43: ='reference values'!AJ12 -> 1882.882318 | H43: ='reference values'!AM12 -> 1613.577819
A44: 2029 | B44: 1689.933441 | C44: 1262.09106 | D44: 1832.35083 | E44: 1461.289885 | G44: ='reference values'!AJ13 -> 1732.681116 | H44: ='reference values'!AM13 -> 1469.253553
A45: 2030 | B45: 1526.794649 | C45: 1114.938327 | D45: 1699.457173 | E45: 1324.366622 | G45: ='reference values'!AJ14 -> 1578.595896 | H45: ='reference values'!AM14 -> 1332.843476 | I45: =O13 -> 2292.394957 | J45: =P13 -> 1719.296218 | K45: =J45+L45 -> 1910.329131 | L45: =Q13 -> 191.0329131
A46: 2031 | B46: 1361.131882 | C46: 979.9884503 | D46: 1564.826728 | E46: 1195.944046 | G46: ='reference values'!AJ15 -> 1422.099111 | H46: ='reference values'!AM15 -> 1204.799993 | J46: =B45/$O$1-1 -> -0.6003843988 | K46: =D45/$O$1-1 -> -0.5551925725
A47: 2032 | B47: 1195.134543 | C47: 857.2208486 | D47: 1429.421089 | E47: 1076.247341 | G47: ='reference values'!AJ16 -> 1264.933899 | H47: ='reference values'!AM16 -> 1085.353159 | J47: =G45/$O$1-1 -> -0.5868261992
A48: 2033 | B48: 1031.311739 | C48: 746.3559844 | D48: 1294.317117 | E48: 965.3193608 | G48: ='reference values'!AJ17 -> 1109.091186 | H48: ='reference values'!AM17 -> 974.5537997
A49: 2034 | B49: 872.4189607 | C49: 646.9209467 | D49: 1160.692626 | E49: 863.0575139 | G49: ='reference values'!AJ18 -> 956.7637864 | H49: ='reference values'!AM18 -> 872.3094962
A50: 2035 | B50: 721.342803 | C50: 558.3042262 | D50: 1029.804566 | E50: 769.2449187 | G50: ='reference values'!AJ19 -> 810.2739098 | H50: ='reference values'!AM19 -> 778.4149792
A51: 2036 | B51: 580.942134 | C51: 479.8011551 | D51: 902.9590686 | E51: 683.5768457 | G51: ='reference values'!AJ20 -> 671.9724233 | H51: ='reference values'!AM20 -> 692.5779383
A52: 2037 | B52: 453.8504927 | C52: 410.6511855 | D52: 781.4732056 | E52: 605.6831621 | G52: ='reference values'!AJ21 -> 544.1112892 | H52: ='reference values'!AM21 -> 614.4409457
A53: 2038 | B53: 342.2532247 | C53: 350.0680132 | D53: 666.6289684 | E53: 535.1473156 | G53: ='reference values'!AJ22 -> 428.6950426 | H53: ='reference values'!AM22 -> 543.6000205
A54: 2039 | B54: 247.6632871 | C54: 297.2634536 | D54: 559.6208483 | E54: 471.5222866 | G54: ='reference values'!AJ23 -> 327.3226306 | H54: ='reference values'!AM23 -> 479.6202551
A55: 2040 | B55: 170.7297568 | C55: 251.4659024 | D55: 461.499417 | E55: 414.343875 | G55: ='reference values'!AJ24 -> 241.0368047 | H55: ='reference values'!AM24 -> 422.0488551
A56: 2041 | B56: 111.1196515 | C56: 211.9341547 | D56: 373.1144137 | E56: 363.1416347 | G56: ='reference values'!AJ25 -> 170.2032727 | H56: ='reference values'!AM25 -> 370.4258993
A57: 2042 | B57: 67.51245396 | C57: 177.9672926 | D57: 295.0619009 | E57: 317.4477438 | G57: ='reference values'!AJ26 -> 114.4441989 | H57: ='reference values'!AM26 -> 324.2930955
A58: 2043 | B58: 23.90525646 | C58: 148.9112937 | D58: 227.6408628 | E58: 276.8040667 | G58: ='reference values'!AJ27 -> 72.64831284 | H58: ='reference values'!AM27 -> 283.200778
A59: 2044 | B59: -19.70194104 | C59: 124.1629483 | D59: 170.8249538 | E59: 240.7676442 | G59: ='reference values'!AJ28 -> 30.85242675 | H59: ='reference values'!AM28 -> 246.713377
A60: 2045 | B60: -63.30913855 | C60: 103.1716122 | D60: 124.2547129 | E60: 208.9148274 | G60: ='reference values'!AJ29 -> 0 | H60: ='reference values'!AM29 -> 214.4135641
A61: 2046 | B61: -106.9163361 | C61: 85.43925581 | D61: 87.25422253 | E61: 180.844252 | G61: ='reference values'!AJ30 -> 0 | H61: ='reference values'!AM30 -> 185.9052659
A62: 2047 | B62: -150.5235336 | C62: 67.70689943 | D62: 50.25373218 | E62: 156.1788324 | G62: ='reference values'!AJ31 -> 0 | H62: ='reference values'!AM31 -> 160.8157151
A63: 2048 | B63: -194.1307311 | C63: 49.97454304 | D63: 13.25324182 | E63: 134.5669342 | G63: ='reference values'!AJ32 -> 0 | H63: ='reference values'!AM32 -> 138.7966969
A64: 2049 | B64: -237.7379286 | C64: 32.24218666 | D64: -23.74724853 | E64: 115.6828721 | G64: ='reference values'!AJ33 -> 0 | H64: ='reference values'!AM33 -> 119.5251269
A65: 2050 | B65: -281.3451261 | C65: 14.50983027 | D65: -60.74773889 | E65: 99.22685925 | G65: ='reference values'!AJ34 -> 0 | H65: ='reference values'!AM34 -> 102.7030877
A66: RR_20
A67: TV
B68: RM-2 Gewichtung Bevölkerung 100% | C68: RM-5 Gewichtung Bevölkerung 100% | D68: RM-2 Gewichtung Bevölkerung 0% | E68: RM-5 Gewichtung Bevölkerung 0% | M68: TV
H69: EU27-10 | I69: 2 | J69: =I69+1 -> 3 | K69: =J69+1 -> 4 | L69: =K69+1 -> 5 | M69: 2-5 | N69: 1
H70: 420/0 | I70: -0.03 | J70: -0.03 | K70: -0.03 | L70: -0.03 | M70: 0.035
H71: 420/100 | I71: -0.03 | J71: -0.03 | K71: -0.03 | L71: -0.03 | M71: 0.035
H72: 420/50 | I72: -0.03 | J72: -0.03 | K72: -0.03 | L72: -0.03 | M72: 0.035 | N72: 0.043
B74: RM-1-const | C74: RM-2-exp | D74: RM-3-lin | E74: RM-4-quadr | F74: RM-5-rad | G74: RM-6-abs | H74: 570/50/RM-5/2 | I74: -0.03 | J74: -0.03 | K74: -0.03 | L74: -0.03 | M74: 0.035
A75: Budget 2020 - 2100 | B75: =ROUND('reference values'!$AI$109,-1) -> 33080 | C75: =ROUND('reference values'!$AI$109,-1) -> 33080 | D75: =ROUND('reference values'!$AI$109,-1) -> 33080 | E75: =ROUND('reference values'!$AI$109,-1) -> 33080 | F75: =ROUND('reference values'!$AI$109,-1) -> 33080 | G75: =ROUND('reference values'!$AI$109,-1) -> 33080 | O75: 0 | P75: ='base data'!P46/2 -> 0 | Q75: ='base data'!P46 -> 0 | R75: RV_2030
A76: Netto-Negativemissionen (Overshoot) | B76: =ROUND('reference values'!AI107,-1) -> 0 | C76: =ROUND('reference values'!AJ107,-1) -> 0 | D76: =ROUND('reference values'!AK107,-1) -> 0 | E76: =ROUND('reference values'!AL107,-1) -> 0 | F76: =ROUND('reference values'!AM107,-1) -> 0 | G76: =ROUND('reference values'!AN107,-1) -> 0 | H76: 680/50/RM-5/2 | I76: -0.03 | L76: -0.03 | M76: 0.03 | N76: 420 | O76: -0.8670482782 | P76: -0.7205909125 | Q76: -0.6562121321 | R76: ='reference values'!AM89 -> -0.6511482094
N77: 570 | O77: -0.7144761114 | P77: -0.629523753 | Q77: -0.5943943963
H78: 800/100/NNE0 | N78: 680 | O78: -0.6348298226 | P78: -0.5827248947 | Q78: -0.5621913662
H79: EU27-12% | N79: 0.55 | Y79: emissions neutrality 2050
H80: 420/0 | I80: -0.0196 | J80: -0.02 | K80: -0.02 | L80: -0.02 | M80: 0.035 | N80: NE 10% | O80: RM-2 | P80: RM-3 | Q80: RM-5 | R80: RM-6 | S80: NE 0% | T80: RM-2 | U80: RM-3 | V80: RM-5 | W80: RM-6 | Y80: NE 10% | Z80: RM-2 | AA80: RM-3 | AB80: RM-5 | AC80: RM-6 | AD80: NE 0% | AE80: RM-2 | AF80: RM-3 | AG80: RM-5 | AH80: RM-6
H81: 420/100 | I81: -0.0205 | J81: -0.019 | K81: -0.0245 | L81: -0.02 | M81: 0.035 | N81: global | O81: 475 | P81: 624 | Q81: 825 | R81: 450 | S81: global | T81: 720 | U81: 789 | V81: 881 | W81: 724 | Y81: global | Z81: 507 | AA81: 429 | AB81: 370 | AC81: 600 | AD81: global | AE81: 745 | AF81: 658 | AG81: 575 | AH81: 849
H82: 420/50 | I82: -0.0191 | J82: -0.02 | K82: -0.019 | L82: -0.02 | M82: 0.035 | N82: EU | O82: 19286 | P82: 31098.60261 | Q82: 42737.00706 | R82: 21023.56591 | S82: EU | T82: 36657.24354 | U82: 40652.51671 | V82: 45979.54761 | W82: 36888.85358 | Y82: EU | Z82: 24324.00897 | AA82: 19807.61321 | AB82: 16391.36514 | AC82: 29708.94237 | AE82: 38104.80628 | AF82: 33067.28794 | AG82: 28261.37963 | AH82: 44126.6673
H83: 420/RM-2-40 | N83: Overshoot | O83: 14161.39494 | P83: 9596.659671 | Q83: 3252.160626 | R83: 15888.53233 | S83: Overshoot | T83: 0 | U83: 0 | V83: 0 | W83: 0 | Y83: Overshoot | Z83: 13263.18777 | AA83: 12570.71421 | AB83: 12235.33093 | AC83: 14381.24956 | AD83: Overshoot | AE83: 0 | AF83: 0 | AG83: 0 | AH83: 0
H84: 570/50/RM-5/2 | I84: -0.02 | J84: -0.02 | K84: -0.02 | L84: -0.02 | M84: 0.04 | N84: RR_20 | O84: -0.03 | P84: -0.03 | Q84: -0.03 | R84: -0.03829270976 | S84: RR_20 | T84: =O84 -> -0.03 | U84: =P84 -> -0.03 | V84: -0.03 | W84: -0.03831576606 | Y84: RR_20 | Z84: -0.03 | AA84: -0.03 | AB84: 0.03 | AC84: -0.03225536597 | AD84: RR_20 | AE84: 0.03 | AF84: 0.03 | AG84: 0.03 | AH84: -0.0322299885
H85: 570/50/RM-2-40 | N85: 2030 | O85: -0.5548541828 | P85: -0.5546793459 | Q85: -0.5548879133 | R85: -0.554769235 | S85: 2030 | T85: -0.5546688503 | U85: -0.5549784106 | V85: -0.554940484 | W85: -0.5549643334 | Y85: 2030 | Z85: -0.5446418391 | AA85: -0.6241225882 | AB85: -0.7036952395 | AC85: -0.503678862 | AD85: 2030 | AE85: -0.5446233425 | AF85: -0.6228864085 | AG85: -0.7083850373 | AH85: -0.5034675307
H86: 680/50/RM-5/2 | I86: -0.02 | L86: -0.02 | M86: 0.04 | N86: 2035 | O86: -0.7298301144 | P86: -0.7030926006 | Q86: -0.6801326879 | R86: -0.7020539268 | S86: 2035 | T86: -0.7294827431 | U86: -0.7035332525 | V86: -0.6802023889 | W86: -0.7023377063 | Y86: 2035 | Z86: -0.710547017 | AA86: -0.7963219458 | AB86: -0.8496522355 | AC86: -0.6277406571 | AD86: 2035 | AE86: -0.7105118472 | AF86: -0.7948215632 | AG86: -0.8540623083 | AH86: -0.627433266
H87: 680/50/RM-2-40 | N87: 2040 | O87: -0.8784859367 | P87: -0.8210293182 | Q87: -0.7777093415 | R87: -0.8493386186 | S87: 2040 | T87: -0.8780887854 | U87: -0.8215001683 | V87: -0.7777842224 | W87: -0.8497110793 | Y87: 2040 | Z87: -0.8556909601 | AA87: -0.9086323303 | AB87: -0.9311913937 | AC87: -0.7518024521 | AD87: 2040 | AE87: -0.8556480451 | AF87: -0.9074211409 | AG87: -0.9343161914 | AH87: -0.7513990013
N88: 2045 | O88: -0.9670216592 | P88: -0.9026683116 | Q88: -0.8499511915 | R88: -0.9966233104 | S88: 2045 | T88: -0.9667698313 | U88: -0.9030697621 | V88: -0.8500220974 | W88: -0.9970844522 | Y88: 2045 | Z88: -0.9512103568 | AA88: -0.9663202907 | AB88: -0.9712433288 | AC88: -0.8758642471 | AD88: 2045 | AE88: -0.9511780766 | AF88: -0.9656085023 | AG88: -0.9730739443 | AH88: -0.8753647367
N89: 2050 | O89: -1.015831865 | P89: -0.9523460351 | Q89: -0.9013285361 | R89: -1.076923917 | S89: 2050 | T89: -1 | U89: -0.9526309302 | V89: -0.9013900433 | W89: -1 | Y89: 2050 | Z89: -0.9964993372 | AA89: -0.9953829714 | AB89: -0.9954819382 | AC89: -0.9999260422 | AD89: 2050 | AE89: -0.9964876984 | AF89: -0.9951128539 | AG89: -0.9962334364 | AH89: -0.999330472
I90: Mill. t (ohne LUC/ISA)
O91: RM-2-exp | P91: RM-3-lin | R91: RM-5-rad | S91: RM-6-abs
N92: Potential NNE | O92: -0.125 | S92: -0.111
N93: Overshoot | O93: 17339.95799 | S93: 17603.99086
N94: 2030 | O94: -0.554903878 | S94: -0.5549555131
N95: 2035 | O95: -0.7299232414 | S95: -0.7023248768
N96: 2040 | O96: -0.8785923219 | S96: -0.8496942405
N97: 2045 | O97: -0.9670889689 | S97: -0.9970636042
N98: 2050 | O98: -1.015842133 | S98: -1.085377958
O99: RM-2-exp | P99: RM-3-lin | Q99: RM-4-quadr | R99: RM-5-rad | S99: RM-6-abs
N100: weighting P | O100: 0.005 | P100: - | Q100: 0.37 | R100: - | S100: 0.23
N101: EU | O101: 22400.4512 | Q101: 20104.29845 | S101: 21016.46872
N102: Overshoot | O102: 14155.13013 | Q102: 14797.4791 | S102: 15889.61626
N103: 2030 | O103: -0.5548500643 | Q103: -0.5546508888 | S103: -0.5548258823
N104: 2035 | O104: -0.7309939188 | Q104: -0.7645792596 | S104: -0.7021363229
N105: 2040 | O105: -0.8804662721 | Q105: -0.9233658069 | S105: -0.8494467635
N106: 2045 | O106: -0.968503308 | Q106: -0.9905133968 | S106: -0.9967572041
N107: 2050 | O107: -1.016187825 | Q107: -1.037150995 | S107: -1.076923917

Sheet EU27 SPM (hidden)
N1: 1990 | O1: ='data countries'!C223 -> 3820.658262
N2: 2010
N7: 2015
N12: 2020
N17: 2025
N22: 2030 | O22: =$O$1*(1-0.4) -> 2292.394957 | P22: =$O$1*(1-0.55) -> 1719.296218 | Q22: =R22-P22 -> 191.0329131 | R22: =$O$1*(1-0.5) -> 1910.329131
N27: 2035
B32: =H33 -> Equity | D32: =G33 -> Inertia | N32: 2040
A33: Bevölkerung | B33: 1 | D33: 0 | G33: Inertia | H33: Equity
A34: 2010 | J34: 3418.227455
A35: =A34+1 -> 2011 | J35: 3303.43515
A36: =A35+1 -> 2012 | J36: 3235.038899
A37: 2013 | J37: 3159.41491 | N37: 2045
A38: 2014 | J38: 3017.447921
A39: 2015 | J39: 3076.838511
A40: 2016 | J40: 3082.384371
A41: 2017 | J41: 3107.776497
A42: 2018 | J42: 3061.129955 | N42: 2050 | O42: =$O$1*(1-0.8) -> 764.1316525 | T42: 0
A43: 2019 | B43: =H43 -> 2939.068446 | D43: =G43 -> 2939.068446 | G43: =SPM!M20 -> 2939.068446 | H43: =SPM!Q20 -> 2939.068446 | J43: 2939.068446 | O43: derzeitiges EU-2030-Ziel: -40% | P43: EU-Kommission 2030: -50 bis -55% | T43: EU-Kommission 2050: Klimaneutralität
A44: 2020 | B44: =H44 -> 2871.288818 | D44: =G44 -> 2877.613282 | G44: =SPM!M21 -> 2877.613282 | H44: =SPM!Q21 -> 2871.288818 | O44: derzeitiges EU-2050-Ziel: -80%
A45: 2021 | B45: 2706.715419 | D45: 2745.270801 | G45: =SPM!M22 -> 2745.270801 | H45: =SPM!Q22 -> 2706.715419 | P45: 0.55 | Q45: Block: 50 - 55 | R45: 0.5
A46: 2022 | B46: 2513.095023 | D46: 2602.735161 | G46: =SPM!M23 -> 2602.735161 | H46: =SPM!Q23 -> 2513.095023
A47: 2023 | B47: 2305.412858 | D47: 2454.421518 | G47: =SPM!M24 -> 2454.421518 | H47: =SPM!Q24 -> 2305.412858
A48: 2024 | B48: 2094.336976 | D48: 2303.824489 | G48: =SPM!M25 -> 2303.824489 | H48: =SPM!Q25 -> 2094.336976
A49: 2025 | B49: 1887.263784 | D49: 2153.67644 | G49: =SPM!M26 -> 2153.67644 | H49: =SPM!Q26 -> 1887.263784
A50: 2026 | B50: 1689.130986 | D50: 2006.080927 | G50: =SPM!M27 -> 2006.080927 | H50: =SPM!Q27 -> 1689.130986
A51: 2027 | B51: 1503.047115 | D51: 1862.624981 | G51: =SPM!M28 -> 1862.624981 | H51: =SPM!Q28 -> 1503.047115
A52: 2028 | B52: 1330.776814 | D52: 1724.473424 | G52: =SPM!M29 -> 1724.473424 | H52: =SPM!Q29 -> 1330.776814
A53: 2029 | B53: 1173.112912 | D53: 1592.447895 | G53: =SPM!M30 -> 1592.447895 | H53: =SPM!Q30 -> 1173.112912
A54: 2030 | B54: 1030.159971 | D54: 1467.092934 | G54: =SPM!M31 -> 1467.092934 | H54: =SPM!Q31 -> 1030.159971
A55: 2031 | B55: 901.5487857 | D55: 1348.731083 | G55: =SPM!M32 -> 1348.731083 | H55: =SPM!Q32 -> 901.5487857
A56: 2032 | B56: 786.5972561 | D56: 1237.508698 | G56: =SPM!M33 -> 1237.508698 | H56: =SPM!Q33 -> 786.5972561
A57: 2033 | B57: 684.4297574 | D57: 1133.433924 | G57: =SPM!M34 -> 1133.433924 | H57: =SPM!Q34 -> 684.4297574
A58: 2034 | B58: 594.0645668 | D58: 1036.408046 | G58: =SPM!M35 -> 1036.408046 | H58: =SPM!Q35 -> 594.0645668
A59: 2035 | B59: 514.4768223 | D59: 946.2512742 | G59: =SPM!M36 -> 946.2512742 | H59: =SPM!Q36 -> 514.4768223
A60: 2036 | B60: 444.6428658 | D60: 862.7238492 | G60: =SPM!M37 -> 862.7238492 | H60: =SPM!Q37 -> 444.6428658
A61: 2037 | B61: 383.5705284 | D61: 785.5432182 | G61: =SPM!M38 -> 785.5432182 | H61: =SPM!Q38 -> 383.5705284
A62: 2038 | B62: 330.3188962 | D62: 714.3979321 | G62: =SPM!M39 -> 714.3979321 | H62: =SPM!Q39 -> 330.3188962
A63: 2039 | B63: 284.0102906 | D63: 648.9588011 | G63: =SPM!M40 -> 648.9588011 | H63: =SPM!Q40 -> 284.0102906
A64: 2040 | B64: 243.8365656 | D64: 588.8877706 | G64: =SPM!M41 -> 588.8877706 | H64: =SPM!Q41 -> 243.8365656
A65: 2041 | B65: 209.0613316 | D65: 533.8449063 | G65: =SPM!M42 -> 533.8449063 | H65: =SPM!Q42 -> 209.0613316
A66: 2042 | B66: 179.0193251 | D66: 483.493816 | G66: =SPM!M43 -> 483.493816 | H66: =SPM!Q43 -> 179.0193251
A67: 2043 | B67: 153.1138485 | D67: 437.5057849 | G67: =SPM!M44 -> 437.5057849 | H67: =SPM!Q44 -> 153.1138485
A68: 2044 | B68: 130.812964 | D68: 395.5628564 | G68: =SPM!M45 -> 395.5628564 | H68: =SPM!Q45 -> 130.812964
A69: 2045 | B69: 111.6449522 | D69: 357.3600534 | G69: =SPM!M46 -> 357.3600534 | H69: =SPM!Q46 -> 111.6449522
A70: 2046 | B70: 95.19340146 | D70: 322.6069028 | G70: =SPM!M47 -> 322.6069028 | H70: =SPM!Q47 -> 95.19340146
A71: 2047 | B71: 81.09219438 | D71: 291.0284 | G71: =SPM!M48 -> 291.0284 | H71: =SPM!Q48 -> 81.09219438
A72: 2048 | B72: 69.02057208 | D72: 262.3655264 | G72: =SPM!M49 -> 262.3655264 | H72: =SPM!Q49 -> 69.02057208
A73: 2049 | B73: 58.69840068 | D73: 236.3754144 | G73: =SPM!M50 -> 236.3754144 | H73: =SPM!Q50 -> 58.69840068
A74: 2050 | B74: 49.88171753 | D74: 212.8312371 | G74: =SPM!M51 -> 212.8312371 | H74: =SPM!Q51 -> 49.88171753
A75: RR_20 | B75: -0.014 | C75: -0.015 | D75: -0.014 | E75: -0.015
A76: TV | B76: 0.055 | C76: 0.055 | D76: 0.055 | E76: 0.055
B77: =B32 -> Equity | D77: =D32 -> Inertia | E77: =E32 -> 0 | G77: Mill. t CO2 (ohne LUC/ISA)

Sheet goal seek
A1: Determination of the free parameter in the RM scenarios 2020 - 2100 | K1: selected country: | M1: ='base data'!H31 -> EU27 | N1: weighting P: | O1: ='base data'!D31 -> 0.5
G2: target is not met | K2: t / capita | L2: =SPM!F20 -> 6.604845165 | M2: global budget in Gt: | O2: ='base data'!B11 -> 570
A3: input value | C3: determination via "goal seek" | E3: target value of "goal seek" | G3: target is met
A5: RM scenarios: | C5: =RM!$E$2 -> RM-1 const | D5: =RM!$K$2 -> RM-2 exp | E5: =RM!Q2 -> RM-3 lin | F5: =RM!$W$2 -> RM-4 quadr | G5: =RM!AC2 -> RM-5 rad | H5: RM-6 | I5: info
A6: characteristics of the scenario | C6: RRt const | D6: RRt exp | E6: RRt lin | F6: RRt quadr | G6: RRt rad | H6: RA const | I6: ='data countries'!N3 -> last actual change rate | J6: ='data countries'!O3 -> average annual change rate last two years
A7: A corona effect should not be considered here. | D7: only a negative RR_20 possible | E7: a positive RR_20 is also possible (= increasing emissions after 2019)
H8: info | K8: 2 - 5
A9: change rate 2020 (RR20) | C9: =C12 -> -0.07987521589 | D9: -0.03 | E9: -0.03 | F9: -0.03 | G9: -0.03 | H9: =RM!AM9 -> -0.0425538528 | I9: ='data countries'!N5 -> -0.03987465771 | J9: ='data countries'!O5 -> -0.02744213855 | K9: -0.03
A10: initial value | C10: -0.08 | D10: 0.1 | E10: -0.01 | F10: 0 | G10: 0 | H10: =-0.04*'data countries'!M5 -> -117.5627378
C11: RRt constant | D11: a | E11: a | F11: a | G11: a | H11: RA
A12: free parameters are determined by Goal Seek in such a way as that the budget is adhered to. | C12: -0.07987521589 | D12: 0.1147875469 | E12: -0.006498158407 | F12: 2.036969198e+66
D13: -3.777870668e+16 | F13: -0.0006411707561 | G13: -0.02038899883 | H13: -125.068686
A15: scenario ∑ 2020 - 2100; sheet 'RM' | B15: Mill. t | C15: =RM!I6 -> 33080 | D15: =RM!$O$6 -> 33080 | E15: =RM!$U$6 -> 33080 | F15: =RM!$AA$6 -> 33080 | G15: =RM!AG6 -> 33080 | H15: =RM!AM6 -> 33080
A16: budget ∑ 2020 - 2100; sheet 'base data' | B16: Mill. t | C16: =ROUND('base data'!$L$41,0) -> 33080 | D16: =ROUND('base data'!$L$41,0) -> 33080 | E16: =ROUND('base data'!$L$41,0) -> 33080 | F16: =ROUND('base data'!$L$41,0) -> 33080 | G16: =ROUND('base data'!$L$41,0) -> 33080 | H16: =ROUND('base data'!$L$41,0) -> 33080
A18: emissions 2100 scenario; sheet 'RM' | B18: Mill. t | C18: =ROUND(RM!I8,1) -> 0 | D18: =RM!O8 -> 0 | E18: =RM!Q95 -> 0 | F18: =RM!$AA$8 -> 0 | G18: =RM!AG8 -> 0 | H18: =RM!AM8 -> 0
A19: Emin; sheet 'base data' | B19: Mill. t | C19: =ROUND('base data'!$L$48,1) -> 0 | D19: =ROUND('base data'!$L$48,1) -> 0 | E19: =ROUND('base data'!$L$48,1) -> 0 | F19: =ROUND('base data'!$L$48,1) -> 0 | G19: =ROUND('base data'!$L$48,1) -> 0 | H19: =ROUND('base data'!$L$48,1) -> 0
A20: year Emin is achieved | C20: =IF(ISNA(INDEX(RM!$C$15:$C$95,MATCH('goal seek'!C$19,RM!$E$15:$E$95,0))),"-",INDEX(RM!$C$15:$C$95,MATCH('goal seek'!C$19,RM!$E$15:$E$95,0))) -> 2069 | D20: =IF(ISNA(INDEX(RM!$C$15:$C$95,MATCH('goal seek'!D$19,RM!$K$15:$K$95,0))),"-",INDEX(RM!$C$15:$C$95,MATCH('goal seek'!D$19,RM!$K$15:$K$95,0))) -> 2045 | E20: =IF(ISNA(INDEX(RM!$C$15:$C$95,MATCH('goal seek'!E$19,RM!$Q$15:$Q$95,0))),"-",INDEX(RM!$C$15:$C$95,MATCH('goal seek'!E$19,RM!$Q$15:$Q$95,0))) -> 2051 | F20: =IF(ISNA(INDEX(RM!$C$15:$C$95,MATCH('goal seek'!F$19,RM!$W$15:$W$95,0))),"-",INDEX(RM!$C$15:$C$95,MATCH('goal seek'!F$19,RM!$W$15:$W$95,0))) -> 2044 | G20: =IF(ISNA(INDEX(RM!$C$15:$C$95,MATCH('goal seek'!G$19,RM!$AC$15:$AC$95,0))),"-",INDEX(RM!$C$15:$C$95,MATCH('goal seek'!G$19,RM!$AC$15:$AC$95,0))) -> 2057 | H20: =IF(ISNA(INDEX(RM!$C$15:$C$95,MATCH(H$19,RM!AI15:AI95,0))),"-",INDEX(RM!$C$15:$C$95,MATCH('goal seek'!H$19,RM!AI15:AI95,0))) -> 2043
A21: change rate 2030 / 1990 | C21: ='reference values'!AI89 -> -0.6921171321 | D21: ='reference values'!AJ89 -> -0.5868261992 | E21: ='reference values'!AK89 -> -0.6227281397 | F21: ='reference values'!AL89 -> -0.5758210102 | G21: ='reference values'!AM89 -> -0.6511482094 | H21: ='reference values'!AN89 -> -0.5908262942
A22: year minimum positive emissions | C22: =INDEX(RM!$C$15:$C$95,MATCH(_xlfn.AGGREGATE(15,6,(RM!E15:E95)/(RM!E15:E95>0),1),RM!$E$15:$E$95,0)) -> 2068 | D22: =INDEX(RM!$C$15:$C$95,MATCH(_xlfn.AGGREGATE(15,6,(RM!K15:K95)/(RM!K15:K95>0),1),RM!$K$15:$K$95,0)) -> 2044 | E22: =INDEX(RM!$C$15:$C$95,MATCH(_xlfn.AGGREGATE(15,6,(RM!Q15:Q95)/(RM!Q15:Q95>0),1),RM!$Q$15:$Q$95,0)) -> 2050 | F22: =INDEX(RM!$C$15:$C$95,MATCH(_xlfn.AGGREGATE(15,6,(RM!W15:W95)/(RM!W15:W95>0),1),RM!$W$15:$W$95,0)) -> 2043 | G22: =INDEX(RM!$C$15:$C$95,MATCH(_xlfn.AGGREGATE(15,6,(RM!AC15:AC95)/(RM!AC15:AC95>0),1),RM!$AC$15:$AC$95,0)) -> 2056 | H22: =INDEX(RM!$C$15:$C$95,MATCH(_xlfn.AGGREGATE(15,6,(RM!AI15:AI95)/(RM!AI15:AI95>0),1),RM!$AI$15:$AI$95,0)) -> 2042
A23: At which level of emissions in 2019 (threshold value; TV) shall the annual percentage reduction be change into a constant annual reduction? | D23: RM 2 - 5: | E23: =G23*'base data'!L45 -> 102.8673956 | F23: Mill. t | G23: 0.035
D24: RM-1: | E24: =G24*'base data'!L45 -> 132.2580801 | F24: Mill. t | G24: 0.045 | P24: data macro 'finding budget':
P25: Specified emissions target | R25: =Q25 -> 0
A26: Download a comprehensive mathematical description of the Regensburg Model Scenario Types: | P26: Current emissions target | R26: =Q26 -> 0
A27: Mathematicel Description RM 1 - 6 | P27: Specified maximum global budget | R27: Gt
P28: Current global budget | R28: Gt
P34: data macro 'finding NNE':
P35: Specified emissions target | R35: =Q35 -> 0
P36: Current emissions target | R36: =Q36 -> 0
P37: Specified max. potential NNE | R37: =Q37 -> 0
P38: Current potential NNE | R38: =Q38 -> 0
P39: baseline potential NNE | R39: 0
P46: data macro 'finding weighting p.':
P47: Specified emissions target | R47: =Q47 -> 0
P48: Current emissions target | R48: =Q48 -> 0
P49: Minimum or maximum weight P | R49: =Q49 -> 0
P50: Current weighting population | R50: =Q50 -> 0
P51: baseline weighting population | R51: 0
P52: global per capita | R52: t
P53: country per capita | R53: t
P65: data macro 'finding budget':
P66: Specified year of emissions neutrality
P67: Current year of emissions neutraltity
P68: Specified maximum global budget | R68: Gt
P69: Current global budget | R69: Gt
P75: data macro 'finding NNE':
P76: Specified year
P77: Current year
P78: Specified max. potential NNE | R78: =Q78 -> 0
P79: Current potential NNE | R79: =Q79 -> 0
P80: baseline potential NNE | R80: 0
P87: data macro 'finding weighting p.':
P88: Specified emissions target
P89: Current emissions target
P90: Minimum or maximum weight P | R90: =Q90 -> 0
P91: Current weighting population | R91: =Q91 -> 0
P92: baseline weighting population | R92: 0
P93: global per capita | R93: t
P94: country per capita | R94: t

Sheet _xltb_storage_ (hidden)
A1: XL Toolbox Settings
B2: export_preset | C2: <?xml version="1.0" encoding="utf-16"?> <Preset xmlns:xsi="http://www.w3.org/2001/XMLSchema-instance" xmlns:xsd="http://www.w3.org/2001/XMLSchema"> <Name>Tiff, 300 dpi, RGB, Transparente Leinwand</Name> <Dpi>300</Dpi> <FileType>Tiff</FileType> <ColorSpace>Rgb</ColorSpace> <Transparency>TransparentCanvas</Transparency> <UseColorProfile>false</UseColorProfile> <ColorProfile>sRGB Color Space Profile</ColorProfile> </Preset>
B3: export_path | C3: E:\Klima\Veröffentlichungen\Website\Hilfsdatein_Paris_konkret\EU27l\ESPM_EU27_woLUC_EP40.tif

Sheet RM
B2: calculation RM 1 - 6 | E2: RM-1 const | K2: RM-2 exp | Q2: RM-3 lin | W2: RM-4 quadr | AC2: RM-5 rad | AI2: RM-6 abs
E3: constant annual reduction rate | K3: exponential increase of annual reduction rates is assumed | Q3: linear increase of annual reduction rates is assumed | W3: quadratic formula for annual reduction rates | AC3: radical formula for annual reduction rates | AI3: constant absolute annual change
B4: formula | AC4: correcting factor | AG4: 0.5
B5: base data | C5: cumulative budget 2020 - 2100 in Mill. t | E5: =$C$5 -> cumulative budget 2020 - 2100 in Mill. t | I5: =ROUND('base data'!L41,0) -> 33080 | K5: =$C$5 -> cumulative budget 2020 - 2100 in Mill. t | O5: =ROUND('base data'!L41,0) -> 33080 | Q5: =$C$5 -> cumulative budget 2020 - 2100 in Mill. t | U5: =ROUND('base data'!L41,0) -> 33080 | W5: =$C$5 -> cumulative budget 2020 - 2100 in Mill. t | AA5: =ROUND('base data'!$L$41,0) -> 33080 | AC5: =$C$5 -> cumulative budget 2020 - 2100 in Mill. t | AG5: =ROUND('base data'!$L$41,0) -> 33080 | AI5: =$C$5 -> cumulative budget 2020 - 2100 in Mill. t | AM5: =AG5 -> 33080
B6: input sheet 'gloal seek' | C6: scenario sum emissions 2020 - 2100 in Mill. t | E6: =$C$6 -> scenario sum emissions 2020 - 2100 in Mill. t | I6: =ROUND(E96,0) -> 33080 | K6: =$C$6 -> scenario sum emissions 2020 - 2100 in Mill. t | O6: =ROUND(RM!K96,0) -> 33080 | Q6: =$C$6 -> scenario sum emissions 2020 - 2100 in Mill. t | U6: =ROUND(Q96,0) -> 33080 | W6: =$C$6 -> scenario sum emissions 2020 - 2100 in Mill. t | AA6: =ROUND(W96,0) -> 33080 | AC6: =$C$6 -> scenario sum emissions 2020 - 2100 in Mill. t | AG6: =ROUND(AC96,0) -> 33080 | AI6: =$C$6 -> scenario sum emissions 2020 - 2100 in Mill. t | AM6: =ROUND(AI96,0) -> 33080
C7: E_min in Mill. t | E7: =$C$7 -> E_min in Mill. t | I7: =ROUND('base data'!L48,1) -> 0 | K7: =$C$7 -> E_min in Mill. t | O7: =ROUND('base data'!L48,1) -> 0 | Q7: =$C$7 -> E_min in Mill. t | U7: =ROUND('base data'!L48,1) -> 0 | W7: =$C$7 -> E_min in Mill. t | AA7: =ROUND('base data'!$L$48,1) -> 0 | AC7: =$C$7 -> E_min in Mill. t | AG7: =ROUND('base data'!$L$48,1) -> 0 | AI7: =$C$7 -> E_min in Mill. t | AM7: =AG7 -> 0
B8: goal seek | C8: scenario emissions in year 2100 in Mill. t | E8: =$C$8 -> scenario emissions in year 2100 in Mill. t | I8: =ROUND(E95,1) -> 0 | K8: =$C$8 -> scenario emissions in year 2100 in Mill. t | O8: =ROUND(RM!K95,1) -> 0 | Q8: =$C$8 -> scenario emissions in year 2100 in Mill. t | U8: =ROUND(Q95,1) -> 0 | W8: =$C$8 -> scenario emissions in year 2100 in Mill. t | AA8: =W95 -> 0 | AC8: =$C$8 -> scenario emissions in year 2100 in Mill. t | AG8: =AC95 -> 0 | AI8: =$C$8 -> scenario emissions in year 2100 in Mill. t | AM8: =AI95 -> 0
B9: sheet "goal seek" | K9: RR_20; input value sheet "goal seek" | O9: ='goal seek'!D9 -> -0.03 | Q9: =K9 -> RR_20; input value sheet "goal seek" | U9: ='goal seek'!E9 -> -0.03 | W9: =Q9 -> RR_20; input value sheet "goal seek" | AA9: ='goal seek'!F9 -> -0.03 | AC9: =W9 -> RR_20; input value sheet "goal seek" | AG9: ='goal seek'!$G$9 -> -0.03 | AI9: RR_20; info | AM9: =AL15 -> -0.0425538528
E10: free paramter | I10: ='goal seek'!C12 -> -0.07987521589 | K10: =E10 -> free paramter | O10: ='goal seek'!D12 -> 0.1147875469 | Q10: =E10 -> free paramter | U10: ='goal seek'!E12 -> -0.006498158407 | W10: =Q10 -> free paramter | AA10: ='goal seek'!F13 -> -0.0006411707561 | AC10: =W10 -> free paramter | AG10: ='goal seek'!$G$13 -> -0.02038899883 | AI10: =AC10 -> free paramter | AM10: ='goal seek'!H13 -> -125.068686
C12: year | E12: CO2 emissions in Mill. t | F12: absolute change vs. prev. year in Mill. t | G12: relative change vs. prev. year | K12: CO2 emissions in Mill. t | L12: absolute change vs. prev. year in Mill. t | M12: relative change vs. prev. year | Q12: CO2 emissions in Mill. t | R12: absolute change vs. prev. year in Mill. t | S12: relative change vs. prev. year | W12: CO2 emissions in Mill. t | X12: absolute change vs. prev. year in Mill. t | Y12: relative change vs. prev. year | AC12: CO2 emissions in Mill. t | AD12: absolute change vs. prev. year in Mill. t | AE12: relative change vs. prev. year | AI12: CO2 emissions in Mill. t | AJ12: absolute change vs. prev. year in Mill. t | AL12: relative change vs. prev. year
C13: t | E13: see formula below Et | F13: Et - Et-1 | G13: RRt const | H13: actual RRt | K13: see formula below Et | L13: Et - Et-1 | M13: see formula below | N13: actual RRt | Q13: see formula below Et | R13: Et - Et-1 | S13: =M13 -> see formula below | T13: actual RRt | W13: see formula below Et | X13: Et - Et-1 | Y13: see formula below | Z13: actual RRt | AC13: see formula below Et | AD13: Et - Et-1 | AE13: see formula below | AF13: actual RRt | AI13: see formula below Et | AJ13: Et - Et-1 | AK13: actual Et - Et-1 | AL13: RRt
A14: 1 | C14: 2019 | E14: ='data countries'!$M$5 -> 2939.068446 | K14: ='data countries'!$M$5 -> 2939.068446 | Q14: ='data countries'!$M$5 -> 2939.068446 | W14: ='data countries'!$M$5 -> 2939.068446 | AC14: ='data countries'!$M$5 -> 2939.068446 | AI14: ='data countries'!$M$5 -> 2939.068446
A15: =A14+1 -> 2 | C15: 2020 | E15: =IF(E14>'goal seek'!$E$24,MAX($I$7,E14*(1+$I$10)),MAX($I$7,RM!E14+RM!F14)) -> 2704.309719 | F15: =E15-E14 -> -234.7587266 | G15: =$I$10 -> -0.07987521589 | H15: =IF(E15>0,E15/E14-1,"") -> -0.07987521589 | K15: =IF(K14>'goal seek'!$E$23,MAX($O$7,K14*(1+M15)),MAX($O$7,K14+L14)) -> 2850.896392 | L15: =K15-K14 -> -88.17205337 | M15: =O9 -> -0.03 | N15: =IF(K15>0,K15/K14-1,"") -> -0.03 | Q15: =IF(Q14>'goal seek'!$E$23,MAX($U$7,Q14*(1+S15)),MAX($U$7,Q14+R14)) -> 2850.896392 | R15: =Q15-Q14 -> -88.17205337 | S15: =U9 -> -0.03 | T15: =IF(Q15>0,Q15/Q14-1,"") -> -0.03 | W15: =IF(W14>'goal seek'!$E$23,MAX($AA$7,W14*(1+Y15)),MAX($AA$7,W14+X14)) -> 2850.896392 | X15: =W15-W14 -> -88.17205337 | Y15: =$AA$10*(C15-2020)^2+$AA$9 -> -0.03 | Z15: =IF(W15>0,W15/W14-1,"") -> -0.03 | AC15: =IF(AC14>'goal seek'!$E$23,MAX($AA$7,AC14*(1+AE15)),MAX($AA$7,AC14+AD14)) -> 2850.896392 | AD15: =AC15-AC14 -> -88.17205337 | AE15: =AG9 -> -0.03 | AF15: =IF(AC15>0,AC15/AC14-1,"") -> -0.03 | AI15: =MAX(AI14+$AM$10,$AM$7) -> 2813.99976 | AJ15: =AM10 -> -125.068686 | AK15: =AI15-AI14 -> -125.068686 | AL15: =IF(AI15>0,AI15/AI14-1,"") -> -0.0425538528
A16: =A15+1 -> 3 | C16: =C15+1 -> 2021 | E16: =IF(E15>'goal seek'!$E$24,MAX($I$7,E15*(1+$I$10)),MAX($I$7,RM!E15+RM!F15)) -> 2488.302396 | F16: -216.0073226 | G16: =G15 -> -0.07987521589 | H16: -0.07987521589 | K16: =IF(K15>'goal seek'!$E$23,MAX($O$7,K15*(1+M16)),MAX($O$7,K15+L15)) -> 2755.552078 | L16: -95.34431387 | M16: =MAX(-5,M15*(1+$O$10)) -> -0.03344362641 | N16: =IF(K16>0,K16/K15-1,"") -> -0.03344362641 | Q16: =IF(Q15>'goal seek'!$E$23,MAX($U$7,Q15*(1+S16)),MAX($U$7,Q15+R15)) -> 2746.843924 | R16: -104.0524681 | S16: =S15+$U$10 -> -0.03649815841 | T16: =IF(Q16>0,Q16/Q15-1,"") -> -0.03649815841 | W16: =IF(W15>'goal seek'!$E$23,MAX($AA$7,W15*(1+Y16)),MAX($AA$7,W15+X15)) -> 2763.541589 | X16: -87.35480316 | Y16: -0.03064117076 | Z16: =IF(W16>0,W16/W15-1,"") -> -0.03064117076 | AC16: =IF(AC15>'goal seek'!$E$23,MAX($AA$7,AC15*(1+AE16)),MAX($AA$7,AC15+AD15)) -> 2724.267559 | AD16: -126.6288333 | AE16: =$AG$10*SQRT(C16-$AG$4-2020)+$AG$9 -> -0.04441719934 | AF16: =IF(AC16>0,AC16/AC15-1,"") -> -0.04441719934 | AI16: =MAX(AI15+$AM$10,$AM$7) -> 2688.931074 | AJ16: =AJ15 -> -125.068686 | AK16: =AI16-AI15 -> -125.068686 | AL16: =IF(AI16>0,AI16/AI15-1,"") -> -0.04444516584
A17: 4 | C17: 2022 | E17: =IF(E16>'goal seek'!$E$24,MAX($I$7,E16*(1+$I$10)),MAX($I$7,RM!E16+RM!F16)) -> 2289.548705 | F17: -198.7536911 | G17: =G16 -> -0.07987521589 | H17: -0.07987521589 | K17: =IF(K16>'goal seek'!$E$23,MAX($O$7,K16*(1+M17)),MAX($O$7,K16+L16)) -> 2652.818103 | L17: -102.7339757 | M17: -0.03728253824 | N17: -0.03728253824 | Q17: =IF(Q16>'goal seek'!$E$23,MAX($U$7,Q16*(1+S17)),MAX($U$7,Q16+R16)) -> 2628.739753 | R17: -118.1041716 | S17: -0.04299631681 | T17: -0.04299631681 | W17: =IF(W16>'goal seek'!$E$23,MAX($AA$7,W16*(1+Y17)),MAX($AA$7,W16+X16)) -> 2673.547733 | X17: -89.99385587 | Y17: -0.03256468302 | Z17: -0.03256468302 | AC17: =IF(AC16>'goal seek'!$E$23,MAX($AA$7,AC16*(1+AE17)),MAX($AA$7,AC16+AD16)) -> 2574.51097 | AD17: -149.7565885 | AE17: -0.05497132175 | AF17: -0.05497132175 | AI17: 2563.862388 | AJ17: =AJ16 -> -125.068686 | AK17: -125.068686 | AL17: -0.04651241797
A18: 5 | C18: 2023 | E18: =IF(E17>'goal seek'!$E$24,MAX($I$7,E17*(1+$I$10)),MAX($I$7,RM!E17+RM!F17)) -> 2106.670508 | F18: -182.8781971 | G18: -0.07987521589 | H18: -0.07987521589 | K18: =IF(K17>'goal seek'!$E$23,MAX($O$7,K17*(1+M18)),MAX($O$7,K17+L17)) -> 2542.561387 | L18: -110.2567161 | M18: -0.04156210935 | N18: -0.04156210935 | Q18: =IF(Q17>'goal seek'!$E$23,MAX($U$7,Q17*(1+S18)),MAX($U$7,Q17+R17)) -> 2498.631658 | R18: -130.1080945 | S18: -0.04949447522 | T18: -0.04949447522 | W18: =IF(W17>'goal seek'!$E$23,MAX($AA$7,W17*(1+Y18)),MAX($AA$7,W17+X17)) -> 2577.913496 | X18: -95.63423759 | Y18: -0.03577053681 | Z18: -0.03577053681 | AC18: =IF(AC17>'goal seek'!$E$23,MAX($AA$7,AC17*(1+AE18)),MAX($AA$7,AC17+AD17)) -> 2414.278974 | AD18: -160.2319961 | AE18: -0.06223783776 | AF18: -0.06223783776 | AI18: 2438.793702 | AJ18: -125.068686 | AK18: -125.068686 | AL18: -0.04878135683
A19: 6 | C19: 2024 | E19: =IF(E18>'goal seek'!$E$24,MAX($I$7,E18*(1+$I$10)),MAX($I$7,RM!E18+RM!F18)) -> 1938.399747 | F19: -168.2707616 | G19: -0.07987521589 | H19: -0.07987521589 | K19: =IF(K18>'goal seek'!$E$23,MAX($O$7,K18*(1+M19)),MAX($O$7,K18+L18)) -> 2424.757088 | L19: -117.8042982 | M19: -0.04633292192 | N19: -0.04633292192 | Q19: =IF(Q18>'goal seek'!$E$23,MAX($U$7,Q18*(1+S19)),MAX($U$7,Q18+R18)) -> 2358.726691 | R19: -139.904967 | S19: -0.05599263363 | T19: -0.05599263363 | W19: =IF(W18>'goal seek'!$E$23,MAX($AA$7,W18*(1+Y19)),MAX($AA$7,W18+X18)) -> 2474.129967 | X19: -103.7835288 | Y19: -0.0402587321 | Z19: -0.0402587321 | AC19: =IF(AC18>'goal seek'!$E$23,MAX($AA$7,AC18*(1+AE19)),MAX($AA$7,AC18+AD18)) -> 2249.759566 | AD19: -164.5194088 | AE19: -0.06814432405 | AF19: -0.06814432405 | AI19: 2313.725016 | AJ19: -125.068686 | AK19: -125.068686 | AL19: -0.05128301172
A20: 7 | C20: 2025 | E20: =IF(E19>'goal seek'!$E$24,MAX($I$7,E19*(1+$I$10)),MAX($I$7,RM!E19+RM!F19)) -> 1783.569648 | F20: -154.8300982 | G20: -0.07987521589 | H20: -0.07987521589 | K20: =IF(K19>'goal seek'!$E$23,MAX($O$7,K19*(1+M20)),MAX($O$7,K19+L19)) -> 2299.515077 | L20: -125.2420119 | M20: -0.05165136437 | N20: -0.05165136437 | Q20: =IF(Q19>'goal seek'!$E$23,MAX($U$7,Q19*(1+S20)),MAX($U$7,Q19+R19)) -> 2211.327992 | R20: -147.3986991 | S20: -0.06249079204 | T20: -0.06249079204 | W20: =IF(W19>'goal seek'!$E$23,MAX($AA$7,W19*(1+Y20)),MAX($AA$7,W19+X19)) -> 2360.247573 | X20: -113.8823935 | Y20: -0.0460292689 | Z20: -0.0460292689 | AC20: =IF(AC19>'goal seek'!$E$23,MAX($AA$7,AC19*(1+AE20)),MAX($AA$7,AC19+AD19)) -> 2084.961082 | AD20: -164.7984833 | AE20: -0.07325159801 | AF20: -0.07325159801 | AI20: 2188.65633 | AJ20: -125.068686 | AK20: -125.068686 | AL20: -0.05405512113
A21: 8 | C21: 2026 | E21: =IF(E20>'goal seek'!$E$24,MAX($I$7,E20*(1+$I$10)),MAX($I$7,RM!E20+RM!F20)) -> 1641.106638 | F21: -142.4630107 | G21: -0.07987521589 | H21: -0.07987521589 | K21: =IF(K20>'goal seek'!$E$23,MAX($O$7,K20*(1+M21)),MAX($O$7,K20+L20)) -> 2167.108314 | L21: -132.4067629 | M21: -0.05758029778 | N21: -0.05758029778 | Q21: =IF(Q20>'goal seek'!$E$23,MAX($U$7,Q20*(1+S21)),MAX($U$7,Q20+R20)) -> 2058.770795 | R21: -152.5571972 | S21: -0.06898895044 | T21: -0.06898895044 | W21: =IF(W20>'goal seek'!$E$23,MAX($AA$7,W20*(1+Y21)),MAX($AA$7,W20+X20)) -> 2234.960564 | X21: -125.2870092 | Y21: -0.05308214722 | Z21: -0.05308214722 | AC21: =IF(AC20>'goal seek'!$E$23,MAX($AA$7,AC20*(1+AE21)),MAX($AA$7,AC20+AD20)) -> 1922.716832 | AD21: -162.2442505 | AE21: -0.07781644073 | AF21: -0.07781644073 | AI21: 2063.587644 | AJ21: -125.068686 | AK21: -125.068686 | AL21: -0.05714404966
A22: 9 | C22: 2027 | E22: =IF(E21>'goal seek'!$E$24,MAX($I$7,E21*(1+$I$10)),MAX($I$7,RM!E21+RM!F21)) -> 1510.022891 | F22: -131.083747 | G22: -0.07987521589 | H22: -0.07987521589 | K22: =IF(K21>'goal seek'!$E$23,MAX($O$7,K21*(1+M22)),MAX($O$7,K21+L21)) -> 2028.002067 | L22: -139.1062469 | M22: -0.06418979891 | N22: -0.06418979891 | Q22: =IF(Q21>'goal seek'!$E$23,MAX($U$7,Q21*(1+S22)),MAX($U$7,Q21+R21)) -> 1903.36014 | R22: -155.4106551 | S22: -0.07548710885 | T22: -0.07548710885 | W22: =IF(W21>'goal seek'!$E$23,MAX($AA$7,W21*(1+Y22)),MAX($AA$7,W21+X21)) -> 2097.695171 | X22: -137.2653933 | Y22: -0.06141736705 | Z22: -0.06141736705 | AC22: =IF(AC21>'goal seek'!$E$23,MAX($AA$7,AC21*(1+AE22)),MAX($AA$7,AC21+AD21)) -> 1765.088754 | AD22: -157.628078 | AE22: -0.08198195146 | AF22: -0.08198195146 | AI22: 1938.518958 | AJ22: -125.068686 | AK22: -125.068686 | AL22: -0.06060740205
A23: 10 | C23: 2028 | E23: =IF(E22>'goal seek'!$E$24,MAX($I$7,E22*(1+$I$10)),MAX($I$7,RM!E22+RM!F22)) -> 1389.409486 | F23: -120.6134044 | G23: -0.07987521589 | H23: -0.07987521589 | K23: =IF(K22>'goal seek'!$E$23,MAX($O$7,K22*(1+M23)),MAX($O$7,K22+L22)) -> 1882.882318 | L23: -145.1197485 | M23: -0.07155798846 | N23: -0.07155798846 | Q23: =IF(Q22>'goal seek'!$E$23,MAX($U$7,Q22*(1+S23)),MAX($U$7,Q22+R22)) -> 1747.31265 | R23: -156.0474897 | S23: -0.08198526726 | T23: -0.08198526726 | W23: =IF(W22>'goal seek'!$E$23,MAX($AA$7,W22*(1+Y23)),MAX($AA$7,W22+X22)) -> 1948.685545 | X23: -149.0096263 | Y23: -0.07103492839 | Z23: -0.07103492839 | AC23: =IF(AC22>'goal seek'!$E$23,MAX($AA$7,AC22*(1+AE23)),MAX($AA$7,AC22+AD22)) -> 1613.577819 | AD23: -151.5109346 | AE23: -0.08583757293 | AF23: -0.08583757293 | AI23: 1813.450272 | AJ23: -125.068686 | AK23: -125.068686 | AL23: -0.06451764915
A24: 11 | C24: 2029 | E24: =IF(E23>'goal seek'!$E$24,MAX($I$7,E23*(1+$I$10)),MAX($I$7,RM!E23+RM!F23)) -> 1278.430104 | F24: -110.9793827 | G24: -0.07987521589 | H24: -0.07987521589 | K24: =IF(K23>'goal seek'!$E$23,MAX($O$7,K23*(1+M24)),MAX($O$7,K23+L23)) -> 1732.681116 | L24: -150.2012025 | M24: -0.07977195442 | N24: -0.07977195442 | Q24: =IF(Q23>'goal seek'!$E$23,MAX($U$7,Q23*(1+S24)),MAX($U$7,Q23+R23)) -> 1592.704441 | R24: -154.608209 | S24: -0.08848342566 | T24: -0.08848342566 | W24: =IF(W23>'goal seek'!$E$23,MAX($AA$7,W23*(1+Y24)),MAX($AA$7,W23+X23)) -> 1789.020323 | X24: -159.6652213 | Y24: -0.08193483125 | Z24: -0.08193483125 | AC24: =IF(AC23>'goal seek'!$E$23,MAX($AA$7,AC23*(1+AE24)),MAX($AA$7,AC23+AD23)) -> 1469.253553 | AD24: -144.3242666 | AE24: -0.08944363569 | AF24: -0.08944363569 | AI24: 1688.381586 | AJ24: -125.068686 | AK24: -125.068686 | AL24: -0.06896725427
A25: 12 | C25: 2030 | E25: =IF(E24>'goal seek'!$E$24,MAX($I$7,E24*(1+$I$10)),MAX($I$7,RM!E24+RM!F24)) -> 1176.315223 | F25: -102.1148805 | G25: -0.07987521589 | H25: -0.07987521589 | K25: =IF(K24>'goal seek'!$E$23,MAX($O$7,K24*(1+M25)),MAX($O$7,K24+L24)) -> 1578.595896 | L25: -154.0852201 | M25: -0.08892878137 | N25: -0.08892878137 | Q25: =IF(Q24>'goal seek'!$E$23,MAX($U$7,Q24*(1+S25)),MAX($U$7,Q24+R24)) -> 1441.42685 | R25: -151.2775908 | S25: -0.09498158407 | T25: -0.09498158407 | W25: =IF(W24>'goal seek'!$E$23,MAX($AA$7,W24*(1+Y25)),MAX($AA$7,W24+X24)) -> 1620.642962 | X25: -168.377361 | Y25: -0.09411707561 | Z25: -0.09411707561 | AC25: =IF(AC24>'goal seek'!$E$23,MAX($AA$7,AC24*(1+AE25)),MAX($AA$7,AC24+AD24)) -> 1332.843476 | AD25: -136.4100765 | AE25: -0.09284311496 | AF25: -0.09284311496 | AI25: 1563.3129 | AJ25: -125.068686 | AK25: -125.068686 | AL25: -0.07407607797
A26: 13 | C26: 2031 | E26: =IF(E25>'goal seek'!$E$24,MAX($I$7,E25*(1+$I$10)),MAX($I$7,RM!E25+RM!F25)) -> 1082.356791 | F26: -93.95843239 | G26: -0.07987521589 | H26: -0.07987521589 | K26: =IF(K25>'goal seek'!$E$23,MAX($O$7,K25*(1+M26)),MAX($O$7,K25+L25)) -> 1422.099111 | L26: -156.4967846 | M26: -0.09913669804 | N26: -0.09913669804 | Q26: =IF(Q25>'goal seek'!$E$23,MAX($U$7,Q25*(1+S26)),MAX($U$7,Q25+R25)) -> 1295.151225 | R26: -146.2756256 | S26: -0.1014797425 | T26: -0.1014797425 | W26: =IF(W25>'goal seek'!$E$23,MAX($AA$7,W25*(1+Y26)),MAX($AA$7,W25+X25)) -> 1446.2915 | X26: -174.3514626 | Y26: -0.1075816615 | Z26: -0.1075816615 | AC26: =IF(AC25>'goal seek'!$E$23,MAX($AA$7,AC25*(1+AE26)),MAX($AA$7,AC25+AD25)) -> 1204.799993 | AD26: -128.0434835 | AE26: -0.09606790727 | AF26: -0.09606790727 | AI26: 1438.244214 | AJ26: -125.068686 | AK26: -125.068686 | AL26: -0.08000233735
A27: 14 | C27: 2032 | E27: =IF(E26>'goal seek'!$E$24,MAX($I$7,E26*(1+$I$10)),MAX($I$7,RM!E26+RM!F26)) -> 995.9033083 | F27: -86.45348232 | G27: -0.07987521589 | H27: -0.07987521589 | K27: =IF(K26>'goal seek'!$E$23,MAX($O$7,K26*(1+M27)),MAX($O$7,K26+L26)) -> 1264.933899 | L27: -157.1652122 | M27: -0.1105163564 | N27: -0.1105163564 | Q27: =IF(Q26>'goal seek'!$E$23,MAX($U$7,Q26*(1+S27)),MAX($U$7,Q26+R26)) -> 1155.303514 | R27: -139.8477106 | S27: -0.1079779009 | T27: -0.1079779009 | W27: =IF(W26>'goal seek'!$E$23,MAX($AA$7,W26*(1+Y27)),MAX($AA$7,W26+X26)) -> 1269.368701 | X27: -176.9227983 | Y27: -0.1223285889 | Z27: -0.1223285889 | AC27: =IF(AC26>'goal seek'!$E$23,MAX($AA$7,AC26*(1+AE27)),MAX($AA$7,AC26+AD26)) -> 1085.353159 | AD27: -119.4468339 | AE27: -0.09914245906 | AF27: -0.09914245906 | AI27: 1313.175528 | AJ27: -125.068686 | AK27: -125.068686 | AL27: -0.08695928327
A28: 15 | C28: 2033 | E28: =IF(E27>'goal seek'!$E$24,MAX($I$7,E27*(1+$I$10)),MAX($I$7,RM!E27+RM!F27)) -> 916.3553166 | F28: -79.54799176 | G28: -0.07987521589 | H28: -0.07987521589 | K28: =IF(K27>'goal seek'!$E$23,MAX($O$7,K27*(1+M28)),MAX($O$7,K27+L27)) -> 1109.091186 | L28: -155.8427124 | M28: -0.1232022579 | N28: -0.1232022579 | Q28: =IF(Q27>'goal seek'!$E$23,MAX($U$7,Q27*(1+S28)),MAX($U$7,Q27+R27)) -> 1023.04892 | R28: -132.2545936 | S28: -0.1144760593 | T28: -0.1144760593 | W28: =IF(W27>'goal seek'!$E$23,MAX($AA$7,W27*(1+Y28)),MAX($AA$7,W27+X27)) -> 1093.741567 | X28: -175.6271343 | Y28: -0.1383578578 | Z28: -0.1383578578 | AC28: =IF(AC27>'goal seek'!$E$23,MAX($AA$7,AC27*(1+AE28)),MAX($AA$7,AC27+AD27)) -> 974.5537997 | AD28: -110.799359 | AE28: -0.1020859967 | AF28: -0.1020859967 | AI28: 1188.106842 | AJ28: -125.068686 | AK28: -125.068686 | AL28: -0.09524140783
A29: 16 | C29: 2034 | E29: =IF(E28>'goal seek'!$E$24,MAX($I$7,E28*(1+$I$10)),MAX($I$7,RM!E28+RM!F28)) -> 843.1612378 | F29: -73.19407874 | G29: -0.07987521589 | H29: -0.07987521589 | K29: =IF(K28>'goal seek'!$E$23,MAX($O$7,K28*(1+M29)),MAX($O$7,K28+L28)) -> 956.7637864 | L29: -152.3274001 | M29: -0.1373443428 | N29: -0.1373443428 | Q29: =IF(Q28>'goal seek'!$E$23,MAX($U$7,Q28*(1+S29)),MAX($U$7,Q28+R28)) -> 899.2863776 | R29: -123.7625428 | S29: -0.1209742177 | T29: -0.1209742177 | W29: =IF(W28>'goal seek'!$E$23,MAX($AA$7,W28*(1+Y29)),MAX($AA$7,W28+X28)) -> 923.479399 | X29: -170.2621681 | Y29: -0.1556694682 | Z29: -0.1556694682 | AC29: =IF(AC28>'goal seek'!$E$23,MAX($AA$7,AC28*(1+AE29)),MAX($AA$7,AC28+AD28)) -> 872.3094962 | AD29: -102.2443035 | AE29: -0.1049139653 | AF29: -0.1049139653 | AI29: 1063.038156 | AJ29: -125.068686 | AK29: -125.068686 | AL29: -0.1052672046
A30: 17 | C30: 2035 | E30: =IF(E29>'goal seek'!$E$24,MAX($I$7,E29*(1+$I$10)),MAX($I$7,RM!E29+RM!F29)) -> 775.8135519 | F30: -67.3476859 | G30: -0.07987521589 | H30: -0.07987521589 | K30: =IF(K29>'goal seek'!$E$23,MAX($O$7,K29*(1+M30)),MAX($O$7,K29+L29)) -> 810.2739098 | L30: -146.4898766 | M30: -0.153109763 | N30: -0.153109763 | Q30: =IF(Q29>'goal seek'!$E$23,MAX($U$7,Q29*(1+S30)),MAX($U$7,Q29+R29)) -> 784.6522063 | R30: -114.6341714 | S30: -0.1274723761 | T30: -0.1274723761 | W30: =IF(W29>'goal seek'!$E$23,MAX($AA$7,W29*(1+Y30)),MAX($AA$7,W29+X29)) -> 762.5507205 | X30: -160.9286785 | Y30: -0.1742634201 | Z30: -0.1742634201 | AC30: =IF(AC29>'goal seek'!$E$23,MAX($AA$7,AC29*(1+AE30)),MAX($AA$7,AC29+AD29)) -> 778.4149792 | AD30: -93.89451705 | AE30: -0.1076389945 | AF30: -0.1076389945 | AI30: 937.9694698 | AJ30: -125.068686 | AK30: -125.068686 | AL30: -0.1176521137
A31: 18 | C31: 2036 | E31: =IF(E30>'goal seek'!$E$24,MAX($I$7,E30*(1+$I$10)),MAX($I$7,RM!E30+RM!F30)) -> 713.845277 | F31: -61.96827495 | G31: -0.07987521589 | H31: -0.07987521589 | K31: =IF(K30>'goal seek'!$E$23,MAX($O$7,K30*(1+M31)),MAX($O$7,K30+L30)) -> 671.9724233 | L31: -138.3014865 | M31: -0.1706848571 | N31: -0.1706848571 | Q31: =IF(Q30>'goal seek'!$E$23,MAX($U$7,Q30*(1+S31)),MAX($U$7,Q30+R30)) -> 679.5319308 | R31: -105.1202755 | S31: -0.1339705345 | T31: -0.1339705345 | W31: =IF(W30>'goal seek'!$E$23,MAX($AA$7,W30*(1+Y31)),MAX($AA$7,W30+X30)) -> 614.5093421 | X31: -148.0413785 | Y31: -0.1941397136 | Z31: -0.1941397136 | AC31: =IF(AC30>'goal seek'!$E$23,MAX($AA$7,AC30*(1+AE31)),MAX($AA$7,AC30+AD30)) -> 692.5779383 | AD31: -85.83704084 | AE31: -0.1102715687 | AF31: -0.1102715687 | AI31: 812.9007838 | AJ31: -125.068686 | AK31: -125.068686 | AL31: -0.1333398261
A32: 19 | C32: 2037 | E32: =IF(E31>'goal seek'!$E$24,MAX($I$7,E31*(1+$I$10)),MAX($I$7,RM!E31+RM!F31)) -> 656.8267314 | F32: -57.01854561 | G32: -0.07987521589 | H32: -0.07987521589 | K32: =IF(K31>'goal seek'!$E$23,MAX($O$7,K31*(1+M32)),MAX($O$7,K31+L31)) -> 544.1112892 | L32: -127.8611341 | M32: -0.1902773531 | N32: -0.1902773531 | Q32: =IF(Q31>'goal seek'!$E$23,MAX($U$7,Q31*(1+S32)),MAX($U$7,Q31+R31)) -> 584.0789687 | R32: -95.45296212 | S32: -0.1404686929 | T32: -0.1404686929 | W32: =IF(W31>'goal seek'!$E$23,MAX($AA$7,W31*(1+Y32)),MAX($AA$7,W31+X31)) -> 482.2064956 | X32: -132.3028465 | Y32: -0.2152983485 | Z32: -0.2152983485 | AC32: =IF(AC31>'goal seek'!$E$23,MAX($AA$7,AC31*(1+AE32)),MAX($AA$7,AC31+AD31)) -> 614.4409457 | AD32: -78.1369926 | AE32: -0.1128205048 | AF32: -0.1128205048 | AI32: 687.8320978 | AJ32: -125.068686 | AK32: -125.068686 | AL32: -0.1538547981
A33: 20 | C33: 2038 | E33: =IF(E32>'goal seek'!$E$24,MAX($I$7,E32*(1+$I$10)),MAX($I$7,RM!E32+RM!F32)) -> 604.3625544 | F33: -52.46417697 | G33: -0.07987521589 | H33: -0.07987521589 | K33: =IF(K32>'goal seek'!$E$23,MAX($O$7,K32*(1+M33)),MAX($O$7,K32+L32)) -> 428.6950426 | L33: -115.4162466 | M33: -0.2121188237 | N33: -0.2121188237 | Q33: =IF(Q32>'goal seek'!$E$23,MAX($U$7,Q32*(1+S33)),MAX($U$7,Q32+R32)) -> 498.2387217 | R33: -85.84024695 | S33: -0.1469668513 | T33: -0.1469668513 | W33: =IF(W32>'goal seek'!$E$23,MAX($AA$7,W32*(1+Y33)),MAX($AA$7,W32+X32)) -> 367.5670488 | X33: -114.6394468 | Y33: -0.237739325 | Z33: -0.237739325 | AC33: =IF(AC32>'goal seek'!$E$23,MAX($AA$7,AC32*(1+AE33)),MAX($AA$7,AC32+AD32)) -> 543.6000205 | AD33: -70.84092523 | AE33: -0.1152933015 | AF33: -0.1152933015 | AI33: 562.7634118 | AJ33: -125.068686 | AK33: -125.068686 | AL33: -0.1818302554
A34: 21 | C34: 2039 | E34: =IF(E33>'goal seek'!$E$24,MAX($I$7,E33*(1+$I$10)),MAX($I$7,RM!E33+RM!F33)) -> 556.0889649 | F34: -48.27358951 | G34: -0.07987521589 | H34: -0.07987521589 | K34: =IF(K33>'goal seek'!$E$23,MAX($O$7,K33*(1+M34)),MAX($O$7,K33+L33)) -> 327.3226306 | L34: -101.372412 | M34: -0.2364674231 | N34: -0.2364674231 | Q34: =IF(Q33>'goal seek'!$E$23,MAX($U$7,Q33*(1+S34)),MAX($U$7,Q33+R33)) -> 421.7765114 | R34: -76.46221028 | S34: -0.1534650097 | T34: -0.1534650097 | W34: =IF(W33>'goal seek'!$E$23,MAX($AA$7,W33*(1+Y34)),MAX($AA$7,W33+X33)) -> 271.4619968 | X34: -96.10505205 | Y34: -0.261462643 | Z34: -0.261462643 | AC34: =IF(AC33>'goal seek'!$E$23,MAX($AA$7,AC33*(1+AE34)),MAX($AA$7,AC33+AD33)) -> 479.6202551 | AD34: -63.97976541 | AE34: -0.1176963999 | AF34: -0.1176963999 | AI34: 437.6947258 | AJ34: -125.068686 | AK34: -125.068686 | AL34: -0.2222402583
A35: 22 | C35: 2040 | E35: =IF(E34>'goal seek'!$E$24,MAX($I$7,E34*(1+$I$10)),MAX($I$7,RM!E34+RM!F34)) -> 511.6712388 | F35: -44.41772612 | G35: -0.07987521589 | H35: -0.07987521589 | K35: =IF(K34>'goal seek'!$E$23,MAX($O$7,K34*(1+M35)),MAX($O$7,K34+L34)) -> 241.0368047 | L35: -86.28582585 | M35: -0.2636109386 | N35: -0.2636109386 | Q35: =IF(Q34>'goal seek'!$E$23,MAX($U$7,Q34*(1+S35)),MAX($U$7,Q34+R34)) -> 354.3078044 | R35: -67.46870702 | S35: -0.1599631681 | T35: -0.1599631681 | W35: =IF(W34>'goal seek'!$E$23,MAX($AA$7,W34*(1+Y35)),MAX($AA$7,W34+X34)) -> 193.6967394 | X35: -77.76525739 | Y35: -0.2864683025 | Z35: -0.2864683025 | AC35: =IF(AC34>'goal seek'!$E$23,MAX($AA$7,AC34*(1+AE35)),MAX($AA$7,AC34+AD34)) -> 422.0488551 | AD35: -57.57140006 | AE35: -0.120035381 | AF35: -0.120035381 | AI35: 312.6260398 | AJ35: -125.068686 | AK35: -125.068686 | AL35: -0.2857441011
A36: 23 | C36: 2041 | E36: =IF(E35>'goal seek'!$E$24,MAX($I$7,E35*(1+$I$10)),MAX($I$7,RM!E35+RM!F35)) -> 470.8013881 | F36: -40.86985066 | G36: -0.07987521589 | H36: -0.07987521589 | K36: =IF(K35>'goal seek'!$E$23,MAX($O$7,K35*(1+M36)),MAX($O$7,K35+L35)) -> 170.2032727 | L36: -70.83353196 | M36: -0.2938701915 | N36: -0.2938701915 | Q36: =IF(Q35>'goal seek'!$E$23,MAX($U$7,Q35*(1+S36)),MAX($U$7,Q35+R35)) -> 295.3292573 | R36: -58.97854713 | S36: -0.1664613266 | T36: -0.1664613266 | W36: =IF(W35>'goal seek'!$E$23,MAX($AA$7,W35*(1+Y36)),MAX($AA$7,W35+X35)) -> 133.1168632 | X36: -60.5798762 | Y36: -0.3127563035 | Z36: -0.3127563035 | AC36: =IF(AC35>'goal seek'!$E$23,MAX($AA$7,AC35*(1+AE36)),MAX($AA$7,AC35+AD35)) -> 370.4258993 | AD36: -51.62295572 | AE36: -0.1223151185 | AF36: -0.1223151185 | AI36: 187.5573538 | AJ36: -125.068686 | AK36: -125.068686 | AL36: -0.4000584406
A37: 24 | C37: 2042 | E37: =IF(E36>'goal seek'!$E$24,MAX($I$7,E36*(1+$I$10)),MAX($I$7,RM!E36+RM!F36)) -> 433.1960256 | F37: -37.60536252 | G37: -0.07987521589 | H37: -0.07987521589 | K37: =IF(K36>'goal seek'!$E$23,MAX($O$7,K36*(1+M37)),MAX($O$7,K36+L36)) -> 114.4441989 | L37: -55.75907381 | M37: -0.3276028299 | N37: -0.3276028299 | Q37: =IF(Q36>'goal seek'!$E$23,MAX($U$7,Q36*(1+S37)),MAX($U$7,Q36+R36)) -> 244.2492611 | R37: -51.07999623 | S37: -0.172959485 | T37: -0.172959485 | W37: =IF(W36>'goal seek'!$E$23,MAX($AA$7,W36*(1+Y37)),MAX($AA$7,W36+X36)) -> 87.8136476 | X37: -45.30321557 | Y37: -0.340326646 | Z37: -0.340326646 | AC37: =IF(AC36>'goal seek'!$E$23,MAX($AA$7,AC36*(1+AE37)),MAX($AA$7,AC36+AD36)) -> 324.2930955 | AD37: -46.13280385 | AE37: -0.1245398983 | AF37: -0.1245398983 | AI37: 62.48866785 | AJ37: -125.068686 | AK37: -125.068686 | AL37: -0.6668290175
A38: 25 | C38: 2043 | E38: =IF(E37>'goal seek'!$E$24,MAX($I$7,E37*(1+$I$10)),MAX($I$7,RM!E37+RM!F37)) -> 398.5943995 | F38: -34.60162607 | G38: -0.07987521589 | H38: -0.07987521589 | K38: =IF(K37>'goal seek'!$E$23,MAX($O$7,K37*(1+M38)),MAX($O$7,K37+L37)) -> 72.64831284 | L38: -41.79588609 | M38: -0.3652075551 | N38: -0.3652075551 | Q38: =IF(Q37>'goal seek'!$E$23,MAX($U$7,Q37*(1+S38)),MAX($U$7,Q37+R37)) -> 200.4168643 | R38: -43.83239678 | S38: -0.1794576434 | T38: -0.1794576434 | W38: =IF(W37>'goal seek'!$E$23,MAX($AA$7,W37*(1+Y38)),MAX($AA$7,W37+X37)) -> 42.51043204 | X38: -45.30321557 | Y38: -0.36917933 | Z38: -0.5159017624 | AC38: =IF(AC37>'goal seek'!$E$23,MAX($AA$7,AC37*(1+AE38)),MAX($AA$7,AC37+AD37)) -> 283.200778 | AD38: -41.09231746 | AE38: -0.1267135133 | AF38: -0.1267135133 | AI38: 0 | AJ38: -125.068686 | AK38: -62.48866785
A39: 26 | C39: 2044 | E39: =IF(E38>'goal seek'!$E$24,MAX($I$7,E38*(1+$I$10)),MAX($I$7,RM!E38+RM!F38)) -> 366.7565858 | F39: -31.83781371 | G39: -0.07987521589 | H39: -0.07987521589 | K39: =IF(K38>'goal seek'!$E$23,MAX($O$7,K38*(1+M39)),MAX($O$7,K38+L38)) -> 30.85242675 | L39: -41.79588609 | M39: -0.4071288345 | N39: -0.5753180556 | Q39: =IF(Q38>'goal seek'!$E$23,MAX($U$7,Q38*(1+S39)),MAX($U$7,Q38+R38)) -> 163.1481856 | R39: -37.26867868 | S39: -0.1859558018 | T39: -0.1859558018 | W39: =IF(W38>'goal seek'!$E$23,MAX($AA$7,W38*(1+Y39)),MAX($AA$7,W38+X38)) -> 0 | X39: -42.51043204 | Y39: -0.3993143555 | AC39: =IF(AC38>'goal seek'!$E$23,MAX($AA$7,AC38*(1+AE39)),MAX($AA$7,AC38+AD38)) -> 246.713377 | AD39: -36.48740103 | AE39: -0.128839339 | AF39: -0.128839339 | AI39: 0 | AJ39: -125.068686 | AK39: 0
A40: 27 | C40: 2045 | E40: =IF(E39>'goal seek'!$E$24,MAX($I$7,E39*(1+$I$10)),MAX($I$7,RM!E39+RM!F39)) -> 337.4618243 | F40: -29.29476147 | G40: -0.07987521589 | H40: -0.07987521589 | K40: =IF(K39>'goal seek'!$E$23,MAX($O$7,K39*(1+M40)),MAX($O$7,K39+L39)) -> 0 | L40: -30.85242675 | M40: -0.4538621546 | Q40: =IF(Q39>'goal seek'!$E$23,MAX($U$7,Q39*(1+S40)),MAX($U$7,Q39+R39)) -> 131.7496712 | R40: -31.39851441 | S40: -0.1924539602 | T40: -0.1924539602 | W40: =IF(W39>'goal seek'!$E$23,MAX($AA$7,W39*(1+Y40)),MAX($AA$7,W39+X39)) -> 0 | X40: 0 | Y40: -0.4307317226 | AC40: =IF(AC39>'goal seek'!$E$23,MAX($AA$7,AC39*(1+AE40)),MAX($AA$7,AC39+AD39)) -> 214.4135641 | AD40: -32.29981285 | AE40: -0.1309203954 | AF40: -0.1309203954 | AI40: 0 | AJ40: -125.068686 | AK40: 0
A41: 28 | C41: 2046 | E41: =IF(E40>'goal seek'!$E$24,MAX($I$7,E40*(1+$I$10)),MAX($I$7,RM!E40+RM!F40)) -> 310.5069883 | F41: -26.95483607 | G41: -0.07987521589 | H41: -0.07987521589 | K41: =IF(K40>'goal seek'!$E$23,MAX($O$7,K40*(1+M41)),MAX($O$7,K40+L40)) -> 0 | L41: 0 | M41: -0.505959878 | Q41: =IF(Q40>'goal seek'!$E$23,MAX($U$7,Q40*(1+S41)),MAX($U$7,Q40+R40)) -> 105.537795 | R41: -26.2118762 | S41: -0.1989521186 | T41: -0.1989521186 | W41: =IF(W40>'goal seek'!$E$23,MAX($AA$7,W40*(1+Y41)),MAX($AA$7,W40+X40)) -> 0 | X41: 0 | Y41: -0.4634314312 | AC41: =IF(AC40>'goal seek'!$E$23,MAX($AA$7,AC40*(1+AE41)),MAX($AA$7,AC40+AD40)) -> 185.9052659 | AD41: -28.50829824 | AE41: -0.1329593972 | AF41: -0.1329593972 | AI41: 0 | AJ41: -125.068686 | AK41: 0
A42: 29 | C42: 2047 | E42: =IF(E41>'goal seek'!$E$24,MAX($I$7,E41*(1+$I$10)),MAX($I$7,RM!E41+RM!F41)) -> 285.7051755 | F42: -24.80181272 | G42: -0.07987521589 | H42: -0.07987521589 | K42: =IF(K41>'goal seek'!$E$23,MAX($O$7,K41*(1+M42)),MAX($O$7,K41+L41)) -> 0 | L42: 0 | M42: -0.5640377712 | Q42: =IF(Q41>'goal seek'!$E$23,MAX($U$7,Q41*(1+S42)),MAX($U$7,Q41+R41)) -> 83.85502576 | R42: -21.68276921 | S42: -0.205450277 | T42: -0.205450277 | W42: =IF(W41>'goal seek'!$E$23,MAX($AA$7,W41*(1+Y42)),MAX($AA$7,W41+X41)) -> 0 | X42: 0 | Y42: -0.4974134812 | AC42: =IF(AC41>'goal seek'!$E$23,MAX($AA$7,AC41*(1+AE42)),MAX($AA$7,AC41+AD41)) -> 160.8157151 | AD42: -25.08955076 | AE42: -0.1349587955 | AF42: -0.1349587955 | AI42: 0 | AJ42: -125.068686 | AK42: 0
A43: 30 | C43: 2048 | E43: =IF(E42>'goal seek'!$E$24,MAX($I$7,E42*(1+$I$10)),MAX($I$7,RM!E42+RM!F42)) -> 262.884413 | F43: -22.82076258 | G43: -0.07987521589 | H43: -0.07987521589 | K43: =IF(K42>'goal seek'!$E$23,MAX($O$7,K42*(1+M43)),MAX($O$7,K42+L42)) -> 0 | L43: 0 | M43: -0.6287822833 | Q43: =IF(Q42>'goal seek'!$E$23,MAX($U$7,Q42*(1+S43)),MAX($U$7,Q42+R42)) -> 62.17225655 | R43: -21.68276921 | S43: -0.2119484354 | T43: -0.2585744744 | W43: =IF(W42>'goal seek'!$E$23,MAX($AA$7,W42*(1+Y43)),MAX($AA$7,W42+X42)) -> 0 | X43: 0 | Y43: -0.5326778728 | AC43: =IF(AC42>'goal seek'!$E$23,MAX($AA$7,AC42*(1+AE43)),MAX($AA$7,AC42+AD42)) -> 138.7966969 | AD43: -22.01901828 | AE43: -0.1369208119 | AF43: -0.1369208119 | AI43: 0 | AJ43: -125.068686 | AK43: 0
A44: 31 | C44: 2049 | E44: =IF(E43>'goal seek'!$E$24,MAX($I$7,E43*(1+$I$10)),MAX($I$7,RM!E43+RM!F43)) -> 241.8864637 | F44: -20.99794924 | G44: -0.07987521589 | H44: -0.07987521589 | K44: =IF(K43>'goal seek'!$E$23,MAX($O$7,K43*(1+M44)),MAX($O$7,K43+L43)) -> 0 | L44: 0 | M44: -0.7009586591 | Q44: =IF(Q43>'goal seek'!$E$23,MAX($U$7,Q43*(1+S44)),MAX($U$7,Q43+R43)) -> 40.48948734 | R44: -21.68276921 | S44: -0.2184465938 | T44: -0.3487531322 | W44: =IF(W43>'goal seek'!$E$23,MAX($AA$7,W43*(1+Y44)),MAX($AA$7,W43+X43)) -> 0 | X44: 0 | Y44: -0.5692246059 | AC44: =IF(AC43>'goal seek'!$E$23,MAX($AA$7,AC43*(1+AE44)),MAX($AA$7,AC43+AD43)) -> 119.5251269 | AD44: -19.27156993 | AE44: -0.138847468 | AF44: -0.138847468 | AI44: 0 | AJ44: -125.068686 | AK44: 0
A45: 32 | C45: 2050 | E45: =IF(E44>'goal seek'!$E$24,MAX($I$7,E44*(1+$I$10)),MAX($I$7,RM!E44+RM!F44)) -> 222.5657302 | F45: -19.32073351 | G45: -0.07987521589 | H45: -0.07987521589 | K45: =IF(K44>'goal seek'!$E$23,MAX($O$7,K44*(1+M45)),MAX($O$7,K44+L44)) -> 0 | L45: 0 | M45: -0.7814199841 | Q45: =IF(Q44>'goal seek'!$E$23,MAX($U$7,Q44*(1+S45)),MAX($U$7,Q44+R44)) -> 18.80671813 | R45: -21.68276921 | S45: -0.2249447522 | T45: -0.5355160224 | W45: =IF(W44>'goal seek'!$E$23,MAX($AA$7,W44*(1+Y45)),MAX($AA$7,W44+X44)) -> 0 | X45: 0 | Y45: -0.6070536805 | AC45: =IF(AC44>'goal seek'!$E$23,MAX($AA$7,AC44*(1+AE45)),MAX($AA$7,AC44+AD44)) -> 102.7030877 | AD45: -16.8220392 | AE45: -0.1407406094 | AF45: -0.1407406094 | AI45: 0 | AJ45: -125.068686 | AK45: 0
A46: 33 | C46: 2051 | E46: =IF(E45>'goal seek'!$E$24,MAX($I$7,E45*(1+$I$10)),MAX($I$7,RM!E45+RM!F45)) -> 204.7882445 | F46: -17.77748575 | G46: -0.07987521589 | H46: -0.07987521589 | K46: =IF(K45>'goal seek'!$E$23,MAX($O$7,K45*(1+M46)),MAX($O$7,K45+L45)) -> 0 | L46: 0 | M46: -0.8711172671 | Q46: =IF(Q45>'goal seek'!$E$23,MAX($U$7,Q45*(1+S46)),MAX($U$7,Q45+R45)) -> 0 | R46: -18.80671813 | S46: -0.2314429106 | W46: =IF(W45>'goal seek'!$E$23,MAX($AA$7,W45*(1+Y46)),MAX($AA$7,W45+X45)) -> 0 | X46: =W46-W45 -> 0 | Y46: -0.6461650967 | AC46: =IF(AC45>'goal seek'!$E$23,MAX($AA$7,AC45*(1+AE46)),MAX($AA$7,AC45+AD45)) -> 85.88104853 | AD46: -16.8220392 | AE46: -0.1426019264 | AF46: -0.1637929255 | AI46: 0 | AJ46: -125.068686 | AK46: 0
A47: 34 | C47: 2052 | E47: =IF(E46>'goal seek'!$E$24,MAX($I$7,E46*(1+$I$10)),MAX($I$7,RM!E46+RM!F46)) -> 188.4307392 | F47: =E47-E46 -> -16.35750524 | G47: -0.07987521589 | H47: =IF(E47>0,E47/E46-1,"") -> -0.07987521589 | K47: =IF(K46>'goal seek'!$E$23,MAX($O$7,K46*(1+M47)),MAX($O$7,K46+L46)) -> 0 | L47: =K47-K46 -> 0 | M47: -0.9711106813 | Q47: =IF(Q46>'goal seek'!$E$23,MAX($U$7,Q46*(1+S47)),MAX($U$7,Q46+R46)) -> 0 | R47: =Q47-Q46 -> 0 | S47: -0.237941069 | W47: =IF(W46>'goal seek'!$E$23,MAX($AA$7,W46*(1+Y47)),MAX($AA$7,W46+X46)) -> 0 | X47: 0 | Y47: =$AA$10*(C47-2020)^2+$AA$9 -> -0.6865588543 | AC47: =IF(AC46>'goal seek'!$E$23,MAX($AA$7,AC46*(1+AE47)),MAX($AA$7,AC46+AD46)) -> 69.05900933 | AD47: -16.8220392 | AE47: -0.1444329721 | AF47: -0.1958760342 | AI47: 0 | AJ47: -125.068686 | AK47: 0
A48: 35 | C48: 2053 | E48: =IF(E47>'goal seek'!$E$24,MAX($I$7,E47*(1+$I$10)),MAX($I$7,RM!E47+RM!F47)) -> 173.3797932 | F48: -15.05094598 | G48: -0.07987521589 | H48: -0.07987521589 | K48: =IF(K47>'goal seek'!$E$23,MAX($O$7,K47*(1+M48)),MAX($O$7,K47+L47)) -> 0 | L48: 0 | M48: =MAX(-5,M47*(1+$O$10)) -> -1.082582094 | Q48: =IF(Q47>'goal seek'!$E$23,MAX($U$7,Q47*(1+S48)),MAX($U$7,Q47+R47)) -> 0 | R48: 0 | S48: =S47+$U$10 -> -0.2444392274 | W48: =IF(W47>'goal seek'!$E$23,MAX($AA$7,W47*(1+Y48)),MAX($AA$7,W47+X47)) -> 0 | X48: 0 | Y48: -0.7282349534 | AC48: =IF(AC47>'goal seek'!$E$23,MAX($AA$7,AC47*(1+AE48)),MAX($AA$7,AC47+AD47)) -> 52.23697013 | AD48: -16.8220392 | AE48: =$AG$10*SQRT(C48-$AG$4-2020)+$AG$9 -> -0.1462351771 | AF48: -0.2435893501 | AI48: 0 | AJ48: -125.068686 | AK48: 0
A49: 36 | C49: 2054 | E49: =IF(E48>'goal seek'!$E$24,MAX($I$7,E48*(1+$I$10)),MAX($I$7,RM!E48+RM!F48)) -> 159.5310448 | F49: -13.84874842 | G49: -0.07987521589 | H49: -0.07987521589 | K49: =IF(K48>'goal seek'!$E$23,MAX($O$7,K48*(1+M49)),MAX($O$7,K48+L48)) -> 0 | L49: 0 | M49: -1.206849037 | Q49: =IF(Q48>'goal seek'!$E$23,MAX($U$7,Q48*(1+S49)),MAX($U$7,Q48+R48)) -> 0 | R49: 0 | S49: -0.2509373858 | W49: =IF(W48>'goal seek'!$E$23,MAX($AA$7,W48*(1+Y49)),MAX($AA$7,W48+X48)) -> 0 | X49: 0 | Y49: -0.7711933941 | AC49: =IF(AC48>'goal seek'!$E$23,MAX($AA$7,AC48*(1+AE49)),MAX($AA$7,AC48+AD48)) -> 35.41493093 | AD49: -16.8220392 | AE49: -0.1480098626 | AF49: -0.3220332106 | AI49: 0 | AJ49: -125.068686 | AK49: 0
A50: 37 | C50: 2055 | E50: =IF(E49>'goal seek'!$E$24,MAX($I$7,E49*(1+$I$10)),MAX($I$7,RM!E49+RM!F49)) -> 146.7884682 | F50: -12.74257665 | G50: -0.07987521589 | H50: -0.07987521589 | K50: =IF(K49>'goal seek'!$E$23,MAX($O$7,K49*(1+M50)),MAX($O$7,K49+L49)) -> 0 | L50: 0 | M50: -1.345380277 | Q50: =IF(Q49>'goal seek'!$E$23,MAX($U$7,Q49*(1+S50)),MAX($U$7,Q49+R49)) -> 0 | R50: 0 | S50: -0.2574355443 | W50: =IF(W49>'goal seek'!$E$23,MAX($AA$7,W49*(1+Y50)),MAX($AA$7,W49+X49)) -> 0 | X50: 0 | Y50: -0.8154341763 | AC50: =IF(AC49>'goal seek'!$E$23,MAX($AA$7,AC49*(1+AE50)),MAX($AA$7,AC49+AD49)) -> 18.59289173 | AD50: -16.8220392 | AE50: -0.149758252 | AF50: -0.4749985037 | AI50: 0 | AJ50: -125.068686 | AK50: 0
A51: 38 | C51: 2056 | E51: =IF(E50>'goal seek'!$E$24,MAX($I$7,E50*(1+$I$10)),MAX($I$7,RM!E50+RM!F50)) -> 135.0637076 | F51: -11.72476059 | G51: -0.07987521589 | H51: -0.07987521589 | K51: =IF(K50>'goal seek'!$E$23,MAX($O$7,K50*(1+M51)),MAX($O$7,K50+L50)) -> 0 | L51: 0 | M51: -1.499813179 | Q51: =IF(Q50>'goal seek'!$E$23,MAX($U$7,Q50*(1+S51)),MAX($U$7,Q50+R50)) -> 0 | R51: 0 | S51: -0.2639337027 | W51: =IF(W50>'goal seek'!$E$23,MAX($AA$7,W50*(1+Y51)),MAX($AA$7,W50+X50)) -> 0 | X51: 0 | Y51: -0.8609573 | AC51: =IF(AC50>'goal seek'!$E$23,MAX($AA$7,AC50*(1+AE51)),MAX($AA$7,AC50+AD50)) -> 1.770852528 | AD51: -16.8220392 | AE51: -0.1514814809 | AF51: -0.9047564761 | AI51: 0 | AJ51: -125.068686 | AK51: 0
A52: 39 | C52: 2057 | E52: =IF(E51>'goal seek'!$E$24,MAX($I$7,E51*(1+$I$10)),MAX($I$7,RM!E51+RM!F51)) -> 124.2754648 | F52: -10.7882428 | G52: -0.07987521589 | H52: -0.07987521589 | K52: =IF(K51>'goal seek'!$E$23,MAX($O$7,K51*(1+M52)),MAX($O$7,K51+L51)) -> 0 | L52: 0 | M52: -1.671973055 | Q52: =IF(Q51>'goal seek'!$E$23,MAX($U$7,Q51*(1+S52)),MAX($U$7,Q51+R51)) -> 0 | R52: 0 | S52: -0.2704318611 | W52: =IF(W51>'goal seek'!$E$23,MAX($AA$7,W51*(1+Y52)),MAX($AA$7,W51+X51)) -> 0 | X52: 0 | Y52: -0.9077627652 | AC52: =IF(AC51>'goal seek'!$E$23,MAX($AA$7,AC51*(1+AE52)),MAX($AA$7,AC51+AD51)) -> 0 | AD52: -1.770852528 | AE52: -0.1531806051 | AI52: 0 | AJ52: -125.068686 | AK52: 0
A53: 40 | C53: 2058 | E53: =IF(E52>'goal seek'!$E$24,MAX($I$7,E52*(1+$I$10)),MAX($I$7,RM!E52+RM!F52)) -> 113.487222 | F53: -10.7882428 | G53: -0.07987521589 | H53: -0.08680911249 | K53: =IF(K52>'goal seek'!$E$23,MAX($O$7,K52*(1+M53)),MAX($O$7,K52+L52)) -> 0 | L53: 0 | M53: -1.86389474 | Q53: =IF(Q52>'goal seek'!$E$23,MAX($U$7,Q52*(1+S53)),MAX($U$7,Q52+R52)) -> 0 | R53: 0 | S53: -0.2769300195 | W53: =IF(W52>'goal seek'!$E$23,MAX($AA$7,W52*(1+Y53)),MAX($AA$7,W52+X52)) -> 0 | X53: 0 | Y53: -0.9558505719 | AC53: =IF(AC52>'goal seek'!$E$23,MAX($AA$7,AC52*(1+AE53)),MAX($AA$7,AC52+AD52)) -> 0 | AD53: 0 | AE53: -0.1548566088 | AI53: 0 | AJ53: -125.068686 | AK53: 0
A54: 41 | C54: 2059 | E54: =IF(E53>'goal seek'!$E$24,MAX($I$7,E53*(1+$I$10)),MAX($I$7,RM!E53+RM!F53)) -> 102.6989792 | F54: -10.7882428 | G54: -0.07987521589 | H54: -0.09506129953 | K54: =IF(K53>'goal seek'!$E$23,MAX($O$7,K53*(1+M54)),MAX($O$7,K53+L53)) -> 0 | L54: 0 | M54: -2.077846645 | Q54: =IF(Q53>'goal seek'!$E$23,MAX($U$7,Q53*(1+S54)),MAX($U$7,Q53+R53)) -> 0 | R54: 0 | S54: -0.2834281779 | W54: =IF(W53>'goal seek'!$E$23,MAX($AA$7,W53*(1+Y54)),MAX($AA$7,W53+X53)) -> 0 | X54: 0 | Y54: -1.00522072 | AC54: =IF(AC53>'goal seek'!$E$23,MAX($AA$7,AC53*(1+AE54)),MAX($AA$7,AC53+AD53)) -> 0 | AD54: 0 | AE54: -0.1565104107 | AI54: 0 | AJ54: -125.068686 | AK54: 0
A55: 42 | C55: 2060 | E55: =IF(E54>'goal seek'!$E$24,MAX($I$7,E54*(1+$I$10)),MAX($I$7,RM!E54+RM!F54)) -> 91.91073639 | F55: -10.7882428 | G55: -0.07987521589 | H55: -0.1050472253 | K55: =IF(K54>'goal seek'!$E$23,MAX($O$7,K54*(1+M55)),MAX($O$7,K54+L54)) -> 0 | L55: 0 | M55: -2.316357564 | Q55: =IF(Q54>'goal seek'!$E$23,MAX($U$7,Q54*(1+S55)),MAX($U$7,Q54+R54)) -> 0 | R55: 0 | S55: -0.2899263363 | W55: =IF(W54>'goal seek'!$E$23,MAX($AA$7,W54*(1+Y55)),MAX($AA$7,W54+X54)) -> 0 | X55: 0 | Y55: -1.05587321 | AC55: =IF(AC54>'goal seek'!$E$23,MAX($AA$7,AC54*(1+AE55)),MAX($AA$7,AC54+AD54)) -> 0 | AD55: 0 | AE55: -0.1581428707 | AI55: 0 | AJ55: -125.068686 | AK55: 0
A56: 43 | C56: 2061 | E56: =IF(E55>'goal seek'!$E$24,MAX($I$7,E55*(1+$I$10)),MAX($I$7,RM!E55+RM!F55)) -> 81.12249358 | F56: -10.7882428 | G56: -0.07987521589 | H56: -0.1173773949 | K56: =IF(K55>'goal seek'!$E$23,MAX($O$7,K55*(1+M56)),MAX($O$7,K55+L55)) -> 0 | L56: 0 | M56: -2.582246567 | Q56: =IF(Q55>'goal seek'!$E$23,MAX($U$7,Q55*(1+S56)),MAX($U$7,Q55+R55)) -> 0 | R56: 0 | S56: -0.2964244947 | W56: =IF(W55>'goal seek'!$E$23,MAX($AA$7,W55*(1+Y56)),MAX($AA$7,W55+X55)) -> 0 | X56: 0 | Y56: -1.107808041 | AC56: =IF(AC55>'goal seek'!$E$23,MAX($AA$7,AC55*(1+AE56)),MAX($AA$7,AC55+AD55)) -> 0 | AD56: 0 | AE56: -0.159754794 | AI56: 0 | AJ56: -125.068686 | AK56: 0
A57: 44 | C57: 2062 | E57: =IF(E56>'goal seek'!$E$24,MAX($I$7,E56*(1+$I$10)),MAX($I$7,RM!E56+RM!F56)) -> 70.33425078 | F57: -10.7882428 | G57: -0.07987521589 | H57: -0.1329870709 | K57: =IF(K56>'goal seek'!$E$23,MAX($O$7,K56*(1+M57)),MAX($O$7,K56+L56)) -> 0 | L57: 0 | M57: -2.878656316 | Q57: =IF(Q56>'goal seek'!$E$23,MAX($U$7,Q56*(1+S57)),MAX($U$7,Q56+R56)) -> 0 | R57: 0 | S57: -0.3029226531 | W57: =IF(W56>'goal seek'!$E$23,MAX($AA$7,W56*(1+Y57)),MAX($AA$7,W56+X56)) -> 0 | X57: 0 | Y57: -1.161025214 | AC57: =IF(AC56>'goal seek'!$E$23,MAX($AA$7,AC56*(1+AE57)),MAX($AA$7,AC56+AD56)) -> 0 | AD57: 0 | AE57: -0.161346937 | AI57: 0 | AJ57: -125.068686 | AK57: 0
A58: 45 | C58: 2063 | E58: =IF(E57>'goal seek'!$E$24,MAX($I$7,E57*(1+$I$10)),MAX($I$7,RM!E57+RM!F57)) -> 59.54600798 | F58: -10.7882428 | G58: -0.07987521589 | H58: -0.1533853376 | K58: =IF(K57>'goal seek'!$E$23,MAX($O$7,K57*(1+M58)),MAX($O$7,K57+L57)) -> 0 | L58: 0 | M58: -3.209090212 | Q58: =IF(Q57>'goal seek'!$E$23,MAX($U$7,Q57*(1+S58)),MAX($U$7,Q57+R57)) -> 0 | R58: 0 | S58: -0.3094208115 | W58: =IF(W57>'goal seek'!$E$23,MAX($AA$7,W57*(1+Y58)),MAX($AA$7,W57+X57)) -> 0 | X58: 0 | Y58: -1.215524728 | AC58: =IF(AC57>'goal seek'!$E$23,MAX($AA$7,AC57*(1+AE58)),MAX($AA$7,AC57+AD57)) -> 0 | AD58: 0 | AE58: -0.1629200102 | AI58: 0 | AJ58: -125.068686 | AK58: 0
A59: 46 | C59: 2064 | E59: =IF(E58>'goal seek'!$E$24,MAX($I$7,E58*(1+$I$10)),MAX($I$7,RM!E58+RM!F58)) -> 48.75776517 | F59: -10.7882428 | G59: -0.07987521589 | H59: -0.1811749128 | K59: =IF(K58>'goal seek'!$E$23,MAX($O$7,K58*(1+M59)),MAX($O$7,K58+L58)) -> 0 | L59: 0 | M59: -3.577453806 | Q59: =IF(Q58>'goal seek'!$E$23,MAX($U$7,Q58*(1+S59)),MAX($U$7,Q58+R58)) -> 0 | R59: 0 | S59: -0.3159189699 | W59: =IF(W58>'goal seek'!$E$23,MAX($AA$7,W58*(1+Y59)),MAX($AA$7,W58+X58)) -> 0 | X59: 0 | Y59: -1.271306584 | AC59: =IF(AC58>'goal seek'!$E$23,MAX($AA$7,AC58*(1+AE59)),MAX($AA$7,AC58+AD58)) -> 0 | AD59: 0 | AE59: -0.1644746831 | AI59: 0 | AJ59: -125.068686 | AK59: 0
A60: 47 | C60: 2065 | E60: =IF(E59>'goal seek'!$E$24,MAX($I$7,E59*(1+$I$10)),MAX($I$7,RM!E59+RM!F59)) -> 37.96952237 | F60: -10.7882428 | G60: -0.07987521589 | H60: -0.2212620444 | K60: =IF(K59>'goal seek'!$E$23,MAX($O$7,K59*(1+M60)),MAX($O$7,K59+L59)) -> 0 | L60: 0 | M60: -3.988100952 | Q60: =IF(Q59>'goal seek'!$E$23,MAX($U$7,Q59*(1+S60)),MAX($U$7,Q59+R59)) -> 0 | R60: 0 | S60: -0.3224171283 | W60: =IF(W59>'goal seek'!$E$23,MAX($AA$7,W59*(1+Y60)),MAX($AA$7,W59+X59)) -> 0 | X60: 0 | Y60: -1.328370781 | AC60: =IF(AC59>'goal seek'!$E$23,MAX($AA$7,AC59*(1+AE60)),MAX($AA$7,AC59+AD59)) -> 0 | AD60: 0 | AE60: -0.1660115865 | AI60: 0 | AJ60: -125.068686 | AK60: 0
A61: 48 | C61: 2066 | E61: =IF(E60>'goal seek'!$E$24,MAX($I$7,E60*(1+$I$10)),MAX($I$7,RM!E60+RM!F60)) -> 27.18127957 | F61: -10.7882428 | G61: -0.07987521589 | H61: -0.2841290101 | K61: =IF(K60>'goal seek'!$E$23,MAX($O$7,K60*(1+M61)),MAX($O$7,K60+L60)) -> 0 | L61: 0 | M61: -4.445885277 | Q61: =IF(Q60>'goal seek'!$E$23,MAX($U$7,Q60*(1+S61)),MAX($U$7,Q60+R60)) -> 0 | R61: 0 | S61: -0.3289152867 | W61: =IF(W60>'goal seek'!$E$23,MAX($AA$7,W60*(1+Y61)),MAX($AA$7,W60+X60)) -> 0 | X61: 0 | Y61: -1.38671732 | AC61: =IF(AC60>'goal seek'!$E$23,MAX($AA$7,AC60*(1+AE61)),MAX($AA$7,AC60+AD60)) -> 0 | AD61: 0 | AE61: -0.1675313162 | AI61: 0 | AJ61: -125.068686 | AK61: 0
A62: 49 | C62: 2067 | E62: =IF(E61>'goal seek'!$E$24,MAX($I$7,E61*(1+$I$10)),MAX($I$7,RM!E61+RM!F61)) -> 16.39303676 | F62: -10.7882428 | G62: -0.07987521589 | H62: -0.3968997404 | K62: =IF(K61>'goal seek'!$E$23,MAX($O$7,K61*(1+M62)),MAX($O$7,K61+L61)) -> 0 | L62: 0 | M62: -4.956217542 | Q62: =IF(Q61>'goal seek'!$E$23,MAX($U$7,Q61*(1+S62)),MAX($U$7,Q61+R61)) -> 0 | R62: 0 | S62: -0.3354134451 | W62: =IF(W61>'goal seek'!$E$23,MAX($AA$7,W61*(1+Y62)),MAX($AA$7,W61+X61)) -> 0 | X62: 0 | Y62: -1.4463462 | AC62: =IF(AC61>'goal seek'!$E$23,MAX($AA$7,AC61*(1+AE62)),MAX($AA$7,AC61+AD61)) -> 0 | AD62: 0 | AE62: -0.1690344354 | AI62: 0 | AJ62: -125.068686 | AK62: 0
A63: 50 | C63: 2068 | E63: =IF(E62>'goal seek'!$E$24,MAX($I$7,E62*(1+$I$10)),MAX($I$7,RM!E62+RM!F62)) -> 5.60479396 | F63: -10.7882428 | G63: -0.07987521589 | H63: -0.6580991038 | K63: =IF(K62>'goal seek'!$E$23,MAX($O$7,K62*(1+M63)),MAX($O$7,K62+L62)) -> 0 | L63: 0 | M63: -5 | Q63: =IF(Q62>'goal seek'!$E$23,MAX($U$7,Q62*(1+S63)),MAX($U$7,Q62+R62)) -> 0 | R63: 0 | S63: -0.3419116035 | W63: =IF(W62>'goal seek'!$E$23,MAX($AA$7,W62*(1+Y63)),MAX($AA$7,W62+X62)) -> 0 | X63: 0 | Y63: -1.507257422 | AC63: =IF(AC62>'goal seek'!$E$23,MAX($AA$7,AC62*(1+AE63)),MAX($AA$7,AC62+AD62)) -> 0 | AD63: 0 | AE63: -0.170521477 | AI63: 0 | AJ63: -125.068686 | AK63: 0
A64: 51 | C64: 2069 | E64: =IF(E63>'goal seek'!$E$24,MAX($I$7,E63*(1+$I$10)),MAX($I$7,RM!E63+RM!F63)) -> 0 | F64: -5.60479396 | G64: -0.07987521589 | K64: =IF(K63>'goal seek'!$E$23,MAX($O$7,K63*(1+M64)),MAX($O$7,K63+L63)) -> 0 | L64: 0 | M64: -5 | Q64: =IF(Q63>'goal seek'!$E$23,MAX($U$7,Q63*(1+S64)),MAX($U$7,Q63+R63)) -> 0 | R64: 0 | S64: -0.348409762 | W64: =IF(W63>'goal seek'!$E$23,MAX($AA$7,W63*(1+Y64)),MAX($AA$7,W63+X63)) -> 0 | X64: 0 | Y64: -1.569450986 | AC64: =IF(AC63>'goal seek'!$E$23,MAX($AA$7,AC63*(1+AE64)),MAX($AA$7,AC63+AD63)) -> 0 | AD64: 0 | AE64: -0.1719929462 | AI64: 0 | AJ64: -125.068686 | AK64: 0
A65: 52 | C65: 2070 | E65: =IF(E64>'goal seek'!$E$24,MAX($I$7,E64*(1+$I$10)),MAX($I$7,RM!E64+RM!F64)) -> 0 | F65: 0 | G65: -0.07987521589 | K65: =IF(K64>'goal seek'!$E$23,MAX($O$7,K64*(1+M65)),MAX($O$7,K64+L64)) -> 0 | L65: 0 | M65: -5 | Q65: =IF(Q64>'goal seek'!$E$23,MAX($U$7,Q64*(1+S65)),MAX($U$7,Q64+R64)) -> 0 | R65: 0 | S65: -0.3549079204 | W65: =IF(W64>'goal seek'!$E$23,MAX($AA$7,W64*(1+Y65)),MAX($AA$7,W64+X64)) -> 0 | X65: 0 | Y65: -1.63292689 | AC65: =IF(AC64>'goal seek'!$E$23,MAX($AA$7,AC64*(1+AE65)),MAX($AA$7,AC64+AD64)) -> 0 | AD65: 0 | AE65: -0.1734493222 | AI65: 0 | AJ65: -125.068686 | AK65: 0
A66: 53 | C66: 2071 | E66: =IF(E65>'goal seek'!$E$24,MAX($I$7,E65*(1+$I$10)),MAX($I$7,RM!E65+RM!F65)) -> 0 | F66: 0 | G66: -0.07987521589 | K66: =IF(K65>'goal seek'!$E$23,MAX($O$7,K65*(1+M66)),MAX($O$7,K65+L65)) -> 0 | L66: 0 | M66: -5 | Q66: =IF(Q65>'goal seek'!$E$23,MAX($U$7,Q65*(1+S66)),MAX($U$7,Q65+R65)) -> 0 | R66: 0 | S66: -0.3614060788 | W66: =IF(W65>'goal seek'!$E$23,MAX($AA$7,W65*(1+Y66)),MAX($AA$7,W65+X65)) -> 0 | X66: 0 | Y66: -1.697685137 | AC66: =IF(AC65>'goal seek'!$E$23,MAX($AA$7,AC65*(1+AE66)),MAX($AA$7,AC65+AD65)) -> 0 | AD66: 0 | AE66: -0.1748910601 | AI66: 0 | AJ66: -125.068686 | AK66: 0
A67: 54 | C67: 2072 | E67: =IF(E66>'goal seek'!$E$24,MAX($I$7,E66*(1+$I$10)),MAX($I$7,RM!E66+RM!F66)) -> 0 | F67: 0 | G67: -0.07987521589 | K67: =IF(K66>'goal seek'!$E$23,MAX($O$7,K66*(1+M67)),MAX($O$7,K66+L66)) -> 0 | L67: 0 | M67: -5 | Q67: =IF(Q66>'goal seek'!$E$23,MAX($U$7,Q66*(1+S67)),MAX($U$7,Q66+R66)) -> 0 | R67: 0 | S67: -0.3679042372 | W67: =IF(W66>'goal seek'!$E$23,MAX($AA$7,W66*(1+Y67)),MAX($AA$7,W66+X66)) -> 0 | X67: 0 | Y67: -1.763725725 | AC67: =IF(AC66>'goal seek'!$E$23,MAX($AA$7,AC66*(1+AE67)),MAX($AA$7,AC66+AD66)) -> 0 | AD67: 0 | AE67: -0.1763185927 | AI67: 0 | AJ67: -125.068686 | AK67: 0
A68: 55 | C68: 2073 | E68: =IF(E67>'goal seek'!$E$24,MAX($I$7,E67*(1+$I$10)),MAX($I$7,RM!E67+RM!F67)) -> 0 | F68: 0 | G68: -0.07987521589 | K68: =IF(K67>'goal seek'!$E$23,MAX($O$7,K67*(1+M68)),MAX($O$7,K67+L67)) -> 0 | L68: 0 | M68: -5 | Q68: =IF(Q67>'goal seek'!$E$23,MAX($U$7,Q67*(1+S68)),MAX($U$7,Q67+R67)) -> 0 | R68: 0 | S68: -0.3744023956 | W68: =IF(W67>'goal seek'!$E$23,MAX($AA$7,W67*(1+Y68)),MAX($AA$7,W67+X67)) -> 0 | X68: 0 | Y68: -1.831048654 | AC68: =IF(AC67>'goal seek'!$E$23,MAX($AA$7,AC67*(1+AE68)),MAX($AA$7,AC67+AD67)) -> 0 | AD68: 0 | AE68: -0.1777323318 | AI68: 0 | AJ68: -125.068686 | AK68: 0
A69: 56 | C69: 2074 | E69: =IF(E68>'goal seek'!$E$24,MAX($I$7,E68*(1+$I$10)),MAX($I$7,RM!E68+RM!F68)) -> 0 | F69: 0 | G69: -0.07987521589 | K69: =IF(K68>'goal seek'!$E$23,MAX($O$7,K68*(1+M69)),MAX($O$7,K68+L68)) -> 0 | L69: 0 | M69: -5 | Q69: =IF(Q68>'goal seek'!$E$23,MAX($U$7,Q68*(1+S69)),MAX($U$7,Q68+R68)) -> 0 | R69: 0 | S69: -0.380900554 | W69: =IF(W68>'goal seek'!$E$23,MAX($AA$7,W68*(1+Y69)),MAX($AA$7,W68+X68)) -> 0 | X69: 0 | Y69: -1.899653925 | AC69: =IF(AC68>'goal seek'!$E$23,MAX($AA$7,AC68*(1+AE69)),MAX($AA$7,AC68+AD68)) -> 0 | AD69: 0 | AE69: -0.1791326696 | AI69: 0 | AJ69: -125.068686 | AK69: 0
A70: 57 | C70: 2075 | E70: =IF(E69>'goal seek'!$E$24,MAX($I$7,E69*(1+$I$10)),MAX($I$7,RM!E69+RM!F69)) -> 0 | F70: 0 | G70: -0.07987521589 | K70: =IF(K69>'goal seek'!$E$23,MAX($O$7,K69*(1+M70)),MAX($O$7,K69+L69)) -> 0 | L70: 0 | M70: -5 | Q70: =IF(Q69>'goal seek'!$E$23,MAX($U$7,Q69*(1+S70)),MAX($U$7,Q69+R69)) -> 0 | R70: 0 | S70: -0.3873987124 | W70: =IF(W69>'goal seek'!$E$23,MAX($AA$7,W69*(1+Y70)),MAX($AA$7,W69+X69)) -> 0 | X70: 0 | Y70: -1.969541537 | AC70: =IF(AC69>'goal seek'!$E$23,MAX($AA$7,AC69*(1+AE70)),MAX($AA$7,AC69+AD69)) -> 0 | AD70: 0 | AE70: -0.1805199801 | AI70: 0 | AJ70: -125.068686 | AK70: 0
A71: 58 | C71: 2076 | E71: =IF(E70>'goal seek'!$E$24,MAX($I$7,E70*(1+$I$10)),MAX($I$7,RM!E70+RM!F70)) -> 0 | F71: 0 | G71: -0.07987521589 | K71: =IF(K70>'goal seek'!$E$23,MAX($O$7,K70*(1+M71)),MAX($O$7,K70+L70)) -> 0 | L71: 0 | M71: -5 | Q71: =IF(Q70>'goal seek'!$E$23,MAX($U$7,Q70*(1+S71)),MAX($U$7,Q70+R70)) -> 0 | R71: 0 | S71: -0.3938968708 | W71: =IF(W70>'goal seek'!$E$23,MAX($AA$7,W70*(1+Y71)),MAX($AA$7,W70+X70)) -> 0 | X71: 0 | Y71: -2.040711491 | AC71: =IF(AC70>'goal seek'!$E$23,MAX($AA$7,AC70*(1+AE71)),MAX($AA$7,AC70+AD70)) -> 0 | AD71: 0 | AE71: -0.1818946203 | AI71: 0 | AJ71: -125.068686 | AK71: 0
A72: 59 | C72: 2077 | E72: =IF(E71>'goal seek'!$E$24,MAX($I$7,E71*(1+$I$10)),MAX($I$7,RM!E71+RM!F71)) -> 0 | F72: 0 | G72: -0.07987521589 | K72: =IF(K71>'goal seek'!$E$23,MAX($O$7,K71*(1+M72)),MAX($O$7,K71+L71)) -> 0 | L72: 0 | M72: -5 | Q72: =IF(Q71>'goal seek'!$E$23,MAX($U$7,Q71*(1+S72)),MAX($U$7,Q71+R71)) -> 0 | R72: 0 | S72: -0.4003950292 | W72: =IF(W71>'goal seek'!$E$23,MAX($AA$7,W71*(1+Y72)),MAX($AA$7,W71+X71)) -> 0 | X72: 0 | Y72: -2.113163787 | AC72: =IF(AC71>'goal seek'!$E$23,MAX($AA$7,AC71*(1+AE72)),MAX($AA$7,AC71+AD71)) -> 0 | AD72: 0 | AE72: -0.1832569312 | AI72: 0 | AJ72: -125.068686 | AK72: 0
A73: 60 | C73: 2078 | E73: =IF(E72>'goal seek'!$E$24,MAX($I$7,E72*(1+$I$10)),MAX($I$7,RM!E72+RM!F72)) -> 0 | F73: 0 | G73: -0.07987521589 | K73: =IF(K72>'goal seek'!$E$23,MAX($O$7,K72*(1+M73)),MAX($O$7,K72+L72)) -> 0 | L73: 0 | M73: -5 | Q73: =IF(Q72>'goal seek'!$E$23,MAX($U$7,Q72*(1+S73)),MAX($U$7,Q72+R72)) -> 0 | R73: 0 | S73: -0.4068931876 | W73: =IF(W72>'goal seek'!$E$23,MAX($AA$7,W72*(1+Y73)),MAX($AA$7,W72+X72)) -> 0 | X73: 0 | Y73: -2.186898424 | AC73: =IF(AC72>'goal seek'!$E$23,MAX($AA$7,AC72*(1+AE73)),MAX($AA$7,AC72+AD72)) -> 0 | AD73: 0 | AE73: -0.1846072386 | AI73: 0 | AJ73: -125.068686 | AK73: 0
A74: 61 | C74: 2079 | E74: =IF(E73>'goal seek'!$E$24,MAX($I$7,E73*(1+$I$10)),MAX($I$7,RM!E73+RM!F73)) -> 0 | F74: 0 | G74: -0.07987521589 | K74: =IF(K73>'goal seek'!$E$23,MAX($O$7,K73*(1+M74)),MAX($O$7,K73+L73)) -> 0 | L74: 0 | M74: -5 | Q74: =IF(Q73>'goal seek'!$E$23,MAX($U$7,Q73*(1+S74)),MAX($U$7,Q73+R73)) -> 0 | R74: 0 | S74: -0.413391346 | W74: =IF(W73>'goal seek'!$E$23,MAX($AA$7,W73*(1+Y74)),MAX($AA$7,W73+X73)) -> 0 | X74: 0 | Y74: -2.261915402 | AC74: =IF(AC73>'goal seek'!$E$23,MAX($AA$7,AC73*(1+AE74)),MAX($AA$7,AC73+AD73)) -> 0 | AD74: 0 | AE74: -0.1859458544 | AI74: 0 | AJ74: -125.068686 | AK74: 0
A75: 62 | C75: 2080 | E75: =IF(E74>'goal seek'!$E$24,MAX($I$7,E74*(1+$I$10)),MAX($I$7,RM!E74+RM!F74)) -> 0 | F75: 0 | G75: -0.07987521589 | K75: =IF(K74>'goal seek'!$E$23,MAX($O$7,K74*(1+M75)),MAX($O$7,K74+L74)) -> 0 | L75: 0 | M75: -5 | Q75: =IF(Q74>'goal seek'!$E$23,MAX($U$7,Q74*(1+S75)),MAX($U$7,Q74+R74)) -> 0 | R75: 0 | S75: -0.4198895044 | W75: =IF(W74>'goal seek'!$E$23,MAX($AA$7,W74*(1+Y75)),MAX($AA$7,W74+X74)) -> 0 | X75: 0 | Y75: -2.338214722 | AC75: =IF(AC74>'goal seek'!$E$23,MAX($AA$7,AC74*(1+AE75)),MAX($AA$7,AC74+AD74)) -> 0 | AD75: 0 | AE75: -0.1872730771 | AI75: 0 | AJ75: -125.068686 | AK75: 0
A76: 63 | C76: 2081 | E76: =IF(E75>'goal seek'!$E$24,MAX($I$7,E75*(1+$I$10)),MAX($I$7,RM!E75+RM!F75)) -> 0 | F76: 0 | G76: -0.07987521589 | K76: =IF(K75>'goal seek'!$E$23,MAX($O$7,K75*(1+M76)),MAX($O$7,K75+L75)) -> 0 | L76: 0 | M76: -5 | Q76: =IF(Q75>'goal seek'!$E$23,MAX($U$7,Q75*(1+S76)),MAX($U$7,Q75+R75)) -> 0 | R76: 0 | S76: -0.4263876628 | W76: =IF(W75>'goal seek'!$E$23,MAX($AA$7,W75*(1+Y76)),MAX($AA$7,W75+X75)) -> 0 | X76: 0 | Y76: -2.415796384 | AC76: =IF(AC75>'goal seek'!$E$23,MAX($AA$7,AC75*(1+AE76)),MAX($AA$7,AC75+AD75)) -> 0 | AD76: 0 | AE76: -0.1885891927 | AI76: 0 | AJ76: -125.068686 | AK76: 0
A77: 64 | C77: 2082 | E77: =IF(E76>'goal seek'!$E$24,MAX($I$7,E76*(1+$I$10)),MAX($I$7,RM!E76+RM!F76)) -> 0 | F77: 0 | G77: -0.07987521589 | K77: =IF(K76>'goal seek'!$E$23,MAX($O$7,K76*(1+M77)),MAX($O$7,K76+L76)) -> 0 | L77: 0 | M77: -5 | Q77: =IF(Q76>'goal seek'!$E$23,MAX($U$7,Q76*(1+S77)),MAX($U$7,Q76+R76)) -> 0 | R77: 0 | S77: -0.4328858212 | W77: =IF(W76>'goal seek'!$E$23,MAX($AA$7,W76*(1+Y77)),MAX($AA$7,W76+X76)) -> 0 | X77: 0 | Y77: -2.494660387 | AC77: =IF(AC76>'goal seek'!$E$23,MAX($AA$7,AC76*(1+AE77)),MAX($AA$7,AC76+AD76)) -> 0 | AD77: 0 | AE77: -0.1898944756 | AI77: 0 | AJ77: -125.068686 | AK77: 0
A78: 65 | C78: 2083 | E78: =IF(E77>'goal seek'!$E$24,MAX($I$7,E77*(1+$I$10)),MAX($I$7,RM!E77+RM!F77)) -> 0 | F78: 0 | G78: -0.07987521589 | K78: =IF(K77>'goal seek'!$E$23,MAX($O$7,K77*(1+M78)),MAX($O$7,K77+L77)) -> 0 | L78: 0 | M78: -5 | Q78: =IF(Q77>'goal seek'!$E$23,MAX($U$7,Q77*(1+S78)),MAX($U$7,Q77+R77)) -> 0 | R78: 0 | S78: -0.4393839797 | W78: =IF(W77>'goal seek'!$E$23,MAX($AA$7,W77*(1+Y78)),MAX($AA$7,W77+X77)) -> 0 | X78: 0 | Y78: -2.574806731 | AC78: =IF(AC77>'goal seek'!$E$23,MAX($AA$7,AC77*(1+AE78)),MAX($AA$7,AC77+AD77)) -> 0 | AD78: 0 | AE78: -0.1911891888 | AI78: 0 | AJ78: -125.068686 | AK78: 0
A79: 66 | C79: 2084 | E79: =IF(E78>'goal seek'!$E$24,MAX($I$7,E78*(1+$I$10)),MAX($I$7,RM!E78+RM!F78)) -> 0 | F79: =E79-E78 -> 0 | G79: -0.07987521589 | H79: =IF(E79>0,E79/E78-1,"") ->  | K79: =IF(K78>'goal seek'!$E$23,MAX($O$7,K78*(1+M79)),MAX($O$7,K78+L78)) -> 0 | L79: =K79-K78 -> 0 | M79: -5 | Q79: =IF(Q78>'goal seek'!$E$23,MAX($U$7,Q78*(1+S79)),MAX($U$7,Q78+R78)) -> 0 | R79: =Q79-Q78 -> 0 | S79: -0.4458821381 | W79: =IF(W78>'goal seek'!$E$23,MAX($AA$7,W78*(1+Y79)),MAX($AA$7,W78+X78)) -> 0 | X79: 0 | Y79: =$AA$10*(C79-2020)^2+$AA$9 -> -2.656235417 | AC79: =IF(AC78>'goal seek'!$E$23,MAX($AA$7,AC78*(1+AE79)),MAX($AA$7,AC78+AD78)) -> 0 | AD79: =AC79-AC78 -> 0 | AE79: -0.1924735851 | AI79: 0 | AJ79: -125.068686 | AK79: 0
A80: =A79+1 -> 67 | C80: =C79+1 -> 2085 | E80: =IF(E79>'goal seek'!$E$24,MAX($I$7,E79*(1+$I$10)),MAX($I$7,RM!E79+RM!F79)) -> 0 | F80: 0 | G80: -0.07987521589 | K80: =IF(K79>'goal seek'!$E$23,MAX($O$7,K79*(1+M80)),MAX($O$7,K79+L79)) -> 0 | L80: 0 | M80: =MAX(-5,M79*(1+$O$10)) -> -5 | N80: =IF(K80>0,K80/K79-1,"") ->  | Q80: =IF(Q79>'goal seek'!$E$23,MAX($U$7,Q79*(1+S80)),MAX($U$7,Q79+R79)) -> 0 | R80: 0 | S80: =S79+$U$10 -> -0.4523802965 | T80: =IF(Q80>0,Q80/Q79-1,"") ->  | W80: =IF(W79>'goal seek'!$E$23,MAX($AA$7,W79*(1+Y80)),MAX($AA$7,W79+X79)) -> 0 | X80: 0 | Y80: -2.738946445 | Z80: =IF(W80>0,W80/W79-1,"") ->  | AC80: =IF(AC79>'goal seek'!$E$23,MAX($AA$7,AC79*(1+AE80)),MAX($AA$7,AC79+AD79)) -> 0 | AD80: 0 | AE80: =$AG$10*SQRT(C80-$AG$4-2020)+$AG$9 -> -0.1937479073 | AF80: =IF(AC80>0,AC80/AC79-1,"") ->  | AI80: =MAX(AI79+$AM$10,$AM$7) -> 0 | AJ80: -125.068686 | AK80: =AI80-AI79 -> 0 | AL80: =IF(AI80>0,AI80/AI79-1,"") -> 
A81: 68 | C81: 2086 | E81: =IF(E80>'goal seek'!$E$24,MAX($I$7,E80*(1+$I$10)),MAX($I$7,RM!E80+RM!F80)) -> 0 | F81: 0 | G81: =G80 -> -0.07987521589 | K81: =IF(K80>'goal seek'!$E$23,MAX($O$7,K80*(1+M81)),MAX($O$7,K80+L80)) -> 0 | L81: 0 | M81: -5 | Q81: =IF(Q80>'goal seek'!$E$23,MAX($U$7,Q80*(1+S81)),MAX($U$7,Q80+R80)) -> 0 | R81: 0 | S81: -0.4588784549 | W81: =IF(W80>'goal seek'!$E$23,MAX($AA$7,W80*(1+Y81)),MAX($AA$7,W80+X80)) -> 0 | X81: 0 | Y81: -2.822939814 | AC81: =IF(AC80>'goal seek'!$E$23,MAX($AA$7,AC80*(1+AE81)),MAX($AA$7,AC80+AD80)) -> 0 | AD81: 0 | AE81: -0.1950123887 | AI81: 0 | AJ81: =AJ80 -> -125.068686 | AK81: 0
A82: 69 | C82: 2087 | E82: =IF(E81>'goal seek'!$E$24,MAX($I$7,E81*(1+$I$10)),MAX($I$7,RM!E81+RM!F81)) -> 0 | F82: 0 | G82: -0.07987521589 | K82: =IF(K81>'goal seek'!$E$23,MAX($O$7,K81*(1+M82)),MAX($O$7,K81+L81)) -> 0 | L82: 0 | M82: -5 | Q82: =IF(Q81>'goal seek'!$E$23,MAX($U$7,Q81*(1+S82)),MAX($U$7,Q81+R81)) -> 0 | R82: 0 | S82: -0.4653766133 | W82: =IF(W81>'goal seek'!$E$23,MAX($AA$7,W81*(1+Y82)),MAX($AA$7,W81+X81)) -> 0 | X82: 0 | Y82: -2.908215524 | AC82: =IF(AC81>'goal seek'!$E$23,MAX($AA$7,AC81*(1+AE82)),MAX($AA$7,AC81+AD81)) -> 0 | AD82: 0 | AE82: -0.1962672538 | AI82: 0 | AJ82: -125.068686 | AK82: 0
A83: 70 | C83: 2088 | E83: =IF(E82>'goal seek'!$E$24,MAX($I$7,E82*(1+$I$10)),MAX($I$7,RM!E82+RM!F82)) -> 0 | F83: 0 | G83: -0.07987521589 | K83: =IF(K82>'goal seek'!$E$23,MAX($O$7,K82*(1+M83)),MAX($O$7,K82+L82)) -> 0 | L83: 0 | M83: -5 | Q83: =IF(Q82>'goal seek'!$E$23,MAX($U$7,Q82*(1+S83)),MAX($U$7,Q82+R82)) -> 0 | R83: 0 | S83: -0.4718747717 | W83: =IF(W82>'goal seek'!$E$23,MAX($AA$7,W82*(1+Y83)),MAX($AA$7,W82+X82)) -> 0 | X83: 0 | Y83: -2.994773576 | AC83: =IF(AC82>'goal seek'!$E$23,MAX($AA$7,AC82*(1+AE83)),MAX($AA$7,AC82+AD82)) -> 0 | AD83: 0 | AE83: -0.1975127188 | AI83: 0 | AJ83: -125.068686 | AK83: 0
A84: 71 | C84: 2089 | E84: =IF(E83>'goal seek'!$E$24,MAX($I$7,E83*(1+$I$10)),MAX($I$7,RM!E83+RM!F83)) -> 0 | F84: 0 | G84: -0.07987521589 | K84: =IF(K83>'goal seek'!$E$23,MAX($O$7,K83*(1+M84)),MAX($O$7,K83+L83)) -> 0 | L84: 0 | M84: -5 | Q84: =IF(Q83>'goal seek'!$E$23,MAX($U$7,Q83*(1+S84)),MAX($U$7,Q83+R83)) -> 0 | R84: 0 | S84: -0.4783729301 | W84: =IF(W83>'goal seek'!$E$23,MAX($AA$7,W83*(1+Y84)),MAX($AA$7,W83+X83)) -> 0 | X84: 0 | Y84: -3.08261397 | AC84: =IF(AC83>'goal seek'!$E$23,MAX($AA$7,AC83*(1+AE84)),MAX($AA$7,AC83+AD83)) -> 0 | AD84: 0 | AE84: -0.1987489918 | AI84: 0 | AJ84: -125.068686 | AK84: 0
A85: 72 | C85: 2090 | E85: =IF(E84>'goal seek'!$E$24,MAX($I$7,E84*(1+$I$10)),MAX($I$7,RM!E84+RM!F84)) -> 0 | F85: 0 | G85: -0.07987521589 | K85: =IF(K84>'goal seek'!$E$23,MAX($O$7,K84*(1+M85)),MAX($O$7,K84+L84)) -> 0 | L85: 0 | M85: -5 | Q85: =IF(Q84>'goal seek'!$E$23,MAX($U$7,Q84*(1+S85)),MAX($U$7,Q84+R84)) -> 0 | R85: 0 | S85: -0.4848710885 | W85: =IF(W84>'goal seek'!$E$23,MAX($AA$7,W84*(1+Y85)),MAX($AA$7,W84+X84)) -> 0 | X85: 0 | Y85: -3.171736705 | AC85: =IF(AC84>'goal seek'!$E$23,MAX($AA$7,AC84*(1+AE85)),MAX($AA$7,AC84+AD84)) -> 0 | AD85: 0 | AE85: -0.1999762734 | AI85: 0 | AJ85: -125.068686 | AK85: 0
A86: 73 | C86: 2091 | E86: =IF(E85>'goal seek'!$E$24,MAX($I$7,E85*(1+$I$10)),MAX($I$7,RM!E85+RM!F85)) -> 0 | F86: 0 | G86: -0.07987521589 | K86: =IF(K85>'goal seek'!$E$23,MAX($O$7,K85*(1+M86)),MAX($O$7,K85+L85)) -> 0 | L86: 0 | M86: -5 | Q86: =IF(Q85>'goal seek'!$E$23,MAX($U$7,Q85*(1+S86)),MAX($U$7,Q85+R85)) -> 0 | R86: =Q86-Q85 -> 0 | S86: -0.4913692469 | W86: =IF(W85>'goal seek'!$E$23,MAX($AA$7,W85*(1+Y86)),MAX($AA$7,W85+X85)) -> 0 | X86: 0 | Y86: -3.262141782 | AC86: =IF(AC85>'goal seek'!$E$23,MAX($AA$7,AC85*(1+AE86)),MAX($AA$7,AC85+AD85)) -> 0 | AD86: 0 | AE86: -0.2011947569 | AI86: 0 | AJ86: -125.068686 | AK86: 0
A87: 74 | C87: 2092 | E87: =IF(E86>'goal seek'!$E$24,MAX($I$7,E86*(1+$I$10)),MAX($I$7,RM!E86+RM!F86)) -> 0 | F87: 0 | G87: -0.07987521589 | K87: =IF(K86>'goal seek'!$E$23,MAX($O$7,K86*(1+M87)),MAX($O$7,K86+L86)) -> 0 | L87: 0 | M87: -5 | Q87: =IF(Q86>'goal seek'!$E$23,MAX($U$7,Q86*(1+S87)),MAX($U$7,Q86+R86)) -> 0 | R87: 0 | S87: -0.4978674053 | W87: =IF(W86>'goal seek'!$E$23,MAX($AA$7,W86*(1+Y87)),MAX($AA$7,W86+X86)) -> 0 | X87: 0 | Y87: -3.3538292 | AC87: =IF(AC86>'goal seek'!$E$23,MAX($AA$7,AC86*(1+AE87)),MAX($AA$7,AC86+AD86)) -> 0 | AD87: 0 | AE87: -0.2024046289 | AI87: 0 | AJ87: -125.068686 | AK87: 0
A88: 75 | C88: 2093 | E88: =IF(E87>'goal seek'!$E$24,MAX($I$7,E87*(1+$I$10)),MAX($I$7,RM!E87+RM!F87)) -> 0 | F88: 0 | G88: -0.07987521589 | K88: =IF(K87>'goal seek'!$E$23,MAX($O$7,K87*(1+M88)),MAX($O$7,K87+L87)) -> 0 | L88: 0 | M88: -5 | Q88: =IF(Q87>'goal seek'!$E$23,MAX($U$7,Q87*(1+S88)),MAX($U$7,Q87+R87)) -> 0 | R88: 0 | S88: -0.5043655637 | W88: =IF(W87>'goal seek'!$E$23,MAX($AA$7,W87*(1+Y88)),MAX($AA$7,W87+X87)) -> 0 | X88: 0 | Y88: -3.44679896 | AC88: =IF(AC87>'goal seek'!$E$23,MAX($AA$7,AC87*(1+AE88)),MAX($AA$7,AC87+AD87)) -> 0 | AD88: 0 | AE88: -0.2036060694 | AI88: 0 | AJ88: -125.068686 | AK88: 0
A89: 76 | C89: 2094 | E89: =IF(E88>'goal seek'!$E$24,MAX($I$7,E88*(1+$I$10)),MAX($I$7,RM!E88+RM!F88)) -> 0 | F89: 0 | G89: -0.07987521589 | K89: =IF(K88>'goal seek'!$E$23,MAX($O$7,K88*(1+M89)),MAX($O$7,K88+L88)) -> 0 | L89: 0 | M89: -5 | Q89: =IF(Q88>'goal seek'!$E$23,MAX($U$7,Q88*(1+S89)),MAX($U$7,Q88+R88)) -> 0 | R89: 0 | S89: -0.5108637221 | W89: =IF(W88>'goal seek'!$E$23,MAX($AA$7,W88*(1+Y89)),MAX($AA$7,W88+X88)) -> 0 | X89: 0 | Y89: -3.541051061 | AC89: =IF(AC88>'goal seek'!$E$23,MAX($AA$7,AC88*(1+AE89)),MAX($AA$7,AC88+AD88)) -> 0 | AD89: 0 | AE89: -0.2047992523 | AI89: 0 | AJ89: -125.068686 | AK89: 0
A90: 77 | C90: 2095 | E90: =IF(E89>'goal seek'!$E$24,MAX($I$7,E89*(1+$I$10)),MAX($I$7,RM!E89+RM!F89)) -> 0 | F90: 0 | G90: -0.07987521589 | K90: =IF(K89>'goal seek'!$E$23,MAX($O$7,K89*(1+M90)),MAX($O$7,K89+L89)) -> 0 | L90: 0 | M90: -5 | Q90: =IF(Q89>'goal seek'!$E$23,MAX($U$7,Q89*(1+S90)),MAX($U$7,Q89+R89)) -> 0 | R90: 0 | S90: -0.5173618805 | W90: =IF(W89>'goal seek'!$E$23,MAX($AA$7,W89*(1+Y90)),MAX($AA$7,W89+X89)) -> 0 | X90: 0 | Y90: -3.636585503 | AC90: =IF(AC89>'goal seek'!$E$23,MAX($AA$7,AC89*(1+AE90)),MAX($AA$7,AC89+AD89)) -> 0 | AD90: 0 | AE90: -0.2059843455 | AI90: 0 | AJ90: -125.068686 | AK90: 0
A91: 78 | C91: 2096 | E91: =IF(E90>'goal seek'!$E$24,MAX($I$7,E90*(1+$I$10)),MAX($I$7,RM!E90+RM!F90)) -> 0 | F91: 0 | G91: -0.07987521589 | K91: =IF(K90>'goal seek'!$E$23,MAX($O$7,K90*(1+M91)),MAX($O$7,K90+L90)) -> 0 | L91: 0 | M91: -5 | Q91: =IF(Q90>'goal seek'!$E$23,MAX($U$7,Q90*(1+S91)),MAX($U$7,Q90+R90)) -> 0 | R91: 0 | S91: -0.5238600389 | W91: =IF(W90>'goal seek'!$E$23,MAX($AA$7,W90*(1+Y91)),MAX($AA$7,W90+X90)) -> 0 | X91: 0 | Y91: -3.733402287 | AC91: =IF(AC90>'goal seek'!$E$23,MAX($AA$7,AC90*(1+AE91)),MAX($AA$7,AC90+AD90)) -> 0 | AD91: 0 | AE91: -0.2071615115 | AI91: 0 | AJ91: -125.068686 | AK91: 0
A92: 79 | C92: 2097 | E92: =IF(E91>'goal seek'!$E$24,MAX($I$7,E91*(1+$I$10)),MAX($I$7,RM!E91+RM!F91)) -> 0 | F92: 0 | G92: -0.07987521589 | K92: =IF(K91>'goal seek'!$E$23,MAX($O$7,K91*(1+M92)),MAX($O$7,K91+L91)) -> 0 | L92: 0 | M92: -5 | Q92: =IF(Q91>'goal seek'!$E$23,MAX($U$7,Q91*(1+S92)),MAX($U$7,Q91+R91)) -> 0 | R92: 0 | S92: -0.5303581974 | W92: =IF(W91>'goal seek'!$E$23,MAX($AA$7,W91*(1+Y92)),MAX($AA$7,W91+X91)) -> 0 | X92: 0 | Y92: -3.831501413 | AC92: =IF(AC91>'goal seek'!$E$23,MAX($AA$7,AC91*(1+AE92)),MAX($AA$7,AC91+AD91)) -> 0 | AD92: 0 | AE92: -0.2083309071 | AI92: 0 | AJ92: -125.068686 | AK92: 0
A93: 80 | C93: 2098 | E93: =IF(E92>'goal seek'!$E$24,MAX($I$7,E92*(1+$I$10)),MAX($I$7,RM!E92+RM!F92)) -> 0 | F93: 0 | G93: -0.07987521589 | K93: =IF(K92>'goal seek'!$E$23,MAX($O$7,K92*(1+M93)),MAX($O$7,K92+L92)) -> 0 | L93: 0 | M93: -5 | Q93: =IF(Q92>'goal seek'!$E$23,MAX($U$7,Q92*(1+S93)),MAX($U$7,Q92+R92)) -> 0 | R93: 0 | S93: -0.5368563558 | W93: =IF(W92>'goal seek'!$E$23,MAX($AA$7,W92*(1+Y93)),MAX($AA$7,W92+X92)) -> 0 | X93: 0 | Y93: -3.93088288 | AC93: =IF(AC92>'goal seek'!$E$23,MAX($AA$7,AC92*(1+AE93)),MAX($AA$7,AC92+AD92)) -> 0 | AD93: 0 | AE93: -0.2094926842 | AI93: 0 | AJ93: -125.068686 | AK93: 0
A94: 81 | C94: 2099 | E94: =IF(E93>'goal seek'!$E$24,MAX($I$7,E93*(1+$I$10)),MAX($I$7,RM!E93+RM!F93)) -> 0 | F94: 0 | G94: -0.07987521589 | K94: =IF(K93>'goal seek'!$E$23,MAX($O$7,K93*(1+M94)),MAX($O$7,K93+L93)) -> 0 | L94: 0 | M94: -5 | Q94: =IF(Q93>'goal seek'!$E$23,MAX($U$7,Q93*(1+S94)),MAX($U$7,Q93+R93)) -> 0 | R94: 0 | S94: -0.5433545142 | W94: =IF(W93>'goal seek'!$E$23,MAX($AA$7,W93*(1+Y94)),MAX($AA$7,W93+X93)) -> 0 | X94: 0 | Y94: -4.031546689 | AC94: =IF(AC93>'goal seek'!$E$23,MAX($AA$7,AC93*(1+AE94)),MAX($AA$7,AC93+AD93)) -> 0 | AD94: 0 | AE94: -0.2106469899 | AI94: 0 | AJ94: -125.068686 | AK94: 0
A95: 82 | C95: 2100 | E95: =IF(E94>'goal seek'!$E$24,MAX($I$7,E94*(1+$I$10)),MAX($I$7,RM!E94+RM!F94)) -> 0 | F95: 0 | G95: -0.07987521589 | K95: =IF(K94>'goal seek'!$E$23,MAX($O$7,K94*(1+M95)),MAX($O$7,K94+L94)) -> 0 | L95: 0 | M95: -5 | Q95: =IF(Q94>'goal seek'!$E$23,MAX($U$7,Q94*(1+S95)),MAX($U$7,Q94+R94)) -> 0 | R95: 0 | S95: -0.5498526726 | W95: =IF(W94>'goal seek'!$E$23,MAX($AA$7,W94*(1+Y95)),MAX($AA$7,W94+X94)) -> 0 | X95: 0 | Y95: -4.133492839 | AC95: =IF(AC94>'goal seek'!$E$23,MAX($AA$7,AC94*(1+AE95)),MAX($AA$7,AC94+AD94)) -> 0 | AD95: 0 | AE95: -0.2117939664 | AI95: 0 | AJ95: -125.068686 | AK95: 0
C96: sum | E96: =SUM(E15:E95) -> 33080.09258 | K96: =SUM(K15:K95) -> 33079.81813 | Q96: =SUM(Q15:Q95) -> 33079.87199 | W96: =SUM(W15:W95) -> 33079.59577 | AC96: =SUM(AC15:AC95) -> 33079.62273 | AI96: =SUM(AI15:AI95) -> 33079.61692
E97: =SUMIF(E15:E95,"<0") -> 0 | F97: negative emissions in Mill. t | K97: =SUMIF(K15:K95,"<0") -> 0 | L97: =F97 -> negative emissions in Mill. t | Q97: =SUMIF(Q15:Q95,"<0") -> 0 | R97: =L97 -> negative emissions in Mill. t | W97: =SUMIF(W15:W95,"<0") -> 0 | X97: =R97 -> negative emissions in Mill. t | AC97: =SUMIF(AC15:AC95,"<0") -> 0 | AD97: =X97 -> negative emissions in Mill. t | AI97: =SUMIF(AI15:AI95,"<0") -> 0 | AJ97: =AD97 -> negative emissions in Mill. t

Sheet SPM (hidden)
C2: Calculation national emission paths for a selected country for the SPM scenarios
C4: parameter r in SPM | K4: In the sheet "base data" given budget 2020 - 2100: | Q4: ='base data'!L41 -> 33079.69562 | R4: Mill. t
C5: r data | D5: ='data countries'!N5 -> -0.03987465771 | E5: r data is used if there is no individual input
C6: r input | H6: cf. Raupach, M. R. et al., 2014. Sharing a quota on cumulative carbon emissions. Nature Climate Change, Volume 4, pp. 873 - 879.
C7: please delete if you choos a new country | H7: See also our paper "Comparison Resource Sharing Models" that you can download from our website.
E9: ='reference values'!B128 -> SPM_FP50% | I9: ='reference values'!B129 -> SPM_P50% | M9: SPM_P0% | Q9: SPM_P100%
E10: CRB | F10: ='base data'!D31 -> 0.5 | G10: RBi | H10: ='base data'!$M$27*1000*SPM!F13 -> 33079.69562 | I10: CRB | J10: 0.5 | K10: RBi | L10: ='base data'!$M$27*1000*SPM!J13 -> 33079.69562 | M10: CRB | N10: 0 | O10: RBi | P10: ='base data'!$M$27*1000*SPM!N13 -> 38474.63054 | Q10: CRB | R10: 1 | S10: RBi | T10: ='base data'!$M$27*1000*SPM!R13 -> 27684.7607
E11: Pik | F11: =$C$20/1000/$D$20 -> 0.05768957922 | G11: Ti | H11: =H10/E20 -> 11.25516341 | I11: Pik | J11: =$C$20/1000/$D$20 -> 0.05768957922 | K11: Ti | L11: =L10/I20 -> 11.25516341 | M11: Pik | N11: =$C$20/1000/$D$20 -> 0.05768957922 | O11: Ti | P11: =P10/M20 -> 13.0907569 | Q11: Pik | R11: =$C$20/1000/$D$20 -> 0.05768957922 | S11: Ti | T11: =T10/Q20 -> 9.41956991
E12: Eik | F12: ='base data'!$D$34 -> 0.08017353919 | G12: ri | H12: =IF($D$6="",$D$5,$D$6) -> -0.03987465771 | I12: Eik | J12: ='base data'!$D$34 -> 0.08017353919 | K12: ri | L12: =IF($D$6="",$D$5,$D$6) -> -0.03987465771 | M12: Eik | N12: ='base data'!$D$34 -> 0.08017353919 | O12: ri | P12: =IF($D$6="",$D$5,$D$6) -> -0.03987465771 | Q12: Eik | R12: ='base data'!$D$34 -> 0.08017353919 | S12: ri | T12: =IF($D$6="",$D$5,$D$6) -> -0.03987465771
E13: wk | F13: =F10*F11+(1-F10)*F12 -> 0.0689315592 | G13: mi | H13: =IF(ISERROR((1+SQRT(1+H12*H11))/H11),(1+SQRT(1+0*H11))/H11,(1+SQRT(1+H12*H11))/H11) -> 0.154811727 | I13: wk | J13: =J10*J11+(1-J10)*J12 -> 0.0689315592 | K13: mi | L13: =IF(ISERROR((1+SQRT(1+L12*L11))/L11),(1+SQRT(1+0*L11))/L11,(1+SQRT(1+L12*L11))/L11) -> 0.154811727 | M13: wk | N13: =N10*N11+(1-N10)*N12 -> 0.08017353919 | O13: mi | P13: =IF(ISERROR((1+SQRT(1+P12*P11))/P11),(1+SQRT(1+0*P11))/P11,(1+SQRT(1+P12*P11))/P11) -> 0.1292043755 | Q13: wk | R13: =R10*R11+(1-R10)*R12 -> 0.05768957922 | S13: mi | T13: =IF(ISERROR((1+SQRT(1+T12*T11))/T11),(1+SQRT(1+0*T11))/T11,(1+SQRT(1+T12*T11))/T11) -> 0.1900499197
G14: scen. | H14: =E102 -> 33078.94414 | K14: scen. | L14: =I102 -> 33078.94414 | O14: scen. | P14: =M102 -> 38468.84279 | S14: scen. | T14: =Q102 -> 27684.71618
C15: ='reference values'!B2 -> EU27 | D15: world | E15: ='reference values'!$B$2 -> EU27 | I15: ='reference values'!$B$2 -> EU27 | M15: ='reference values'!$B$2 -> EU27 | Q15: ='reference values'!$B$2 -> EU27
A16: pos. | B16: year t | C16: Population Pit | D16: Popu-lation Pt | E16: emissions Eit | F16: per capita | G16: change vs. 1990 | H16: change vs. prev. year RRit | I16: emissions Eit | J16: per capita | K16: change vs. 1990 | L16: change vs. prev. year RRit | M16: emissions Eit | N16: per capita | O16: change vs. 1990 | P16: change vs. prev. year RRit | Q16: emissions Eit | R16: per capita | S16: change vs. 1990 | T16: change vs. prev. year RRit
C17: Mill. | D17: billion | E17: Mill. t | F17: t | I17: Mill. t | J17: t | M17: Mill. t | N17: t | Q17: Mill. t | R17: t
B18: 1990 | E18: ='data countries'!$C$5 -> 3820.658262 | I18: ='data countries'!$C$5 -> 3820.658262 | M18: ='data countries'!$C$5 -> 3820.658262 | Q18: ='data countries'!$C$5 -> 3820.658262
B19: 2010 | E19: ='data countries'!$D$5 -> 3418.227455 | G19: =IF(AND(E$18<>"no data",E$19<>"no data"),(E19-E$18)/E$18,"") -> -0.1053302284 | I19: ='data countries'!$D$5 -> 3418.227455 | K19: =IF(AND(I$18<>"no data",I$19<>"no data"),(I19-I$18)/I$18,"") -> -0.1053302284 | M19: ='data countries'!$D$5 -> 3418.227455 | O19: =IF(AND(M$18<>"no data",M$19<>"no data"),(M19-M$18)/M$18,"") -> -0.1053302284 | Q19: ='data countries'!$D$5 -> 3418.227455 | S19: =IF(AND(Q$18<>"no data",Q$19<>"no data"),(Q19-Q$18)/Q$18,"") -> -0.1053302284
A20: 1 | B20: 2019 | C20: =INDEX('UN-P'!$H$333:$CK$333,A20)/1000 -> 444.986729 | D20: =INDEX('UN-P'!$H$18:$CK$18,A20)/1000000 -> 7.7134681 | E20: ='data countries'!$M$5 -> 2939.068446 | F20: =E20/$C20 -> 6.604845165 | G20: =IF(E$18<>"no data",(E20-E$18)/E$18,0) -> -0.2307429129 | I20: ='data countries'!$M$5 -> 2939.068446 | J20: =I20/$C20 -> 6.604845165 | K20: =IF(I$18<>"no data",(I20-I$18)/I$18,0) -> -0.2307429129 | M20: ='data countries'!$M$5 -> 2939.068446 | N20: =M20/$C20 -> 6.604845165 | O20: =IF(M$18<>"no data",(M20-M$18)/M$18,0) -> -0.2307429129 | Q20: ='data countries'!$M$5 -> 2939.068446 | R20: =Q20/$C20 -> 6.604845165 | S20: =IF(Q$18<>"no data",(Q20-Q$18)/Q$18,0) -> -0.2307429129
A21: =A20+1 -> 2 | B21: =B20+1 -> 2020 | C21: =INDEX('UN-P'!$H$333:$CK$333,A21)/1000 -> 445.250514 | D21: =INDEX('UN-P'!$H$18:$CK$18,A21)/1000000 -> 7.794798739 | E21: =-E$20*EXP(-H$13*($B21-$B$20))/H$13^2*((H$12*H$13+H$13^2)*($B21-$B$20)+2*H$13+H$12) +E$20*EXP(-H$13*($B21-$B$20-1))/H$13^2*((H$12*H$13+H$13^2)*($B21-$B$20-1)+2*H$13+H$12) -> 2875.309903 | F21: 6.457735168 | G21: -0.2474307553 | H21: =IF(E21>0,(E21-E20)/E20,"") -> -0.02169345285 | I21: =-I$20*EXP(-L$13*($B21-$B$20))/L$13^2*((L$12*L$13+L$13^2)*($B21-$B$20)+2*L$13+L$12) +I$20*EXP(-L$13*($B21-$B$20-1))/L$13^2*((L$12*L$13+L$13^2)*($B21-$B$20-1)+2*L$13+L$12) -> 2875.309903 | J21: 6.457735168 | K21: -0.2474307553 | L21: =IF(I21>0,(I21-I20)/I20,"") -> -0.02169345285 | M21: =-M$20*EXP(-P$13*($B21-$B$20))/P$13^2*((P$12*P$13+P$13^2)*($B21-$B$20)+2*P$13+P$12) +M$20*EXP(-P$13*($B21-$B$20-1))/P$13^2*((P$12*P$13+P$13^2)*($B21-$B$20-1)+2*P$13+P$12) -> 2877.613282 | N21: 6.462908388 | O21: -0.2468278804 | P21: =IF(M21>0,(M21-M20)/M20,"") -> -0.02090974233 | Q21: =-Q$20*EXP(-T$13*($B21-$B$20))/T$13^2*((T$12*T$13+T$13^2)*($B21-$B$20)+2*T$13+T$12) +Q$20*EXP(-T$13*($B21-$B$20-1))/T$13^2*((T$12*T$13+T$13^2)*($B21-$B$20-1)+2*T$13+T$12) -> 2871.288818 | R21: 6.448704105 | S21: -0.2484832141 | T21: =IF(Q21>0,(Q21-Q20)/Q20,"") -> -0.02306160246
A22: 3 | B22: 2021 | C22: =INDEX('UN-P'!$H$333:$CK$333,A22)/1000 -> 445.307671 | D22: =INDEX('UN-P'!$H$18:$CK$18,A22)/1000000 -> 7.874965825 | E22: 2730.99541 | F22: 6.132828127 | G22: -0.2852029095 | H22: -0.05019093525 | I22: 2730.99541 | J22: 6.132828127 | K22: -0.2852029095 | L22: -0.05019093525 | M22: 2745.270801 | N22: 6.164885493 | O22: -0.2814665399 | P22: -0.04599036349 | Q22: 2706.715419 | R22: 6.078304048 | S22: -0.2915578328 | T22: -0.05731690839
A23: 4 | B23: 2022 | C23: =INDEX('UN-P'!$H$333:$CK$333,A23)/1000 -> 445.181267 | D23: =INDEX('UN-P'!$H$18:$CK$18,A23)/1000000 -> 7.953952567 | E23: 2568.931072 | F23: 5.770528236 | G23: -0.3276208195 | H23: -0.05934258902 | I23: 2568.931072 | J23: 5.770528236 | K23: -0.3276208195 | L23: -0.05934258902 | M23: 2602.735161 | N23: 5.846461552 | O23: -0.318773106 | P23: -0.05192042974 | Q23: 2513.095023 | R23: 5.64510506 | S23: -0.3422350678 | T23: -0.07153334072
A24: 5 | B24: 2023 | C24: =INDEX('UN-P'!$H$333:$CK$333,A24)/1000 -> 444.91356 | D24: =INDEX('UN-P'!$H$18:$CK$18,A24)/1000000 -> 8.031800429 | E24: 2397.176976 | F24: 5.387961149 | G24: -0.3725748782 | H24: -0.0668581955 | I24: 2397.176976 | J24: 5.387961149 | K24: -0.3725748782 | L24: -0.0668581955 | M24: 2454.421518 | N24: 5.516625562 | O24: -0.3575919778 | P24: -0.05698376286 | Q24: 2305.412858 | R24: 5.181709585 | S24: -0.3965927597 | T24: -0.08263999692
A25: 6 | B25: 2024 | C25: =INDEX('UN-P'!$H$333:$CK$333,A25)/1000 -> 444.567844 | D25: =INDEX('UN-P'!$H$18:$CK$18,A25)/1000000 -> 8.108605388 | E25: 2221.846317 | F25: 4.997766588 | G25: -0.4184650486 | H25: -0.07314047345 | I25: 2221.846317 | J25: 4.997766588 | K25: -0.4184650486 | L25: -0.07314047345 | M25: 2303.824489 | N25: 5.182166277 | O25: -0.3970084916 | P25: -0.06135744329 | Q25: 2094.336976 | R25: 4.710950206 | S25: -0.4518387062 | T25: -0.09155665168
A26: 7 | B26: 2025 | C26: =INDEX('UN-P'!$H$333:$CK$333,A26)/1000 -> 444.191475 | D26: =INDEX('UN-P'!$H$18:$CK$18,A26)/1000000 -> 8.18443746 | E26: 2047.498058 | F26: 4.609494269 | G26: -0.4640980905 | H26: -0.07846999012 | I26: 2047.498058 | J26: 4.609494269 | K26: -0.4640980905 | L26: -0.07846999012 | M26: 2153.67644 | N26: 4.848531684 | O26: -0.4363074915 | P26: -0.0651733886 | Q26: 1887.263784 | R26: 4.248761831 | S26: -0.5060370086 | T26: -0.09887291013
A27: 8 | B27: 2026 | C27: =INDEX('UN-P'!$H$333:$CK$333,A27)/1000 -> 443.797212 | D27: =INDEX('UN-P'!$H$18:$CK$18,A27)/1000000 -> 8.259276737 | E27: 1877.457009 | F27: 4.230438944 | G27: -0.508603785 | H27: -0.08304821021 | I27: 1877.457009 | J27: 4.230438944 | K27: -0.508603785 | L27: -0.08304821021 | M27: 2006.080927 | N27: 4.520264824 | O27: -0.4749384036 | P27: -0.0685318885 | Q27: 1689.130986 | R27: 3.80608742 | S27: -0.5578952972 | T27: -0.1049841577
A28: 9 | B28: 2027 | C28: =INDEX('UN-P'!$H$333:$CK$333,A28)/1000 -> 443.375263 | D28: =INDEX('UN-P'!$H$18:$CK$18,A28)/1000000 -> 8.333078316 | E28: 1714.074058 | F28: 3.865966826 | G28: -0.5513668221 | H28: -0.08702353782 | I28: 1714.074058 | J28: 3.865966826 | K28: -0.5513668221 | L28: -0.08702353782 | M28: 1862.624981 | N28: 4.201012408 | O28: -0.5124858458 | P28: -0.07151054749 | Q28: 1503.047115 | R28: 3.390011218 | S28: -0.6065999595 | T28: -0.1101654471
A29: 10 | B29: 2028 | C29: =INDEX('UN-P'!$H$333:$CK$333,A29)/1000 -> 442.92349 | D29: =INDEX('UN-P'!$H$18:$CK$18,A29)/1000000 -> 8.405863295 | E29: 1558.937148 | F29: 3.519653355 | G29: -0.5919715817 | H29: -0.09050770578 | I29: 1558.937148 | J29: 3.519653355 | K29: -0.5919715817 | L29: -0.09050770578 | M29: 1724.473424 | N29: 3.893388955 | O29: -0.5486449441 | P29: -0.07417035573 | Q29: 1330.776814 | R29: 3.004529776 | S29: -0.6516891272 | T29: -0.1146140394
A30: 11 | B30: 2029 | C30: =INDEX('UN-P'!$H$333:$CK$333,A30)/1000 -> 442.433616 | D30: =INDEX('UN-P'!$H$18:$CK$18,A30)/1000000 -> 8.477660693 | E30: 1413.041764 | F30: 3.193793855 | G30: -0.6301575103 | H30: -0.0935864437 | I30: 1413.041764 | J30: 3.193793855 | K30: -0.6301575103 | L30: -0.0935864437 | M30: 1592.447895 | N30: 3.599292272 | O30: -0.5832006462 | P30: -0.07655990931 | Q30: 1173.112912 | R30: 2.651500405 | S30: -0.692955289 | T30: -0.1184750895
A31: 12 | B31: 2030 | C31: =INDEX('UN-P'!$H$333:$CK$333,A31)/1000 -> 441.899765 | D31: =INDEX('UN-P'!$H$18:$CK$18,A31)/1000000 -> 8.5484874 | E31: 1276.928218 | F31: 2.889633167 | G31: -0.6657831897 | H31: -0.09632662658 | I31: 1276.928218 | J31: 2.889633167 | K31: -0.6657831897 | L31: -0.09632662658 | M31: 1467.092934 | N31: 3.319967672 | O31: -0.6160104271 | P31: -0.07871840643 | Q31: 1030.159971 | R31: 2.331207328 | S31: -0.7303710775 | T31: -0.1218577854
A32: 13 | B32: 2031 | C32: =INDEX('UN-P'!$H$333:$CK$333,A32)/1000 -> 441.324824 | D32: =INDEX('UN-P'!$H$18:$CK$18,A32)/1000000 -> 8.618349489 | E32: 1150.791731 | F32: 2.607584411 | G32: -0.6987975233 | H32: -0.09878118804 | I32: 1150.791731 | J32: 2.607584411 | K32: -0.6987975233 | L32: -0.09878118804 | M32: 1348.731083 | N32: 3.056096121 | O32: -0.6469898666 | P32: -0.08067781434 | Q32: 901.5487857 | R32: 2.042823645 | S32: -0.7640331263 | T32: -0.124845838
A33: 14 | B33: 2032 | C33: =INDEX('UN-P'!$H$333:$CK$333,A33)/1000 -> 440.714548 | D33: =INDEX('UN-P'!$H$18:$CK$18,A33)/1000000 -> 8.68722785 | E33: 1034.570313 | F33: 2.347483916 | G33: -0.7292167365 | H33: -0.1009925733 | I33: 1034.570313 | J33: 2.347483916 | K33: -0.7292167365 | L33: -0.1009925733 | M33: 1237.508698 | N33: 2.807959718 | O33: -0.6761006578 | P33: -0.08246446329 | Q33: 786.5972561 | R33: 1.784822534 | S33: -0.7941199652 | T33: -0.1275045027
A34: 15 | B34: 2033 | C34: =INDEX('UN-P'!$H$333:$CK$333,A34)/1000 -> 440.068381 | D34: =INDEX('UN-P'!$H$18:$CK$18,A34)/1000000 -> 8.755083431 | E34: 928.0145216 | F34: 2.108796182 | G34: -0.7571061168 | H34: -0.1029952145 | I34: 928.0145216 | J34: 2.108796182 | K34: -0.7571061168 | L34: -0.1029952145 | M34: 1133.433924 | N34: 2.575585915 | O34: -0.7033406691 | P34: -0.08410023652 | Q34: 684.4297574 | R34: 1.555280468 | S34: -0.8208607757 | T34: -0.1298853994
A35: 16 | B35: 2034 | C35: =INDEX('UN-P'!$H$333:$CK$333,A35)/1000 -> 439.3849 | D35: =INDEX('UN-P'!$H$18:$CK$18,A35)/1000000 -> 8.821862661 | E35: 830.7425117 | F35: 1.890694268 | G35: -0.7825656066 | H35: -0.104817336 | I35: 830.7425117 | J35: 1.890694268 | K35: -0.7825656066 | L35: -0.104817336 | M35: 1036.408046 | N35: 2.358770285 | O35: -0.7287357376 | P35: -0.08560347112 | Q35: 594.0645668 | R35: 1.352036829 | S35: -0.8445125091 | T35: -0.1320298973
A36: 17 | B36: 2035 | C36: =INDEX('UN-P'!$H$333:$CK$333,A36)/1000 -> 438.662862 | D36: =INDEX('UN-P'!$H$18:$CK$18,A36)/1000000 -> 8.887524213 | E36: 742.2831437 | F36: 1.692149503 | G36: -0.8057185195 | H36: -0.1064822935 | I36: 742.2831437 | J36: 1.692149503 | K36: -0.8057185195 | L36: -0.1064822935 | M36: 946.2512742 | N36: 2.157126477 | O36: -0.7523329204 | P36: -0.08698964833 | Q36: 514.4768223 | R36: 1.172829676 | S36: -0.8653434076 | T36: -0.1339715393
A37: 18 | B37: 2036 | C37: =INDEX('UN-P'!$H$333:$CK$333,A37)/1000 -> 437.902382 | D37: =INDEX('UN-P'!$H$18:$CK$18,A37)/1000000 -> 8.95204894 | E37: 662.1094529 | F37: 1.512002401 | G37: -0.8267027807 | H37: -0.1080095802 | I37: 662.1094529 | J37: 1.512002401 | K37: -0.8267027807 | L37: -0.1080095802 | M37: 862.7238492 | N37: 1.97012824 | O37: -0.7741949711 | P37: -0.08827192868 | Q37: 444.6428658 | R37: 1.015392663 | S37: -0.8836213984 | T37: -0.1357378087
A38: 19 | B38: 2037 | C38: =INDEX('UN-P'!$H$333:$CK$333,A38)/1000 -> 437.103422 | D38: =INDEX('UN-P'!$H$18:$CK$18,A38)/1000000 -> 9.015437653 | E38: 589.6643541 | F38: 1.349027082 | G38: -0.8456641988 | H38: -0.1094155936 | I38: 589.6643541 | J38: 1.349027082 | K38: -0.8456641988 | L38: -0.1094155936 | M38: 785.5432182 | N38: 1.797156413 | O38: -0.7943958438 | P38: -0.08946157117 | Q38: 383.5705284 | R38: 0.877528084 | S38: -0.8996061668 | T38: -0.1373514389
A39: 20 | B39: 2038 | C39: =INDEX('UN-P'!$H$333:$CK$333,A39)/1000 -> 436.264342 | D39: =INDEX('UN-P'!$H$18:$CK$18,A39)/1000000 -> 9.077693676 | E39: 524.3801212 | F39: 1.201977954 | G39: -0.8627513677 | H39: -0.1107142266 | I39: 524.3801212 | J39: 1.201977954 | K39: -0.8627513677 | L39: -0.1107142266 | M39: 714.3979321 | N39: 1.637534548 | O39: -0.8130170554 | P39: -0.09056826468 | Q39: 330.3188962 | R39: 0.7571530937 | S39: -0.9135439829 | T39: -0.1388313967
A40: 21 | B40: 2039 | C40: =INDEX('UN-P'!$H$333:$CK$333,A40)/1000 -> 435.383037 | D40: =INDEX('UN-P'!$H$18:$CK$18,A40)/1000000 -> 9.138828468 | E40: 465.6928991 | F40: 1.069616543 | G40: -0.8781118679 | H40: -0.111917328 | I40: 465.6928991 | J40: 1.069616543 | K40: -0.8781118679 | L40: -0.111917328 | M40: 648.9588011 | N40: 1.49054682 | O40: -0.8301447666 | P40: -0.0916003925 | Q40: 284.0102906 | R40: 0.6523228202 | S40: -0.9256645659 | T40: -0.1401936316
A41: 22 | B41: 2040 | C41: =INDEX('UN-P'!$H$333:$CK$333,A41)/1000 -> 434.457841 | D41: =INDEX('UN-P'!$H$18:$CK$18,A41)/1000000 -> 9.19884724 | E41: 413.0532718 | F41: 0.9507326899 | G41: -0.8918895008 | H41: -0.1130350653 | I41: 413.0532718 | J41: 0.9507326899 | K41: -0.8918895008 | L41: -0.1130350653 | M41: 588.8877706 | N41: 1.35545435 | O41: -0.8458674579 | P41: -0.09256524505 | Q41: 243.8365656 | R41: 0.5612433305 | S41: -0.9361794359 | T41: -0.1414516525
A42: 23 | B42: 2041 | C42: =INDEX('UN-P'!$H$333:$CK$333,A42)/1000 -> 433.488559 | D42: =INDEX('UN-P'!$H$18:$CK$18,A42)/1000000 -> 9.257745535 | E42: 365.933719 | F42: 0.8441600393 | G42: -0.9042223371 | H42: -0.1140762125 | I42: 365.933719 | J42: 0.8441600393 | K42: -0.9042223371 | L42: -0.1140762125 | M42: 533.8449063 | N42: 1.231508641 | O42: -0.8602741021 | P42: -0.09346919234 | Q42: 209.0613316 | R42: 0.4822764689 | S42: -0.9452813319 | T42: -0.1426169779
A43: 24 | B43: 2042 | C43: =INDEX('UN-P'!$H$333:$CK$333,A43)/1000 -> 432.475101 | D43: =INDEX('UN-P'!$H$18:$CK$18,A43)/1000000 -> 9.31550805 | E43: 323.8336371 | F43: 0.7487914016 | G43: -0.9152414022 | H43: -0.1150483811 | I43: 323.8336371 | J43: 0.7487914016 | K43: -0.9152414022 | L43: -0.1150483811 | M43: 483.493816 | N43: 1.117969138 | O43: -0.8734527448 | P43: -0.09431782479 | Q43: 179.0193251 | R43: 0.4139413452 | S43: -0.9531443765 | T43: -0.1436994888
A44: 25 | B44: 2043 | C44: =INDEX('UN-P'!$H$333:$CK$333,A44)/1000 -> 431.416242 | D44: =INDEX('UN-P'!$H$18:$CK$18,A44)/1000000 -> 9.372118186 | E44: 286.2824694 | F44: 0.6635876018 | G44: -0.9250698571 | H44: -0.1159582062 | I44: 286.2824694 | J44: 0.6635876018 | K44: -0.9250698571 | L44: -0.1159582062 | M44: 437.5057849 | N44: 1.014115238 | O44: -0.8854894223 | P44: -0.09511606895 | Q44: 153.1138485 | R44: 0.3549097914 | S44: -0.9599247465 | T44: -0.1447077103
A45: 26 | B45: 2044 | C45: =INDEX('UN-P'!$H$333:$CK$333,A45)/1000 -> 430.310646 | D45: =INDEX('UN-P'!$H$18:$CK$18,A45)/1000000 -> 9.427555367 | E45: 252.8413851 | F45: 0.5875787353 | G45: -0.9338225594 | H45: -0.1168114985 | I45: 252.8413851 | J45: 0.5875787353 | K45: -0.9338225594 | L45: -0.1168114985 | M45: 395.5628564 | N45: 0.9192495237 | O45: -0.8964673548 | P45: -0.09586828321 | Q45: 130.812964 | R45: 0.3039965784 | S45: -0.9657616685 | T45: -0.145649036
A46: 27 | B46: 2045 | C46: =INDEX('UN-P'!$H$333:$CK$333,A46)/1000 -> 429.157579 | D46: =INDEX('UN-P'!$H$18:$CK$18,A46)/1000000 -> 9.481803274 | E46: 223.1038582 | F46: 0.5198646583 | G46: -0.9416059111 | H46: -0.1176133683 | I46: 223.1038582 | J46: 0.5198646583 | K46: -0.9416059111 | L46: -0.1176133683 | M46: 357.3600534 | N46: 0.8327012521 | O46: -0.9064663655 | P46: -0.09657833739 | Q46: 111.6449522 | R46: 0.2601490866 | S46: -0.9707786082 | T46: -0.14652991
A47: 28 | B47: 2046 | C47: =INDEX('UN-P'!$H$333:$CK$333,A47)/1000 -> 427.957328 | D47: =INDEX('UN-P'!$H$18:$CK$18,A47)/1000000 -> 9.534854828 | E47: 196.6954275 | F47: 0.4596145799 | G47: -0.9485179218 | H47: -0.1183683281 | I47: 196.6954275 | J47: 0.4596145799 | K47: -0.9485179218 | L47: -0.1183683281 | M47: 322.6069028 | N47: 0.7538296032 | O47: -0.9155624815 | P47: -0.09724967934 | Q47: 95.19340146 | R47: 0.2224366665 | S47: -0.9750845548 | T47: -0.1473559744
A48: 29 | B48: 2047 | C48: =INDEX('UN-P'!$H$333:$CK$333,A48)/1000 -> 426.711055 | D48: =INDEX('UN-P'!$H$18:$CK$18,A48)/1000000 -> 9.586707986 | E48: 173.2728618 | F48: 0.4060660247 | G48: -0.9546484271 | H48: -0.1190803772 | I48: 173.2728618 | J48: 0.4060660247 | K48: -0.9546484271 | L48: -0.1190803772 | M48: 291.0284 | N48: 0.6820268577 | O48: -0.923827681 | P48: -0.09788539094 | Q48: 81.09219438 | R48: 0.1900400597 | S48: -0.9787753343 | T48: -0.1481321904
A49: 30 | B49: 2048 | C49: =INDEX('UN-P'!$H$333:$CK$333,A49)/1000 -> 425.42018 | D49: =INDEX('UN-P'!$H$18:$CK$18,A49)/1000000 -> 9.637357637 | E49: 152.5229042 | F49: 0.3585229646 | G49: -0.9600794173 | H49: -0.1197530729 | I49: 152.5229042 | J49: 0.3585229646 | K49: -0.9600794173 | L49: -0.1197530729 | M49: 262.3655264 | N49: 0.6167209238 | O49: -0.9313297583 | P49: -0.09848823541 | Q49: 69.02057208 | R49: 0.1622409451 | S49: -0.9819349004 | T49: -0.148862938
A50: 31 | B50: 2049 | C50: =INDEX('UN-P'!$H$333:$CK$333,A50)/1000 -> 424.08671 | D50: =INDEX('UN-P'!$H$18:$CK$18,A50)/1000000 -> 9.686800357 | E50: 134.1607342 | F50: 0.3163521305 | G50: -0.9648854399 | H50: -0.1203895901 | I50: 134.1607342 | J50: 0.3163521305 | K50: -0.9648854399 | L50: -0.1203895901 | M50: 236.3754144 | N50: 0.557375199 | O50: -0.9381322803 | P50: -0.09906069742 | Q50: 58.69840068 | R50: 0.1384113185 | S50: -0.9846365739 | T50: -0.1495520985
A51: 32 | B51: 2050 | C51: =INDEX('UN-P'!$H$333:$CK$333,A51)/1000 -> 422.712721 | D51: =INDEX('UN-P'!$H$18:$CK$18,A51)/1000000 -> 9.73503399 | E51: 117.9282553 | F51: 0.2789796696 | G51: -0.9691340478 | H51: -0.1209927709 | I51: 117.9282553 | J51: 0.2789796696 | K51: -0.9691340478 | L51: -0.1209927709 | M51: 212.8312371 | N51: 0.5034890756 | O51: -0.9442946156 | P51: -0.09960501736 | Q51: 49.88171753 | R51: 0.118003824 | S51: -0.9869442085 | T51: -0.1502031239
A52: 33 | B52: 2051 | C52: =INDEX('UN-P'!$H$333:$CK$333,A52)/1000 -> 421.300521 | D52: =INDEX('UN-P'!$H$18:$CK$18,A52)/1000000 -> 9.782061551 | E52: 103.5922872 | F52: =E52/$C52 -> 0.2458869192 | G52: -0.9728862725 | H52: -0.1215651674 | I52: 103.5922872 | J52: =I52/$C52 -> 0.2458869192 | K52: =IF(I$18<>"no data",(I52-I$18)/I$18,0) -> -0.9728862725 | L52: -0.1215651674 | M52: 191.5218882 | N52: =M52/$C52 -> 0.4545968464 | O52: =IF(M$18<>"no data",(M52-M$18)/M$18,0) -> -0.9498720181 | P52: -0.1001232206 | Q52: 42.35860208 | R52: =Q52/$C52 -> 0.1005424868 | S52: -0.9889132712 | T52: -0.1508190942
A53: =A52+1 -> 34 | B53: =B52+1 -> 2052 | C53: =INDEX('UN-P'!$H$333:$CK$333,A53)/1000 -> 419.852244 | D53: =INDEX('UN-P'!$H$18:$CK$18,A53)/1000000 -> 9.82788464 | E53: =-E$20*EXP(-H$13*($B53-$B$20))/H$13^2*((H$12*H$13+H$13^2)*($B53-$B$20)+2*H$13+H$12) +E$20*EXP(-H$13*($B53-$B$20-1))/H$13^2*((H$12*H$13+H$13^2)*($B53-$B$20-1)+2*H$13+H$12) -> 90.94272853 | F53: 0.2166065082 | G53: -0.9761971047 | H53: -0.1221090776 | I53: =-I$20*EXP(-L$13*($B53-$B$20))/L$13^2*((L$12*L$13+L$13^2)*($B53-$B$20)+2*L$13+L$12) +I$20*EXP(-L$13*($B53-$B$20-1))/L$13^2*((L$12*L$13+L$13^2)*($B53-$B$20-1)+2*L$13+L$12) -> 90.94272853 | J53: 0.2166065082 | K53: -0.9761971047 | L53: =IF(I53>0,(I53-I52)/I52,"") -> -0.1221090776 | M53: =-M$20*EXP(-P$13*($B53-$B$20))/P$13^2*((P$12*P$13+P$13^2)*($B53-$B$20)+2*P$13+P$12) +M$20*EXP(-P$13*($B53-$B$20-1))/P$13^2*((P$12*P$13+P$13^2)*($B53-$B$20-1)+2*P$13+P$12) -> 172.251503 | N53: 0.4102669582 | O53: -0.9549157524 | P53: =IF(M53>0,(M53-M52)/M52,"") -> -0.1006171428 | Q53: =-Q$20*EXP(-T$13*($B53-$B$20))/T$13^2*((T$12*T$13+T$13^2)*($B53-$B$20)+2*T$13+T$12) +Q$20*EXP(-T$13*($B53-$B$20-1))/T$13^2*((T$12*T$13+T$13^2)*($B53-$B$20-1)+2*T$13+T$12) -> 35.94539253 | R53: 0.08561438707 | S53: -0.9905918326 | T53: -0.1514027667
A54: 35 | B54: 2053 | C54: =INDEX('UN-P'!$H$333:$CK$333,A54)/1000 -> 418.370028 | D54: =INDEX('UN-P'!$H$18:$CK$18,A54)/1000000 -> 9.872499765 | E54: 79.79073309 | F54: 0.190718091 | G54: -0.9791159723 | H54: -0.1226265764 | I54: 79.79073309 | J54: 0.190718091 | K54: -0.9791159723 | L54: -0.1226265764 | M54: 154.8388653 | N54: 0.370100282 | O54: -0.9594732492 | P54: -0.1010884515 | Q54: 30.4832523 | R54: 0.072861941 | S54: -0.9920214659 | T54: -0.1519566166
A55: 36 | B55: 2054 | C55: =INDEX('UN-P'!$H$333:$CK$333,A55)/1000 -> 416.856284 | D55: =INDEX('UN-P'!$H$18:$CK$18,A55)/1000000 -> 9.915902218 | E55: 69.96693458 | F55: 0.1678442602 | G55: -0.9816872042 | H55: -0.1231195419 | I55: 69.96693458 | J55: 0.1678442602 | K55: -0.9816872042 | L55: -0.1231195419 | M55: 139.1167337 | N55: 0.3337282873 | O55: -0.9635882814 | P55: -0.1015386648 | Q55: 25.83507842 | R55: 0.06197598407 | S55: -0.9932380557 | T55: -0.1524828727
A56: 37 | B56: 2055 | C56: =INDEX('UN-P'!$H$333:$CK$333,A56)/1000 -> 415.31378 | D56: =INDEX('UN-P'!$H$18:$CK$18,A56)/1000000 -> 9.958094074 | E56: 61.31974365 | F56: 0.1476467832 | G56: -0.9839504767 | H56: -0.1235896783 | I56: 61.31974365 | J56: 0.1476467832 | K56: -0.9839504767 | L56: -0.1235896783 | M56: 124.9311161 | N56: 0.3008113915 | O56: -0.967301154 | P56: -0.1019691681 | Q56: 21.88273648 | R56: 0.05268964705 | S56: -0.9942725219 | T56: -0.1529835471
A57: 38 | B57: 2056 | C57: =INDEX('UN-P'!$H$333:$CK$333,A57)/1000 -> 413.745558 | D57: =INDEX('UN-P'!$H$18:$CK$18,A57)/1000000 -> 9.999078316 | E57: 53.71373244 | F57: 0.1298231036 | G57: -0.9859412361 | H57: -0.1240385356 | I57: 53.71373244 | J57: 0.1298231036 | K57: -0.9859412361 | L57: -0.1240385356 | M57: 112.140515 | N57: 0.2710373872 | O57: -0.970648902 | P57: -0.102381228 | Q57: 18.52460166 | R57: 0.04477293182 | S57: -0.9951514633 | T57: -0.1534604607
A58: 39 | B58: 2057 | C58: =INDEX('UN-P'!$H$333:$CK$333,A58)/1000 -> 412.155667 | D58: =INDEX('UN-P'!$H$18:$CK$18,A58)/1000000 -> 10.03887146 | E58: 47.02811703 | F58: 0.1141028034 | G58: -0.9876910957 | H58: -0.1244675265 | I58: 47.02811703 | J58: 0.1141028034 | K58: -0.9876910957 | L58: -0.1244675265 | M58: 100.6151609 | N58: 0.2441193194 | O58: -0.9736654906 | P58: -0.1027760048 | Q58: 15.67338267 | R58: 0.0380278228 | S58: -0.9958977271 | T58: -0.1539152659
A59: 40 | B59: 2058 | C59: =INDEX('UN-P'!$H$333:$CK$333,A59)/1000 -> 410.549952 | D59: =INDEX('UN-P'!$H$18:$CK$18,A59)/1000000 -> 10.07750522 | E59: 41.15534259 | F59: 0.1002444219 | G59: -0.9892282063 | H59: -0.1248779413 | I59: 41.15534259 | J59: 0.1002444219 | K59: -0.9892282063 | L59: -0.1248779413 | M59: 90.23624787 | N59: 0.2197935901 | O59: -0.9763820154 | P59: -0.1031545637 | Q59: 13.25420444 | R59: 0.03228402384 | S59: -0.9965309108 | T59: -0.1543494651
A60: 41 | B60: 2059 | C60: =INDEX('UN-P'!$H$333:$CK$333,A60)/1000 -> 408.935035 | D60: =INDEX('UN-P'!$H$18:$CK$18,A60)/1000000 -> 10.11501965 | E60: 35.99977327 | F60: 0.0880329886 | G60: -0.9905775993 | H60: -0.125270961 | I60: 35.99977327 | J60: 0.0880329886 | K60: -0.9905775993 | L60: -0.125270961 | M60: 80.89518245 | N60: 0.1978191535 | O60: -0.9788268992 | P60: -0.1035178838 | Q60: 11.20292507 | R60: 0.02739536629 | S60: -0.9970678024 | T60: -0.1547644277
A61: 42 | B61: 2060 | C61: =INDEX('UN-P'!$H$333:$CK$333,A61)/1000 -> 407.317153 | D61: =INDEX('UN-P'!$H$18:$CK$18,A61)/1000000 -> 10.15144876 | E61: 31.47648569 | F61: 0.07727758445 | G61: -0.9917615019 | H61: -0.1256476687 | I61: 31.47648569 | J61: 0.07727758445 | K61: -0.9917615019 | L61: -0.1256476687 | M61: 72.49285329 | N61: 0.1779764313 | O61: -0.9810260829 | P61: -0.1038668671 | Q61: 9.464663486 | R61: 0.02323659442 | S61: -0.9975227663 | T61: -0.1551614044
A62: 43 | B62: 2061 | C62: =INDEX('UN-P'!$H$333:$CK$333,A62)/1000 -> 405.700067 | D62: =INDEX('UN-P'!$H$18:$CK$18,A62)/1000000 -> 10.18681159 | E62: 27.51016334 | F62: 0.06780911708 | G62: -0.9927996273 | H62: -0.1260090591 | I62: 27.51016334 | J62: 0.06780911708 | K62: -0.9927996273 | L62: -0.1260090591 | M62: 64.93892792 | N62: 0.1600663475 | O62: -0.9830032095 | P62: -0.1042023459 | Q62: 7.992515154 | R62: 0.01970055172 | S62: -0.997908079 | T62: -0.1555415397
A63: 44 | B63: 2062 | C63: =INDEX('UN-P'!$H$333:$CK$333,A63)/1000 -> 404.087699 | D63: =INDEX('UN-P'!$H$18:$CK$18,A63)/1000000 -> 10.22111837 | E63: 24.03408783 | F63: 0.05947740524 | G63: -0.993709438 | H63: -0.1263560479 | I63: 24.03408783 | J63: 0.05947740524 | K63: -0.993709438 | L63: -0.1263560479 | M63: 58.1511807 | N63: 0.1439073271 | O63: -0.9847798006 | P63: -0.104525089 | Q63: 6.74643502 | R63: 0.01669547239 | S63: -0.9982342218 | T63: -0.1559058832
A64: 45 | B64: 2063 | C64: =INDEX('UN-P'!$H$333:$CK$333,A64)/1000 -> 402.48577 | D64: =INDEX('UN-P'!$H$18:$CK$18,A64)/1000000 -> 10.25438251 | E64: 20.98922176 | F64: 0.05214897847 | G64: -0.994506386 | H64: -0.1266894792 | I64: 20.98922176 | J64: 0.05214897847 | K64: -0.994506386 | L64: -0.1266894792 | M64: 52.05485466 | N64: 0.1293334039 | O64: -0.9863754225 | P64: -0.1048358083 | Q64: 5.692268126 | R64: 0.01414278106 | S64: -0.9985101342 | T64: -0.1562553987
A65: 46 | B65: 2064 | C65: =INDEX('UN-P'!$H$333:$CK$333,A65)/1000 -> 400.900509 | D65: =INDEX('UN-P'!$H$18:$CK$18,A65)/1000000 -> 10.28661575 | E65: 18.32337792 | F65: 0.04570554916 | G65: -0.9952041306 | H65: -0.1270101323 | I65: 18.32337792 | J65: 0.04570554916 | K65: -0.9952041306 | L65: -0.1270101323 | M65: 46.58205901 | N65: 0.1161935642 | O65: -0.9878078447 | P65: -0.1051351634 | Q65: 4.800910319 | R65: 0.0119753161 | S65: -0.9987434337 | T65: -0.1565909735
A66: 47 | B66: 2065 | C66: =INDEX('UN-P'!$H$333:$CK$333,A66)/1000 -> 399.337115 | D66: =INDEX('UN-P'!$H$18:$CK$18,A66)/1000000 -> 10.3178302 | E66: 15.99046876 | F66: 0.04004253087 | G66: -0.9958147346 | H66: -0.1273187279 | I66: 15.99046876 | J66: 0.04004253087 | K66: -0.9958147346 | L66: -0.1273187279 | M66: 41.6712029 | N66: 0.1043509389 | O66: -0.9890931876 | P66: -0.1054237665 | Q66: 4.047583036 | R66: 0.01013575469 | S66: -0.9989406058 | T66: -0.1569134254
A67: 48 | B67: 2066 | C67: =INDEX('UN-P'!$H$333:$CK$333,A67)/1000 -> 397.799441 | D67: =INDEX('UN-P'!$H$18:$CK$18,A67)/1000000 -> 10.34804208 | E67: 13.94983016 | F67: 0.03506749562 | G67: -0.9963488412 | H67: -0.1276159336 | I67: 13.94983016 | J67: 0.03506749562 | K67: -0.9963488412 | L67: -0.1276159336 | M67: 37.26646563 | N67: 0.09368154349 | O67: -0.9902460615 | P67: -0.1057021867 | Q67: 3.411207827 | R67: 0.008575195124 | S67: -0.9991071675 | T67: -0.1572235092
A68: 49 | B68: 2067 | C68: =INDEX('UN-P'!$H$333:$CK$333,A68)/1000 -> 396.289911 | D68: =INDEX('UN-P'!$H$18:$CK$18,A68)/1000000 -> 10.37726771 | E68: 12.16561384 | F68: 0.03069877254 | G68: -0.996815833 | H68: -0.1279023686 | I68: 12.16561384 | J68: 0.03069877254 | K68: -0.996815833 | L68: -0.1279023686 | M68: 33.31730273 | N68: 0.08407305311 | O68: -0.9912796957 | P68: -0.1059709535 | Q68: 2.873867809 | R68: 0.007251932813 | S68: -0.9992478082 | T68: -0.1575219233
A69: 50 | B69: 2068 | C69: =INDEX('UN-P'!$H$333:$CK$333,A69)/1000 -> 394.810889 | D69: =INDEX('UN-P'!$H$18:$CK$18,A69)/1000000 -> 10.40551968 | E69: 10.60624239 | F69: 0.02686410808 | G69: -0.9972239751 | H69: -0.1281786079 | I69: 10.60624239 | J69: 0.02686410808 | K69: -0.9972239751 | L69: -0.1281786079 | M69: 29.77798699 | N69: 0.07542341871 | O69: -0.9922060585 | P69: -0.1062305605 | Q69: 2.420344701 | R69: 0.006130389937 | S69: -0.9993665111 | T69: -0.1578093143
A70: 51 | B70: 2069 | C70: =INDEX('UN-P'!$H$333:$CK$333,A70)/1000 -> 393.364041 | D70: =INDEX('UN-P'!$H$18:$CK$18,A70)/1000000 -> 10.43281041 | E70: 9.243921612 | F70: 0.023499661 | G70: -0.9975805422 | H70: -0.1284451863 | I70: 9.243921612 | J70: 0.023499661 | K70: -0.9975805422 | L70: -0.1284451863 | M70: 26.60718322 | N70: 0.06764010039 | O70: -0.9930359688 | P70: -0.106481468 | Q70: 2.037721407 | R70: 0.005180243221 | S70: -0.999466657 | T70: -0.1580862817
A71: 52 | B71: 2070 | C71: =INDEX('UN-P'!$H$333:$CK$333,A71)/1000 -> 391.950834 | D71: =INDEX('UN-P'!$H$18:$CK$18,A71)/1000000 -> 10.45915251 | E71: 8.054204848 | F71: 0.02054901827 | G71: -0.9978919327 | H71: -0.128702602 | I71: 8.054204848 | J71: 0.02054901827 | K71: -0.9978919327 | L71: -0.128702602 | M71: 23.76755537 | N71: 0.06063912438 | O71: -0.9937791988 | P71: -0.1067241062 | Q71: 1.715041329 | R71: 0.004375654241 | S71: -0.9995511137 | T71: -0.1583533827
A72: 53 | B72: 2071 | C72: =INDEX('UN-P'!$H$333:$CK$333,A72)/1000 -> 390.573058 | D72: =INDEX('UN-P'!$H$18:$CK$18,A72)/1000000 -> 10.48455938 | E72: 7.015604506 | F72: 0.01796233601 | G72: -0.9981637707 | H72: -0.1289513194 | I72: 7.015604506 | J72: 0.01796233601 | K72: -0.9981637707 | L72: -0.1289513194 | M72: 21.22540433 | N72: 0.05434426133 | O72: -0.9944445687 | P72: -0.1069588773 | Q72: 1.443016677 | R72: 0.003694613972 | S72: -0.999622312 | T72: -0.1586111351
A73: 54 | B73: 2072 | C73: =INDEX('UN-P'!$H$333:$CK$333,A73)/1000 -> 389.232183 | D73: =INDEX('UN-P'!$H$18:$CK$18,A73)/1000000 -> 10.50904618 | E73: 6.109246128 | F73: 0.01569563462 | G73: -0.9984009964 | H73: -0.1291917721 | I73: 6.109246128 | J73: 0.01569563462 | K73: -0.9984009964 | L73: -0.1291917721 | M73: 18.9503348 | N73: 0.04868645407 | O73: -0.9950400341 | P73: -0.1071861577 | Q73: 1.213779017 | R73: 0.003118393262 | S73: -0.9996823115 | T73: -0.1588600214
A74: 55 | B74: 2073 | C74: =INDEX('UN-P'!$H$333:$CK$333,A74)/1000 -> 387.928796 | D74: =INDEX('UN-P'!$H$18:$CK$18,A74)/1000000 -> 10.53262959 | E74: 5.318560826 | F74: 0.01371014702 | G74: -0.9986079465 | H74: -0.1294243652 | I74: 5.318560826 | J74: 0.01371014702 | K74: -0.9986079465 | L74: -0.1294243652 | M74: 16.91494945 | N74: 0.04360323241 | O74: -0.9955727657 | P74: -0.1074063003 | Q74: 1.020666179 | R74: 0.002631065776 | S74: -0.9997328559 | T74: -0.1591004913
A75: 56 | B75: 2074 | C75: =INDEX('UN-P'!$H$333:$CK$333,A75)/1000 -> 386.662975 | D75: =INDEX('UN-P'!$H$18:$CK$18,A75)/1000000 -> 10.55532728 | E75: 4.629012191 | F75: 0.01197169755 | G75: -0.9987884255 | H75: -0.1296494779 | I75: 4.629012191 | J75: 0.01197169755 | K75: -0.9987884255 | L75: -0.1296494779 | M75: 15.09456874 | N75: 0.0390380505 | O75: -0.996049223 | P75: -0.1076196361 | Q75: 0.8580404107 | R75: 0.002219091214 | S75: -0.9997754208 | T75: -0.1593329646
A76: 57 | B76: 2075 | C76: =INDEX('UN-P'!$H$333:$CK$333,A76)/1000 -> 385.434714 | D76: =INDEX('UN-P'!$H$18:$CK$18,A76)/1000000 -> 10.57715589 | E76: 4.027854111 | F76: 0.01045015917 | G76: -0.9989457696 | H76: -0.1298674654 | I76: 4.027854111 | J76: 0.01045015917 | K76: -0.9989457696 | L76: -0.1298674654 | M76: 13.46697459 | N76: 0.0349397034 | O76: -0.9964752214 | P76: -0.1078264761 | Q76: 0.7211333415 | R76: 0.001870961061 | S76: -0.9998112542 | T76: -0.1595578337
A77: 58 | B77: 2076 | C77: =INDEX('UN-P'!$H$333:$CK$333,A77)/1000 -> 384.244327 | D77: =INDEX('UN-P'!$H$18:$CK$18,A77)/1000000 -> 10.59813196 | E77: 3.503916242 | F77: 0.009118979764 | G77: -0.9990829025 | H77: -0.1300786607 | I77: 3.503916242 | J77: 0.009118979764 | K77: -0.9990829025 | L77: -0.1300786607 | M77: 12.01217621 | N77: 0.03126181798 | O77: -0.996855993 | P77: -0.1080271125 | Q77: 0.6059139261 | R77: 0.001576897519 | S77: -0.9998414111 | T77: -0.1597754656
A78: 59 | B78: 2077 | C78: =INDEX('UN-P'!$H$333:$CK$333,A78)/1000 -> 383.091837 | D78: =INDEX('UN-P'!$H$18:$CK$18,A78)/1000000 -> 10.61826833 | E78: 3.047414204 | F78: 0.007954787624 | G78: -0.999202385 | H78: -0.1302833764 | I78: 3.047414204 | J78: 0.007954787624 | K78: -0.999202385 | L78: -0.1302833764 | M78: 10.71219663 | N78: 0.02796247688 | O78: -0.9971962432 | P78: -0.1082218203 | Q78: 0.508976057 | R78: 0.001328600633 | S78: -0.9998667832 | T78: -0.1599862042
A79: 60 | B79: 2078 | C79: =INDEX('UN-P'!$H$333:$CK$333,A79)/1000 -> 381.976625 | D79: =INDEX('UN-P'!$H$18:$CK$18,A79)/1000000 -> 10.6375739 | E79: 2.64978179 | F79: 0.006937026028 | G79: -0.9993064594 | H79: -0.1304819061 | I79: 2.64978179 | J79: 0.006937026028 | K79: -0.9993064594 | L79: -0.1304819061 | M79: 9.550878203 | N79: 0.02500382897 | O79: -0.9975002009 | P79: -0.1084108583 | Q79: 0.4274429931 | R79: 0.001119029189 | S79: -0.9998881232 | T79: -0.160190372
A80: 61 | B80: 2079 | C80: =INDEX('UN-P'!$H$333:$CK$333,A80)/1000 -> 380.897642 | D80: =INDEX('UN-P'!$H$18:$CK$18,A80)/1000000 -> 10.65605444 | E80: 2.30352281 | F80: 0.006047616356 | G80: -0.9993970875 | H80: -0.1306745262 | I80: 2.30352281 | J80: 0.006047616356 | K80: -0.9993970875 | L80: -0.1306745262 | M80: 8.513705639 | N80: 0.02235168901 | O80: -0.9977716652 | P80: -0.1085944708 | Q80: 0.3588861503 | R80: 0.0009422115307 | S80: -0.9999060669 | T80: -0.1603882714
A81: 62 | B81: 2080 | C81: =INDEX('UN-P'!$H$333:$CK$333,A81)/1000 -> 379.853885 | D81: =INDEX('UN-P'!$H$18:$CK$18,A81)/1000000 -> 10.67371947 | E81: 2.002080368 | F81: 0.005270659184 | G81: -0.9994759855 | H81: -0.1308614965 | I81: 2.002080368 | J81: 0.005270659184 | K81: -0.9994759855 | L81: -0.1308614965 | M81: 7.58764529 | N81: 0.01997516832 | O81: -0.9980140476 | P81: -0.1087728879 | Q81: 0.3012561452 | R81: 0.0007930842809 | S81: -0.9999211507 | T81: -0.1605801869
A82: 63 | B82: 2081 | C82: =INDEX('UN-P'!$H$333:$CK$333,A82)/1000 -> 378.844555 | D82: =INDEX('UN-P'!$H$18:$CK$18,A82)/1000000 -> 10.69057697 | E82: 1.739721626 | F82: 0.004592177987 | G82: -0.999544654 | H82: -0.1310430621 | I82: 1.739721626 | J82: 0.004592177987 | K82: -0.999544654 | L82: -0.1310430621 | M82: 6.760999204 | N82: 0.01784636763 | O82: -0.9982304099 | P82: -0.1089463271 | Q82: 0.2528242836 | R82: 0.0006673562554 | S82: -0.999933827 | T82: -0.1607663857
A83: 64 | B83: 2082 | C83: =INDEX('UN-P'!$H$333:$CK$333,A83)/1000 -> 377.868808 | D83: =INDEX('UN-P'!$H$18:$CK$18,A83)/1000000 -> 10.70664443 | E83: 1.511436304 | F83: 0.003999896981 | G83: -0.9996044042 | H83: -0.1312194539 | I83: 1.511436304 | J83: 0.003999896981 | K83: -0.9996044042 | L83: -0.1312194539 | M83: 6.023272817 | N83: 0.01594011649 | O83: -0.9984234987 | P83: -0.1091149939 | Q83: 0.2121329434 | R83: 0.0005613931049 | S83: -0.9999444774 | T83: -0.1609471196
A84: 65 | B84: 2083 | C84: =INDEX('UN-P'!$H$333:$CK$333,A84)/1000 -> 376.925429 | D84: =INDEX('UN-P'!$H$18:$CK$18,A84)/1000000 -> 10.72195121 | E84: 1.312847343 | F84: =E84/$C84 -> 0.003483042644 | G84: =IF(E$18<>"no data",(E84-E$18)/E$18,0) -> -0.9996563819 | H84: -0.13139089 | I84: 1.312847343 | J84: =I84/$C84 -> 0.003483042644 | K84: =IF(I$18<>"no data",(I84-I$18)/I$18,0) -> -0.9996563819 | L84: -0.13139089 | M84: 5.36505509 | N84: =M84/$C84 -> 0.0142337308 | O84: =IF(M$18<>"no data",(M84-M$18)/M$18,0) -> -0.9985957773 | P84: -0.1092790826 | Q84: 0.1779535265 | R84: =Q84/$C84 -> 0.0004721186549 | S84: =IF(Q$18<>"no data",(Q84-Q$18)/Q$18,0) -> -0.9999534233 | T84: -0.1611226257
A85: =A84+1 -> 66 | B85: =B84+1 -> 2084 | C85: =INDEX('UN-P'!$H$333:$CK$333,A85)/1000 -> 376.013159 | D85: =INDEX('UN-P'!$H$18:$CK$18,A85)/1000000 -> 10.73653284 | E85: =-E$20*EXP(-H$13*($B85-$B$20))/H$13^2*((H$12*H$13+H$13^2)*($B85-$B$20)+2*H$13+H$12) +E$20*EXP(-H$13*($B85-$B$20-1))/H$13^2*((H$12*H$13+H$13^2)*($B85-$B$20-1)+2*H$13+H$12) -> 1.140132328 | F85: 0.003032160713 | G85: -0.9997015875 | H85: =IF(E85>0,(E85-E84)/E84,"") -> -0.1315575764 | I85: =-I$20*EXP(-L$13*($B85-$B$20))/L$13^2*((L$12*L$13+L$13^2)*($B85-$B$20)+2*L$13+L$12) +I$20*EXP(-L$13*($B85-$B$20-1))/L$13^2*((L$12*L$13+L$13^2)*($B85-$B$20-1)+2*L$13+L$12) -> 1.140132328 | J85: 0.003032160713 | K85: -0.9997015875 | L85: =IF(I85>0,(I85-I84)/I84,"") -> -0.1315575764 | M85: =-M$20*EXP(-P$13*($B85-$B$20))/P$13^2*((P$12*P$13+P$13^2)*($B85-$B$20)+2*P$13+P$12) +M$20*EXP(-P$13*($B85-$B$20-1))/P$13^2*((P$12*P$13+P$13^2)*($B85-$B$20-1)+2*P$13+P$12) -> 4.777910022 | N85: 0.0127067628 | O85: -0.9987494537 | P85: =IF(M85>0,(M85-M84)/M84,"") -> -0.109438777 | Q85: =-Q$20*EXP(-T$13*($B85-$B$20))/T$13^2*((T$12*T$13+T$13^2)*($B85-$B$20)+2*T$13+T$12) +Q$20*EXP(-T$13*($B85-$B$20-1))/T$13^2*((T$12*T$13+T$13^2)*($B85-$B$20-1)+2*T$13+T$12) -> 0.1492508457 | R85: 0.0003969298471 | S85: -0.9999609358 | T85: =IF(Q85>0,(Q85-Q84)/Q84,"") -> -0.1612931275
A86: 67 | B86: 2085 | C86: =INDEX('UN-P'!$H$333:$CK$333,A86)/1000 -> 375.130449 | D86: =INDEX('UN-P'!$H$18:$CK$18,A86)/1000000 -> 10.75041674 | E86: 0.9899544311 | F86: 0.002638960484 | G86: -0.9997408943 | H86: -0.1317197078 | I86: 0.9899544311 | J86: 0.002638960484 | K86: -0.9997408943 | L86: -0.1317197078 | M86: 4.25427855 | N86: 0.01134079775 | O86: -0.9988865064 | P86: -0.1095942514 | Q86: 0.1251529779 | R86: 0.0003336252181 | S86: -0.9999672431 | T86: -0.1614588362
A87: 68 | B87: 2086 | C87: =INDEX('UN-P'!$H$333:$CK$333,A87)/1000 -> 374.276088 | D87: =INDEX('UN-P'!$H$18:$CK$18,A87)/1000000 -> 10.76361521 | E87: 0.8594017471 | F87: 0.002296170593 | G87: -0.9997750645 | H87: -0.1318774683 | I87: 0.8594017471 | J87: 0.002296170593 | K87: -0.9997750645 | L87: -0.1318774683 | M87: 3.787389897 | N87: 0.0101192409 | O87: -0.9990087075 | P87: -0.1097456708 | Q87: 0.1049257597 | R87: 0.0002803432094 | S87: -0.9999725373 | T87: -0.1616199509
A88: 69 | B88: 2087 | C88: =INDEX('UN-P'!$H$333:$CK$333,A88)/1000 -> 373.448519 | D88: =INDEX('UN-P'!$H$18:$CK$18,A88)/1000000 -> 10.77612937 | E88: 0.7459340472 | F88: 0.001997421356 | G88: -0.999804763 | H88: -0.1320310323 | I88: 0.7459340472 | J88: 0.001997421356 | K88: -0.999804763 | L88: -0.1320310323 | M88: 3.371181532 | N88: 0.009027165353 | O88: -0.9991176438 | P88: -0.1098931919 | Q88: 0.08795122074 | R88: 0.0002355109641 | S88: -0.9999769801 | T88: -0.1617766602
A89: 70 | B89: 2088 | C89: =INDEX('UN-P'!$H$333:$CK$333,A89)/1000 -> 372.645682 | D89: =INDEX('UN-P'!$H$18:$CK$18,A89)/1000000 -> 10.78796232 | E89: 0.6473360633 | F89: 0.001737135554 | G89: -0.9998305695 | H89: -0.1321805652 | I89: 0.6473360633 | J89: 0.001737135554 | K89: -0.9998305695 | L89: -0.1321805652 | M89: 3.000226954 | N89: 0.008051151801 | O89: -0.9992147356 | P89: -0.1100369633 | Q89: 0.07370935501 | R89: 0.000197800105 | S89: -0.9999807077 | T89: -0.1619291422
A90: 71 | B90: 2089 | C90: =INDEX('UN-P'!$H$333:$CK$333,A90)/1000 -> 371.865142 | D90: =INDEX('UN-P'!$H$18:$CK$18,A90)/1000000 -> 10.79911205 | E90: 0.5616765267 | F90: 0.0015104307 | G90: -0.9998529896 | H90: -0.1323262235 | I90: 0.5616765267 | J90: 0.0015104307 | K90: -0.9998529896 | L90: -0.1323262235 | M90: 2.66967057 | N90: 0.007179136382 | O90: -0.9993012538 | P90: -0.1101771261 | Q90: 0.06176272217 | R90: 0.0001660890339 | S90: -0.9999838345 | T90: -0.1620775659
A91: 72 | B91: 2090 | C91: =INDEX('UN-P'!$H$333:$CK$333,A91)/1000 -> 371.104808 | D91: =INDEX('UN-P'!$H$18:$CK$18,A91)/1000000 -> 10.8095758 | E91: 0.487272273 | F91: 0.00131303142 | G91: -0.9998724638 | H91: -0.1324681559 | I91: 0.487272273 | J91: 0.00131303142 | K91: -0.9998724638 | L91: -0.1324681559 | M91: 2.375169026 | N91: 0.006400264764 | O91: -0.9993783351 | P91: -0.1103138145 | Q91: 0.05174344424 | R91: 0.0001394308107 | S91: -0.9999864569 | T91: -0.1622220909
A92: 73 | B92: 2091 | C92: =INDEX('UN-P'!$H$333:$CK$333,A92)/1000 -> 370.362772 | D92: =INDEX('UN-P'!$H$18:$CK$18,A92)/1000000 -> 10.81935048 | E92: 0.4226568006 | F92: 0.001141196774 | G92: -0.9998893759 | H92: -0.1326065036 | I92: 0.4226568006 | J92: 0.001141196774 | K92: -0.9998893759 | L92: -0.1326065036 | M92: 2.112838362 | N92: 0.005704780614 | O92: -0.9994469962 | P92: -0.1104471562 | Q92: 0.04334223018 | R92: 0.0001170264223 | S92: -0.9999886558 | T92: -0.1623628691
A93: 74 | B93: 2092 | C93: =INDEX('UN-P'!$H$333:$CK$333,A93)/1000 -> 369.637245 | D93: =INDEX('UN-P'!$H$18:$CK$18,A93)/1000000 -> 10.82843271 | E93: 0.3665527449 | F93: 0.0009916553319 | G93: -0.9999040603 | H93: -0.1327414007 | I93: 0.3665527449 | J93: 0.0009916553319 | K93: -0.9999040603 | L93: -0.1327414007 | M93: 1.879206459 | N93: 0.005083920747 | O93: -0.9995081459 | P93: -0.1105772725 | Q93: 0.03629911586 | R93: 9.820199764e-05 | S93: -0.9999904993 | T93: -0.1625000441
A94: 75 | B94: 2093 | C94: =INDEX('UN-P'!$H$333:$CK$333,A94)/1000 -> 368.926705 | D94: =INDEX('UN-P'!$H$18:$CK$18,A94)/1000000 -> 10.83681718 | E94: 0.3178477913 | F94: 0.0008615472585 | G94: -0.9999168081 | H94: -0.1328729747 | I94: 0.3178477913 | J94: 0.0008615472585 | K94: -0.9999168081 | L94: -0.1328729747 | M94: 1.671170262 | N94: 0.004529816464 | O94: -0.9995625962 | P94: -0.1107042791 | Q94: 0.03039565443 | R94: 8.238941237e-05 | S94: -0.9999920444 | T94: -0.1626337526
A95: 76 | B95: 2094 | C95: =INDEX('UN-P'!$H$333:$CK$333,A95)/1000 -> 368.2296 | D95: =INDEX('UN-P'!$H$18:$CK$18,A95)/1000000 -> 10.84449673 | E95: 0.2755736069 | F95: 0.0007483744026 | G95: -0.9999278727 | H95: -0.1330013469 | I95: 0.2755736069 | J95: 0.0007483744026 | K95: -0.9999278727 | L95: -0.1330013469 | M95: 1.485957327 | N95: 0.004035409773 | O95: -0.999611073 | P95: -0.1108282861 | Q95: 0.02544833235 | R95: 6.910995844e-05 | S95: -0.9999933393 | T95: -0.1627641244
A96: 77 | B96: 2095 | C96: =INDEX('UN-P'!$H$333:$CK$333,A96)/1000 -> 367.544176 | D96: =INDEX('UN-P'!$H$18:$CK$18,A96)/1000000 -> 10.8514606 | E96: 0.2388874206 | F96: 0.0006499556683 | G96: -0.9999374748 | H96: -0.1331266328 | I96: 0.2388874206 | J96: 0.0006499556683 | K96: -0.9999374748 | L96: -0.1331266328 | M96: 1.321091255 | N96: 0.003594374067 | O96: -0.9996542242 | P96: -0.1109493986 | Q96: 0.02130302085 | R96: 5.796043643e-05 | S96: -0.9999944243 | T96: -0.1628912828
A97: 78 | B97: 2096 | C97: =INDEX('UN-P'!$H$333:$CK$333,A97)/1000 -> 366.868552 | D97: =INDEX('UN-P'!$H$18:$CK$18,A97)/1000000 -> 10.85769425 | E97: 0.2070559244 | F97: 0.0005643872262 | G97: -0.9999458062 | H97: -0.1332489423 | I97: 0.2070559244 | J97: 0.0005643872262 | K97: -0.9999458062 | L97: -0.1332489423 | M97: 1.174360665 | N97: 0.003201039334 | O97: -0.9996926287 | P97: -0.1110677168 | Q97: 0.01783030155 | R97: 4.860133542e-05 | S97: -0.9999953332 | T97: -0.1630153452
A98: 79 | B98: 2097 | C98: =INDEX('UN-P'!$H$333:$CK$333,A98)/1000 -> 366.200706 | D98: =INDEX('UN-P'!$H$18:$CK$18,A98)/1000000 -> 10.86317944 | E98: 0.1794412112 | F98: 0.0004900078242 | G98: -0.999953034 | H98: -0.1333683803 | I98: 0.1794412112 | J98: 0.0004900078242 | K98: -0.999953034 | L98: -0.1333683803 | M98: 1.043791329 | N98: 0.002850325823 | O98: -0.9997268033 | P98: -0.1111833362 | Q98: 0.01492152993 | R98: 4.074686281e-05 | S98: -0.9999960945 | T98: -0.1631364233
A99: 80 | B99: 2098 | C99: =INDEX('UN-P'!$H$333:$CK$333,A99)/1000 -> 365.53832 | D99: =INDEX('UN-P'!$H$18:$CK$18,A99)/1000000 -> 10.86789385 | E99: 0.1554884927 | F99: 0.000425368516 | G99: -0.9999593032 | H99: -0.1334850467 | I99: 0.1554884927 | J99: 0.000425368516 | K99: -0.9999593032 | L99: -0.1334850467 | M99: 0.9276211656 | N99: 0.002537685148 | O99: -0.9997572091 | P99: -0.1112963482 | Q99: 0.01248552118 | R99: 3.41565316e-05 | S99: -0.9999967321 | T99: -0.1632546235
A100: 81 | B100: 2099 | C100: =INDEX('UN-P'!$H$333:$CK$333,A100)/1000 -> 364.879044 | D100: =INDEX('UN-P'!$H$18:$CK$18,A100)/1000000 -> 10.87181148 | E100: 0.1347153799 | F100: 0.0003692055822 | G100: -0.9999647403 | H100: -0.1335990368 | I100: 0.1347153799 | J100: 0.0003692055822 | K100: -0.9999647403 | L100: -0.1335990368 | M100: 0.824277823 | N100: 0.002259044022 | O100: -0.9997842576 | P100: -0.1114068399 | Q100: 0.010445761 | R100: 2.862801021e-05 | S100: -0.999997266 | T100: -0.1633700471
A101: 82 | B101: 2100 | C101: =INDEX('UN-P'!$H$333:$CK$333,A101)/1000 -> 364.220185 | D101: =INDEX('UN-P'!$H$18:$CK$18,A101)/1000000 -> 10.87490232 | E101: 0.1167025269 | F101: 0.0003204175158 | G101: -0.9999694549 | H101: -0.1337104419 | I101: 0.1167025269 | J101: 0.0003204175158 | K101: -0.9999694549 | L101: -0.1337104419 | M101: 0.7323585683 | N101: 0.002010757774 | O101: -0.9998083161 | P101: -0.1115148947 | Q101: 0.008738058835 | R101: 2.39911438e-05 | S101: -0.9999977129 | T101: -0.163482791
B102: ∑ | C102: 2020 - 2100 | E102: =SUM(E21:E101) -> 33078.94414 | I102: =SUM(I21:I101) -> 33078.94414 | M102: =SUM(M21:M101) -> 38468.84279 | Q102: =SUM(Q21:Q101) -> 27684.71618
B119: drop-down-list
B120: China
B121: United States
B122: EU28
B123: EU27
B124: India
B125: Russia
B126: Japan
B127: Germany
B128: ='data countries'!B14 -> Afghanistan
B129: ='data countries'!B15 -> Albania
B130: ='data countries'!B16 -> Algeria
B131: ='data countries'!B17 -> Angola
B132: ='data countries'!B18 -> Anguilla
B133: ='data countries'!B19 -> Antigua and Barbuda
B134: ='data countries'!B20 -> Argentina
B135: ='data countries'!B21 -> Armenia
B136: ='data countries'!B22 -> Aruba
B137: ='data countries'!B23 -> Australia
B138: ='data countries'!B24 -> Austria
B139: ='data countries'!B25 -> Azerbaijan
B140: ='data countries'!B26 -> Bahamas
B141: ='data countries'!B27 -> Bahrain
B142: ='data countries'!B28 -> Bangladesh
B143: ='data countries'!B29 -> Barbados
B144: ='data countries'!B30 -> Belarus
B145: ='data countries'!B31 -> Belgium
B146: ='data countries'!B32 -> Belize
B147: ='data countries'!B33 -> Benin
B148: ='data countries'!B34 -> Bermuda
B149: ='data countries'!B35 -> Bhutan
B150: ='data countries'!B36 -> Bolivia
B151: ='data countries'!B37 -> Bosnia and Herzegovina
B152: ='data countries'!B38 -> Botswana
B153: ='data countries'!B39 -> Brazil
B154: ='data countries'!B40 -> British Virgin Islands
B155: ='data countries'!B41 -> Brunei
B156: ='data countries'!B42 -> Bulgaria
B157: ='data countries'!B43 -> Burkina Faso
B158: ='data countries'!B44 -> Burundi
B159: ='data countries'!B45 -> Cabo Verde
B160: ='data countries'!B46 -> Cambodia
B161: ='data countries'!B47 -> Cameroon
B162: ='data countries'!B48 -> Canada
B163: ='data countries'!B49 -> Cayman Islands
B164: ='data countries'!B50 -> Central African Republic
B165: ='data countries'!B51 -> Chad
B166: ='data countries'!B52 -> Chile
B167: ='data countries'!B53 -> China
B168: ='data countries'!B54 -> Colombia
B169: ='data countries'!B55 -> Comoros
B170: ='data countries'!B56 -> Congo
B171: ='data countries'!B57 -> Cook Islands
B172: ='data countries'!B58 -> Costa Rica
B173: ='data countries'!B59 -> Côte d’Ivoire
B174: ='data countries'!B60 -> Croatia
B175: ='data countries'!B61 -> Cuba
B176: ='data countries'!B62 -> Curaçao
B177: ='data countries'!B63 -> Cyprus
B178: ='data countries'!B64 -> Czechia
B179: ='data countries'!B65 -> Democratic Republic of the Congo
B180: ='data countries'!B66 -> Denmark
B181: ='data countries'!B67 -> Djibouti
B182: ='data countries'!B68 -> Dominica
B183: ='data countries'!B69 -> Dominican Republic
B184: ='data countries'!B70 -> Ecuador
B185: ='data countries'!B71 -> Egypt
B186: ='data countries'!B72 -> El Salvador
B187: ='data countries'!B73 -> Equatorial Guinea
B188: ='data countries'!B74 -> Eritrea
B189: ='data countries'!B75 -> Estonia
B190: ='data countries'!B76 -> Eswatini
B191: ='data countries'!B77 -> Ethiopia
B192: ='data countries'!B78 -> Falkland Islands
B193: ='data countries'!B79 -> Faroes
B194: ='data countries'!B80 -> Fiji
B195: ='data countries'!B81 -> Finland
B196: ='data countries'!B82 -> France and Monaco
B197: ='data countries'!B83 -> French Guiana
B198: ='data countries'!B84 -> French Polynesia
B199: ='data countries'!B85 -> Gabon
B200: ='data countries'!B86 -> Georgia
B201: ='data countries'!B87 -> Germany
B202: ='data countries'!B88 -> Ghana
B203: ='data countries'!B89 -> Gibraltar
B204: ='data countries'!B90 -> Greece
B205: ='data countries'!B91 -> Greenland
B206: ='data countries'!B92 -> Grenada
B207: ='data countries'!B93 -> Guadeloupe
B208: ='data countries'!B94 -> Guatemala
B209: ='data countries'!B95 -> Guinea
B210: ='data countries'!B96 -> Guinea-Bissau
B211: ='data countries'!B97 -> Guyana
B212: ='data countries'!B98 -> Haiti
B213: ='data countries'!B99 -> Honduras
B214: ='data countries'!B100 -> Hong Kong
B215: ='data countries'!B101 -> Hungary
B216: ='data countries'!B102 -> Iceland
B217: ='data countries'!B103 -> India
B218: ='data countries'!B104 -> Indonesia
B219: ='data countries'!B105 -> Iran
... 118 more rows

Sheet quick results (hidden)
B2: quick results ESPM
B4: selected country | C4: ='reference values'!B2 -> EU27 | F4: input sheet "reference values"
B6: reference values
B7: Change of emissions in 2030 compared with 1990 | C7: ='reference values'!AM89 -> -0.6511482094 | F7: see sheet "reference values"
B8: Change of emissions in 2050 compared with 1990 | C8: ='reference values'!AM93 -> -0.9731190071
B10: budget parameters
B11: global CO2 budget 2018 - 2100 | C11: ='base data'!B11 -> 570 | D11: Gt | F11: input sheet "base data"
B12: ='base data'!B31 -> weighting population key in the weighted key | C12: =IF('base data'!L41='base data'!L39,"budget free input",'base data'!D31) -> 0.5 | F12: input sheet "base data"
B13: share in the global budget 2020 - 2100 (weighted key) | C13: ='base data'!D35 -> 0.0689315592 | F13: output sheet "base data"
B14: resulting national budget 2020 - 2100 | C14: ='base data'!L41 -> 33079.69562 | D14: Mill. t
B15: national sum net negative emissions 2020 - 2100 | C15: ='reference values'!AM107 -> 0 | D15: Mill. t | F15: output sheet "RM"
B17: parameters 2019 of the chosen country | D17: weighted key
B18: share of global emissions in 2019 | C18: ='base data'!D34 -> 0.08017353919 | D18: =C13 -> 0.0689315592 | F18: output sheet "base data"
B19: share of global population in 2019 | C19: ='base data'!D33 -> 0.05768957922
B20: projected emissions in 2019 | C20: ='data countries'!M5 -> 2939.068446 | D20: Mill. t | F20: output sheet "data countries"
B22: Underlying scenario type: | C22: ='reference values'!$AM$2 -> RM-5 rad

Sheet output countries
B2: Extended Smooth Pathway Model (ESPM) | G2: ='base data'!B31 -> weighting population key in the weighted key | J2: 0.5 | L2: To update the data, please start the macro for the scenario type you want to use:
G3: global CO2 budget 2018 - 2100 in Gt in Gt | J3: 570
B4: weighted distribution key: population and emissions in base year 2019 | G4: to distribute from this budget here 2020 - 2100 in Gt* | J4: 479.8918812
G5: * without LUC and ISA (int. shipping and aviation)
B6: in Mill. t | C6: budget 2020 - 2100 | D6: ='base data'!B35 -> weighted key | E6: emissions 2019 | G6: sorted by 'budget' in Mill. t | H6: =C6 -> budget 2020 - 2100 | I6: =D6 -> weighted key | J6: =E6 -> emissions 2019 | K6: scope years
B7: Afghanistan | C7: 1255.371751 | D7: 0.002615947051 | E7: 10.99885649 | G7: China | H7: 120103.5316 | I7: 0.2502720641 | J7: 11535.19984 | K7: =H7/J7 -> 10.41191599 | N7: Reference values: largest emitters and one further excample country
B8: Albania | C8: 126.6599976 | D8: 0.0002639344455 | E8: 5.65928452 | G8: India | H8: 59506.40756 | I8: 0.123999613 | J8: 2597.35988 | K8: =H8/J8 -> 22.9103437
B9: Algeria | C9: 2521.167029 | D9: 0.005253614674 | E9: 180.5699165 | G9: United States | H9: 43665.31073 | I9: 0.0909898926 | J9: 5107.261077 | K9: 8.549653144 | N9: global budget in Gt: | O9: 570
B10: Angola | C10: 1158.997882 | D10: 0.002415122921 | E10: 25.81908578 | G10: EU28 | H10: 37568.83482 | I10: 0.07828603962 | J10: 3303.97494 | K10: 11.37079896 | N10: scenario type: | O10: RM-3-lin | Q10: weighting population: | T10: 0.5 | U10: minimum annual emissions: | X10: 0 | Y10: based on 2019
B11: Anguilla | C11: 0.6159558134 | D11: 1.28353039e-06 | E11: 0.02343942037 | G11: EU27 | H11: 33079.69562 | I11: 0.0689315592 | J11: 2939.068446 | K11: 11.25516341
B12: Antigua and Barbuda | C12: 6.359224947 | D12: 1.325137014e-05 | E12: 0.5099989956 | G12: Russia | H12: 16267.12469 | I12: 0.03389747844 | J12: 1792.015253 | K12: 9.077559283 | S12: emissions 2019 in Mill. t | T12: per capita 2019 in t | U12: share in global emissions 2019 | V12: accu-mulated share | W12: temporary overshoot in Mill. t | X12: reduction rate used 2020 | Y12: determination of the free parameter successful?
B13: Argentina | C13: 2698.249039 | D13: 0.005622618645 | E13: 199.4137694 | G13: Indonesia | H13: 12513.65905 | I13: 0.02607599658 | J13: 625.6630056 | K13: 20.00063763
B14: Armenia | C14: 130.7689104 | D14: 0.0002724966093 | E14: 5.921978119 | G14: Japan | H14: 11497.80846 | I14: 0.02395916437 | J14: 1153.716984 | K14: 9.965882987 | N14: target year: | O14: 2030 | Q14: 2050
B15: Aruba | C15: 8.43837482 | D15: 1.758390827e-05 | E15: 0.7839459082 | G15: Brazil | H15: 9694.854351 | I15: 0.02020216372 | J15: 478.146869 | K15: 20.27589216 | N15: reference year: | O15: 1990 | P15: 2010 | Q15: 1990 | R15: 2010
B16: Australia | C16: 3620.634952 | D16: 0.007544688906 | E16: 433.3789103 | G16: Pakistan | H16: 8200.500533 | I16: 0.01708822519 | J16: 223.6259501 | K16: 36.67061237 | N16: China | O16: 1.179815312 | P16: -0.4277898775 | Q16: -1 | R16: -1 | S16: 11535.19984 | T16: 8.045286014 | U16: 0.314663579 | V16: =U16 -> 0.314663579 | W16: 0 | X16: -0.02291777442 | Y16: yes
B17: Austria | C17: 752.2143136 | D17: 0.001567466221 | E17: 72.36317559 | G17: Germany | H17: 7196.78081 | I17: 0.01499667132 | J17: 702.5999621 | K17: 10.24307031 | N17: United States | O17: -0.6657297861 | P17: -0.6959039605 | Q17: -1 | R17: -1 | S17: 5107.261077 | T17: 15.52052745 | U17: 0.1393187004 | V17: =V16+U17 -> 0.4539822794 | W17: 0 | X17: -0.02763287609 | Y17: yes
B18: Azerbaijan | C18: 548.0853006 | D18: 0.001142101632 | E18: 35.98369682 | G18: Iran | H18: 7174.000021 | I18: 0.01494920065 | J18: 701.9859865 | K18: 10.21957726 | N18: EU27 | O18: -0.6153679386 | P18: -0.5700848809 | Q18: -1 | R18: -1 | S18: 2939.068446 | T18: 6.604845165 | U18: 0.08017353919 | V18: =V17+U18 -> 0.5341558186 | W18: 0 | X18: -0.02127696246 | Y18: yes
B19: Bahamas | C19: 28.14720259 | D19: 5.865321689e-05 | E19: 2.449274735 | G19: Mexico | H19: 7143.0752 | I19: 0.01488475942 | J19: 485.0036041 | K19: 14.72788066 | N19: India | O19: 2.443704307 | P19: 0.1727124847 | Q19: 0.1992519642 | R19: -0.5916090276 | S19: 2597.35988 | T19: 1.900853434 | U19: 0.0708522234 | V19: =V18+U19 -> 0.605008042 | W19: 0 | X19: -0.01067976168 | Y19: yes
B20: Bahrain | C20: 283.010229 | D20: 0.0005897374807 | E20: 35.43838392 | G20: Nigeria | H20: 6907.454112 | I20: 0.01439377156 | J20: 100.2232306 | K20: 68.92068904 | N20: Russia | O20: -0.7231910346 | P20: -0.617363456 | Q20: -1 | R20: -1 | S20: 1792.015253 | T20: 12.28482579 | U20: 0.048883586 | V20: =V19+U20 -> 0.653891628 | W20: 0 | X20: -0.02611251029 | Y20: yes
B21: Bangladesh | C21: 5793.006419 | D21: 0.01207148244 | E21: 110.1638678 | G21: South Korea | H21: 5860.223567 | I21: 0.01221154972 | J21: 651.8702368 | K21: 8.989862148 | N21: Japan | O21: -0.5705000352 | P21: -0.5877015591 | Q21: -1 | R21: -1 | S21: 1153.716984 | T21: 9.094389457 | U21: 0.03147173179 | V21: =V20+U21 -> 0.6853633598 | W21: 0 | X21: -0.02389040159 | Y21: yes
B22: Barbados | C22: 33.98032951 | D22: 7.080830253e-05 | E22: 3.827391815 | G22: Bangladesh | H22: 5793.006419 | I22: 0.01207148244 | J22: 110.1638678 | K22: 52.58535791 | N22: Nigeria | O22: 0.3077153053 | P22: 0.08009671314 | Q22: 0.2169496547 | R22: 0.005129569664 | S22: 100.2232306 | T22: 0.4987133547 | U22: 0.002733944873 | W22: 0 | X22: -0.0018189861 | Y22: yes
B23: Belarus | C23: 728.2293484 | D23: 0.001517486286 | E23: 66.3352651 | G23: Turkey | H23: 5316.735172 | I23: 0.01107902713 | J23: 415.7829458 | K23: 12.78728535
B24: Belgium | C24: 1042.39355 | D24: 0.0021721425 | E24: 104.4149027 | G24: Saudi Arabia | H24: 5088.84111 | I24: 0.01060414087 | J24: 614.6071337 | K24: 8.279827602 | N24: Here the start reduction rate for 2020 is 50% of the reduction rate for 2020 in scenario RM-6 abs. If you use the Excel tool, you can set start change rates yourself for 2020 and use six scenario types.
B25: Belize | C25: 14.57117612 | D25: 3.036345621e-05 | E25: 0.3709959741 | G25: South Africa | H25: 5060.656807 | I25: 0.01054541034 | J25: 494.8623337 | K25: 10.2263932
B26: Benin | C26: 420.4653269 | D26: 0.0008761667854 | E26: 8.152652755 | G26: Vietnam | H26: 4998.657445 | I26: 0.0104162159 | J26: 305.2492848 | K26: 16.37565653
B27: Bermuda | C27: 4.235440591 | D27: 8.82582256e-06 | E27: 0.3500242865 | G27: Canada | H27: 4991.796901 | I27: 0.01040191988 | J27: 584.8457063 | K27: 8.535237324
B28: Bhutan | C28: 37.64138521 | D28: 7.843722032e-05 | E28: 2.124182267 | G28: Egypt | H28: 4794.295903 | I28: 0.00999036677 | J28: 255.3685679 | K28: 18.7740251
B29: Bolivia | C29: 518.5811371 | D29: 0.001080620776 | E29: 24.51172639 | G29: United Kingdom | H29: 4489.139206 | I29: 0.00935448042 | J29: 364.9064947 | K29: 12.30216308
B30: Bosnia and Herzegovina | C30: 321.9264309 | D30: 0.0006708311675 | E30: 33.49552725 | G30: Philippines | H30: 4349.223206 | I30: 0.00906292308 | J30: 150.6400862 | K30: 28.8716192
B31: Botswana | C31: 117.736944 | D31: 0.0002453405623 | E31: 7.039305577 | G31: France and Monaco | H31: 4087.293445 | I31: 0.008517113136 | J31: 314.7357888 | K31: 12.98642731
B32: Brazil | C32: 9694.854351 | D32: 0.02020216372 | E32: 478.146869 | G32: Italy, San Marino and the Holy See | H32: 4054.838594 | I32: 0.00844948363 | J32: 331.5629542 | K32: 12.22946817
B33: British Virgin Islands | C33: 1.729721389 | D33: 3.60439811e-06 | E33: 0.1215462424 | G33: Thailand | H33: 3966.273118 | I33: 0.008264930652 | J33: 275.0646544 | K33: 14.41942123
B34: Brunei | C34: 59.42980227 | D34: 0.0001238399827 | E34: 7.020439327 | G34: Australia | H34: 3620.634952 | I34: 0.007544688906 | J34: 433.3789103 | K34: 8.354432729
B35: Bulgaria | C35: 501.2626946 | D35: 0.001044532559 | E35: 43.31410203 | G35: Ethiopia | H35: 3605.947343 | I35: 0.007514082826 | J35: 18.25248367 | K35: 197.5592696
B36: Burkina Faso | C36: 655.9916277 | D36: 0.001366957128 | E36: 3.643240186 | G36: Poland | H36: 3257.757218 | I36: 0.006788523301 | J36: 317.6542447 | K36: 10.25567034
B37: Burundi | C37: 360.8984743 | D37: 0.0007520412168 | E37: 0.3379644876 | G37: Spain and Andorra | H37: 3153.542954 | I37: 0.006571361337 | J37: 259.3102409 | K37: 12.16127425
B38: Cabo Verde | C38: 23.80446712 | D38: 4.960381297e-05 | E38: 1.02322867 | G38: Democratic Republic of the Congo | H38: 2719.360616 | I38: 0.005666611007 | J38: 2.98404416 | K38: 911.3003932
B39: Cambodia | C39: 620.7727844 | D39: 0.001293568007 | E39: 16.48786577 | G39: Argentina | H39: 2698.249039 | I39: 0.005622618645 | J39: 199.4137694 | K39: 13.53090635
B40: Cameroon | C40: 871.0696293 | D40: 0.00181513725 | E40: 10.10219905 | G40: Ukraine | H40: 2654.046843 | I40: 0.005530509989 | J40: 196.4010393 | K40: 13.51340528
B41: Canada | C41: 4991.796901 | D41: 0.01040191988 | E41: 584.8457063 | G41: Malaysia | H41: 2622.578436 | I41: 0.005464936038 | J41: 248.83266 | K41: 10.53952659
B42: Cayman Islands | C42: 4.657474544 | D42: 9.705258053e-06 | E42: 0.4028966581 | G42: Taiwan | H42: 2551.205021 | I42: 0.005316207924 | J42: 276.7848422 | K42: 9.217285893
B43: Central African Republic | C43: 150.8427281 | D43: 0.0003143264848 | E43: 0.4938382667 | G43: Algeria | H43: 2521.167029 | I43: 0.005253614674 | J43: 180.5699165 | K43: 13.9622761
B44: Chad | C44: 501.9147193 | D44: 0.00104589125 | E44: 0.8935866209 | G44: Iraq | H44: 2516.272081 | I44: 0.005243414568 | J44: 197.6122437 | K44: 12.73338146
B45: Chile | C45: 1177.904533 | D45: 0.002454520652 | E45: 89.88875179 | G45: Kazakhstan | H45: 2392.543391 | I45: 0.004985588389 | J45: 277.3646684 | K45: 8.625984719
B46: China | C46: 120103.5316 | D46: 0.2502720641 | E46: 11535.19984 | G46: Colombia | H46: 2132.428955 | I46: 0.004443561224 | J46: 86.54957848 | K46: 24.63823617
B47: Colombia | C47: 2132.428955 | D47: 0.004443561224 | E47: 86.54957848 | G47: Myanmar/Burma | H47: 1997.424085 | I47: 0.004162237712 | J47: 48.31066201 | K47: 41.34540911
B48: Comoros | C48: 27.86860996 | D48: 5.807268481e-05 | E48: 0.2138544744 | G48: Tanzania | H48: 1891.734721 | I48: 0.003942001929 | J48: 13.34308773 | K48: 141.7763833
B49: Congo | C49: 205.3600104 | D49: 0.0004279297451 | E49: 5.803544285 | G49: Sudan and South Sudan | H49: 1823.667511 | I49: 0.003800163292 | J49: 22.57247572 | K49: 80.79164792
B50: Cook Islands | C50: 0.8330123077 | D50: 1.7358333e-06 | E50: 0.04386906697 | G50: Kenya | H50: 1765.123282 | I50: 0.00367816867 | J50: 19.81301085 | K50: 89.08909888
B51: Costa Rica | C51: 215.7881833 | D51: 0.0004496600001 | E51: 8.979111405 | G51: United Arab Emirates | H51: 1761.018265 | I51: 0.003669614625 | J51: 222.6124156 | K51: 7.910692047
B52: Côte d’Ivoire | C52: 888.6984163 | D52: 0.001851872164 | E52: 13.55514981 | G52: Uzbekistan | H52: 1647.732287 | I52: 0.003433548995 | J52: 94.99173287 | K52: 17.34605988
B53: Croatia | C53: 253.62577 | D53: 0.0005285060655 | E53: 19.11925348 | G53: Morocco | H53: 1618.336086 | I53: 0.003372293113 | J53: 73.91385667 | K53: 21.89489439
B54: Cuba | C54: 555.7462513 | D54: 0.001158065542 | E54: 31.04343916 | G54: Venezuela | H54: 1607.420203 | I54: 0.003349546567 | J54: 110.0573326 | K54: 14.60529858
B55: Curaçao | C55: 43.79193397 | D55: 9.125375044e-05 | E55: 5.91382736 | G55: Netherlands | H55: 1555.641457 | I55: 0.003241649875 | J55: 156.4148194 | K55: 9.945614251
B56: Cyprus | C56: 85.80732652 | D56: 0.0001788055391 | E56: 7.413287782 | G56: Uganda | H56: 1412.061382 | I56: 0.002942457327 | J56: 5.339553174 | K56: 264.4530986
B57: Czechia | C57: 1024.315476 | D57: 0.00213447136 | E57: 105.6931967 | G57: Peru | H57: 1379.729228 | I57: 0.002875083497 | J57: 56.28605779 | K57: 24.51280623
B58: Democratic Republic of the Congo | C58: 2719.360616 | D58: 0.005666611007 | E58: 2.98404416 | G58: Afghanistan | H58: 1255.371751 | I58: 0.002615947051 | J58: 10.99885649 | K58: 114.1365698
B59: Denmark | C59: 383.2307385 | D59: 0.0007985772495 | E59: 31.11854911 | G59: Chile | H59: 1177.904533 | I59: 0.002454520652 | J59: 89.88875179 | K59: 13.10402592
B60: Djibouti | C60: 37.15183437 | D60: 7.741709294e-05 | E60: 1.049124003 | G60: Angola | H60: 1158.997882 | I60: 0.002415122921 | J60: 25.81908578 | K60: 44.88919134
B61: Dominica | C61: 2.909755332 | D61: 6.063356031e-06 | E61: 0.1032782336 | G61: Romania | H61: 1117.052555 | I61: 0.002327717137 | J61: 78.63128639 | K61: 14.20620985
B62: Dominican Republic | C62: 512.5929537 | D62: 0.001068142583 | E62: 27.27602213 | G62: North Korea | H62: 1074.445581 | I62: 0.002238932607 | J62: 42.17296771 | K62: 25.47711577
B63: Ecuador | C63: 806.8450826 | D63: 0.001681305966 | E63: 40.69980438 | G63: Ghana | H63: 1056.427967 | I63: 0.002201387455 | J63: 16.837459 | K63: 62.7427195
B64: Egypt | C64: 4794.295903 | D64: 0.00999036677 | E64: 255.3685679 | G64: Belgium | H64: 1042.39355 | I64: 0.0021721425 | J64: 104.4149027 | K64: 9.983187491
B65: El Salvador | C65: 247.5284795 | D65: 0.0005158005152 | E65: 7.146297616 | G65: Czechia | H65: 1024.315476 | I65: 0.00213447136 | J65: 105.6931967 | K65: 9.691404068
B66: Equatorial Guinea | C66: 64.92350564 | D66: 0.0001352877767 | E66: 3.474559399 | G66: Mozambique | H66: 1005.214985 | I66: 0.002094669706 | J66: 9.259440962 | K66: 108.561088
B67: Eritrea | C67: 113.6743957 | D67: 0.0002368750133 | E67: 0.7468134987 | G67: Nepal | H67: 988.2482094 | I67: 0.002059314292 | J67: 15.01908767 | K67: 65.79948337
B68: Estonia | C68: 162.3463438 | D68: 0.0003382977502 | E68: 18.50296076 | G68: Yemen | H68: 978.4202482 | I68: 0.00203883476 | J68: 10.88839475 | K68: 89.85899854
B69: Eswatini | C69: 43.19792881 | D69: 9.00159609e-05 | E69: 1.14318664 | G69: Côte d’Ivoire | H69: 888.6984163 | I69: 0.001851872164 | J69: 13.55514981 | K69: 65.56168165
B70: Ethiopia | C70: 3605.947343 | D70: 0.007514082826 | E70: 18.25248367 | G70: Cameroon | H70: 871.0696293 | I70: 0.00181513725 | J70: 10.10219905 | K70: 86.22574398
B71: Falkland Islands | C71: 0.3128593575 | D71: 6.519371753e-07 | E71: 0.03174906813 | G71: Israel and Palestine, State of | H71: 867.2136932 | I71: 0.00180710224 | J71: 68.3289742 | K71: 12.69174173
B72: Faroes | C72: 1.526861421 | D72: 3.181677958e-06 | E72: 0.0019273728 | G72: Madagascar | H72: 866.427526 | I72: 0.001805464022 | J72: 4.198763317 | K72: =H72/J72 -> 206.3530284
B73: Fiji | C73: 36.59085209 | D73: 7.624811656e-05 | E73: 1.360765899 | G73: Sri Lanka | H73: 843.757672 | I73: 0.001758224519 | J73: 27.5662856 | K73: 30.60831931
B74: Finland | C74: 456.2578066 | D74: 0.0009507512516 | E74: 43.41487922 | G74: Ecuador | H74: 806.8450826 | I74: 0.001681305966 | J74: 40.69980438 | K74: 19.82429879
B75: France and Monaco | C75: 4087.293445 | D75: 0.008517113136 | E75: 314.7357888 | G75: Qatar | H75: 785.3617666 | I75: 0.001636538974 | J75: 106.5276102 | K75: 7.372377592
B76: French Guiana | C76: 13.04252388 | D76: 2.717804654e-05 | E76: 0.610430159 | G76: Kuwait | H76: 778.5531149 | I76: 0.001622351087 | J76: 98.95252113 | K76: 7.867946223
B77: French Polynesia | C77: 12.61145584 | D77: 2.627978579e-05 | E77: 0.5994402519 | G77: Turkmenistan | H77: 777.3532838 | I77: 0.001619850875 | J77: 90.52346576 | K77: 8.587312442
B78: Gabon | C78: 90.39361993 | D78: 0.0001883624697 | E78: 3.484952821 | G78: Oman | H78: 762.0438069 | I78: 0.001587948946 | J78: 92.78072001 | K78: 8.213385354
B79: Georgia | C79: 212.5195843 | D79: 0.0004428488845 | E79: 13.47372284 | G79: Serbia and Montenegro | H79: 755.0939535 | I79: 0.001573466823 | J79: 70.68765961 | K79: 10.68211846
B80: Germany | C80: 7196.78081 | D80: 0.01499667132 | E80: 702.5999621 | G80: Greece | H80: 754.9725299 | I80: 0.0015732138 | J80: 65.5684885 | K80: 11.51425856
B81: Ghana | C81: 1056.427967 | D81: 0.002201387455 | E81: 16.837459 | G81: Austria | H81: 752.2143136 | I81: 0.001567466221 | J81: 72.36317559 | K81: 10.39498761
B82: Gibraltar | C82: 5.587789246 | D82: 1.164385034e-05 | E82: 0.6935334265 | G82: Niger | H82: 740.580077 | I82: 0.001543222768 | J82: 2.359578167 | K82: 313.8612178
B83: Greece | C83: 754.9725299 | D83: 0.0015732138 | E83: 65.5684885 | G83: Belarus | H83: 728.2293484 | I83: 0.001517486286 | J83: 66.3352651 | K83: 10.97801218
B84: Greenland | C84: 5.275726396 | D84: 1.099357293e-05 | E84: 0.5366852088 | G84: Syria | H84: 721.8754272 | I84: 0.001504245968 | J84: 29.16071308 | K84: 24.75506772
B85: Grenada | C85: 4.980550258 | D85: 1.03784841e-05 | E85: 0.2286236163 | G85: Guatemala | H85: 685.649749 | I85: 0.001428758802 | J85: 21.19600281 | K85: 32.34806841
B86: Guadeloupe | C86: 24.70459941 | D86: 5.147951108e-05 | E86: 1.873061632 | G86: Burkina Faso | H86: 655.9916277 | I86: 0.001366957128 | J86: 3.643240186 | K86: 180.0572003
B87: Guatemala | C87: 685.649749 | D87: 0.001428758802 | E87: 21.19600281 | G87: Hungary | H87: 649.3654249 | I87: 0.001353149429 | J87: 53.18259902 | K87: 12.21011077
B88: Guinea | C88: 416.3991274 | D88: 0.000867693628 | E88: 2.920971605 | G88: Portugal | H88: 635.3779983 | I88: 0.001324002392 | J88: 48.47204898 | K88: 13.10813163
B89: Guinea-Bissau | C89: 62.61676009 | D89: 0.000130480974 | E89: 0.4372352708 | G89: Cambodia | H89: 620.7727844 | I89: 0.001293568007 | J89: 16.48786577 | K89: 37.6502813
B90: Guyana | C90: 34.31455789 | D90: 7.150476855e-05 | E90: 1.522408916 | G90: Mali | H90: 618.2608411 | I90: 0.001288333613 | J90: 1.031353639 | K90: 599.4654186
B91: Haiti | C91: 373.7758416 | D91: 0.0007788751098 | E91: 3.576690933 | G91: Sweden | H91: 605.1032898 | I91: 0.001260915872 | J91: 44.74876921 | K91: 13.52223313
B92: Honduras | C92: 370.9635572 | D92: 0.0007730148638 | E92: 10.35649717 | G92: Zambia | H92: 604.7170487 | I92: 0.001260111022 | J92: 7.502520664 | K92: 80.60185047
B93: Hong Kong | C93: 519.4220886 | D93: 0.001082373153 | E93: 44.01619722 | G93: Malawi | H93: 590.0701912 | I93: 0.00122958986 | J93: 1.616147874 | K93: 365.1090352
B94: Hungary | C94: 649.3654249 | D94: 0.001353149429 | E94: 53.18259902 | G94: Tunisia | H94: 573.7136783 | I94: 0.001195506115 | J94: 32.07169355 | K94: 17.88847469
B95: Iceland | C95: 36.23959764 | D95: 7.551617158e-05 | E95: 3.92539939 | G95: Senegal | H95: 571.1412672 | I95: 0.001190145717 | J95: 9.809019874 | K95: 58.22613009
B96: India | C96: 59506.40756 | D96: 0.123999613 | E96: 2597.35988 | G96: Cuba | H96: 555.7462513 | I96: 0.001158065542 | J96: 31.04343916 | K96: 17.90221271
B97: Indonesia | C97: 12513.65905 | D97: 0.02607599658 | E97: 625.6630056 | G97: Libya | H97: 551.4924728 | I97: 0.001149201506 | J97: 52.0464267 | K97: 10.596164
B98: Iran | C98: 7174.000021 | D98: 0.01494920065 | E98: 701.9859865 | G98: Azerbaijan | H98: 548.0853006 | I98: 0.001142101632 | J98: 35.98369682 | K98: 15.23148951
B99: Iraq | C99: 2516.272081 | D99: 0.005243414568 | E99: 197.6122437 | G99: Singapore | H99: 529.8546033 | I99: 0.001104112456 | J99: 53.36540444 | K99: 9.928803293
B100: Ireland | C100: 391.1014824 | D100: 0.0008149783268 | E100: 36.54788753 | G100: Zimbabwe | H100: 526.6766021 | I100: 0.001097490128 | J100: 10.86173483 | K100: 48.48917879 | Z100: =B100 -> Ireland | AA100: =E100 -> 36.54788753
B101: Israel and Palestine, State of | C101: 867.2136932 | D101: 0.00180710224 | E101: 68.3289742 | G101: Switzerland and Liechtenstein | H101: 526.1348115 | I101: 0.001096361143 | J101: 39.37084926 | K101: 13.36356267
B102: Italy, San Marino and the Holy See | C102: 4054.838594 | D102: 0.00844948363 | E102: 331.5629542 | G102: Hong Kong | H102: 519.4220886 | I102: 0.001082373153 | J102: 44.01619722 | K102: 11.80070341
B103: Jamaica | C103: 140.4207075 | D103: 0.0002926090501 | E103: 7.441496709 | G103: Bolivia | H103: 518.5811371 | I103: 0.001080620776 | J103: 24.51172639 | K103: 21.15645096
B104: Japan | C104: 11497.80846 | D104: 0.02395916437 | E104: 1153.716984 | G104: Dominican Republic | H104: 512.5929537 | I104: 0.001068142583 | J104: 27.27602213 | K104: 18.79280459
B105: Jordan | C105: 499.7338146 | D105: 0.001041346675 | E105: 28.34005339 | G105: Chad | H105: 501.9147193 | I105: 0.00104589125 | J105: 0.8935866209 | K105: 561.6855799
B106: Kazakhstan | C106: 2392.543391 | D106: 0.004985588389 | E106: 277.3646684 | G106: Bulgaria | H106: 501.2626946 | I106: 0.001044532559 | J106: 43.31410203 | K106: 11.57273662
B107: Kenya | C107: 1765.123282 | D107: 0.00367816867 | E107: 19.81301085 | G107: Jordan | H107: 499.7338146 | I107: 0.001041346675 | J107: 28.34005339 | K107: 17.63348176
B108: Kiribati | C108: 3.878483113 | D108: 8.081993601e-06 | E108: 0.03362161318 | G108: Somalia | H108: 486.7273968 | I108: 0.001014243866 | J108: 0.9684341091 | K108: 502.5921663
B109: Kuwait | C109: 778.5531149 | D109: 0.001622351087 | E109: 98.95252113 | G109: Norway | H109: 481.4400514 | I109: 0.001003226081 | J109: 47.9907763 | K109: 10.03192881 | Z109: =B109 -> Kuwait | AA109: =E109 -> 98.95252113
B110: Kyrgyzstan | C110: 277.6104149 | D110: 0.0005784853334 | E110: 11.92138861 | G110: Finland | H110: 456.2578066 | I110: 0.0009507512516 | J110: 43.41487922 | K110: 10.5092497
B111: Laos | C111: 267.4228186 | D111: 0.0005572563928 | E111: 6.783368096 | G111: Benin | H111: 420.4653269 | I111: 0.0008761667854 | J111: 8.152652755 | K111: 51.57405074
B112: Latvia | C112: 114.1599688 | D112: 0.0002378868518 | E112: 8.379370466 | G112: Guinea | H112: 416.3991274 | I112: 0.000867693628 | J112: 2.920971605 | K112: 142.5550069
B113: Lebanon | C113: 392.8493941 | D113: 0.00081862063 | E113: 27.43706665 | G113: Slovakia | H113: 405.289303 | I113: 0.0008445429457 | J113: 35.98505669 | K113: 11.26271125
B114: Lesotho | C114: 71.04856197 | D114: 0.0001480511856 | E114: 0.75427256 | G114: New Zealand | H114: 401.8903814 | I114: 0.0008374602639 | J114: 38.66876873 | K114: 10.39315175
B115: Liberia | C115: 161.4926128 | D115: 0.0003365187433 | E115: 1.20753031 | G115: Rwanda | H115: 400.3398851 | I115: 0.0008342293355 | J115: 1.153225263 | K115: 347.1480361
B116: Libya | C116: 551.4924728 | D116: 0.001149201506 | E116: 52.0464267 | G116: Lebanon | H116: 392.8493941 | I116: 0.00081862063 | J116: 27.43706665 | K116: 14.3181995
B117: Lithuania | C117: 175.9872116 | D117: 0.0003667226275 | E117: 13.77191407 | G117: Ireland | H117: 391.1014824 | I117: 0.0008149783268 | J117: 36.54788753 | K117: 10.70106944
B118: Luxembourg | C118: 82.90483299 | D118: 0.0001727573152 | E118: 9.739865301 | G118: Denmark | H118: 383.2307385 | I118: 0.0007985772495 | J118: 31.11854911 | K118: 12.31518658 | Z118: =B118 -> Luxembourg | AA118: =E118 -> 9.739865301
B119: Macao | C119: 28.24426349 | D119: 5.885547265e-05 | E119: 1.271383237 | G119: Haiti | H119: 373.7758416 | I119: 0.0007788751098 | J119: 3.576690933 | K119: 104.5032542
B120: Madagascar | C120: 866.427526 | D120: 0.001805464022 | E120: 4.198763317 | G120: Honduras | H120: 370.9635572 | I120: 0.0007730148638 | J120: 10.35649717 | K120: 35.8194041
B121: Malawi | C121: 590.0701912 | D121: 0.00122958986 | E121: 1.616147874 | G121: Burundi | H121: 360.8984743 | I121: 0.0007520412168 | J121: 0.3379644876 | K121: 1067.859161
B122: Malaysia | C122: 2622.578436 | D122: 0.005464936038 | E122: 248.83266 | G122: Tajikistan | H122: 348.3277493 | I122: 0.0007258463062 | J122: 8.918523318 | K122: 39.05666184
B123: Maldives | C123: 22.49122277 | D123: 4.686727085e-05 | E123: 0.9128051584 | G123: Mongolia | H123: 335.4993463 | I123: 0.0006991144452 | J123: 35.9295932 | K123: 9.337688418
B124: Mali | C124: 618.2608411 | D124: 0.001288333613 | E124: 1.031353639 | G124: Bosnia and Herzegovina | H124: 321.9264309 | I124: 0.0006708311675 | J124: 33.49552725 | K124: 9.611027424
B125: Malta | C125: 20.52959933 | D125: 4.277963462e-05 | E125: 1.043602178 | G125: Papua New Guinea | H125: 299.6729135 | I125: 0.0006244592276 | J125: 4.074779957 | K125: 73.54333648
B126: Martinique | C126: 24.47172882 | D126: 5.099425471e-05 | E126: 1.953931354 | G126: Bahrain | H126: 283.010229 | I126: 0.0005897374807 | J126: 35.43838392 | K126: 7.985980106
B127: Mauritania | C127: 190.9165837 | D127: 0.0003978324936 | E127: 7.65944194 | G127: Kyrgyzstan | H127: 277.6104149 | I127: 0.0005784853334 | J127: 11.92138861 | K127: 23.28675158
B128: Mauritius | C128: 67.849315 | D128: 0.0001413845861 | E128: 4.331795994 | G128: Paraguay | H128: 274.5532034 | I128: 0.0005721147079 | J128: 8.465956729 | K128: 32.43026302
B129: Mexico | C129: 7143.0752 | D129: 0.01488475942 | E129: 485.0036041 | G129: Togo | H129: 270.1077483 | I129: 0.0005628512564 | J129: 2.854892675 | K129: 94.61222505
B130: Moldova | C130: 186.1837091 | D130: 0.0003879701167 | E130: 9.229154367 | G130: Laos | H130: 267.4228186 | I130: 0.0005572563928 | J130: 6.783368096 | K130: 39.42330931
B131: Mongolia | C131: 335.4993463 | D131: 0.0006991144452 | E131: 35.9295932 | G131: Trinidad and Tobago | H131: 257.7143598 | I131: 0.0005370258799 | J131: 32.74377146 | K131: 7.870637629
B132: Morocco | C132: 1618.336086 | D132: 0.003372293113 | E132: 73.91385667 | G132: Croatia | H132: 253.62577 | I132: 0.0005285060655 | J132: 19.11925348 | K132: 13.26546407
B133: Mozambique | C133: 1005.214985 | D133: 0.002094669706 | E133: 9.259440962 | G133: Sierra Leone | H133: 252.2151168 | I133: 0.0005255665425 | J133: 1.400424665 | K133: 180.099025
B134: Myanmar/Burma | C134: 1997.424085 | D134: 0.004162237712 | E134: 48.31066201 | G134: El Salvador | H134: 247.5284795 | I134: 0.0005158005152 | J134: 7.146297616 | K134: 34.63730352
B135: Namibia | C135: 106.398726 | D135: 0.000221713953 | E135: 4.40010959 | G135: Nicaragua | H135: 241.9613352 | I135: 0.0005041996848 | J135: 5.858757299 | K135: 41.29908834
B136: Nepal | C136: 988.2482094 | D136: 0.002059314292 | E136: 15.01908767 | G136: Costa Rica | H136: 215.7881833 | I136: 0.0004496600001 | J136: 8.979111405 | K136: =H136/J136 -> 24.03224257
B137: Netherlands | C137: 1555.641457 | D137: 0.003241649875 | E137: 156.4148194 | G137: Georgia | H137: 212.5195843 | I137: 0.0004428488845 | J137: 13.47372284 | K137: 15.77289267
B138: New Caledonia | C138: 111.2742763 | D138: 0.000231873638 | E138: 15.65664379 | G138: Panama | H138: 208.2418346 | I138: 0.0004339348982 | J138: 11.6335758 | K138: 17.90007115
B139: New Zealand | C139: 401.8903814 | D139: 0.0008374602639 | E139: 38.66876873 | G139: Congo | H139: 205.3600104 | I139: 0.0004279297451 | J139: 5.803544285 | K139: 35.38527498
B140: Nicaragua | C140: 241.9613352 | D140: 0.0005041996848 | E140: 5.858757299 | G140: Mauritania | H140: 190.9165837 | I140: 0.0003978324936 | J140: 7.65944194 | K140: 24.92565192
B141: Niger | C141: 740.580077 | D141: 0.001543222768 | E141: 2.359578167 | G141: Moldova | H141: 186.1837091 | I141: 0.0003879701167 | J141: 9.229154367 | K141: 20.17343104
B142: Nigeria | C142: 6907.454112 | D142: 0.01439377156 | E142: 100.2232306 | G142: Lithuania | H142: 175.9872116 | I142: 0.0003667226275 | J142: 13.77191407 | K142: 12.77870387
B143: North Korea | C143: 1074.445581 | D143: 0.002238932607 | E143: 42.17296771 | G143: Slovenia | H143: 165.2328321 | I143: 0.0003443126225 | J143: 15.36523986 | K143: 10.75367737
B144: North Macedonia | C144: 123.2205371 | D144: 0.0002567672885 | E144: 8.923784046 | G144: Estonia | H144: 162.3463438 | I144: 0.0003382977502 | J144: 18.50296076 | K144: 8.774073828
B145: Norway | C145: 481.4400514 | D145: 0.001003226081 | E145: 47.9907763 | G145: Liberia | H145: 161.4926128 | I145: 0.0003365187433 | J145: 1.20753031 | K145: 133.7379373 | Z145: =B145 -> Norway | AA145: =E145 -> 47.9907763
B146: Oman | C146: 762.0438069 | D146: 0.001587948946 | E146: 92.78072001 | G146: Central African Republic | H146: 150.8427281 | I146: 0.0003143264848 | J146: 0.4938382667 | K146: 305.4496548
B147: Pakistan | C147: 8200.500533 | D147: 0.01708822519 | E147: 223.6259501 | G147: Uruguay | H147: 150.6556269 | I147: 0.0003139366028 | J147: 6.564949853 | K147: 22.94848099
B148: Palau | C148: 9.263433238 | D148: 1.930316724e-05 | E148: 1.329678832 | G148: Jamaica | H148: 140.4207075 | I148: 0.0002926090501 | J148: 7.441496709 | K148: 18.86995493
B149: Panama | C149: 208.2418346 | D149: 0.0004339348982 | E149: 11.6335758 | G149: Armenia | H149: 130.7689104 | I149: 0.0002724966093 | J149: 5.921978119 | K149: 22.08196447
B150: Papua New Guinea | C150: 299.6729135 | D150: 0.0006244592276 | E150: 4.074779957 | G150: Albania | H150: 126.6599976 | I150: 0.0002639344455 | J150: 5.65928452 | K150: 22.38092061
B151: Paraguay | C151: 274.5532034 | D151: 0.0005721147079 | E151: 8.465956729 | G151: North Macedonia | H151: 123.2205371 | I151: 0.0002567672885 | J151: 8.923784046 | K151: 13.80810388
B152: Peru | C152: 1379.729228 | D152: 0.002875083497 | E152: 56.28605779 | G152: Botswana | H152: 117.736944 | I152: 0.0002453405623 | J152: 7.039305577 | K152: 16.72564754
B153: Philippines | C153: 4349.223206 | D153: 0.00906292308 | E153: 150.6400862 | G153: Puerto Rico | H153: 116.8424986 | I153: 0.0002434767145 | J153: 3.909904002 | K153: 29.88372567
B154: Poland | C154: 3257.757218 | D154: 0.006788523301 | E154: 317.6542447 | G154: Latvia | H154: 114.1599688 | I154: 0.0002378868518 | J154: 8.379370466 | K154: 13.62393145
B155: Portugal | C155: 635.3779983 | D155: 0.001324002392 | E155: 48.47204898 | G155: Eritrea | H155: 113.6743957 | I155: 0.0002368750133 | J155: 0.7468134987 | K155: 152.2125617
B156: Puerto Rico | C156: 116.8424986 | D156: 0.0002434767145 | E156: 3.909904002 | G156: New Caledonia | H156: 111.2742763 | I156: 0.000231873638 | J156: 15.65664379 | K156: 7.107160247
B157: Qatar | C157: 785.3617666 | D157: 0.001636538974 | E157: 106.5276102 | G157: Namibia | H157: 106.398726 | I157: 0.000221713953 | J157: 4.40010959 | K157: 24.18092636 | Z157: =B157 -> Qatar | AA157: =E157 -> 106.5276102
B158: Réunion | C158: 47.43168977 | D158: 9.883828344e-05 | E158: 3.021900386 | G158: Gabon | H158: 90.39361993 | I158: 0.0001883624697 | J158: 3.484952821 | K158: 25.93826217
B159: Romania | C159: 1117.052555 | D159: 0.002327717137 | E159: 78.63128639 | G159: Cyprus | H159: 85.80732652 | I159: 0.0001788055391 | J159: 7.413287782 | K159: 11.57480042
B160: Russia | C160: 16267.12469 | D160: 0.03389747844 | E160: 1792.015253 | G160: Luxembourg | H160: 82.90483299 | I160: 0.0001727573152 | J160: 9.739865301 | K160: 8.51190755
B161: Rwanda | C161: 400.3398851 | D161: 0.0008342293355 | E161: 1.153225263 | G161: The Gambia | H161: 76.90887541 | I161: 0.0001602629226 | J161: 0.5924554086 | K161: 129.8137789
B162: Saint Helena, Ascension and Tristan da Cunha | C162: 0.2921830747 | D162: 6.088518815e-07 | E162: 0.01584374938 | G162: Lesotho | H162: 71.04856197 | I162: 0.0001480511856 | J162: 0.75427256 | K162: 94.19481199
B163: Saint Kitts and Nevis | C163: 2.911635111 | D163: 6.06727312e-06 | E163: 0.1937930572 | G163: Mauritius | H163: 67.849315 | I163: 0.0001413845861 | J163: 4.331795994 | K163: 15.66309103
B164: Saint Lucia | C164: 7.630614582 | D164: 1.590069531e-05 | E164: 0.2970787525 | G164: Equatorial Guinea | H164: 64.92350564 | I164: 0.0001352877767 | J164: 3.474559399 | K164: 18.68539236
B165: Saint Pierre and Miquelon | C165: 0.5867165809 | D165: 1.222601598e-06 | E165: 0.06196880728 | G165: Guinea-Bissau | H165: 62.61676009 | I165: 0.000130480974 | J165: 0.4372352708 | K165: 143.2106792
B166: Saint Vincent and the Grenadines | C166: 4.395980359 | D166: 9.160355763e-06 | E166: 0.1460334287 | G166: Brunei | H166: 59.42980227 | I166: 0.0001238399827 | J166: 7.020439327 | K166: 8.465254025
B167: Samoa | C167: 7.041878457 | D167: 1.467388538e-05 | E167: 0.1391368229 | G167: Réunion | H167: 47.43168977 | I167: 9.883828344e-05 | J167: 3.021900386 | K167: 15.69598058
B168: São Tomé and Príncipe | C168: 7.730851026 | D168: 1.610956828e-05 | E168: 0.1590462545 | G168: Curaçao | H168: 43.79193397 | I168: 9.125375044e-05 | J168: 5.91382736 | K168: 7.405007164
B169: Saudi Arabia | C169: 5088.84111 | D169: 0.01060414087 | E169: 614.6071337 | G169: Eswatini | H169: 43.19792881 | I169: 9.00159609e-05 | J169: 1.14318664 | K169: 37.78729325
B170: Senegal | C170: 571.1412672 | D170: 0.001190145717 | E170: 9.809019874 | G170: Timor-Leste | H170: 42.74251294 | I170: 8.906696408e-05 | J170: 0.3845373461 | K170: 111.1530866
B171: Serbia and Montenegro | C171: 755.0939535 | D171: 0.001573466823 | E171: 70.68765961 | G171: Bhutan | H171: 37.64138521 | I171: 7.843722032e-05 | J171: 2.124182267 | K171: 17.72041213
B172: Seychelles | C172: 9.916496546 | D172: 2.066402233e-05 | E172: 1.050526015 | G172: Djibouti | H172: 37.15183437 | I172: 7.741709294e-05 | J172: 1.049124003 | K172: 35.41224322
B173: Sierra Leone | C173: 252.2151168 | D173: 0.0005255665425 | E173: 1.400424665 | G173: Fiji | H173: 36.59085209 | I173: 7.624811656e-05 | J173: 1.360765899 | K173: 26.88989497
B174: Singapore | C174: 529.8546033 | D174: 0.001104112456 | E174: 53.36540444 | G174: Iceland | H174: 36.23959764 | I174: 7.551617158e-05 | J174: 3.92539939 | K174: 9.232079094 | Z174: =B174 -> Singapore | AA174: =E174 -> 53.36540444
B175: Slovakia | C175: 405.289303 | D175: 0.0008445429457 | E175: 35.98505669 | G175: Guyana | H175: 34.31455789 | I175: 7.150476855e-05 | J175: 1.522408916 | K175: 22.5396459
B176: Slovenia | C176: 165.2328321 | D176: 0.0003443126225 | E176: 15.36523986 | G176: Barbados | H176: 33.98032951 | I176: 7.080830253e-05 | J176: 3.827391815 | K176: 8.878194643
B177: Solomon Islands | C177: 21.74809795 | D177: 4.531874533e-05 | E177: 0.1392808228 | G177: Suriname | H177: 31.5593608 | I177: 6.57634814e-05 | J177: 2.058611175 | K177: 15.33041362
B178: Somalia | C178: 486.7273968 | D178: 0.001014243866 | E178: 0.9684341091 | G178: Macao | H178: 28.24426349 | I178: 5.885547265e-05 | J178: 1.271383237 | K178: 22.21538138
B179: South Africa | C179: 5060.656807 | D179: 0.01054541034 | E179: 494.8623337 | G179: Bahamas | H179: 28.14720259 | I179: 5.865321689e-05 | J179: 2.449274735 | K179: 11.49205607
B180: South Korea | C180: 5860.223567 | D180: 0.01221154972 | E180: 651.8702368 | G180: Comoros | H180: 27.86860996 | I180: 5.807268481e-05 | J180: 0.2138544744 | K180: 130.3157675
B181: Spain and Andorra | C181: 3153.542954 | D181: 0.006571361337 | E181: 259.3102409 | G181: Guadeloupe | H181: 24.70459941 | I181: 5.147951108e-05 | J181: 1.873061632 | K181: 13.18942153
B182: Sri Lanka | C182: 843.757672 | D182: 0.001758224519 | E182: 27.5662856 | G182: Martinique | H182: 24.47172882 | I182: 5.099425471e-05 | J182: 1.953931354 | K182: 12.52435444
B183: Sudan and South Sudan | C183: 1823.667511 | D183: 0.003800163292 | E183: 22.57247572 | G183: Cabo Verde | H183: 23.80446712 | I183: 4.960381297e-05 | J183: 1.02322867 | K183: 23.26407363
B184: Suriname | C184: 31.5593608 | D184: 6.57634814e-05 | E184: 2.058611175 | G184: Maldives | H184: 22.49122277 | I184: 4.686727085e-05 | J184: 0.9128051584 | K184: 24.63967536
B185: Sweden | C185: 605.1032898 | D185: 0.001260915872 | E185: 44.74876921 | G185: Solomon Islands | H185: 21.74809795 | I185: 4.531874533e-05 | J185: 0.1392808228 | K185: 156.145674
B186: Switzerland and Liechtenstein | C186: 526.1348115 | D186: 0.001096361143 | E186: 39.37084926 | G186: Malta | H186: 20.52959933 | I186: 4.277963462e-05 | J186: 1.043602178 | K186: 19.67186325 | Z186: =B186 -> Switzerland and Liechtenstein | AA186: =E186 -> 39.37084926
B187: Syria | C187: 721.8754272 | D187: 0.001504245968 | E187: 29.16071308 | G187: Western Sahara | H187: 20.06419315 | I187: 4.180981996e-05 | J187: 0.2971995301 | K187: 67.51085087
B188: Taiwan | C188: 2551.205021 | D188: 0.005316207924 | E188: 276.7848422 | G188: Belize | H188: 14.57117612 | I188: 3.036345621e-05 | J188: 0.3709959741 | K188: 39.27583353
B189: Tajikistan | C189: 348.3277493 | D189: 0.0007258463062 | E189: 8.918523318 | G189: French Guiana | H189: 13.04252388 | I189: 2.717804654e-05 | J189: 0.610430159 | K189: 21.36611975
B190: Tanzania | C190: 1891.734721 | D190: 0.003942001929 | E190: 13.34308773 | G190: French Polynesia | H190: 12.61145584 | I190: 2.627978579e-05 | J190: 0.5994402519 | K190: 21.03872037
B191: Thailand | C191: 3966.273118 | D191: 0.008264930652 | E191: 275.0646544 | G191: Seychelles | H191: 9.916496546 | I191: 2.066402233e-05 | J191: 1.050526015 | K191: 9.439553525
B192: The Gambia | C192: 76.90887541 | D192: 0.0001602629226 | E192: 0.5924554086 | G192: Vanuatu | H192: 9.893337328 | I192: 2.061576308e-05 | J192: 0.08628804093 | K192: 114.6547913
B193: Timor-Leste | C193: 42.74251294 | D193: 8.906696408e-05 | E193: 0.3845373461 | G193: Palau | H193: 9.263433238 | I193: 1.930316724e-05 | J193: 1.329678832 | K193: 6.966669708
B194: Togo | C194: 270.1077483 | D194: 0.0005628512564 | E194: 2.854892675 | G194: Aruba | H194: 8.43837482 | I194: 1.758390827e-05 | J194: 0.7839459082 | K194: 10.76397584
B195: Tonga | C195: 4.088080334 | D195: 8.518752858e-06 | E195: 0.1279595434 | G195: São Tomé and Príncipe | H195: 7.730851026 | I195: 1.610956828e-05 | J195: 0.1590462545 | K195: 48.60756418
B196: Trinidad and Tobago | C196: 257.7143598 | D196: 0.0005370258799 | E196: 32.74377146 | G196: Saint Lucia | H196: 7.630614582 | I196: 1.590069531e-05 | J196: 0.2970787525 | K196: 25.68549423
B197: Tunisia | C197: 573.7136783 | D197: 0.001195506115 | E197: 32.07169355 | G197: Samoa | H197: 7.041878457 | I197: 1.467388538e-05 | J197: 0.1391368229 | K197: 50.61117762
B198: Turkey | C198: 5316.735172 | D198: 0.01107902713 | E198: 415.7829458 | G198: Antigua and Barbuda | H198: 6.359224947 | I198: 1.325137014e-05 | J198: 0.5099989956 | K198: 12.46909308
B199: Turkmenistan | C199: 777.3532838 | D199: 0.001619850875 | E199: 90.52346576 | G199: Gibraltar | H199: 5.587789246 | I199: 1.164385034e-05 | J199: 0.6935334265 | K199: 8.056986199
B200: Turks and Caicos Islands | C200: 2.071201541 | D200: 4.315975373e-06 | E200: 0.134931665 | G200: Greenland | H200: 5.275726396 | I200: 1.099357293e-05 | J200: 0.5366852088 | K200: =H200/J200 -> 9.83020644
B201: Uganda | C201: 1412.061382 | D201: 0.002942457327 | E201: 5.339553174 | G201: Grenada | H201: 4.980550258 | I201: 1.03784841e-05 | J201: 0.2286236163 | K201: 21.78493341
... 20 more rows

Sheet data (hidden)
A1: P | B1: B | C1: LUC | D1: NNE | E1: paths | F1: success
A2: 100 | B2: 420 | C2: 0 | D2: 0 | E2: =CONCATENATE("C:\Users\andre\WEB.DE Online-Speicher\Website\klima-retten.info\Downloads\RV\ESPM_P",A2,"_B",B2,"_RM-5",".pdf") -> C:\Users\andre\WEB.DE Online-Speicher\Website\klima-retten.info\Downloads\RV\ESPM_P100_B420_RM-5.pdf | F2: ok
A3: 100 | B3: 570 | C3: 0 | D3: 0 | E3: =CONCATENATE("C:\Users\andre\WEB.DE Online-Speicher\Website\klima-retten.info\Downloads\RV\ESPM_P",A3,"_B",B3,"_RM-5",".pdf") -> C:\Users\andre\WEB.DE Online-Speicher\Website\klima-retten.info\Downloads\RV\ESPM_P100_B570_RM-5.pdf | F3: ok
A4: 100 | B4: 680 | C4: 0 | D4: 0 | E4: C:\Users\andre\WEB.DE Online-Speicher\Website\klima-retten.info\Downloads\RV\ESPM_P100_B680_RM-5.pdf | F4: ok
A5: 100 | B5: 800 | C5: 0 | D5: 0 | E5: C:\Users\andre\WEB.DE Online-Speicher\Website\klima-retten.info\Downloads\RV\ESPM_P100_B800_RM-5.pdf | F5: ok
A6: 85 | B6: 420 | C6: 0 | D6: 0 | E6: =CONCATENATE("C:\Users\andre\WEB.DE Online-Speicher\Website\klima-retten.info\Downloads\RV\ESPM_P",A6,"_B",B6,"_RM-5",".pdf") -> C:\Users\andre\WEB.DE Online-Speicher\Website\klima-retten.info\Downloads\RV\ESPM_P85_B420_RM-5.pdf | F6: ok
A7: 85 | B7: 570 | C7: 0 | D7: 0 | E7: =CONCATENATE("C:\Users\andre\WEB.DE Online-Speicher\Website\klima-retten.info\Downloads\RV\ESPM_P",A7,"_B",B7,"_RM-5",".pdf") -> C:\Users\andre\WEB.DE Online-Speicher\Website\klima-retten.info\Downloads\RV\ESPM_P85_B570_RM-5.pdf | F7: ok
A8: 85 | B8: 680 | C8: 0 | D8: 0 | E8: =CONCATENATE("C:\Users\andre\WEB.DE Online-Speicher\Website\klima-retten.info\Downloads\RV\ESPM_P",A8,"_B",B8,"_RM-5",".pdf") -> C:\Users\andre\WEB.DE Online-Speicher\Website\klima-retten.info\Downloads\RV\ESPM_P85_B680_RM-5.pdf | F8: ok
A9: 85 | B9: 800 | C9: 0 | D9: 0 | E9: C:\Users\andre\WEB.DE Online-Speicher\Website\klima-retten.info\Downloads\RV\ESPM_P85_B800_RM-5.pdf | F9: ok
A10: 70 | B10: 420 | C10: 0 | D10: 0 | E10: =CONCATENATE("C:\Users\andre\WEB.DE Online-Speicher\Website\klima-retten.info\Downloads\RV\ESPM_P",A10,"_B",B10,"_RM-5",".pdf") -> C:\Users\andre\WEB.DE Online-Speicher\Website\klima-retten.info\Downloads\RV\ESPM_P70_B420_RM-5.pdf | F10: ok
A11: 70 | B11: 570 | C11: 0 | D11: 0 | E11: =CONCATENATE("C:\Users\andre\WEB.DE Online-Speicher\Website\klima-retten.info\Downloads\RV\ESPM_P",A11,"_B",B11,"_RM-5",".pdf") -> C:\Users\andre\WEB.DE Online-Speicher\Website\klima-retten.info\Downloads\RV\ESPM_P70_B570_RM-5.pdf | F11: ok
A12: 70 | B12: 680 | C12: 0 | D12: 0 | E12: C:\Users\andre\WEB.DE Online-Speicher\Website\klima-retten.info\Downloads\RV\ESPM_P70_B680_RM-5.pdf | F12: ok
A13: 70 | B13: 800 | C13: 0 | D13: 0 | E13: C:\Users\andre\WEB.DE Online-Speicher\Website\klima-retten.info\Downloads\RV\ESPM_P70_B800_RM-5.pdf | F13: ok
A14: 50 | B14: 420 | C14: 0 | D14: 0 | E14: =CONCATENATE("C:\Users\andre\WEB.DE Online-Speicher\Website\klima-retten.info\Downloads\RV\ESPM_P",A14,"_B",B14,"_RM-5",".pdf") -> C:\Users\andre\WEB.DE Online-Speicher\Website\klima-retten.info\Downloads\RV\ESPM_P50_B420_RM-5.pdf | F14: ok
